Workbook

Sheet Rozpočet B1 - Value for Money
A2: Príloha ZoNFP č. 3 - Rozpočet projektu
A6: =IF(ISERROR(MacrosEnabled()&NOW()),"Makrá sú vypnuté. Pre vypracovanie hárku ich, prosím, dočasne zapnite.","") -> 
A7: Rozpočet - Budova č. 1 | G7: =IF(G12="",""," - súpis. č. "&G12) -> - súpis. č. 68
A9: Názov žiadateľa: | B9: Obec Podhorany
A10: Názov projektu: | B10: Stavebné úpravy ZŠ Podhorany Zníženie spotreby energie pri prevádzke
A11: Je žiadateľ platcom DPH v rozsahu aktivity? | B11: nie | D11: Katastrálne územie | F11: LV číslo | G11: Súpisné číslo | I11: Právny vzťah | O11: výlučné vlastníctvo budovy žiadateľom
A12: Počet samostatných budov v ŽoNFP? | B12: 1 | D12: Podhorany | F12: 1 | G12: 68 | H12: =IF(O11=Číselníky!G13,"Predložte súhlas všetkých podielových spoluvlastníkov stavby",IF(O11=Číselníky!G14,"Predložte doklad oprávnujúci k výkonu správy budovy","")) -> 
A14: Zateplenie obvodového plášťa
A15: Cieľová hodnota zateplenej plochy obvodového plášťa v m2 | C15: 690.96 | D15: m2
A16: Názov výdavku | B16: Skupina výdavkov | C16: Merná jednotka | D16: Počet jednotiek | E16: Jednotková cena bez DPH [EUR] | F16: Cena celkom bez DPH [EUR] | G16: Cena celkom s DPH [EUR] | H16: Celkový výdavok | I16: Výdavok nad referenčnú hodnotu | J16: Výdavok pri neakceptovaní prekročenia ref. hodnôt | K16: Schválenie / neschválenie prekročenia ref. hodnôt | L16: Výdavok po odčítaní vecne neoprávne. a/alebo neúčelných výdavkov | M16: Výdavok po odčítaní nehospodárnych výdavkov | N16: Oprávnený výdavok | O16: Vecný opis výdavku
A17: Omietka vonk. stien vápenná hrubá zatretá - vonk. ostenie | B17: 021 Stavby | C17: m2 | D17: 67.974 | E17: 7.3 | F17: =ROUND(D17*E17,2) -> 496.21 | G17: =ROUND(F17*1.2,2) -> 595.45 | H17: =IF($B$11="áno",F17,G17) -> 595.45 | L17: =H17 -> 595.45 | M17: =L17 -> 595.45 | N17: =IFERROR(ROUND(IF($K$31="nie",IF($M$31<=($C$15*100),M17,M17*$J$31/$M$31),M17),2),0) -> 595.45
A18: Oprava omietok vápenných a vápennocem. st. člen. 1-2 štukových 10-20% | B18: 021 Stavby | C18: m2 | D18: 316.488 | E18: 4 | F18: 1265.95 | G18: 1519.14 | H18: 1519.14 | L18: 1519.14 | M18: 1519.14 | N18: 1519.14
A19: Oprava omietok vápenných a vápennocem. st. člen. 1-2 - po demontáži kontaktného zateplenia hr. 50mm | B19: 021 Stavby | C19: m2 | D19: 297.7 | E19: 10 | F19: 2977 | G19: 3572.4 | H19: 3572.4 | L19: 3572.4 | M19: 3572.4 | N19: 3572.4
A20: Omietka vonk. stien tenkovrstv. BAUMIT silikátová základ a škrabaná 3 mm | B20: 021 Stavby | C20: m2 | D20: 690.962 | E20: 13 | F20: 8982.51 | G20: 10779.01 | H20: 10779.01 | L20: 10779.01 | M20: 10779.01 | N20: 10779.01
A21: Omietka vonk. stien šľachtená BAUMIT mozaiková so zákl. náterom Granopor,hr.zrna 2 mm | B21: 021 Stavby | C21: m2 | D21: 49.096 | E21: 19 | F21: 932.82 | G21: 1119.38 | H21: 1119.38 | L21: 1119.38 | M21: 1119.38 | N21: 1119.38
A22: Kontaktný zatepľovací systém soklovej alebo vodou namáhanej časti hr. 150mm, zatĺkacie kotvy XPS | B22: 021 Stavby | C22: m2 | D22: 49.096 | E22: 49 | F22: 2405.7 | G22: 2886.84 | H22: 2886.84 | L22: 2886.84 | M22: 2886.84 | N22: 2886.84
A23: Kontaktný zatepľovací systém PROFI z min. vlny hr. 200 mm zatĺk. kotvy | B23: 021 Stavby | C23: m2 | D23: 622.988 | E23: 67 | F23: 41740.2 | G23: 50088.24 | H23: 50088.24 | L23: 50088.24 | M23: 50088.24 | N23: 50088.24
A24: Kontaktný zatepľovací systém ostenia PROFI z min. vlny hr. 30 mm | B24: 021 Stavby | C24: m2 | D24: 67.974 | E24: 30 | F24: 2039.22 | G24: 2447.06 | H24: 2447.06 | L24: 2447.06 | M24: 2447.06 | N24: 2447.06
A25: Vyrovnávacia vrstva MC šírky 150-300 mm pod klampiarskými prvkami | B25: 021 Stavby | C25: m | D25: 48.24 | E25: 2 | F25: 96.48 | G25: 115.78 | H25: 115.78 | L25: 115.78 | M25: 115.78 | N25: 115.78
A26: Zakrývanie výplne otvorov fóliou a plastickým profilom | B26: 021 Stavby | C26: m2 | D26: 92.794 | E26: 3.5 | F26: 324.78 | G26: 389.74 | H26: 389.74 | L26: 389.74 | M26: 389.74 | N26: 389.74
A27: D+M parapetných dosák z plastických hmôt š. nad 20 cm | B27: 021 Stavby | C27: m | D27: 48.24 | E27: 38 | F27: 1833.12 | G27: 2199.74 | H27: 2199.74 | L27: 2199.74 | M27: 2199.74 | N27: 2199.74
A28: Montáž lešenia ľahk. radového s podlahami š. do 1 m v. do 10 m | B28: 021 Stavby | C28: m2 | D28: 764.096 | E28: 2.4 | F28: 1833.83 | G28: 2200.6 | H28: 2200.6 | L28: 2200.6 | M28: 2200.6 | N28: 2200.6
A29: Príplatok za prvý a každý ďalší mesiac použitia lešenia k pol. -1031 | B29: 021 Stavby | C29: m2 | D29: 764.096 | E29: 1.5 | F29: 1146.14 | G29: 1375.37 | H29: 1375.37 | L29: 1375.37 | M29: 1375.37 | N29: 1375.37
A30: Demontáž lešenia ľahk. radového s podlahami š. do 1 m v. do 10 m | B30: 021 Stavby | C30: m2 | D30: 764.096 | E30: 1.5 | F30: 1146.14 | G30: 1375.37 | H30: 1375.37 | L30: 1375.37 | M30: 1375.37 | N30: 1375.37
A31: Spolu výdavky zateplenia obvodového plášťa | F31: =SUM(F17:F30) -> 67220.1 | G31: =SUM(G17:G30) -> 80664.12 | H31: =IF(OR(B11="",C15="",C15<=0,D12="",F12="",G12="",O11=""),0,SUM(H17:H30)) -> 80664.12 | I31: =IF(OR(C15=0,B11=""),0,IF(F31>=C15*100,IF(B11="áno",F31-C15*100,G31-C15*100*1.2),0)) -> 0 | J31: =IF(OR(C15="",C15<=0,D12="",F12="",G12="",O11=""),0,H31-I31) -> 80664.12 | K31: áno | L31: =IF(OR(B11="",C15="",C15<=0,D12="",F12="",G12="",O11=""),0,SUM(L17:L30)) -> 80664.12 | M31: =IF(OR(B11="",C15="",C15<=0,D12="",F12="",G12="",O11=""),0,SUM(M17:M30)) -> 80664.12 | N31: =IF(OR(B11="",C15="",C15<=0,D12="",F12="",G12="",O11=""),0,SUM(N17:N30)) -> 80664.12
A32: =IF(C10*G10>=H31,"","Prekročenie referenčných hodnôt nebude bez akceptovaného zdôvodnenia schválené.") -> Prekročenie referenčných hodnôt nebude bez akceptovaného zdôvodnenia schválené.
A33: Zdôvodnenie prekročenia referenčnej hodnoty pre obvodový plášť | B33: V prípade prekročenia stanovenej referenčnej hodnoty pre vybrané výdavky projektu je žiadateľ oprávnený toto prekročenie zdôvodniť. Žiadateľ v zdôvodnení uvedie výdavky, ktoré najvýznamnejšie vplývajú na prekročenie stanovenej referenčnej hodnoty a zdôvodní ich nevyhnutnosť. V prípade, že zdôvodnenie prekročenia stanovenej referenčnej hodnoty nebude predložené, resp. dostatočné alebo akceptované zo strany odborného hodnotiteľa ako odôvodniteľné, žiadané výdavky budú krátené na výšku stanovených referenčných hodnôt. Bližšie informácie týkajúce sa referenčných hodnôt a ich prekročenia sú uvedené v Prílohe č. 4 Výzvy - Osobitné podmienky oprávnenosti výdavkov.
A35: Zateplenie strešného plášťa
A36: Cieľová hodnota zateplenej plochy strešného plášťa v m2 | C36: 491.51 | D36: m2
A37: Názov výdavku | B37: Skupina výdavkov | C37: Merná jednotka | D37: Počet jednotiek | E37: Jednotková cena bez DPH [EUR] | F37: Cena celkom bez DPH [EUR] | G37: Cena celkom s DPH [EUR] | H37: Celkový výdavok | I37: Výdavok nad referenčnú hodnotu | J37: Výdavok pri neakceptovaní prekročenia ref. hodnôt | K37: Schválenie / neschválenie prekročenia ref. hodnôt | L37: Výdavok po odčítaní vecne neoprávne. a/alebo neúčelných výdavkov | M37: Výdavok po odčítaní nehospodárnych výdavkov | N37: Oprávnený výdavok | O37: Vecný opis výdavku
A38: Montáž tep. izolácie stropov, položenie na vrch | B38: 021 Stavby | C38: m2 | D38: 250.32 | E38: 1 | F38: =ROUND(D38*E38,2) -> 250.32 | G38: =ROUND(F38*1.2,2) -> 300.38 | H38: =IF($B$11="áno",F38,G38) -> 300.38 | L38: =H38 -> 300.38 | M38: =L38 -> 300.38 | N38: =IFERROR(ROUND(IF($K$51="nie",IF($M$51<=($C$36*80),M38,M38*$J$51/$M$51),M38),2),0) -> 300.38
A39: Doska čadičová NOBASIL MPE(M) 40kg/m3 hr. 15 cm | B39: 021 Stavby | C39: m2 | D39: 255.326 | E39: 7.3 | F39: 1863.88 | G39: 2236.66 | H39: 2236.66 | L39: 2236.66 | M39: =L39 -> 2236.66 | N39: =IFERROR(ROUND(IF($K$51="nie",IF($M$51<=($C$36*80),M39,M39*$J$51/$M$51),M39),2),0) -> 2236.66
A40: Doska čadičová NOBASIL MPE(M) 40kg/m3 hr. 20 cm | B40: 021 Stavby | C40: m2 | D40: 255.326 | E40: 10.5 | F40: 2680.92 | G40: 3217.1 | H40: 3217.1 | L40: 3217.1 | M40: =L40 -> 3217.1 | N40: =IFERROR(ROUND(IF($K$51="nie",IF($M$51<=($C$36*80),M40,M40*$J$51/$M$51),M40),2),0) -> 3217.1
A41: Montáž tep. izolácie stropov rovných spodom, pribitie (PIR doska) | B41: 021 Stavby | C41: m2 | D41: 241.185 | E41: 4 | F41: 964.74 | G41: 1157.69 | H41: 1157.69 | L41: 1157.69 | M41: 1157.69 | N41: 1157.69
A42: Doska PIR izolácia PUREN PERFECT | B42: 021 Stavby | C42: m2 | D42: 246.009 | E42: 55 | F42: 13530.5 | G42: 16236.6 | H42: 16236.6 | L42: 16236.6 | M42: 16236.6 | N42: 16236.6
A43: Montáž tep. izolácie stropov rovných spodom, pripevnenie na trne (nádstavec na krokvu) | B43: 021 Stavby | C43: m2 | D43: 110.952 | E43: 3 | F43: 332.86 | G43: 399.43 | H43: 399.43 | L43: 399.43 | M43: 399.43 | N43: 399.43
A44: Doska čadičová NOBASIL MPE(M) 40kg/m3 hr. 20 cm | B44: 021 Stavby | C44: m2 | D44: 113.171 | E44: 10.5 | F44: 1188.3 | G44: 1425.96 | H44: 1425.96 | L44: 1425.96 | M44: 1425.96 | N44: 1425.96
A45: Montáž tep. izolácie stropov rebrových spodom, pripevnenie drôtom - na drevenú konštrukciu Knauf | B45: 021 Stavby | C45: m2 | D45: 72.4 | E45: 3 | F45: 217.2 | G45: 260.64 | H45: 260.64 | L45: 260.64 | M45: 260.64 | N45: 260.64
A46: Doska čadičová NOBASIL MPE(M) 40kg/m3 hr. 15 cm | B46: 021 Stavby | C46: m2 | D46: 38.01 | E46: 7.8 | F46: 296.48 | G46: 355.78 | H46: 355.78 | L46: 355.78 | M46: 355.78 | N46: 355.78
A47: Doska čadičová NOBASIL MPE(M) 40kg/m3 hr. 20 cm | B47: 021 Stavby | C47: m2 | D47: 38.01 | E47: 10.3 | F47: 391.5 | G47: 469.8 | H47: 469.8 | L47: 469.8 | M47: 469.8 | N47: 469.8
A48: Montáž tepel. izolácie stropov striekaním PUR peny hr. 300 mm | B48: 021 Stavby | C48: m2 | D48: 177.84 | E48: 5 | F48: 889.2 | G48: 1067.04 | H48: 1067.04 | L48: 1067.04 | M48: 1067.04 | N48: 1067.04
A49: Polyuretánová pena dvojzl. pre tepelnú izoláciu s uzavretou bunk štruktúrov | B49: 021 Stavby | C49: kg | D49: 1547.208 | E49: 3.8 | F49: 5879.39 | G49: 7055.27 | H49: 7055.27 | L49: 7055.27 | M49: 7055.27 | N49: 7055.27
A50: Presun hmôt pre izolácie tepelné v objektoch výšky do 12 m | B50: 021 Stavby | C50: % | D50: 284.49 | E50: 1.5 | F50: 426.74 | G50: 512.09 | H50: 512.09 | L50: 512.09 | M50: =L50 -> 512.09 | N50: =IFERROR(ROUND(IF($K$51="nie",IF($M$51<=($C$36*80),M50,M50*$J$51/$M$51),M50),2),0) -> 512.09
A51: Spolu výdavky zateplenia strešného plášťa | F51: =SUM(F38:F50) -> 28912.03 | G51: =SUM(G38:G50) -> 34694.44 | H51: =IF(OR(B11="",C36="",C36<=0,D12="",F12="",G12="",O11=""),0,SUM(H38:H50)) -> 34694.44 | I51: =IF(OR(C36=0,B11=""),0,IF(F51>=C36*80,IF(B11="áno",F51-C36*80,G51-C36*80*1.2),0)) -> 0 | J51: =IF(OR(C36="",C36<=0,D12="",F12="",G12="",O11=""),0,H51-I51) -> 34694.44 | K51: RH neprekročená | L51: =IF(OR(B11="",C36="",C36<=0,D12="",F12="",G12="",O11=""),0,SUM(L38:L50)) -> 34694.44 | M51: =IF(OR(B11="",C36="",C36<=0,D12="",F12="",G12="",O11=""),0,SUM(M38:M50)) -> 34694.44 | N51: =IF(OR(B11="",C36="",C36<=0,D12="",F12="",G12="",O11=""),0,SUM(N38:N50)) -> 34694.44
A52: =IF(C31*G31>=H51,"","Prekročenie referenčných hodnôt nebude bez akceptovaného zdôvodnenia schválené.") -> Prekročenie referenčných hodnôt nebude bez akceptovaného zdôvodnenia schválené.
A53: Zdôvodnenie prekročenia referenčnej hodnoty pre strešný plášť | B53: V prípade prekročenia stanovenej referenčnej hodnoty pre vybrané výdavky projektu je žiadateľ oprávnený toto prekročenie zdôvodniť. Žiadateľ v zdôvodnení uvedie výdavky, ktoré najvýznamnejšie vplývajú na prekročenie stanovenej referenčnej hodnoty a zdôvodní ich nevyhnutnosť. V prípade, že zdôvodnenie prekročenia stanovenej referenčnej hodnoty nebude predložené, resp. dostatočné alebo akceptované zo strany odborného hodnotiteľa ako odôvodniteľné, žiadané výdavky budú krátené na výšku stanovených referenčných hodnôt. Bližšie informácie týkajúce sa referenčných hodnôt a ich prekročenia sú uvedené v Prílohe č. 4 Výzvy - Osobitné podmienky oprávnenosti výdavkov.
A55: Výmena otvorových konštrukcií
A56: Cieľová hodnota výmeny otvorových konštrukcií v m2 | C56: 96.48 | D56: m2
A57: Názov výdavku | B57: Skupina výdavkov | C57: Merná jednotka | D57: Počet jednotiek | E57: Jednotková cena bez DPH [EUR] | F57: Cena celkom bez DPH [EUR] | G57: Cena celkom s DPH [EUR] | H57: Celkový výdavok | I57: Výdavok nad referenčnú hodnotu | J57: Výdavok pri neakceptovaní prekročenia ref. hodnôt | K57: Schválenie / neschválenie prekročenia ref. hodnôt | L57: Výdavok po odčítaní vecne neoprávne. a/alebo neúčelných výdavkov | M57: Výdavok po odčítaní nehospodárnych výdavkov | N57: Oprávnený výdavok | O57: Vecný opis výdavku
A58: Montáž okien a dverí na penu + paropriepustné fólie | B58: 021 Stavby | C58: m | D58: 268.14 | E58: 20 | F58: =ROUND(D58*E58,2) -> 5362.8 | G58: =ROUND(F58*1.2,2) -> 6435.36 | H58: =IF($B$11="áno",F58,G58) -> 6435.36 | L58: =H58 -> 6435.36 | M58: =L58 -> 6435.36 | N58: =IFERROR(ROUND(IF($K$79="nie",IF($M$79<=($C$56*400),M58,M58*$J$79/$M$79),M58),2),0) -> 6435.36
A59: Okno plastové, rozmer 1950x1950mm, ug=0,5 | B59: 021 Stavby | C59: kus | D59: 1 | E59: 750 | F59: 750 | G59: 900 | H59: 900 | L59: 900 | M59: 900 | N59: =IFERROR(ROUND(IF($K$79="nie",IF($M$79<=($C$56*400),M59,M59*$J$79/$M$79),M59),2),0) -> 900
A60: Okno plastové, rozmer 1100x1950mm, ug=0,5 | B60: 021 Stavby | C60: kus | D60: 10 | E60: 400 | F60: 4000 | G60: 4800 | H60: 4800 | L60: 4800 | M60: 4800 | N60: =IFERROR(ROUND(IF($K$79="nie",IF($M$79<=($C$56*400),M60,M60*$J$79/$M$79),M60),2),0) -> 4800
A61: Okno plastové, rozmer 1600x1700mm, ug=0,5 | B61: 021 Stavby | C61: kus | D61: 1 | E61: 550 | F61: 550 | G61: 660 | H61: 660 | L61: 660 | M61: 660 | N61: 660
A62: Okno plastové, rozmer 1200x1500mm, ug=0,5 | B62: 021 Stavby | C62: kus | D62: 3 | E62: 255 | F62: 765 | G62: 918 | H62: 918 | L62: 918 | M62: 918 | N62: 918
A63: Okno plastové, rozmer 1100x1400mm, ug=0,5 | B63: 021 Stavby | C63: kus | D63: 3 | E63: 320 | F63: 960 | G63: 1152 | H63: 1152 | L63: 1152 | M63: 1152 | N63: 1152
A64: Okno plastové, rozmer 600x900mm, ug=0,5 | B64: 021 Stavby | C64: kus | D64: 3 | E64: 125 | F64: 375 | G64: 450 | H64: 450 | L64: 450 | M64: 450 | N64: 450
A65: Okno plastové, rozmer 1780x1720mm, ug=0,5 | B65: 021 Stavby | C65: kus | D65: 1 | E65: 610 | F65: 610 | G65: 732 | H65: 732 | L65: 732 | M65: 732 | N65: 732
A66: Okno plastové, rozmer 1000x1950mm, ug=0,5 | B66: 021 Stavby | C66: kus | D66: 1 | E66: 400 | F66: 400 | G66: 480 | H66: 480 | L66: 480 | M66: 480 | N66: 480
A67: Okno plastové, rozmer 1350x1400mm, ug=0,5 | B67: 021 Stavby | C67: kus | D67: 1 | E67: 380 | F67: 380 | G67: 456 | H67: 456 | L67: 456 | M67: 456 | N67: 456
A68: Okno plastové, rozmer 1320x1400mm, ug=0,5 | B68: 021 Stavby | C68: kus | D68: 1 | E68: 380 | F68: 380 | G68: 456 | H68: 456 | L68: 456 | M68: 456 | N68: 456
A69: Okno plastové, rozmer 600x500mm, ug=0,5 | B69: 021 Stavby | C69: kus | D69: 3 | E69: 110 | F69: 330 | G69: 396 | H69: 396 | L69: 396 | M69: 396 | N69: 396
A70: Okno plastové, rozmer 1200x1150mm, ug=0,5 | B70: 021 Stavby | C70: kus | D70: 1 | E70: 295 | F70: 295 | G70: 354 | H70: 354 | L70: 354 | M70: 354 | N70: 354
A71: Okno plastové, rozmer 1150x1700mm, ug=0,5 | B71: 021 Stavby | C71: kus | D71: 7 | E71: 390 | F71: 2730 | G71: 3276 | H71: 3276 | L71: 3276 | M71: 3276 | N71: 3276
A72: Okno plastové, rozmer 1800x1000mm, ug=0,5 | B72: 021 Stavby | C72: kus | D72: 2 | E72: 365 | F72: 730 | G72: 876 | H72: 876 | L72: 876 | M72: 876 | N72: 876
A73: Okno plastové, rozmer 1620x1680mm, ug=0,5 | B73: 021 Stavby | C73: kus | D73: 2 | E73: 700 | F73: 1400 | G73: 1680 | H73: 1680 | L73: 1680 | M73: 1680 | N73: 1680
A74: Dvere vchodové plast. bezpečnostné 1650x2200x580mm | B74: 021 Stavby | C74: kus | D74: 2 | E74: 1750 | F74: 3500 | G74: 4200 | H74: 4200 | L74: 4200 | M74: 4200 | N74: 4200
A75: Dvere vchodové plast. bezpečnostné 1000x2050mm | B75: 021 Stavby | C75: kus | D75: 2 | E75: 910 | F75: 1820 | G75: 2184 | H75: 2184 | L75: 2184 | M75: 2184 | N75: 2184
A76: Dvere vchodové plast. bezpečnostné 900x2050mm | B76: 021 Stavby | C76: kus | D76: 5 | E76: 830 | F76: 4150 | G76: 4980 | H76: 4980 | L76: 4980 | M76: 4980 | N76: 4980
A77: Dvere vchodové plast. bezpečnostné 1500x1700mm | B77: 021 Stavby | C77: kus | D77: 1 | E77: 1100 | F77: 1100 | G77: 1320 | H77: 1320 | L77: 1320 | M77: 1320 | N77: 1320
A78: Presun hmôt pre konštr. stolárske v objektoch výšky do 12 m | B78: 021 Stavby | C78: % | D78: 307.328 | E78: 1 | F78: 307.33 | G78: 368.8 | H78: 368.8 | L78: 368.8 | M78: 368.8 | N78: =IFERROR(ROUND(IF($K$79="nie",IF($M$79<=($C$56*400),M78,M78*$J$79/$M$79),M78),2),0) -> 368.8
A79: Spolu výdavky výmeny otvorových konštrukcií | F79: =SUM(F58:F78) -> 30895.13 | G79: =SUM(G58:G78) -> 37074.16 | H79: =IF(OR(B11="",C56="",C56<=0,D12="",F12="",G12="",O11=""),0,SUM(H58:H78)) -> 37074.16 | I79: =IF(OR(C56=0,B11=""),0,IF(F79>=C56*400,IF(B11="áno",F79-C56*400,G79-C56*400*1.2),0)) -> 0 | J79: =IF(OR(C56="",C56<=0,D12="",F12="",G12="",O11=""),0,H79-I79) -> 37074.16 | K79: RH neprekročená | L79: =IF(OR(B11="",C56="",C56<=0,D12="",F12="",G12="",O11=""),0,SUM(L58:L78)) -> 37074.16 | M79: =IF(OR(B11="",C56="",C56<=0,D12="",F12="",G12="",O11=""),0,SUM(M58:M78)) -> 37074.16 | N79: =IF(OR(B11="",C56="",C56<=0,D12="",F12="",G12="",O11=""),0,SUM(N58:N78)) -> 37074.16
A80: =IF(C51*G51>=H79,"","Prekročenie referenčných hodnôt nebude bez akceptovaného zdôvodnenia schválené.") -> Prekročenie referenčných hodnôt nebude bez akceptovaného zdôvodnenia schválené.
A81: Zdôvodnenie prekročenia referenčnej hodnoty pre výmenu otvorových konštrukcií | B81: V prípade prekročenia stanovenej referenčnej hodnoty pre vybrané výdavky projektu je žiadateľ oprávnený toto prekročenie zdôvodniť. Žiadateľ v zdôvodnení uvedie výdavky, ktoré najvýznamnejšie vplývajú na prekročenie stanovenej referenčnej hodnoty a zdôvodní ich nevyhnutnosť. V prípade, že zdôvodnenie prekročenia stanovenej referenčnej hodnoty nebude predložené, resp. dostatočné alebo akceptované zo strany odborného hodnotiteľa ako odôvodniteľné, žiadané výdavky budú krátené na výšku stanovených referenčných hodnôt. Bližšie informácie týkajúce sa referenčných hodnôt a ich prekročenia sú uvedené v Prílohe č. 4 Výzvy - Osobitné podmienky oprávnenosti výdavkov.
A83: Ostatné
A84: Názov výdavku | B84: Skupina výdavkov | C84: Merná jednotka | D84: Počet jednotiek | E84: Jednotková cena bez DPH [EUR] | F84: Cena celkom bez DPH [EUR] | G84: Cena celkom s DPH [EUR] | H84: Celkový výdavok | I84: Výdavok nad referenčnú hodnotu | J84: Výdavok pri neakceptovaní prekročenia ref. hodnôt | K84: Stĺpec1 | L84: Výdavok po odčítaní vecne neoprávne. a/alebo neúčelných výdavkov | M84: Stĺpec2 | N84: Oprávnený výdavok | O84: Vecný opis výdavku
A85: Murivo výplňové z tehál 29 cm P15 zmes malt.suchá 10 Mpa | B85: 021 Stavby | C85: m3 | D85: 0.154 | E85: 225 | F85: =ROUND(D85*E85,2) -> 34.65 | G85: =ROUND(F85*1.2,2) -> 41.58 | H85: =IF($B$11="áno",F85,G85) -> 41.58 | L85: =H85 -> 41.58 | N85: =L85 -> 41.58
A86: Montáž prefabrik. prekladov pre svetlosť otvoru do 180 cm | B86: 021 Stavby | C86: kus | D86: 4 | E86: 6 | F86: 24 | G86: 28.8 | H86: 28.8 | L86: 28.8 | N86: 28.8
A87: Keramický preklad predpätý POROTHERM65 2000x120x65mm | B87: 021 Stavby | C87: kus | D87: 4 | E87: 13 | F87: 52 | G87: 62.4 | H87: 62.4 | L87: 62.4 | N87: 62.4
A88: Demontáž ohrievačov vody zásobníkových do 630 l | B88: 021 Stavby | C88: kus | D88: 1 | E88: 30 | F88: 30 | G88: 36 | H88: 36 | L88: 36 | N88: 36
A89: Montáž ohrievačov vody, vr. príslušenstva, komín | B89: 021 Stavby | C89: súbor | D89: 1 | E89: 220 | F89: 220 | G89: 264 | H89: 264 | L89: 264 | N89: 264
A90: Závesný plynový ohrievač vody s núteným odťahom spalín 75L s uzavretou spaľov. komorou | B90: 021 Stavby | C90: kus | D90: 1 | E90: 930 | F90: 930 | G90: 1116 | H90: 1116 | L90: 1116 | N90: 1116
A91: Presun hmôt pre strojovne umiestnené vo výške do 12 m | B91: 021 Stavby | C91: % | D91: 11.844 | E91: 1.4 | F91: 16.58 | G91: 19.9 | H91: 19.9 | L91: 19.9 | N91: 19.9
A92: Demontáž a montáž atypických stavebných doplnk. konštrukcií prestrešenie vchodu | B92: 021 Stavby | C92: kus | D92: 2 | E92: 100 | F92: 200 | G92: 240 | H92: 240 | L92: 240 | N92: 240
A93: Demontáž a montáž atypických stavebných doplnk. konštrukcií bočný vchod, átrium | B93: 021 Stavby | C93: súbor | D93: 1 | E93: 300 | F93: 300 | G93: 360 | H93: 360 | L93: 360 | N93: 360
A94: Presun hmôt pre kovové stav. doplnk. konštr. v objektoch výšky do 12 m | B94: 021 Stavby | C94: % | D94: 5.2 | E94: 1.2 | F94: 6.24 | G94: 7.49 | H94: 7.49 | L94: 7.49 | N94: 7.49
A95: Penetrovanie 1x jemnozrných podkladov výšky do 3,8m | B95: 021 Stavby | C95: m2 | D95: 113.29 | E95: 0.7 | F95: 79.3 | G95: 95.16 | H95: 95.16 | L95: 95.16 | N95: 95.16
A96: Opr. maľba zmes prášk. 1 far. dvojn. s obrús. miest. do 3,8m - po výmene svetiel | B96: 021 Stavby | C96: m2 | D96: 105 | E96: 1.4 | F96: 147 | G96: 176.4 | H96: 176.4 | L96: 176.4 | N96: 176.4
A97: Maľba zo zmesí tekut. 1 far. dvojnás. v miest. do 3,8m | B97: 021 Stavby | C97: m2 | D97: 283.1 | E97: 1.4 | F97: 396.34 | G97: 475.61 | H97: 475.61 | L97: 475.61 | N97: 475.61
A98: Demontáž, žiarovkové, žiarivkové svietidlo, prisadené IP20-44-54-65 | B98: 021 Stavby | C98: kus | D98: 105 | E98: 5 | F98: 525 | G98: 630 | H98: 630 | L98: 630 | N98: 630
A99: Montáž, žiarovkové svietidlo, prisadené IP20-44, so senzorom, nastavenie časového intervalu | B99: 021 Stavby | C99: kus | D99: 5 | E99: 7 | F99: 35 | G99: 42 | H99: 42 | L99: 42 | N99: 42
A100: LED stropné/nástenné svietidlo 14W 980lm 230V s pohybovým snímačom | B100: 021 Stavby | C100: kus | D100: 5 | E100: 100 | F100: 500 | G100: 600 | H100: 600 | L100: 600 | N100: 600
A101: Montáž, LED svietidlo, prisadené IP54-66 | B101: 021 Stavby | C101: kus | D101: 31 | E101: 7.5 | F101: 232.5 | G101: 279 | H101: 279 | L101: 279 | N101: 279
A102: LED stropné/nástenné svietidlo 15W 1500lm IP54 30.000H | B102: 021 Stavby | C102: kus | D102: 31 | E102: 50 | F102: 1550 | G102: 1860 | H102: 1860 | L102: 1860 | N102: 1860
A103: Montáž, žiarivkové svietidlo, prisadené IP20-44 - 1x lineárna žiarivka 38W | B103: 021 Stavby | C103: kus | D103: 65 | E103: 11 | F103: 715 | G103: 858 | H103: 858 | L103: 858 | N103: 858
A104: Slim lineárne LED svietidlo 150cm 38W 5700lm 230V | B104: 021 Stavby | C104: kus | D104: 65 | E104: 91 | F104: 5915 | G104: 7098 | H104: 7098 | L104: 7098 | N104: 7098
A105: Montáž LED svietidlá bodového prisadeného 18W IP20 | B105: 021 Stavby | C105: kus | D105: 8 | E105: 9 | F105: 72 | G105: 86.4 | H105: 86.4 | L105: 86.4 | N105: 86.4
A106: Svietidlo LED stropné bodové 18W 1590lm IP20 | B106: 021 Stavby | C106: kus | D106: 8 | E106: 95 | F106: 760 | G106: 912 | H106: 912 | L106: 912 | N106: 912
A107: Výmena zdroja svietidla IP54-66 (LED, halogénovej žiarovky, kompaktnej žiarivky) | B107: 021 Stavby | C107: kus | D107: 61 | E107: 2.5 | F107: 152.5 | G107: 183 | H107: 183 | L107: 183 | N107: 183
A108: Žiarovka LED, GU10/7W/230V 4000K | B108: 021 Stavby | C108: kus | D108: 61 | E108: 7 | F108: 427 | G108: 512.4 | H108: 512.4 | L108: 512.4 | N108: 512.4
A109: Demontáž a montáž bleskozvodu pri výmene a stavebných úpravách strešnej konštrukcie | B109: 021 Stavby | C109: hod | D109: 16 | E109: 15 | F109: 240 | G109: 288 | H109: 288 | L109: 288 | N109: 288
A110: Podružný materiál pri výmene svietidiel, D+M blekozvodu | B110: 021 Stavby | C110: súbor | D110: 1 | E110: 400 | F110: 400 | G110: 480 | H110: 480 | L110: 480 | N110: 480
A111: Revízia elektro a vypracovanie správy | B111: 021 Stavby | C111: hod | D111: 8 | E111: 15 | F111: 120 | G111: 144 | H111: 144 | L111: 144 | N111: 144
A112: Revízia bleskozvodu a vypracovanie správy | B112: 021 Stavby | C112: hod | D112: 8 | E112: 15 | F112: 120 | G112: 144 | H112: 144 | L112: 144 | N112: 144
A113: Búranie časti ríms tehl. vyložených do 25 cm hr. do 30 cm | B113: 021 Stavby | C113: m | D113: 130.4 | E113: 3.5 | F113: 456.4 | G113: 547.68 | H113: 547.68 | L113: 547.68 | N113: 547.68
A114: Demontáž plast. okien bm obvodu | B114: 021 Stavby | C114: m | D114: 254.97 | E114: 4.5 | F114: 1147.37 | G114: 1376.84 | H114: 1376.84 | L114: 1376.84 | N114: 1376.84
A115: Vybúr. otvorov do 4 m2 v murive zmiešanom hr. do 60 cm | B115: 021 Stavby | C115: m3 | D115: 1.633 | E115: 60 | F115: 97.98 | G115: 117.58 | H115: 117.58 | L115: 117.58 | N115: 117.58
A116: Zbúranie komína - nevyhovujúci stav pod str. konštrukciu | B116: 021 Stavby | C116: m | D116: 1.2 | E116: 20 | F116: 24 | G116: 28.8 | H116: 28.8 | L116: 28.8 | N116: 28.8
A117: Demontáž kontaktného zateplenia z polystyrénových dosiek s povrchovou úpravou hrúbky nad 30 -80 mm | B117: 021 Stavby | C117: m2 | D117: 297.7 | E117: 1.5 | F117: =ROUND(D117*E117,2) -> 446.55 | G117: =ROUND(F117*1.2,2) -> 535.86 | H117: =IF($B$11="áno",F117,G117) -> 535.86 | L117: =H117 -> 535.86 | N117: =L117 -> 535.86
A118: Zvislá doprava sute a vybúr. hmôt za prvé podlažie | B118: 021 Stavby | C118: t | D118: 26.52 | E118: 11.5 | F118: 304.98 | G118: 365.98 | H118: 365.98 | L118: 365.98 | N118: 365.98
A119: Odvoz sute a vybúraných hmôt na skládku do 1 km | B119: 021 Stavby | C119: t | D119: 26.52 | E119: 11 | F119: 291.72 | G119: 350.06 | H119: 350.06 | L119: 350.06 | N119: 350.06
A120: Odvoz sute a vybúraných hmôt na skládku každý ďalší 1 km | B120: 021 Stavby | C120: t | D120: 106.08 | E120: 0.33 | F120: 35.01 | G120: 42.01 | H120: 42.01 | L120: 42.01 | N120: 42.01
A121: Vnútrostavenisková doprava sute a vybúraných hmôt do 10 m | B121: 021 Stavby | C121: t | D121: 26.52 | E121: 10 | F121: 265.2 | G121: 318.24 | H121: 318.24 | L121: 318.24 | N121: 318.24
A122: Poplatok za ulož.a znešk.stav.sute na urč.sklád. -z demol.vozoviek "O"-ost.odpad | B122: 021 Stavby | C122: t | D122: 26.52 | E122: 28 | F122: 742.56 | G122: 891.07 | H122: 891.07 | L122: 891.07 | N122: 891.07
A123: Presun hmôt pre budovy murované výšky do 12 m | B123: 021 Stavby | C123: t | D123: 82.732 | E123: 8 | F123: 661.86 | G123: 794.23 | H123: 794.23 | L123: 794.23 | N123: 794.23
A124: Omietka vnútorného ostenia okenného alebo dverného vápenná štuková | B124: 021 Stavby | C124: m2 | D124: 113.29 | E124: 15 | F124: 1699.35 | G124: 2039.22 | H124: 2039.22 | L124: 2039.22 | N124: 2039.22
A125: Omietka vnút stien jadrová - (hrubá) - úprava ostenia | B125: 021 Stavby | C125: m2 | D125: 118.294 | E125: 9 | F125: 1064.65 | G125: 1277.58 | H125: 1277.58 | L125: 1277.58 | N125: 1277.58
A126: Potiahnutie vnút., alebo vonk. stien a ostatných plôch sklotextilnou mriežkou | B126: 021 Stavby | C126: m2 | D126: 113.29 | E126: 3 | F126: 339.87 | G126: 407.84 | H126: 407.84 | L126: 407.84 | N126: 407.84
A127: Profil soklový hliníkový LO 203 mm, hr. 0,8mm | B127: 021 Stavby | C127: m | D127: 146.1 | E127: 6.4 | F127: 935.04 | G127: 1122.05 | H127: 1122.05 | L127: 1122.05 | N127: 1122.05
A128: Okapnička na soklový profil Weber - Terranova PVC LO s tkaninou | B128: 021 Stavby | C128: m | D128: 146.1 | E128: 3.2 | F128: 467.52 | G128: 561.02 | H128: 561.02 | L128: 561.02 | N128: 561.02
A129: Profil plastový rohový ochranný s integrovanou sieťovinou LK 100 | B129: 021 Stavby | C129: m | D129: 218.17 | E129: 4 | F129: 872.68 | G129: 1047.22 | H129: 1047.22 | L129: 1047.22 | N129: 1047.22
A130: Profil plastový okenný APU s integrovanou tkaninou | B130: 021 Stavby | C130: m | D130: 226.58 | E130: 4 | F130: 906.32 | G130: 1087.58 | H130: 1087.58 | L130: 1087.58 | N130: 1087.58
A131: Profil plastový nadokenný s integrovanou tkaninou 100x100 nepriznaný vo fasáde | B131: 021 Stavby | C131: m | D131: 49.36 | E131: 4 | F131: 197.44 | G131: 236.93 | H131: 236.93 | L131: 236.93 | N131: 236.93
A132: Demontáž viazaných konštr. krovov prier. plocha nad 224 do 288 cm2 - oprava poškodených častí krovu - odhad do 20% | B132: 021 Stavby | C132: m | D132: 50 | E132: 2.9 | F132: 145 | G132: 174 | H132: 174 | L132: 174 | N132: 174
A133: Doska MD neomietaná, hranená, vr. nateru proti škodcom a hnilobe | B133: 021 Stavby | C133: m3 | D133: 7.236 | E133: 250 | F133: 1809 | G133: 2170.8 | H133: 2170.8 | L133: 2170.8 | N133: 2170.8
A134: Montáž krovov viazaných prierez. plocha nad 224 do 288 cm2 - oprava poškodených častí krovu - odhad do 20% | B134: 021 Stavby | C134: m | D134: 50 | E134: 12 | F134: 600 | G134: 720 | H134: 720 | L134: 720 | N134: 720
A135: Rezivo na opravu poškodených častí krovu - odha do 20%, vr. náteru proti škodcom a hnilobe | B135: 021 Stavby | C135: m3 | D135: 1.44 | E135: 280 | F135: 403.2 | G135: 483.84 | H135: 483.84 | L135: 483.84 | N135: 483.84
A136: Montáž debnenia striech rovných z dosiek hrubých na zraz | B136: 021 Stavby | C136: m2 | D136: 241.185 | E136: 4 | F136: 964.74 | G136: 1157.69 | H136: 1157.69 | L136: 1157.69 | N136: 1157.69
A137: Montáž kontralatí, rozpätie 80-120 cm | B137: 021 Stavby | C137: m2 | D137: 241.185 | E137: 1 | F137: 241.19 | G137: 289.43 | H137: 289.43 | L137: 289.43 | N137: 289.43
A138: Lata SM 1 do 25cm2, vr. náteru proti škodcom a hnilobe | B138: 021 Stavby | C138: m3 | D138: 1.206 | E138: 280 | F138: 337.68 | G138: 405.22 | H138: 405.22 | L138: 405.22 | N138: 405.22
A139: Spojovacie a ochranné prostriedky k montáži krovov | B139: 021 Stavby | C139: m3 | D139: 9.882 | E139: 50 | F139: 494.1 | G139: 592.92 | H139: 592.92 | L139: 592.92 | N139: 592.92
A140: Presun hmôt pre tesárske konštr. v objektoch výšky do 12 m | B140: 021 Stavby | C140: % | D140: 52.724 | E140: 4.3 | F140: 226.71 | G140: 272.05 | H140: 272.05 | L140: 272.05 | N140: 272.05
A141: Demontáž sadrokartónového podhľadu s nosnou konštrukciou drevenou, jednoduché opláštenie | B141: 021 Stavby | C141: m2 | D141: 110.952 | E141: 2.5 | F141: 277.38 | G141: 332.86 | H141: 332.86 | L141: 332.86 | N141: 332.86
A142: Montáž drevenej nosnej konštr. podhľadu Knauf | B142: 021 Stavby | C142: m2 | D142: 36.2 | E142: 12.5 | F142: 452.5 | G142: 543 | H142: 543 | L142: 543 | N142: 543
A143: Rezivo na podhľad knauf z fošní, vr. náteru proti škodcom a hnilobe | B143: 021 Stavby | C143: m3 | D143: 1.629 | E143: 290 | F143: 472.41 | G143: 566.89 | H143: 566.89 | L143: 566.89 | N143: 566.89
A144: Podhľady sadr RIGIPS zavesený 2x profil UD a CD dosky RFI hr. 2x15 mm | B144: 021 Stavby | C144: m2 | D144: 147.152 | E144: 32 | F144: 4708.86 | G144: 5650.63 | H144: 5650.63 | L144: 5650.63 | N144: 5650.63
A145: Presun hmôt pre drevostavby v objektoch výšky do 12 m | B145: 021 Stavby | C145: % | D145: 58.629 | E145: 6.8 | F145: 398.68 | G145: 478.42 | H145: 478.42 | L145: 478.42 | N145: 478.42
A146: Krytina z pozink farb.plechu,falcovaná s dvojitou drážkou, vr.kompl. príslušenstva (sneh.zach.,lemov,odv.mriežka,..) | B146: 021 Stavby | C146: m2 | D146: 241.185 | E146: 34 | F146: 8200.29 | G146: 9840.35 | H146: 9840.35 | L146: 9840.35 | N146: 9840.35
A147: Klamp. demont. zastrešenia na hl. krytine1000, do 30° nad 25m2 | B147: 021 Stavby | C147: m2 | D147: 229.7 | E147: 1.2 | F147: 275.64 | G147: 330.77 | H147: 330.77 | L147: 330.77 | N147: 330.77
A148: Kompl.demontáž odkvapov a žľabov vr. príslušenstva | B148: 021 Stavby | C148: m | D148: 38.34 | E148: 0.8 | F148: 30.67 | G148: 36.8 | H148: 36.8 | L148: 36.8 | N148: 36.8
A149: Klamp. PZ pl. lakovaný, žľaby pododkvap. polkruh rš 250 dl 5m, vr. príslušenstva, hákov | B149: 021 Stavby | C149: m | D149: 28.7 | E149: 17 | F149: =ROUND(D149*E149,2) -> 487.9 | G149: =ROUND(F149*1.2,2) -> 585.48 | H149: =IF($B$11="áno",F149,G149) -> 585.48 | L149: =H149 -> 585.48 | N149: =L149 -> 585.48
A150: Klamp. PZ pl. oplechovanie parapetov rš 330, lakované | B150: 021 Stavby | C150: m | D150: 48.24 | E150: 20 | F150: 964.8 | G150: 1157.76 | H150: 1157.76 | L150: 1157.76 | N150: 1157.76
A151: Klamp. demont. parapetov rš 330 | B151: 021 Stavby | C151: m | D151: 45 | E151: 1.2 | F151: 54 | G151: 64.8 | H151: 64.8 | L151: 64.8 | N151: 64.8
A152: Klamp. PZ pl. lakovaná oplechovanie ríms rš 800 - čelo strechy pri strešnom. žľabe | B152: 021 Stavby | C152: m | D152: 28.7 | E152: 21 | F152: 602.7 | G152: 723.24 | H152: 723.24 | L152: 723.24 | N152: 723.24
A153: Klamp. PZ pl. oplechovanie múrov rš 600, lakovaný - atika hl. budovy | B153: 021 Stavby | C153: m | D153: 26.4 | E153: 21 | F153: 554.4 | G153: 665.28 | H153: 665.28 | L153: 665.28 | N153: 665.28
A154: Predĺženie oplechovania strechy o 200mm, v mieste izolácie, demont., mont. nového oplechovanie | B154: 021 Stavby | C154: m | D154: 10.1 | E154: 50 | F154: 505 | G154: 606 | H154: 606 | L154: 606 | N154: 606
A155: Klamp. demont. oplechovanie múrov rš 400 | B155: 021 Stavby | C155: m | D155: 26.4 | E155: 1.2 | F155: 31.68 | G155: 38.02 | H155: 38.02 | L155: 38.02 | N155: 38.02
A156: Klamp. PZ pl. lakované rúry odpadové kruhové d-120, vr. príslušenstva | B156: 021 Stavby | C156: m | D156: 10.2 | E156: 18 | F156: 183.6 | G156: 220.32 | H156: 220.32 | L156: 220.32 | N156: 220.32
A157: Kotlík PZ lakovaný, vr. odskoku na rúru d-120, vr. príslušenstva | B157: 021 Stavby | C157: kus | D157: 4 | E157: 15 | F157: 60 | G157: 72 | H157: 72 | L157: 72 | N157: 72
A158: Paropriepustná fólia pod strešnú krytinu, kontaktná 135g/m2 | B158: 021 Stavby | C158: m2 | D158: 241.185 | E158: 2 | F158: 482.37 | G158: 578.84 | H158: 578.84 | L158: 578.84 | N158: 578.84
A159: Difúzne otvorená fólia so separačnou vrstvou DIFFLEX CONVEC | B159: 021 Stavby | C159: m2 | D159: 241.185 | E159: 7.5 | F159: 1808.89 | G159: 2170.67 | H159: 2170.67 | L159: 2170.67 | N159: 2170.67
A160: Presun hmôt pre klampiarske konštr. v objektoch výšky do 12 m | B160: 021 Stavby | C160: % | D160: 145.006 | E160: 1.7 | F160: 246.51 | G160: 295.81 | H160: 295.81 | L160: 295.81 | N160: 295.81
A161: D+M parotesnou zábranou 140g/m2, napr. Jutafol N 140 Speciál | B161: 021 Stavby | C161: m2 | D161: 147.152 | E161: 4.5 | F161: 662.18 | G161: 794.62 | H161: 794.62 | L161: 794.62 | N161: 794.62
A162: Presun hmôt pre krytiny tvrdé na objektoch výšky do 12 m | B162: 021 Stavby | C162: % | D162: 6.769 | E162: 6.3 | F162: 42.64 | G162: 51.17 | H162: 51.17 | L162: 51.17 | N162: 51.17
F163: 0 | G163: 0 | H163: 0 | L163: 0 | N163: 0
A164: SPOLU výdavky ostatné | F164: =SUM(F85:F163) -> 51881.33 | G164: =SUM(G85:G163) -> 62257.61 | H164: =IF(OR(B11="",D12="",F12="",G12="",O11=""),0,SUM(H85:H163)) -> 62257.61 | I164: RH sa pre skup. výdav. "Ostatné" neuplatňuje. | L164: =IF(OR(B11="",D12="",F12="",G12="",O11=""),0,SUM(L85:L163)) -> 62257.61 | N164: =IF(OR(B11="",D12="",F12="",G12="",O11=""),0,SUM(N85:N163)) -> 62257.61
A165: SPOLU Výdavky na budovu č. 1 | F165: =F31+F51+F79+F164 -> 178908.59 | G165: 214690.31 | H165: 214690.31 | I165: =REFa+REFb+REFc -> 0 | J165: =J31+J51+J79 -> 152432.72 | L165: =IF(OR('MU Budova 1'!O15=0,'MU Budova 1'!O16=0,'MU Budova 1'!O17=0,'MU Budova 1'!O18=0,'MU Budova 1'!O19=0,'MU Budova 1'!O13=0,'MU Budova 1'!O33=0,'MU Budova 1'!O34=0,'MU Budova 1'!O35=0,'MU Budova 1'!O36=0,'MU Budova 1'!O37=0,'MU Budova 1'!O38=0),0,L31+L51+L79+L164) -> 214690.33 | N165: 214690.31
A166: SPOLU Výdavky na budovu č. 1 po prípadnom odpočítaní hospodárskej činnosti a nízkych úspor potreby energie na vykurovanie | H166: 214690.31 | N166: 214690.31 | Q166: =IF('Rozpočet B1 - Value for Money'!$B$11=Číselníky!A2,'Rozpočet B1 - Value for Money'!N166,'Rozpočet B1 - Value for Money'!N166/1.2) -> 178908.5917
H168: =IF(OR('MU Budova 1'!O15=0,'MU Budova 1'!O16=0,'MU Budova 1'!O17=0,'MU Budova 1'!O18=0,'MU Budova 1'!O19=0,'MU Budova 1'!O13=0,'MU Budova 1'!O33=0,'MU Budova 1'!O34=0,'MU Budova 1'!O35=0,'MU Budova 1'!O36=0,'MU Budova 1'!O37=0,'MU Budova 1'!O38=0),0,H31+H51+H79+H164) -> 214690.33 | K168: =IF(OR('Rozpočet B1 - Value for Money'!$B$12=0,'Rozpočet B1 - Value for Money'!$B$12=""),"",IFERROR(IF('Rozpočet B1 - Value for Money'!$B$12=1,IF('Rozpočet B1 - Value for Money'!L165/'Rozpočet B1 - Value for Money'!H166<0.75,"Projekt nie je oprávnený (viac ako 25% výdavkov je vecne neoprávnených / neúčelných.",""),IF('Rozpočet B1 - Value for Money'!$B$12=2,IF(('Rozpočet B1 - Value for Money'!L165+'Rozpočet B2'!L54)/('Rozpočet B1 - Value for Money'!H166+'Rozpočet B2'!H55)<0.75,"Projekt nie je oprávnený (viac ako 25% výdavkov je vecne neoprávnených / neúčelných.",""),IF('Rozpočet B1 - Value for Money'!$B$12=3,IF(('Rozpočet B1 - Value for Money'!L165+'Rozpočet B2'!L54+'Rozpočet B3'!L54)/('Rozpočet B1 - Value for Money'!H166+'Rozpočet B2'!H55+'Rozpočet B3'!H55)<0.75,"Projekt nie je oprávnený (viac ako 25% výdavkov je vecne neoprávnených / neúčelných.",""),IF('Rozpočet B1 - Value for Money'!$B$12=4,IF(('Rozpočet B1 - Value for Money'!L165+'Rozpočet B2'!L54+'Rozpočet B3'!L54+'Rozpočet B4'!L54)/('Rozpočet B1 - Value for Money'!H166+'Rozpočet B2'!H55+'Rozpočet B3'!H55+'Rozpočet B4'!H55)<0.75,"Projekt nie je oprávnený (viac ako 25% výdavkov je vecne neoprávnených / neúčelných.",""),IF('Rozpočet B1 - Value for Money'!$B$12=5,IF(('Rozpočet B1 - Value for Money'!L165+'Rozpočet B2'!L54+'Rozpočet B3'!L54+'Rozpočet B4'!L54+'Rozpočet B5'!L54)/('Rozpočet B1 - Value for Money'!H166+'Rozpočet B2'!H55+'Rozpočet B3'!H55+'Rozpočet B4'!H55+'Rozpočet B5'!H55)<0.75,"Projekt nie je oprávnený (viac ako 25% výdavkov je vecne neoprávnených / neúčelných.",""),IF('Rozpočet B1 - Value for Money'!$B$12=6,IF(('Rozpočet B1 - Value for Money'!L165+'Rozpočet B2'!L54+'Rozpočet B3'!L54+'Rozpočet B4'!L54+'Rozpočet B5'!L54+'Rozpočet B6'!L54)/('Rozpočet B1 - Value for Money'!H166+'Rozpočet B2'!H55+'Rozpočet B3'!H55+'Rozpočet B4'!H55+'Rozpočet B5'!H55+'Rozpočet B6'!H55)<0.75,"Projekt nie je oprávnený (viac ako 25% výdavkov je vecne neoprávnených / neúčelných.",""),IF('Rozpočet B1 - Value for Money'!$B$12=7,IF(('Rozpočet B1 - Value for Money'!L165+'Rozpočet B2'!L54+'Rozpočet B3'!L54+'Rozpočet B4'!L54+'Rozpočet B5'!L54+'Rozpočet B6'!L54+'Rozpočet B7'!L54)/('Rozpočet B1 - Value for Money'!H166+'Rozpočet B2'!H55+'Rozpočet B3'!H55+'Rozpočet B4'!H55+'Rozpočet B5'!H55+'Rozpočet B6'!H55+'Rozpočet B7'!H55)<0.75,"Projekt nie je oprávnený (viac ako 25 % výdavkov je vecne neoprávnených / neúčelných).",""),IF('Rozpočet B1 - Value for Money'!$B$12>=8," Splnenie podmienky „Vecne neoprávnené/neučelné výdavky neprekračujú 25 % z COV“ je potrebné overiť.")))))))),"")) -> 
A170: Upozornenia
A171: Každá samostatná budova reprezentuje samostatnú hlavnú aktivitu uvedenú v ŽoNPF. Pre každú samostatnú budovu sa predkladá samostatný Energetický audit, samostatná Projektová dokumentácia vrátane Energetického hodnotenia, samostatný rozpočet a samostatný hárok MU.
A172: V prípade potreby doplnenia ďalších výdavkov vložte riadky a ak relevantné skopírujte vzorce.
A173: V časti "Vecný popis výdavkov" špecifikujte jednotlivé výdavky z hľadiska ich predmetu, resp. rozsahu, prípadne nevyhnutnosti. Teda, ak výdavok pozostáva z viacerých položiek, je potrebné tieto položky v rámci vecného popisu výdavku bližšie špecifikovať, t. j. uviesť z akých položiek pozostáva cena výdavku vrátane výšky týchto položiek.
A174: V časti rozpočtu "Ostatné" zadajte stavebné výdavky, ktoré nie je možné priradiť k predchádzajúcim častiam rozpočtu (zateplenie plášťa, strechy, výmena okenných konštrukcií). Napr. výdavky na systém prípravy teplej vody, osvetlenia vrátane potrebného merania a riadenia a modernizácie príslušných rozvodov energie, inštaláciu systémov merania a riadenia, inštaláciu zariadení na využívanie OZE pre spotrebu v budove a pod.
A175: Dbajte prosím na súlad údajov uvedených v Rozpočte s údajmi uvedenými vo formulári ŽoNFP, ako aj v ďalších prílohách ŽoNFP.
A179: Value for Money
A181: SO posudzuje v procese odborného hodnotenia ŽoNFP (hodnotiace kritérium 1.2) príspevok projektu k špecifickému cieľu 4.3.1 OP KŽP na základe princípu Value for Money, ktorý vyjadruje pomer celkových oprávnených výdavkov na hlavné aktivity projektu v sume vyjadrenej bez DPH a deklarovanej cieľovej hodnoty merateľného ukazovateľa P0689 Zníženie potreby energie vo verejných budovách. V prípade identifikácie neoprávnených výdavkov projektu (z titulu vecnej neoprávnenosti, neúčelnosti, nehospodárnosti a pod.) sa v procese odborného hodnotenia výška celkových oprávnených výdavkov projektu adekvátne zníži. Do výpočtu hodnoty Value for Money v tomto prípade vstupuje už odborným hodnotiteľom korigovaná výška celkových oprávnených výdavkov projektu (bez DPH).
A183: Výpočet hodnoty Value for Money | G183: Miera príspevku projektu k ŠC 4.3.1 OP KŽP | H183: Limitné hodnoty (EUR/kWh/rok) | I183: Počet bodov v odbornom hodnotení za kritérium 1.2 | O183: Merateľný ukazovateľ
A184: Celkové oprávnené výdavky na hlavné aktivity bez DPH | C184: =IF('Rozpočet B1 - Value for Money'!$B$12=1, 'Rozpočet B1 - Value for Money'!Q166,IF('Rozpočet B1 - Value for Money'!$B$12=2, 'Rozpočet B1 - Value for Money'!Q166+'Rozpočet B2'!Q55,IF('Rozpočet B1 - Value for Money'!$B$12=3,'Rozpočet B1 - Value for Money'!Q166+'Rozpočet B2'!Q55+'Rozpočet B3'!Q55,IF('Rozpočet B1 - Value for Money'!$B$12=4,'Rozpočet B1 - Value for Money'!Q166+'Rozpočet B2'!Q55+'Rozpočet B3'!Q55+'Rozpočet B4'!Q55,IF('Rozpočet B1 - Value for Money'!$B$12=5,'Rozpočet B1 - Value for Money'!Q166+'Rozpočet B2'!Q55+'Rozpočet B3'!Q55+'Rozpočet B4'!Q55+'Rozpočet B5'!Q55,IF('Rozpočet B1 - Value for Money'!$B$12=6,'Rozpočet B1 - Value for Money'!Q166+'Rozpočet B2'!Q55+'Rozpočet B3'!Q55+'Rozpočet B4'!Q55+'Rozpočet B5'!Q55+'Rozpočet B6'!Q55,IF('Rozpočet B1 - Value for Money'!$B$12>=7,'Rozpočet B1 - Value for Money'!Q166+'Rozpočet B2'!Q55+'Rozpočet B3'!Q55+'Rozpočet B4'!Q55+'Rozpočet B5'!Q55+'Rozpočet B6'!Q55+'Rozpočet B7'!Q55,"Vyplňte rozpočty za jednotlivé budovy"))))))) -> 178908.5917
A185: Cieľová hodnota merateľného ukazovateľa projektu v kWh/rok | C185: =IF('Rozpočet B1 - Value for Money'!$B$12=1, 'MU Budova 1'!H84,IF('Rozpočet B1 - Value for Money'!$B$12=2, 'MU Budova 1'!H84+'MU Budova 2'!H84,IF('Rozpočet B1 - Value for Money'!$B$12=3, 'MU Budova 1'!H84+'MU Budova 2'!H84+'MU Budova 3'!H84,IF('Rozpočet B1 - Value for Money'!$B$12=4, 'MU Budova 1'!H84+'MU Budova 2'!H84+'MU Budova 3'!H84+'MU Budova 4'!H84,IF('Rozpočet B1 - Value for Money'!$B$12=5, 'MU Budova 1'!H84+'MU Budova 2'!H84+'MU Budova 3'!H84+'MU Budova 4'!H84+'MU Budova 5'!H84,IF('Rozpočet B1 - Value for Money'!$B$12=6, 'MU Budova 1'!H84+'MU Budova 2'!H84+'MU Budova 3'!H84+'MU Budova 4'!H84+'MU Budova 5'!H84+'MU Budova 6'!H84,IF('Rozpočet B1 - Value for Money'!$B$12>=7, 'MU Budova 1'!H84+'MU Budova 2'!H84+'MU Budova 3'!H84+'MU Budova 4'!H84+'MU Budova 5'!H84+'MU Budova 6'!H84+'MU Budova 7'!H84,"Vyplňte údaje za jednotlivé budovy"))))))) -> 89572.4816
A186: Vypočítaná hodnota Value for Money | C186: =IFERROR(IF('Rozpočet B1 - Value for Money'!$B$12>=8,"",C184/C185),"Vyplňte hárky Rozpočet a MU") -> 1.997361114 | G186: nízka | H186: viac ako 2,5 | I186: 5 | O186: P0689 Zníženie potreby energie vo verejných budovách
G187: stredná | H187: 1,5 – 2,5 | I187: 10
G188: vysoká | H188: menej ako 1,5 | I188: 15
A190: =IF('Rozpočet B1 - Value for Money'!$B$12>=8,CONCATENATE("Keďže predmetom projektu je viac ako 7 budov, hodnota Value for Money sa počíta manuálne, na základe súčtu jednotlivých COV a jednotlivých hodnôt MU P0657 uvedených v častiach „Výpočet hodnoty Value for Money“ predložených Príloh č. 6 ŽoNFP."," Zároveň sa celkové hodnoty MU určia súčtom hodnôt jednotlivých MU v hárkoch „Sumárny prehľad MU“ predložených Príloh č. 6 ŽoNFP."),"") -> 

Sheet Individuálny hárok (hidden)
A1: SLOVENSKÁ INOVAČNÁ A ENERGETICKÁ AGENTÚRA AKO SPROSTREDKOVATEĽSKÝ ORGÁN PRE OPERAČNÝ PROGRAM KVALITA ŽIVOTNÉHO PROSTREDIA
A3: Individuálny hodnotiaci hárok odborného hodnotenia žiadosti o nenávratný finančný príspevok
A4: Operačný program: | C4: Kvalita životného prostredia
A5: Prioritná os: | C5: Prioritná os 4 – Energeticky efektívne nízkouhlíkové hospodárstvo vo všetkých sektoroch
A6: Špecifický cieľ: | C6: Špecifický cieľ 4.3.1 – Zníženie energetickej náročnosti verejných budov
A7: Kód výzvy/vyzvania: | C7: OPKZP-PO4-SC431-2021-68
A8: Názov žiadateľa: | C8: Obec Podhorany
A9: Názov projektu: | C9: Stavebné úpravy ZŠ Podhorany Zníženie spotreby energie pri prevádzke
A10: Kód ŽoNFP: | C10: NFP310040BSY4
A11: P. č. | B11: Vylučujúce hodnotiace kritériá | C11: Hodnotená oblasť | F11: Výsledok posúdenia | G11: Komentár | J11: Poznámka
A12: 1. | B12: 1.1 Súlad projektu s intervenčnou stratégiou operačného programu | C12: Príspevok navrhovaného projektu k cieľom a výsledkom OP a PO | F12: =IF(OR(I13="",I14="",I15="Potrebné zodpovedať všetky otázky nižšie",I20="Potrebné zodpovedať všetky otázky nižšie"),"",IF(OR(I13="nie",I14="nie",I15="nie",I20="nie"),"NIE","ÁNO")) -> ÁNO | G12: V rámci predmetného kritéria sa hodnotia nasledovné aspekty:
G13: a) Súlad projektu so špecifickým cieľom projektu. Je nevyhnutné odpovedať na otázku: Prispeje realizácia projektu k napĺňaniu špecifického cieľa - Zníženie spotreby energie pri prevádzke verejných budov? | I13: áno | J13: Realizáca projektu "Stavebné úpravy ZŠ Podhorany Zníženie spotreby energie pri prevádzke" prispeje k naplneniu špecifického cieľa - Zníženie spotreby energie pri prevádzke verejných budov.
G14: b) Súlad projektu s očakávanými výsledkami. Je nevyhnutné odpovedať na otázku: Podporí sa realizáciou projektu dosahovanie výsledkov definovaných pre danú oblasť podpory OP KŽP? | I14: áno | J14: Realizáciou projektu sa podporí dosahovanie výsledkov definovaných pre danú oblasť podpory OP KŽP.
G15: c) Súlad projektu s definovanými oprávnenými aktivitami. Je nevyhnutné odpovedať na otázku: Zodpovedajú hlavné aktivity projektu z hľadiska vecného obsahu oprávneným aktivitám definovaným výzvou? (Jediným oprávneným typom aktivity je Zníženie energetickej náročnosti verejných budov) | I15: =IF(OR(I16="",I17="",I18="",I19=""),"Potrebné zodpovedať všetky otázky nižšie",IF(OR(I16="nie",I17="nie",I18="nie",I19="nie"),"nie","áno")) -> áno | J15: Hlavné aktivity projektu z hľadiska vecného obsahu zodpovedajú oprávneným aktivitám definovaných výzvou.
G16: Sú hlavné aktivity vo vecnom súlade s oprávneným typom aktivity ? | I16: áno | J16: Hlavné aktivity sú vo vecnom súlade s oprávneným typom aktivity "Zníženie energetickej náročnosti verejných budov".
G17: Bude v rámci uvedenej aktivity podpora zameraná na zníženie spotreby energie pri prevádzke verejných budov realizáciou optimálnej kombinácie nasledovných podopatrení vyplývajúcich z energetického auditu: • zlepšovanie tepelno-technických vlastností stavebných konštrukcií; • modernizácia vykurovacích/klimatizačných systémov, systémov prípravy teplej vody, osvetlenia, výťahov za účelom zníženia spotreby energie; • inštalácia systémov merania a riadenia; • zmena spôsobu zásobovania teplom smerom k využívaniu účinných systémov centrálneho zásobovania teplom (ďalej len „CZT“); • inštalácia zariadení na využívanie OZE pre spotrebu energie v budove. | I17: áno | J17: V rámci uvedenej aktivity je podpora zameraná na zníženie spotreby energie pri prevádzke verejných budov realizáciou optimálnej kombinácie nasledovných podopatrení vyplývajúcich z energetického auditu: • zlepšovanie tepelno-technických vlastností stavebných konštrukcií; • modernizácia vykurovacích systémov, systémov prípravy teplej vody, osvetlenia, za účelom zníženia spotreby energie. | K17: • inštalácia zariadení na využívanie OZE pre spotrebu energie v budove.
G18: Týka sa realizácia projektu sa týka verejných budov, ktoré spadajú do kategórie uvedenej v § 3 ods. 5, písm. c) a d) zákona o energetickej hospodárnosti budov, t. j.: • administratívne budovy, • budovy škôla školských zariadení v zriaďovateľskej pôsobnosti žiadateľa | I18: áno | J18: Realizácia projektu sa týka verejných budov, ktoré spadajú do kategórie uvedenej v § 3 ods. 5, písm. c) a d) zákona o energetickej hospodárnosti budov, t. j.: • administratívne budovy, • budovy škôla školských zariadení v zriaďovateľskej pôsobnosti žiadateľa.
G19: Je budova využívaná minimálne v rozsahu 75% (percento podielu priemernej spotreby energie budovy za min. posledné 3 kalendárne roky predchádzajúce podaniu ŽoNFP voči celkovej ročnej potrebe energie verejnej budovy v stave pred realizáciou projektu vypočítanej projektovým energetickým hodnotením)? | I19: áno | J19: Celková potreba energie ZŠ podľa tepelnotechnického posudku pred realizáciou opatrení je 154,74 kWh/m2. rok, čo pri podlahovej ploche 797,25 m2 predstavuje celkovú potrebu energie 123,37 MWh/rok. Keďže celková priemerná spotreba energie ZŠ je 242,88 MWh, podiel využitia budovy je 196,88 % a to z dôvodu dvojsmennej výučby.
G20: d) Súlad s usmerňujúcimi zásadami (osobitnými podmienkami) pre výber projektov. Je nevyhnutné zdôvodniť naplnenie týchto usmerňujúcich zásad: | I20: =IF(OR(I21="",I22="",I23="",I24="",I25="",I26="",I27="",I28="",I29="",I30="",I31="",I32=""),"Potrebné vyplniť všetky otázky nižšie",IF(OR(I21="nie",I22="nie",I23="nie",I24="nie",I25="nie",I26="nie",I27="nie",I28="nie",I29="nie",I30="nie",I31="nie",I32="nie"),"nie","áno")) -> áno
G21: Týka sa realizácia projektu verejných budov, ktoré bude v zmysle plánovanej reformy verejnej správy na národnej, resp. lokálnej úrovni preukázateľne dlhodobo využívať verejný sektor a realizáciou projektu nedôjde k zmene charakteru využitia budovy? | I21: áno | J21: Realizácia projektu sa týka verejnej budovy (ktoré bude v zmysle plánovanej reformy verejnej správy na národnej, resp. lokálnej úrovni preukázateľne dlhodobo využívať verejný sektor) a realizáciou projektu nedôjde k zmene charakteru využitia budovy.
G22: Bude obnovená budova spĺňať hornú hranicu, minimálne energetickej triedy B, pre všetky miesta spotreby energie nachádzajúce sa v budove (vykurovanie, príprava teplej vody, vetranie a chladenie, osvetlenie) bez ohľadu na požiadavky vyplývajúce z platnej legislatívy? | I22: áno | J22: Projekt obsahuje návrh opatrení, realizáciou ktorých sa predpokladá nasledovné zatriedenie budovy do energetickej triedy pre jednotlivé miesta spotreby energie v budove: - vykurovanie: B, - príprava teplej vody: B, - vetranie a chladenie: nehodnotí sa, - osvetlenie: A, - celková potreba energie: B, a zároveň globálny ukazovateľ - primárna energia obnovovanej budovy, energetická trieda: A1.
G23: Dosiahne sa realizáciou projektu sa plánovaná úspora potreby energie na vykurovanie vo výške minimálne 30 %? | I23: áno | J23: Realizáciou projektu sa dosiahne plánovaná úspora potreby energie na vykurovanie 69,03 %.
G24: Sú opatrenia na úsporu energie v budove navrhnuté nad rámec splnenia minimálnych požiadaviek na energetickú hospodárnosť budov podľa všeobecne záväzných právnych predpisov tak, aby sa potreba energie znížila na úroveň nízkoenergetických budov, ultranízkoenergetických budov a budov s takmer nulovou potrebou energie? (- pre projekty so žiadosťou o vydanie stavebného povolenia s termínom po 31. decembri 2015 je minimálnou požiadavkou pre globálny ukazovateľ horná hranica energetickej triedy A1. -pre projekty so žiadosťou o vydanie stavebného povolenia s termínom po 31. decembri 2018 je požiadavkou pre globálny ukazovateľ horná hranica energetickej triedy A0. Splnenie minimálnej požiadavky sa preukazuje podľa § 4 ods. 1 zákona 555/2005 o energetickej hospodárnosti budov a o zmene a doplnení niektorých zákonov v znení neskorších predpisov) Ak nie je technicky alebo funkčne uskutočniteľné dosiahnuť pre danú budovu energetickú triedu A0, je táto skutočnosť zdôvodnená? | I24: áno | J24: Budova Základnej školy - dátum vydania stavebného povolenia 16.09.2021, dosiahnutý globálny ukazovateľ primárna energia po realizácii projektu A1, skutočnosť, že po realizácii navrhnutých opatrení budova nedosiahne globálny ukazovateľ primárna energia A0 je dostatočne zdôvodnené. | K24: ='MU Budova 1'!K28 -> 2021-09-16
G25: Ak je predmetom projektu aj OZE, je inštalácia zariadenia na využívanie OZE realizovaná ako súčasť komplexného projektu na zlepšenie energetickej hospodárnosti verejných budov t. j. v kombinácii s iným / inými podopatreniami? | I25: irelevantné | J25: Predmetom projektu nie je inštalácia zariadenia na využívanie OZE.
G26: Je projekt navrhnutý tak, aby nezahŕňal odpojenie od účinných systémov CZT v rozpore s národnou legislatívou? | I26: áno | J26: Objekt nie je pripojený na účinný sytém CZT.
G27: Je projekt navrhnutý tak, aby sa inštaláciou obnoviteľných zdrojov energie nezvýšili emisie znečisťujúcich látok do ovzdušia v porovnaní so súčasným stavom v predmetnej lokalite? (relevantné len v prípade OZE) | I27: irelevantné | J27: Predmetom projektu nie je inštalácia zariadenia na využívanie OZE.
G28: Je v prípade projektov zameraných na využívanie biomasy preukázané splnenie kritérií udržateľnosti jej využívania (Kritériá udržateľného využívania biomasy v regiónoch Slovenska pre programy SR na obdobie 2014 - 2020 spolufinancované z EŠIF – so zameraním na drevnú biomasu; dokument je prístupný prostredníctvom linku: http://www.op-kzp.sk/ine-dokumenty/)? | I28: irelevantné
G29: Je projekt koncipovaný tak, že neobsahuje aktivity, ktoré nesúvisia so zlepšením energetickej hospodárnosti budov (napr. nadstavba, prístavba budovy)? | I29: áno | J29: Projekt neobsahuje aktivity, ktoré nesúvisia so zlepšením energetickej hospodárnosti budov (napr. nadstavba, prístavba budovy).
G30: Je realizácia projektu navrhovaná na základe vypracovaného energetického auditu, ktorý v procese odborného hodnotenia umožňuje overiť: - výpočet plánovaného ročného objemu úspory PEZ na m2 celkovej podlahovej plochy; - technickú uskutočniteľnosť navrhovaných energetických opatrení? | I30: áno | J30: Realizácia projektu je navrhovaná na základe vypracovaného energetického auditu, ktorý v procese odborného hodnotenia umožňuje overiť výpočet plánovaného ročného objemu úspory PEZ na m2 celkovej podlahovej plochy a technickú uskutočniteľnosť navrhovaných energetických opatrení.
G31: Je realizácia projektu navrhnutá v súlade so Stratégiou pre redukciu PM10? | I31: áno | J31: Realizácia projektu je navrhnutá v súlade so Stratégiou pre redukciu PM10.
G32: Je projekt realizovaný v súlade s programami na zlepšenie kvality ovzdušia? | I32: áno | J32: Projekt je realizovaný v súlade s programami na zlepšenie kvality ovzdušia.
A33: 2. | B33: 4.1 Účelnosť a vecná oprávnenosť výdavkov projektu | C33: Finančná a ekonomická stránka projektu | F33: =IF(I37="","",IF(I37>0.25,"NIE","ÁNO")) -> ÁNO | G33: Na základe údajov uvedených vo formulári ŽoNFP, prílohe č. 6 ŽoNFP (rozpočet projektu) a ostatnej dokumentácii ŽoNFP je suma celkových oprávnených výdavkov žiadaných zo strany žiadateľa: | I33: 214690.31
G34: Na základe podrobného posúdenia deklarovaných výdavkov z pohľadu riadiacej dokumentácie (Výzvy/Príručky pre žiadateľa/Príručky k oprávnenosti výdavkov pre dopytovo orientované projekty Operačného programu Kvalita životného prostredia) boli ako vecne neoprávnené, resp. neúčelné identifikované výdavky v sume: | I34: =I35+I36 -> 0
G35: Z toho ako výdavky nie nevyhnutné/neúčelné pre realizáciu projektu boli vyhodnotené výdavky v sume: | I35: 0 | J35: =IF(I35<>0,"Uviesť presné položky v rozpočte projektu","") -> 
G36: Z toho ako vecne neoprávnené boli vyhodnotené výdavky: | I36: 0 | J36: =IF(I36<>0,"Uviesť presné položky v rozpočte projektu","") -> 
G37: Na základe vyššie uvedených skutočností možno konštatovať, že percento neoprávnených, resp. neúčelných výdavkov k celkovým žiadaným oprávneným výdavkom je na úrovni: | I37: =IFERROR(I34/I33,"") -> 0
A38: 3. | B38: 4.2 Hospodárnosť a efektívnosť výdavkov projektu | C38: Finančná a ekonomická stránka projektu | F38: =IF(OR(I46="",I47="",I48="",I49=""),"","ÁNO") -> ÁNO | G38: Údaje o finančnej stránke projektu:
G39: • žiadaná výška celkových oprávnených výdavkov: suma (v EUR); | I39: =I33 -> 214690.31
G40: • celkové oprávnené výdavky po OH: suma (v EUR), 100 %, (vždy 100 %); | I40: =I39-I41 -> 214690.31
G41: • neoprávnené výdavky identifikované v OH: suma (v EUR); | I41: =I34 -> 0
G42: • nenávratný finančný príspevok: suma (v EUR), percentuálny podiel (v %); 95% | I42: =0.95*I40 -> 203955.7945
G43: • EÚ zdroje v pomere k COV po OH: suma (v EUR), percentuálny podiel (v %); 85% | I43: =0.85*I40 -> 182486.7635
G44: • ŠR zdroje v pomere k COV po OH: suma (v EUR), percentuálny podiel (v %); 10% | I44: =0.1*I40 -> 21469.031
G45: • žiadateľ v pomere k COV po OH: suma (v EUR), percentuálny podiel (v %). 5% | I45: =0.05*I40 -> 10734.5155
G46: 1. Je referenčná hodnota vypočítaná správne? | I46: áno | J46: Referenčné hodnoty sú vypočítané správne.
G47: 2. Je dodržaná referenčná hodnota, resp. je v prípade prekročenia referenčnej hodnoty uvedené relevantné zdôvodnenie prekročenia prekročenia objektívnymi činiteľmi ovplyvňujúcimi zvýšenú investičnú náročnosť ? Žiadosť o NFP postupuje do ďalšieho hodnotenia a tieto výdavky budú znížené na úroveň referenčných hodnôt (projekt nebude diskvalifikovaný) | I47: áno | J47: Referenčné hodnoty sú dodržané.
G48: 3. Je k dispozícii zrealizované verejné obstarávanie pred podaním žiadosti o NFP na všetky položky /výdavky? | I48: áno | J48: Na všetky položky /výdavky bolo zrealizované verejné obstarávanie pred podaním žiadosti o NFP.
G49: 4. Sú jednotkové ceny, alebo ceny uvedené v rozpočte projektu najnižšími/ekonomicky najvýhodnejšími cenami, resp. priemernými cenami zistenými v rámci verejného obstarávania? | I49: áno | J49: Jednotkové ceny, alebo ceny uvedené v rozpočte projektu sú najnižšími/ekonomicky najvýhodnejšími cenami, resp. priemernými cenami zistenými v rámci verejného obstarávania.
A50: 4. | B50: 4.4 Finančná udržateľnosť projektu | C50: Finančná a ekonomická stránka projektu | F50: =IF(I50="áno","ÁNO",IF(I50="nie","NIE","")) -> ÁNO | G50: Preukázal žiadateľ zabezpečenie finančnej udržateľnosti projektu? | I50: áno | J50: Posudzovaný projekt je s výškou oprávnených výdavkov do 1 mil. EUR. Pri posudzovaní finančnej udržateľnosti projektu bolo vychádzané z údajov uvedených vo formulári žiadosti o NFP. V ňom žiadateľ dostatočne popísal situáciu po realizácii projektu a finančnú udržateľnosť predkladaného projektu.
A51: P. č. | B51: Bodované hodnotiace kritériá | C51: Hodnotená oblasť | F51: Dosiahnuté bodové hodnotenie | G51: Maximálne bodové hodnotenie | H51: Komentár | J51: Poznámka
A52: 1. | B52: 1.2 Príspevok projektu k príslušnému špecifickému cieľu operačného programu | C52: Príspevok navrhovaného projektu k cieľom a výsledkom OP a PO | F52: =IF(I54="","",IF(I54>2.5,5,IF(I54<1.5,15,10))) -> 10 | G52: 15 | H52: Na základe odborného posúdenia je výška celkových oprávnených výdavkov projektu bez DPH: | I52: =I40/1.2 -> 178908.5917
H53: Na základe odborného posúdenia je hodnota MU P0689 – Zníženie potreby energie vo verejných budovách na úrovni: | I53: ='MU Budova 1'!H84 -> 89572.4816
H54: Hodnota Value for money je na úrovni: | I54: =IFERROR(I52/I53,"") -> 1.997361114
H55: =IF(F52=15,"Vzhľadom k dosiahnutej hodnote Value for money možno konštatovať, že sa jedná o vysokú mieru príspevku",IF(F52=10,"Vzhľadom k dosiahnutej hodnote Value for money možno konštatovať, že sa jedná o strednú mieru príspevku",IF(F52=5,"Vzhľadom k dosiahnutej hodnote Value for money možno konštatovať, že sa jedná o nízku mieru príspevku",""))) -> Vzhľadom k dosiahnutej hodnote Value for money možno konštatovať, že sa jedná o strednú mieru príspevku
A56: 2. | B56: 1.3 Relevancia projektu k RIÚS/SURM/NUS | C56: Príspevok navrhovaného projektu k cieľom a výsledkom OP a PO | F56: =IF(AND(I56="",I57=""),"",IF(I56="áno",4,IF(I57="áno",2,IF(I59="áno",2,0)))) -> 4 | G56: 4 | H56: Je projekt realizovaný na území aspoň jedného z okresov zaradeného do zoznamu najmenej rozvinutých okresov (platnom ku dňu predloženia ŽoNFP) vedeným Ústredím práce, sociálnych vecí a rodiny? | I56: áno | J56: Projekt je realizovaný v okrese Kežmarok, pričom tento okres je zapísaný v zozname najmenej rozvinutých okresov vedeným Ústredím práce, sociálnych vecí a rodiny.
H57: Je žiadateľom subjekt ústrednej štátnej správy?
H58: Pre túto žiadosť o NFP je relevantná nasledujúca stratégia, dostupná v ITMS 2014+, resp. na webovom sídle uvedenom vo výzve:
H59: Bola predmetná žiadosť o NFP v čase predloženia evidovaná v zozname relevantnej stratégie?
A60: 3. | B60: 2.1 Vhodnosť a prepojenosť navrhovaných aktivít projektu vo vzťahu k východiskovej situácii a k stanoveným cieľom a výsledkom projektu | C60: Navrhovaný spôsob realizácie projektu | F60: =IF(OR(I60="",I61="",I62="",I63="",I64="",I65=""),"",IF(AND(I60="áno",I61="áno",I62="áno",I63="áno",I64="áno",I65="áno"),6,IF(AND(I60="áno",I61="áno",I62="áno",I63="áno",I64="áno",I65="nie"),3,0))) -> 6 | G60: 6 | H60: Je navrhovaný projekt orientovaný na riešenie potrieb cieľových skupín v mieste realizácie projektu? | I60: áno | J60: Navrhovaný projekt je orientovaný na riešenie potrieb cieľových skupín v mieste realizácie projektu.
H61: Sú žiadateľom identifikované potreby cieľových skupín v mieste realizácie projektu v súlade so špecifickými cieľmi a výsledkami OP KŽP pre danú oblasť podpory? | I61: áno | J61: Žiadateľom sú identifikované potreby cieľových skupín v mieste realizácie projektu v súlade so špecifickými cieľmi a výsledkami OP KŽP pre danú oblasť podpory.
H62: Nadväzujú výstupy projektu na existujúcu environmentálnu infraštruktúru v mieste realizácie projektu? | I62: áno | J62: Výstupy projektu nadväzujú na existujúcu environmentálnu infraštruktúru v mieste realizácie projektu.
H63: Sú výstupy projektu navrhnuté tak, aby neboli v protiklade s existujúcou environmentálnou, resp. inou relevantnou infraštruktúrou v mieste realizácie projektu? | I63: áno | J63: Výstupy projektu sú navrhnuté tak, aby neboli v protiklade s existujúcou environmentálnou, resp. inou relevantnou infraštruktúrou v mieste realizácie projektu.
H64: Je prostredníctvom realizácie hlavných aktivít projektu reálne očakávať dosiahnutie deklarovanej cieľovej hodnoty MU P0689 – Zníženie potreby energie vo verejných budovách? | I64: áno | J64: Prostredníctvom realizácie hlavných aktivít projektu je reálne očakávať dosiahnutie deklarovanej cieľovej hodnoty MU P0689 – Zníženie potreby energie vo verejných budovách 89 572,48 kWh/rok.
H65: Je prostredníctvom realizácie hlavných aktivít projektu reálne očakávať aj dosiahnutie deklarovaných cieľových hodnoty ostatných merateľných ukazovateľov projektu (okrem MU v hodnotiacej otázke 5)? | I65: áno | J65: Prostredníctvom realizácie hlavných aktivít projektu je reálne očakávať aj dosiahnutie deklarovaných cieľových hodnoty ostatných merateľných ukazovateľov projektu.
A66: 4. | B66: 2.2 Reálnosť aktivít projektu vo vzťahu k navrhovanému časovému harmonogramu projektu | C66: Navrhovaný spôsob realizácie projektu | F66: 3 | G66: 3 | H66: Hodnotiteľ pridelí 0 bodov ak etapizácia projektu obsahuje aspoň jeden z nasledovných nedostatkov, ktorý môže mať vplyv na dodržanie celkovej žiadateľom stanovenej dĺžky realizácie projektu a/alebo ohrozenie dosiahnutia cieľa a výsledkov projektu: a) časovo nevhodne (nelogicky) nadväzujúce aktivity projektu; b) realizáciu aspoň jednej z aktivít projektu v neprimerane krátkej lehote; c) realizáciu aspoň jednej z aktivít projektu v neprimerane dlhej lehote; d) aspoň jeden termín, ktorý je v rozpore s dodržaním lehoty uvedenej v právoplatnom povolení/rozhodnutí orgánu verejnej správy vydanom v súvislosti s realizáciou projektu (ak relevantné) a ktorý nie je prípustné zmeniť v zmysle legislatívnych podmienok, prípadne okolností definovaných výzvou. Hodnotiteľ pridelí 2 body, ak etapizácia projektu obsahuje aspoň jeden z nasledovných nedostatkov, ktorý však nemá vplyv na dodržanie celkovej, žiadateľom stanovenej, dĺžky realizácie projektu a/alebo ohrozenie dosiahnutia cieľa a výstupov projektu: a) časovo nevhodne (nelogicky) nadväzujúce aktivity projektu; b) realizáciu aspoň jednej z aktivít projektu v neprimerane krátkej lehote, resp. v lehote kratšej, ako je stanovená príslušnými predpismi; c) realizáciu aspoň jednej z aktivít projektu v neprimerane dlhej lehote; d) aspoň jeden termín, ktorý je v rozpore s dodržaním lehoty uvedenej v právoplatnom povolení/rozhodnutí orgánu verejnej správy vydanom v súvislosti s realizáciou projektu (ak relevantné) a ktorý nie je prípustné zmeniť v zmysle legislatívnych; podmienok, prípadne okolností definovaných výzvou. Hodnotiteľ pridelí 3 body, ak je etapizácia projektu vnútorne súladná, aktivity sú logicky nadväzujúce a nastavené realisticky z hľadiska ich trvania a z hľadiska dosiahnutia výstupov projektu. | J66: V ŽoNFP je deklarovaná dĺžka realizácie projektu 6 mesiace. Taktiež je zabezpečený súlad uvádzaných termínov: celkový termín začatia 4.2022 a ukončenia realizácie projektu 9.2022. Hlavné aktivity projektu sú uvedené v časovom harmonograme projektu z hľadiska reálnosti ich predpokladaného trvania a trvania v zmysle hodnôt uvedených v prílohách ŽoNFP, ktoré boli vydané v súvislosti s realizáciou projektu orgánmi verejnej správy. Etapizácia projektu je vnútorne súladná, aktivity sú logicky nadväzujúce a nastavené realisticky z hľadiska ich trvania a z hľadiska dosiahnutia výstupov projektu.
A67: 5. | B67: 2.3 Vhodnosť a uskutočniteľnosť aktivít projektu z hľadiska navrhovaných postupov | C67: Navrhovaný spôsob realizácie projektu | F67: =IF(OR(I67="",I68="",I69="",I70=""),"",IF(I67="nie","Neoprávnený projekt",IF(AND(I69="áno",I70="áno"),6,3))) -> 3 | G67: 6 | H67: Umožnia navrhované postupy realizácie hlavných aktivít projektu dosiahnuť minimálnu akceptovateľnú kvalitatívnu úroveň výstupov projektu (energetickú triedu B pre jednotlivé miesta spotreby a dosiahnutie minimálne hornej hranice energetickej triedy B pre globálny ukazovateľ – primárna energia)? | I67: áno
H68: Umožnia navrhované postupy realizácie hlavných aktivít projektu dosiahnuť žiadateľom deklarovanú kvalitatívnu úroveň výstupov projektu (žiadateľom deklarovanú energetickú triedu minimálne pre jedno jednotlivé miesto spotreby alebo hornú hranicu energetickej triedy inú ako B pre globálny ukazovateľ – primárna energia)? Odpoveď: ÁNO/NIE. | I68: áno
H69: Umožnia navrhované postupy realizácie hlavných aktivít projektu dosiahnuť žiadateľom deklarovanú kvalitatívnu úroveň výstupov projektu (žiadateľom deklarovanú energetickú triedu pre všetky jednotlivé miesta spotreby a pre hornú hranicu energetickej triedy inú ako B pre globálny ukazovateľ – primárna energia)? Odpoveď: ÁNO/NIE. | I69: áno
H70: Dosiahne sa realizáciou projektu energetická trieda A0 pre globálny ukazovateľ – primárna energia pre všetky hlavné aktivity projektu? Odpoveď: ÁNO/NIE | I70: nie | J70: Realizáciou projektu sa nedosiahne energetická trieda A0 pre globálny ukazovateľ – primárna energia.
A71: 6. | B71: 3.1 Kapacita žiadateľa na riadenie projektu | C71: Administratívna a prevádzková kapacita žiadateľa | F71: 1 | G71: 3 | H71: Hodnotiteľ pridelí „0“ bodov, ak administratívne kapacity žiadateľa na riadenie projektu podľa podmienok definovaných v príslušnej riadiacej dokumentácii pre implementáciu projektov v rámci OP KŽP sú nedostatočné z hľadiska ich počtu, kvalifikovanosti a skúseností s riadením obdobných/porovnateľných projektov. To znamená, že žiadateľ nemá zabezpečené riadenie projektu: a) internými kapacitami primeranými rozsahu predkladaného projektu a ani b) externými kapacitami primeranými rozsahu predkladaného projektu. Hodnotiteľ pridelí „1“ bod, ak interné administratívne kapacity žiadateľa na riadenie projektu podľa podmienok definovaných v príslušnej riadiacej dokumentácii pre implementáciu projektov v rámci OP KŽP sú síce dostatočné z hľadiska ich počtu a kvalifikovanosti, ale bez preukázateľných skúseností žiadateľa s riadením obdobných/porovnateľných projektov. To znamená, že žiadateľ má zabezpečené riadenie projektu internými/externými kapacitami primeranými rozsahu predkladaného projektu, ale nerealizoval žiadny obdobný/porovnateľný projekt. Hodnotiteľ pridelí „3“ body, ak administratívne kapacity žiadateľa na riadenie projektu podľa podmienok definovaných v príslušnej riadiacej dokumentácii pre implementáciu projektov v rámci OP KŽP sú dostatočné. Žiadateľ má zabezpečené, resp. deklaruje zabezpečenie riadenia projektu: a) internými kapacitami primeranými rozsahu predkladaného projektu, ktoré majú zároveň skúsenosti s riadením aspoň jedného obdobného/porovnateľného projektu alebo b) externými kapacitami so skúsenosťami v oblasti riadenia aspoň jedného obdobného/porovnateľného projektu | J71: Zodpovednosť za riadenie projektu počas jeho realizácie bude v kompetencii žiadateľa. Žiadateľ bude mať dostatočne zabezpečené interné a externé riadenie projektu personálnymi kapacitami z hľadiska ich počtu, kvalifikovanosti a skúseností s riadením projektov. Žiadateľ nepreukázal dostatočné skúsenosti s interným riadením obdobných/porovnateľných projektov spolufinancovaných z fondov EÚ, alebo iných verejných zdrojov. Obdobný/porovnateľný projekt je projekt s hodnotou 128 814,19 €, čo predstavuje minimálne 60% hodnoty celkových oprávnených výdavkov predkladaného projektu. | K71: =I39*0.6 -> 128814.186
A72: 7. | B72: 3.2 Kapacita žiadateľa na realizáciu projektu | C72: Administratívna a prevádzková kapacita žiadateľa | F72: 4 | G72: 4 | H72: Hodnotiteľ pridelí „0“ bodov, ak žiadateľ: a) nedisponuje adekvátnym legislatívnym a materiálno-technickým zázemím a dostatočnými internými odbornými kapacitami s náležitou odbornou spôsobilosťou a know-how (napr. skúsenosti, informácie pre technické uskutočnenie, pre oblasť výroby a pod.) pre realizáciu projektu v danej oblasti, a súčasne b) nemá zabezpečené adekvátne legislatívne a materiálno-technické zázemie a dostatočné odborné kapacity s náležitou odbornou spôsobilosťou a know-how pre realizáciu projektu v danej oblasti prostredníctvom externého dodávateľa. Hodnotiteľ pridelí „4“ body, ak žiadateľ: a) disponuje adekvátnym legislatívnym a materiálno-technickým zázemím a dostatočnými internými odbornými kapacitami s náležitou odbornou spôsobilosťou a know-how pre realizáciu projektu v danej oblasti, a/alebo b) má zabezpečené adekvátne legislatívne a materiálno-technické zázemie a dostatočné odborné kapacity s náležitou odbornou spôsobilosťou a know-how pre realizáciu projektu v danej oblasti prostredníctvom externého dodávateľa. | J72: Žiadateľ disponuje potrebným materiálno-technickým zabezpečením a dostatočnými administratívnymi kapacitami s náležitou odbornou spôsobilosťou a know-how pre realizáciu projektu. Technickú stránku projektu bude zabezpečovať dodávateľ stavby vybraný v súlade s pravidlami verejného obstarávania.
A73: 8. | B73: 3.3 Prevádzková kapacita žiadateľa | C73: Administratívna a prevádzková kapacita žiadateľa | F73: 3 | G73: 3 | H73: Hodnotiteľ pridelí „0“ bodov, ak žiadateľ: a) nedisponuje adekvátnym legislatívnym a materiálno-technickým zázemím a dostatočnými internými odbornými kapacitami s náležitou odbornou spôsobilosťou a know-how pre realizáciu projektu v danej oblasti, a súčasne b) nemá zabezpečené adekvátne legislatívne a materiálno-technické zázemie a dostatočné odborné kapacity s náležitou odbornou spôsobilosťou a know-how pre realizáciu projektu v danej oblasti prostredníctvom externého dodávateľa. Hodnotiteľ pridelí „3“ body, ak žiadateľ: a) disponuje adekvátnym legislatívnym a materiálno-technickým zázemím a dostatočnými internými odbornými kapacitami s náležitou odbornou spôsobilosťou a know-how pre zabezpečenie prevádzky projektu v danej oblasti, a/alebo b) má zabezpečené adekvátne legislatívne a materiálno-technické zázemie a dostatočné odborné kapacity s náležitou odbornou spôsobilosťou a know-how pre zabezpečenie prevádzky projektu v danej oblasti prostredníctvom externého dodávateľa. | J73: Žiadateľ disponuje adekvátnym legislatívnym a materiálno-technickým zázemím a dostatočnými odbornými kapacitami s náležitou odbornou spôsobilosťou a know-how na zabezpečenie prevádzky projektu v danej oblasti prostredníctvom interných, prípadne externých kapacít.
A74: 9. | B74: 4.3 Finančná charakteristika žiadateľa | C74: Finančná a ekonomická stránka projektu | F74: =IF(I74="","",IF(I74='Číselníky (2)'!A7,6,IF(I75<5,0,IF(I75>7,6,3)))) -> 6 | G74: 6 | H74: Právna forma žiadateľa je: | I74: 2. subjekt územnej samosprávy
H75: Index VS v zmysle Ukazovateľov hodnotenia finančnej sitácie žiadateľa je na úrovni: | I75: 7.84
I76: =IF(I75="","",IF(I75<5,"subjekt s veľmi silnými finančnými problémami",IF(I75>7,"subjekt s dobrou finančno-ekonomickou situáciou","subjekt s neurčitou finančnou situáciou"))) -> subjekt s dobrou finančno-ekonomickou situáciou
A77: Sumár:
A78: Dosiahnuté bodové hodnotenie | D78: Maximálne bodové hodnotenie | H78: Podiel dosiahnutého bodového hodnotenia z maximálneho bodového hodnotenia (%)
A79: =IFERROR(F52+F56+F60+F66+F67+F71+F72+F73+F74,"") -> 40 | D79: 50 | H79: =IFERROR(A79/D79,"") -> 0.8
A80: Výsledok odborného hodnotenia: | G80: =IF(AND(F12="ÁNO",F33="ÁNO",F38="ÁNO",F50="ÁNO",A79>=30),'Číselníky (2)'!A30,IF(OR(OR(F12="NIE",F33="NIE",F38="NIE",F50="NIE"),A79<30),'Číselníky (2)'!A31,"Potrebné vyplniť všetky kritériá")) -> kritériá odborného hodnotenia splnené
A82: Vypracoval: | E82: Ing. Jana Feriancová
A83: Dátum: | E83: 2022-02-17
A84: Podpis:

Sheet MU Budova 1 (hidden)
A2: Príloha ŽoNFP č. 6 - Dokumentácia k oprávnenosti výdavkov
A7: =IF(ISERROR(MacrosEnabled()&NOW()),"Makrá sú vypnuté. Pre vypracovanie hárku ich, prosím, dočasne zapnite.","") -> 
A8: Merateľné ukazovateľe - Budova č. 1 | H8: =IF('Rozpočet B1 - Value for Money'!G12="",""," - súpis. č. "&'Rozpočet B1 - Value for Money'!G12) -> - súpis. č. 68
A10: Názov žiadateľa: | B10: =IF('Rozpočet B1 - Value for Money'!B9:O9="","",'Rozpočet B1 - Value for Money'!B9:O9) -> Obec Podhorany
A11: Názov projektu: | B11: =IF('Rozpočet B1 - Value for Money'!B10:O10="","",'Rozpočet B1 - Value for Money'!B10:O10) -> Stavebné úpravy ZŠ Podhorany Zníženie spotreby energie pri prevádzke
A13: Využitie budovy | D13: =IFERROR(IF(H82/(E64)>=0.75,Číselníky!C20,Číselníky!C19),"") -> Podmienka je splnená | I13: =IF(OR(O15=0,O16=0,O17=0,O18=0,O19=0),"Minimálne jedna podmienka výzvy nie je splnená (riadky 15-18)",IF(K25<30,"Podmienka plánovanej úspory potreby energie na vykurovanie nie je splnená","")) ->  | O13: =IF(D13=Číselníky!C19,0,1) -> 1
A15: Bude budova preukázateľne dlhodobo využívaná verejným sektorom bez zmeny charakteru jej využitia v zmysle výzvy? | G15: áno | I15: Ak je budova pripojená k účinným (efektívnym) systémom centralizovaného zásobovania teplom, zostane pripojená aj po ukončení realizácie projektu v zmysle výzvy? | M15: irelevantné | O15: =IF(G15=Číselníky!A3,0,1) -> 1
A16: Bude dosiahnutá plánovaná úspora potreby energie na vykurovanie vo výške min. 30% v zmysle výzvy? | G16: =IF($K$26="","",IF($K$26=100,Číselníky!$A$3,Číselníky!$A$2)) -> áno | O16: =IF(G16=Číselníky!A3,0,1) -> 1
A17: Je hlavná aktivita v súlade so Stratégiou pre redukciu PM10 a programami na zlepšenie kvality ovzdušia v zmysle výzvy? | G17: áno | I17: Ak je súčastou aktivity energetické zariadenie využívajúce biomasu, je a bude využívané? | L17: Ku dňu predloženia ŽoNFP | M17: Po ukončení realizácie projektu | O17: =IF(G17=Číselníky!A3,0,1) -> 1
A18: Ak relevantné, je hlavná aktivita v súlade s Kritériami udržateľného využívania biomasy v zmysle výzvy? | G18: irelevantné | L18: irelevantné | M18: irelevantné | O18: =IF(G18=Číselníky!A3,0,1) -> 1
O19: =IF(M15=Číselníky!A3,0,1) -> 1
A20: Využívanie verejnej budovy na hospodársku činnosť | C20: Merná jednotka | D20: Stav PRED realizáciou projektu | F20: Stav PO realizácii projektu
A21: Celková podlahová plocha verejnej budovy (v zmysle Príkladu) | C21: [ m2h ] | D21: 797.25 | F21: 839.54 | O21: =IF(ISNUMBER(F21),1,0) -> 1
A22: Podlahová plocha využívaná na sprievodnú hospodársku činnosť v rámci definície zmiešaného využitia budovy (v zmysle Príkladu) | C22: [ m2h ] | D22: 0 | F22: 0 | O22: =IF(ISNUMBER(F22),1,0) -> 1
A23: Podlahová plocha využívaná na hospodársku činnosť mimo definície zmiešaného využitia budovy | C23: [ m2h ] | D23: 0 | F23: 0 | O23: =IF(ISNUMBER(F23),1,0) -> 1
A24: Podiel podlahovej plochy zmiešaného využitia budovy | C24: [%] | D24: =IFERROR((D22/D21)*100,0) -> 0 | F24: =IFERROR((F22/F21)*100,0) -> 0
A25: Podiel podlahovej plochy hospodárskej činnosti budovy | C25: [%] | D25: =IFERROR((D23/D21)*100,0) -> 0 | F25: =IFERROR((F23/F21)*100,0) -> 0 | I25: Plánovaná úspora energie na vykurovanie [ % ] | K25: =IF(OR(E33="",F33=""),"",((E33-F33)/E33*100)) -> 69.03191163
A26: Celkové percentuálne zníženie OV | C26: [%] | D26: 0 | F26: =IFERROR(IF(F24>20,SUM(F24:G25),F25),0) -> 0 | I26: Celkové zníženie OV [ % ] | K26: =IF(OR(E33="",F33=""),"",IF(K25<30,100,IF(AND(K25>=30,K25<=40),10,IF(AND(K25>=40,K25<=50),5,IF(K25>50,0))))) -> 0
A28: Kategória budovy | E28: budova škôl a školských zariadení | I28: Dátum vydania stavebného povolenia | K28: 2021-09-16 | L28: stavebné povolenie
A29: Počet opatrení na zníženie SPOTREBY energie realizovaných v predmetnej budove | E29: 3
A31: Príloha č. 4 - Povolenie na realizáciu projektu Príloha č. 5 - Projektová dokumentácia - ENERGETICKÉ HODNOTENIE
A32: Podklady k stanoveniu úspory energie | E32: Stav PRED realizáciou projektu | F32: Stav PO realizácii projektu | G32: Energetická trieda po realizácii projektu | I32: ok
A33: Potreba energie na vykurovanie | D33: [kWh/m2.rok] | E33: 130.36 | F33: 40.37 | G33: =IF(E28="","Vyplňte kategóriu budovy",IF(OR(E28="Administratívna budova",E28="Budova škôl a školských zariadení"),IF(ROUND(F33,0)<=28,"A",IF(ROUND(F33,0)<=56,"B",IF(ROUND(F33,0)<=84,"C",IF(ROUND(F33,0)<=112,"D",IF(ROUND(F33,0)<=140,"E",IF(ROUND(F33,0)<=168,"F","G")))))),"neoprávnená kategória budovy")) -> B | I33: =IF(OR(G33="C",G33="D",G33="E",G33="F",G33="G"),Číselníky!C19,"") ->  | O33: =IF(I33=Číselníky!C19,0,1) -> 1 | Q33: =E33*$E$39/1000 -> 103.92951 | R33: MWh
A34: Potreba energie na prípravu teplej vody | D34: [kWh/m2.rok] | E34: 12.3 | F34: 11.8 | G34: =IF(E28="","Vyplňte kategóriu budovy",IF(E28="Administratívna budova",IF(ROUND(F34,0)<=4,"A",IF(ROUND(F34,0)<=8,"B",IF(ROUND(F34,0)<=12,"C",IF(ROUND(F34,0)<=16,"D",IF(ROUND(F34,0)<=20,"E",IF(ROUND(F34,0)<=24,"F","G")))))),IF(E28="Budova škôl a školských zariadení",IF(ROUND(F34,0)<=6,"A",IF(ROUND(F34,0)<=12,"B",IF(ROUND(F34,0)<=18,"C",IF(ROUND(F34,0)<=24,"D",IF(ROUND(F34,0)<=30,"E",IF(ROUND(F34,0)<=36,"F","G")))))),"neoprávnená kategória budovy"))) -> B | I34: =IF(OR(G34="C",G34="D",G34="E",G34="F",G34="G"),Číselníky!C19,"") ->  | O34: =IF(I34=Číselníky!C19,0,1) -> 1 | Q34: =E34*$E$39/1000 -> 9.806175 | R34: MWh
A35: Potreba energie na nútené vetranie/chladenie | D35: [kWh/m2.rok] | E35: 0 | F35: 0 | G35: =IF(E28="","Vyplňte kategóriu budovy",IF(E28="Administratívna budova",IF(ROUND(F35,0)<=16,"A",IF(ROUND(F35,0)<=31,"B",IF(ROUND(F35,0)<=45,"C",IF(ROUND(F35,0)<=59,"D",IF(ROUND(F35,0)<=75,"E",IF(ROUND(F35,0)<=90,"F","G")))))),IF(E28="Budova škôl a školských zariadení","nehodnotí sa","neoprávnená kategória budovy"))) -> nehodnotí sa | I35: =IF(OR(G35="C",G35="D",G35="E",G35="F",G35="G"),Číselníky!C19,"") ->  | O35: =IF(I35=Číselníky!C19,0,1) -> 1 | Q35: =E35*$E$39 -> 0
A36: Potreba energie na osvetlenie | D36: [kWh/m2.rok] | E36: 12.08 | F36: 4.79 | G36: =IF(E28="","Vyplňte kategóriu budovy",IF(E28="Administratívna budova",IF(ROUND(F36,0)<=15,"A",IF(ROUND(F36,0)<=30,"B",IF(ROUND(F36,0)<=38,"C",IF(ROUND(F36,0)<=45,"D",IF(ROUND(F36,0)<=56,"E",IF(ROUND(F36,0)<=68,"F","G")))))),IF(E28="Budova škôl a školských zariadení",IF(ROUND(F36,0)<=9,"A",IF(ROUND(F36,0)<=18,"B",IF(ROUND(F36,0)<=23,"C",IF(ROUND(F36,0)<=27,"D",IF(ROUND(F36,0)<=34,"E",IF(ROUND(F36,0)<=41,"F","G")))))),"neoprávnená kategória budovy"))) -> A | I36: =IF(OR(G36="C",G36="D",G36="E",G36="F",G36="G"),Číselníky!C19,"") ->  | O36: =IF(I36=Číselníky!C19,0,1) -> 1 | Q36: =E36*$E$39/1000 -> 9.63078 | R36: MWh
A37: Celková potreba energie | D37: [kWh/m2.rok] | E37: =SUM(E33:E36) -> 154.74 | F37: =SUM(F33:F36) -> 56.96 | G37: =IF(E28="","Vyplňte kategóriu budovy",IF(E28="Administratívna budova",IF(ROUND(F37,0)<=63,"A",IF(ROUND(F37,0)<=125,"B",IF(ROUND(F37,0)<=179,"C",IF(ROUND(F37,0)<=232,"D",IF(ROUND(F37,0)<=291,"E",IF(ROUND(F37,0)<=350,"F","G")))))),IF(E28="Budova škôl a školských zariadení",IF(ROUND(F37,0)<=43,"A",IF(ROUND(F37,0)<=86,"B",IF(ROUND(F37,0)<=125,"C",IF(ROUND(F37,0)<=163,"D",IF(ROUND(F37,0)<=204,"E",IF(ROUND(F37,0)<=245,"F","G")))))),"neoprávnená kategória budovy"))) -> B | I37: =IF(OR(G37="C",G37="D",G37="E",G37="F",G37="G"),Číselníky!C19,"") ->  | O37: =IF(I37=Číselníky!C19,0,1) -> 1
A38: Globálny ukazovateľ - Primárna energia | D38: [kWh/m2.rok] | E38: 184.18 | F38: 68.21 | G38: =IF(OR(E28="",K28=""),"Vyplňte kategóriu budovy / Dátum stav. pov",IF(E28="Administratívna budova",IF(ROUND(F38,0)<=61,"A0",IF(ROUND(F38,0)<=122,"A1",IF(ROUND(F38,0)<=255,"B",IF(ROUND(F38,0)<=383,"C",IF(ROUND(F38,0)<=511,"D",IF(ROUND(F38,0)<=639,"E",IF(ROUND(F38,0)<=766,"F","G"))))))),IF(E28="Budova škôl a školských zariadení",IF(ROUND(F38,0)<=34,"A0",IF(ROUND(F38,0)<=68,"A1",IF(ROUND(F38,0)<=136,"B",IF(ROUND(F38,0)<=204,"C",IF(ROUND(F38,0)<=272,"D",IF(ROUND(F38,0)<=340,"E",IF(ROUND(F38,0)<=408,"F","G"))))))),"neoprávnená kategória budovy"))) -> A1 | I38: =IF(OR(G38="B",G38="C",G38="D",G38="E",G38="F",G38="G"),Číselníky!C19,IF((AND(G38="A1",K28>DATEVALUE("31.12.2018"))),"Projekt. dok. musí obsahovať zdôvodnenie nedosiahnutia hornej hranice energ. triedy A0","")) -> Projekt. dok. musí obsahovať zdôvodnenie nedosiahnutia hornej hranice energ. triedy A0 | O38: =IF(I38=Číselníky!C19,0,1) -> 1
A39: Celková podlahová plocha | D39: [m2] | E39: 797.25 | F39: 839.54
A41: Energetické zariadenia | E41: Počet kusov | F41: Plocha - Absorpčná [m2] | G41: Výkon [kW] | H41: Výkon na m2 [kWh/m2] | I41: Využitelnosť [h/rok] | J41: P0080 [MWh] | K41: P0084 [MWh] | L41: P0705 [MW] | M41: P0707 [MW]
A42: Tepelné čerpadlo - Elektrické | E42: 0 | G42: 0 | I42: 1290 | K42: =M42*I42 -> 0 | M42: =(E42*G42)/1000 -> 0
A43: Tepelné čerpadlo - Plynové | E43: 0 | G43: 0 | I43: 1050 | K43: =M43*I43 -> 0 | M43: =(E43*G43)/1000 -> 0
A44: KVET - Elektrina | E44: 0 | G44: 0 | I44: 1290 | J44: =L44*I44 -> 0 | L44: =(E44*G44)/1000 -> 0
A45: KVET - Teplo | E45: 0 | G45: 0 | I45: 1290 | K45: =M45*I45 -> 0 | M45: =(E45*G45)/1000 -> 0
A46: Solárny panel Termický plochý | E46: 0 | F46: 0 | H46: 525 | K46: =(E46*F46*H46)/1000 -> 0 | M46: =K46/1000 -> 0
A47: Solárny panel Vákouový | E47: 0 | F47: 0 | H47: 800 | K47: =(E47*F47*H47)/1000 -> 0 | M47: =K47/1000 -> 0
A48: Fotovoltaický panel | E48: 0 | F48: 1 | G48: 0 | I48: 1000 | J48: =L48*I48 -> 0 | L48: =(E48*F48*G48)/1000 -> 0
A50: Príloha č. 8 ŽoNFP - Energetický audit
A51: Prehľad o spotrebe energie pred realizáciou projektu | E51: Rok N-2 | F51: Rok N-1 | G51: Rok N | H51: Priemer | I51: Zníženie spotreby PE
A52: elektrina | D52: (MWh) | E52: 10.951 | F52: 8.768 | G52: 6.396 | H52: =(E52+F52+G52)/3 -> 8.705 | I52: =$H$83*H52/$H$62/(0.93*0.99*0.4) -> 14418.77122
A53: zemný plyn | D53: (MWh) | E53: 265.148 | F53: 220.052 | G53: 217.32 | H53: =(E53+F53+G53)/3 -> 234.1733333 | I53: =$H$83*H53/$H$62/(0.99*0.985) -> 146488.5306
A54: biomasa, uhlie | D54: (MWh) | E54: 0 | F54: 0 | G54: 0 | H54: =(E54+F54+G54)/3 -> 0 | I54: =$H$83*H54/$H$62 -> 0
A55: CZT | D55: (MWh) | E55: 0 | F55: 0 | G55: 0 | H55: =(E55+F55+G55)/3 -> 0 | I55: =IF(OR(E56="",E57="",E58="",E59="",E60="",E61=""),"Vyplňte bunky E56 - 61",$H$83*H55/$H$62/(O56*O57*O58*O59*O60*O61)) -> 0
B56: Účinnosť sekundárneho rozvodu - teplá voda | E56: nie | O56: =IF(E56="áno",0.94,1) -> 1
B57: Účinnosť OST | E57: nie | O57: =IF(E57="áno",0.985,1) -> 1
B58: Účinnosť účinnosť primárneho rozvodu - teplá voda | E58: nie | O58: =IF(E58="áno",0.925,1) -> 1
B59: Účinnosť OST - horúca - teplá voda | E59: nie | O59: =IF(E59="áno",0.985,1) -> 1
B60: Účinnosť primárneho rozvodu - horúca voda | E60: nie | O60: =IF(E60="áno",0.9,1) -> 1
B61: Účinnosť premeny energie | E61: nie | O61: =IF(E61="áno",0.88,1) -> 1
A62: Spotreba energie SPOLU | D62: (MWh) | E62: =SUM(E52:E55) -> 276.099 | F62: =SUM(F52:F55) -> 228.82 | G62: =SUM(G52:G55) -> 223.716 | H62: =SUM(H52:H55) -> 242.8783333 | I62: =SUM(I52:I55) -> 160907.3018
A64: Celková potreba energie pred realizáciou projektu vypočítaná projektovým energetickým hodnotením | E64: =E37*E39/1000 -> 123.366465 | F64: MWh/rok | G64: =H62/E64 -> 1.968754907 | I64: ZŠ | J64: bunka J 19 | K64: =CONCATENATE(CHAR(10),"Celková potreba energie ",I64," podľa tepelnotechnického posudku pred realizáciou opatrení je ",E37," kWh/m2. rok, čo pri podlahovej ploche ",E39," m2 predstavuje celkovú potrebu energie ",E64," MWh/rok. Keďže celková priemerná spotreba energie ",I64," je ",H62," MWh, podiel využitia budovy je ",G64*100," %.""") -> Celková potreba energie ZŠ podľa tepelnotechnického posudku pred realizáciou opatrení je 154,74 kWh/m2. rok, čo pri podlahovej ploche 797,25 m2 predstavuje celkovú potrebu energie 123,366465 MWh/rok. Keďže celková priemerná spotreba energie ZŠ je 242,878333333333 MWh, podiel využitia budovy je 196,875490704328 %."
G65: využitie budovy
A66: Environmentálne hodnotenie | E66: Stav PRED realizáciou projektu | F66: Stav PO realizácii projektu | I66: Kultúrneho domu | J66: bunka J 23 | K66: =CONCATENATE(CHAR(10),"Realizáciou projektu sa dosiahne plánovaná úspora potreby energie na vykurovanie ",K25," %.""") -> Realizáciou projektu sa dosiahne plánovaná úspora potreby energie na vykurovanie 69,0319116293341 %."
A67: CO2 | D67: ton | E67: 52.97197 | F67: 22.39121 | I67: Obecného úradu
A68: NOx | D68: kg | E68: 46.62 | F68: 20.86 | I68: MŠ
A69: TZL/PM10 | D69: kg | E69: 3.5 | F69: 1.71 | I69: ZŠ
A70: SO2 | D70: kg | E70: 7.98 | F70: 4.57 | I70: Obecného úradu a kultúrneho domu
A73: Merateľné ukazovatele Budova č. 1 | D73: =IF('Rozpočet B1 - Value for Money'!G12="",""," - súpis. č. "&'Rozpočet B1 - Value for Money'!G12) -> - súpis. č. 68
A74: Názov MU | B74: Názov Merateľného ukazovatela | F74: Príznak rizika | G74: Merná jednotka | H74: Výsledná hodnota po OH | I74: Výsledná hodnota
A75: P0080 | B75: Množstvo elektrickej energie vyrobenej v zariadení OZE | F75: S príznakom | G75: MWh/rok | H75: =J44+J48 -> 0 | I75: 0 | J75: =IF(H75<>I75,1,0) -> 0 | K75: =IF(J75>0,CONCATENATE("• ",A75," ",B75," (",G75,"): pôvodná hodnota ",I75,"; korigovaná hodnota ",H75,";")) -> FALSE
A76: P0084 | B76: Množstvo tepelnej energie vyrobenej v zariadení OZE | F76: S príznakom | G76: MWh/rok | H76: =K42+K43+K45+K46+K47 -> 0 | I76: 0 | J76: =IF(H76<>I76,1,0) -> 0 | K76: =IF(J76>0,CONCATENATE("• ",A76," ",B76," (",G76,"): pôvodná hodnota ",I76,"; korigovaná hodnota ",H76,";")) -> FALSE
A77: P0103 | B77: Odhadované ročné zníženie emisií skleníkových plynov | F77: S príznakom | G77: t ekviv. CO2/rok | H77: =E67-F67 -> 30.58076 | I77: 30.58076 | J77: 0 | K77: FALSE
A78: P0250 | B78: Počet opatrení na zníženie spotreby energie realizovaných vo verejnej budove | F78: Bez príznaku | G78: počet | H78: =E29 -> 3 | I78: 3 | J78: 0 | K78: FALSE
A79: P0470 | B79: Počet verej. budov na úrovni nízkoenerg. / ultranízkoenerg. alebo s takmer nul. potrebou energie | F79: Bez príznaku | G79: počet | H79: 1 | I79: 1 | J79: 0 | K79: FALSE
A80: P0612 | B80: Podlahová plocha budov obnovených nad rámec minimálnych požiadaviek | F80: Bez príznaku | G80: m2 | H80: =F39 -> 839.54 | I80: 839.54 | J80: 0 | K80: FALSE
A81: P0627 | B81: Spotreba energie v budove po realizácii opatrení energetickej efektívnosti | F81: S príznakom | G81: MWh/rok | H81: =H82*(F38*F39)/(E38*E39) -> 94.71989763 | I81: 94.71989763 | J81: 0 | K81: FALSE
A82: P0628 | B82: Spotreba energie v budove pred realizáciou opatrení energetickej efektívnosti | F82: S príznakom | G82: MWh/rok | H82: =H62 -> 242.8783333 | I82: 242.8783333 | J82: 0 | K82: FALSE
A83: P0687 | B83: Zníženie konečnej spotreby energie vo verejných budovách | F83: S príznakom | G83: kWh/rok | H83: =(H82-H81)*1000 -> 148158.4357 | I83: 148158.4357 | J83: 0 | K83: FALSE
A84: P0689 | B84: Zníženie potreby energie vo verejných budovách | F84: S príznakom | G84: kWh/rok | H84: =(E38*E39)-(F38*F39) -> 89572.4816 | I84: 89572.4816 | J84: =IF(H84<>I84,1,0) -> 0 | K84: =IF(J84>0,CONCATENATE("V procese OH bol korigovaný MU ",A84," ",B84," (",G84,"): pôvodná hodnota ",I84,"; korigovaná hodnota ",H84,".")) -> FALSE
A85: P0691 | B85: Zníženie produkcie emisií NOx | F85: S príznakom | G85: kg/rok | H85: =E68-F68 -> 25.76 | I85: 25.76 | J85: 0 | K85: =IF(J85>0,CONCATENATE("• ",A85," ",B85," (",G85,"): pôvodná hodnota ",I85,"; korigovaná hodnota ",H85,";")) -> FALSE
A86: P0692 | B86: Zníženie produkcie emisií PM10 | F86: S príznakom | G86: kg/rok | H86: =E69-F69 -> 1.79 | I86: 1.79 | J86: 0 | K86: FALSE
A87: P0694 | B87: Zníženie produkcie emisií SO2 | F87: S príznakom | G87: kg/rok | H87: =E70-F70 -> 3.41 | I87: 3.41 | J87: 0 | K87: FALSE
A88: P0701 | B88: Zníženie ročnej spotreby primárnej energie vo verejných budovách | F88: S príznakom | G88: kWh/rok | H88: =I62 -> 160907.3018 | I88: 160907.3018 | J88: 0 | K88: FALSE
A89: P0705 | B89: Zvýšená kapacita výroby elektriny z obnoviteľných zdrojov | F89: Bez príznaku | G89: MWe | H89: =L44+L48 -> 0 | I89: 0 | J89: 0 | K89: FALSE
A90: P0706 | B90: Zvýšená kapacita výroby energie z obnoviteľných zdrojov | F90: Bez príznaku | G90: MW | H90: =H89+H91 -> 0 | I90: 0 | J90: 0 | K90: FALSE
A91: P0707 | B91: Zvýšená kapacita výroby tepla z obnoviteľných zdrojov | F91: Bez príznaku | G91: MWt | H91: =M42+M43+M45+M46+M47 -> 0 | I91: 0 | J91: 0 | K91: FALSE
J95: bunka J 64 | K95: =IF(J84<1,CONCATENATE("Prostredníctvom realizácie hlavných aktivít projektu je reálne očakávať dosiahnutie deklarovanej cieľovej hodnoty MU P0689 – Zníženie potreby energie vo verejných budovách ",H84," kWh/rok.""")) -> Prostredníctvom realizácie hlavných aktivít projektu je reálne očakávať dosiahnutie deklarovanej cieľovej hodnoty MU P0689 – Zníženie potreby energie vo verejných budovách 89572,4816 kWh/rok."
J98: bunka J 65 | K98: Prostredníctvom realizácie hlavných aktivít projektu je reálne očakávať aj dosiahnutie deklarovaných cieľových hodnoty ostatných merateľných ukazovateľov projektu.

Sheet Kontrola energetických tried (hidden)
A1: Kategória budovy
A2: budova škôl a školských zariadení
F3: horne hranice energetickych tried
A4: Energetické hodnotenie budovy navrhovaný stav | B4: Energetická trieda | C4: Merná potreba energie (kWh/(m2.a)) | D4: Kontrola energetickej triedy | E4: Kontrolné číslo | F4: A0 | G4: A | H4: B | I4: C | J4: D | K4: E | L4: F | M4: Mer. potr. energie zaokrúhlená
A5: Vykurovanie | B5: B | C5: 40.37 | D5: =IF(M5<=G5,G$4,IF(M5<=H5,H$4,IF(M5<=I5,I$4,IF(M5<=J5,J$4,IF(M5<=K5,K$4,L$4))))) -> B | E5: =IF(LEN(D5)>3,1,HLOOKUP(D5,$F$4:$L$12,9,FALSE)) -> 1 | G5: =VLOOKUP($A$2,$A$27:$AL$31,2,FALSE) -> 28 | H5: =VLOOKUP($A$2,$A$27:$AL$31,3,FALSE) -> 56 | I5: =VLOOKUP($A$2,$A$27:$AL$31,4,FALSE) -> 84 | J5: =VLOOKUP($A$2,$A$27:$AL$31,5,FALSE) -> 112 | K5: =VLOOKUP($A$2,$A$27:$AL$31,6,FALSE) -> 140 | L5: =VLOOKUP($A$2,$A$27:$AL$31,7,FALSE) -> 168 | M5: =ROUND(C5,0) -> 40
A6: Príprava teplej vody | B6: B | C6: 11.8 | D6: =IF(M6<=G6,G$4,IF(M6<=H6,H$4,IF(M6<=I6,I$4,IF(M6<=J6,J$4,IF(M6<=K6,K$4,L$4))))) -> B | E6: =IF(LEN(D6)>3,1,HLOOKUP(D6,$F$4:$L$12,9,FALSE)) -> 1 | G6: =VLOOKUP($A$2,$A$27:$AL$31,8,FALSE) -> 6 | H6: =VLOOKUP($A$2,$A$27:$AL$31,9,FALSE) -> 12 | I6: =VLOOKUP($A$2,$A$27:$AL$31,10,FALSE) -> 18 | J6: =VLOOKUP($A$2,$A$27:$AL$31,11,FALSE) -> 24 | K6: =VLOOKUP($A$2,$A$27:$AL$31,12,FALSE) -> 30 | L6: =VLOOKUP($A$2,$A$27:$AL$31,13,FALSE) -> 36 | M6: 12
A7: Vetranie a chladenie | B7: nehodnotí sa | C7: 0 | D7: =IF(LEN(B7)=1,IF(M7<=G7,G$4,IF(M7<=H7,H$4,IF(M7<=I7,I$4,IF(M7<=J7,J$4,IF(M7<=K7,K$4,L$4))))),B7) -> nehodnotí sa | E7: =IF(LEN(D7)>3,1,HLOOKUP(D7,$F$4:$L$12,9,FALSE)) -> 1 | G7: =VLOOKUP($A$2,$A$27:$AL$31,14,FALSE) -> 0 | H7: =VLOOKUP($A$2,$A$27:$AL$31,15,FALSE) -> 0 | I7: =VLOOKUP($A$2,$A$27:$AL$31,16,FALSE) -> 0 | J7: =VLOOKUP($A$2,$A$27:$AL$31,17,FALSE) -> 0 | K7: =VLOOKUP($A$2,$A$27:$AL$31,18,FALSE) -> 0 | L7: =VLOOKUP($A$2,$A$27:$AL$31,19,FALSE) -> 0 | M7: 0
A8: Osvetlenie | B8: A | C8: 4.79 | D8: =IF(M8<=G8,G$4,IF(M8<=H8,H$4,IF(M8<=I8,I$4,IF(M8<=J8,J$4,IF(M8<=K8,K$4,L$4))))) -> A | E8: =IF(LEN(D8)>3,1,HLOOKUP(D8,$F$4:$L$12,9,FALSE)) -> 1 | G8: =VLOOKUP($A$2,$A$27:$AL$31,20,FALSE) -> 9 | H8: =VLOOKUP($A$2,$A$27:$AL$31,21,FALSE) -> 18 | I8: =VLOOKUP($A$2,$A$27:$AL$31,22,FALSE) -> 23 | J8: =VLOOKUP($A$2,$A$27:$AL$31,23,FALSE) -> 27 | K8: =VLOOKUP($A$2,$A$27:$AL$31,24,FALSE) -> 34 | L8: =VLOOKUP($A$2,$A$27:$AL$31,25,FALSE) -> 41 | M8: 5
A9: Potreba energie celkom | B9: B | C9: 56.96 | D9: =IF(M9<=G9,G$4,IF(M9<=H9,H$4,IF(M9<=I9,I$4,IF(M9<=J9,J$4,IF(M9<=K9,K$4,L$4))))) -> B | E9: =IF(LEN(D9)>3,1,HLOOKUP(D9,$F$4:$L$12,9,FALSE)) -> 1 | G9: =IF($B$7=$A$24,VLOOKUP($A$2,$A$27:$AL$31,26,FALSE)-G7,VLOOKUP($A$2,$A$27:$AL$31,26,FALSE)) -> 43 | H9: =IF($B$7=$A$24,VLOOKUP($A$2,$A$27:$AL$31,27,FALSE)-H7,VLOOKUP($A$2,$A$27:$AL$31,27,FALSE)) -> 86 | I9: =IF($B$7=$A$24,VLOOKUP($A$2,$A$27:$AL$31,28,FALSE)-I7,VLOOKUP($A$2,$A$27:$AL$31,28,FALSE)) -> 125 | J9: =IF($B$7=$A$24,VLOOKUP($A$2,$A$27:$AL$31,29,FALSE)-J7,VLOOKUP($A$2,$A$27:$AL$31,29,FALSE)) -> 163 | K9: =IF($B$7=$A$24,VLOOKUP($A$2,$A$27:$AL$31,30,FALSE)-K7,VLOOKUP($A$2,$A$27:$AL$31,30,FALSE)) -> 204 | L9: =IF($B$7=$A$24,VLOOKUP($A$2,$A$27:$AL$31,31,FALSE)-L7,VLOOKUP($A$2,$A$27:$AL$31,31,FALSE)) -> 245 | M9: 57
A10: Globálny ukaz. primárna energia | B10: A1 | C10: 68.21 | D10: =IF(M10<=F10,F11,IF(M10<=G10,G$11,IF(M10<=H10,H$11,IF(M10<=I10,I$11,IF(M10<=J10,J$11,IF(M10<=K10,K$11,L$11)))))) -> A1 | E10: =HLOOKUP(D10,$F$11:$L$13,3,FALSE) -> 2 | F10: =IF($B$7=$A$24,VLOOKUP($A$2,$A$27:$AL$31,32,FALSE)-G7/2*E17,VLOOKUP($A$2,$A$27:$AL$31,32,FALSE)) -> 34 | G10: =IF($B$7=$A$24,VLOOKUP($A$2,$A$27:$AL$31,33,FALSE)-G7*E17,VLOOKUP($A$2,$A$27:$AL$31,33,FALSE)) -> 68 | H10: =IF($B$7=$A$24,VLOOKUP($A$2,$A$27:$AL$31,34,FALSE)-H7*E17,VLOOKUP($A$2,$A$27:$AL$31,34,FALSE)) -> 136 | I10: =IF($B$7=$A$24,VLOOKUP($A$2,$A$27:$AL$31,35,FALSE)-I7*E17,VLOOKUP($A$2,$A$27:$AL$31,35,FALSE)) -> 204 | J10: =IF($B$7=$A$24,VLOOKUP($A$2,$A$27:$AL$31,36,FALSE)-J7*E17,VLOOKUP($A$2,$A$27:$AL$31,36,FALSE)) -> 272 | K10: =IF($B$7=$A$24,VLOOKUP($A$2,$A$27:$AL$31,37,FALSE)-K7*E17,VLOOKUP($A$2,$A$27:$AL$31,37,FALSE)) -> 340 | L10: =IF($B$7=$A$24,VLOOKUP($A$2,$A$27:$AL$31,38,FALSE)-L7*E17,VLOOKUP($A$2,$A$27:$AL$31,38,FALSE)) -> 408 | M10: 68
F11: A0 | G11: A1 | H11: B | I11: C | J11: D | K11: E | L11: F
A12: Stavebné povolenie | B12: ='MU Budova 1'!K28 -> 2021-09-16 | F12: 3 | G12: 1 | H12: 1 | I12: 0 | J12: 0 | K12: 0 | L12: 0
F13: 3 | G13: 2 | H13: 0 | I13: 0 | J13: 0 | K13: 0 | L13: 0
A14: Ciselnik energetivkych tried | D14: Faktor pre EE
A15: A0 | C15: 2016-12-31 | D15: 2.76
A16: A1 | C16: 2017-01-01 | D16: 2.2
A17: A | D17: Výsledný faktor | E17: =IF(B12>C15,D16,D15) -> 2.2
A18: B
A19: C
A20: D
A21: E
A22: F
A23: G
A24: nehodnotí sa
B25: vykurovanie | H25: príprava TV | N25: vetranie a chladenie | T25: osvetlenie | Z25: celková potreba energie | AF25: globálny ukazovateľ primárna energia
A26: Ciselnik kategorie budov | B26: A | C26: B | D26: C | E26: D | F26: E | G26: F | H26: A | I26: B | J26: C | K26: D | L26: E | M26: F | N26: A | O26: B | P26: C | Q26: D | R26: E | S26: F | T26: A | U26: B | V26: C | W26: D | X26: E | Y26: F | Z26: A | AA26: B | AB26: C | AC26: D | AD26: E | AE26: F | AF26: A0 | AG26: A1 | AH26: B | AI26: C | AJ26: D | AK26: E | AL26: F
A27: administratívna budova | B27: 28 | C27: 56 | D27: 84 | E27: 112 | F27: 140 | G27: 168 | H27: 4 | I27: 8 | J27: 12 | K27: 16 | L27: 20 | M27: 24 | N27: 16 | O27: 31 | P27: 45 | Q27: 59 | R27: 75 | S27: 90 | T27: 15 | U27: 30 | V27: 38 | W27: 45 | X27: 56 | Y27: 68 | Z27: =B27+H27+N27+T27 -> 63 | AA27: 125 | AB27: 179 | AC27: 232 | AD27: 291 | AE27: 350 | AF27: 61 | AG27: 122 | AH27: 255 | AI27: 383 | AJ27: 511 | AK27: 639 | AL27: 766
A28: budova škôl a školských zariadení | B28: 28 | C28: 56 | D28: 84 | E28: 112 | F28: 140 | G28: 168 | H28: 6 | I28: 12 | J28: 18 | K28: 24 | L28: 30 | M28: 36 | T28: 9 | U28: 18 | V28: 23 | W28: 27 | X28: 34 | Y28: 41 | Z28: 43 | AA28: 86 | AB28: 125 | AC28: 163 | AD28: 204 | AE28: 245 | AF28: 34 | AG28: 68 | AH28: 136 | AI28: 204 | AJ28: 272 | AK28: 340 | AL28: 408
A29: budova nemocníc | B29: 35 | C29: 70 | D29: 105 | E29: 140 | F29: 175 | G29: 210 | H29: 26 | I29: 52 | J29: 78 | K29: 104 | L29: 130 | M29: 156 | N29: 27 | O29: 53 | P29: 77 | Q29: 101 | R29: 126 | S29: 152 | T29: 13 | U29: 26 | V29: 33 | W29: 40 | X29: 50 | Y29: 60 | Z29: 101 | AA29: 201 | AB29: 293 | AC29: 385 | AD29: 481 | AE29: 578 | AF29: 96 | AG29: 192 | AH29: 384 | AI29: 576 | AJ29: 769 | AK29: 961 | AL29: 1153
A30: budova hotelov a reštaurácií | B30: 36 | C30: 71 | D30: 107 | E30: 142 | F30: 178 | G30: 213 | H30: 32 | I30: 64 | J30: 96 | K30: 128 | L30: 160 | M30: 192 | N30: 14 | O30: 28 | P30: 42 | Q30: 56 | R30: 70 | S30: 84 | T30: 12 | U30: 24 | V30: 31 | W30: 37 | X30: 46 | Y30: 56 | Z30: =B30+H30+N30+T30 -> 94 | AA30: =C30+I30+O30+U30 -> 187 | AB30: 275 | AC30: =E30+K30+Q30+W30 -> 363 | AD30: 454 | AE30: 545 | AF30: 82 | AG30: 164 | AH30: 328 | AI30: 492 | AJ30: 656 | AK30: 820 | AL30: 984
A31: športové haly a iné budovy určené na šport | B31: 33 | C31: 66 | D31: 99 | E31: 132 | F31: 165 | G31: 198 | H31: 6 | I31: 12 | J31: 18 | K31: 24 | L31: 30 | M31: 36 | T31: 9 | U31: 17 | V31: 23 | W31: 28 | X31: 35 | Y31: 42 | Z31: =B31+H31+N31+T31 -> 48 | AA31: =C31+I31+O31+U31 -> 95 | AB31: =D31+J31+P31+V31 -> 140 | AC31: 184 | AD31: 230 | AE31: 276 | AF31: 38 | AG31: 76 | AH31: 152 | AI31: 258 | AJ31: 304 | AK31: 380 | AL31: 456

Sheet Rozpočet B2 (hidden)
A2: Príloha ŽoNFP č. 6 - Dokumentácia k oprávnenosti výdavkov
A7: Rozpočet - Budova č. 2 | G7: =IF(G12="",""," - súpis. č. "&G12) -> 
A9: Názov žiadateľa: | B9: =IF('Rozpočet B1 - Value for Money'!B9:O9="","",'Rozpočet B1 - Value for Money'!B9:O9) -> Obec Podhorany
A10: Názov projektu: | B10: =IF('Rozpočet B1 - Value for Money'!B10:O10="","",'Rozpočet B1 - Value for Money'!B10:O10) -> Stavebné úpravy ZŠ Podhorany Zníženie spotreby energie pri prevádzke
A11: Je žiadateľ platcom DPH v rozsahu aktivity? | D11: Katastrálne územie | F11: LV číslo | G11: Súpisné číslo | I11: Právny vzťah
A12: Počet samostatných budov v ŽoNFP? | B12: =IF('Rozpočet B1 - Value for Money'!B12="","",'Rozpočet B1 - Value for Money'!B12) -> 1 | H12: =IF(O11=[4]Číselníky!G13,"Predložte súhlas všetkých podielových spoluvlastníkov stavby",IF(O11=[4]Číselníky!G14,"Predložte doklad oprávnujúci k výkonu správy budovy","")) -> 
A14: Zateplenie obvodového plášťa
A15: Cieľová hodnota zateplenej plochy obvodového plášťa v m2 | D15: m2
A16: Názov výdavku | B16: Skupina výdavkov | C16: Merná jednotka | D16: Počet jednotiek | E16: Jednotková cena bez DPH [EUR] | F16: Cena celkom bez DPH [EUR] | G16: Cena celkom s DPH [EUR] | H16: Celkový výdavok | I16: Výdavok nad referenčnú hodnotu | J16: Výdavok pri neakceptovaní prekročenia ref. hodnôt | K16: Schválenie / neschválenie prekročenia ref. hodnôt | L16: Výdavok po odčítaní vecne neoprávne. a/alebo neúčelných výdavkov | M16: Výdavok po odčítaní nehospodárnych výdavkov | N16: Výdavok po posúdení prekročenia referenčných hodnôt | O16: Vecný opis výdavku
A17: Položka č. 1 | B17: 021 Stavby | F17: =ROUND(D17*E17,2) -> 0 | G17: =ROUND(F17*1.2,2) -> 0 | H17: =IF($B$11="áno",F17,G17) -> 0 | L17: =H17 -> 0 | M17: =L17 -> 0 | N17: =IFERROR(ROUND(IF($K$21="nie",IF($M$21<=($C$15*100),M17,M17*$J$21/$M$21),M17),2),0) -> 0
A18: Položka č. 2 | B18: 021 Stavby | F18: =ROUND(D18*E18,2) -> 0 | G18: =ROUND(F18*1.2,2) -> 0 | H18: =IF($B$11="áno",F18,G18) -> 0 | L18: =H18 -> 0 | M18: =L18 -> 0 | N18: =IFERROR(ROUND(IF($K$21="nie",IF($M$21<=($C$15*100),M18,M18*$J$21/$M$21),M18),2),0) -> 0
A19: Položka č. 3 | B19: 021 Stavby | F19: =ROUND(D19*E19,2) -> 0 | G19: =ROUND(F19*1.2,2) -> 0 | H19: =IF($B$11="áno",F19,G19) -> 0 | L19: =H19 -> 0 | M19: =L19 -> 0 | N19: 0
A20: Položka č. n | B20: 021 Stavby | F20: =ROUND(D20*E20,2) -> 0 | G20: =ROUND(F20*1.2,2) -> 0 | H20: =IF($B$11="áno",F20,G20) -> 0 | L20: =H20 -> 0 | M20: =L20 -> 0 | N20: 0
A21: Spolu výdavky zateplenia obvodového plášťa | F21: =SUM(F17:F20) -> 0 | G21: =SUM(G17:G20) -> 0 | H21: =IF(OR(B11="",C15="",C15<=0,D12="",F12="",G12="",O11=""),0,SUM(H17:H20)) -> 0 | I21: =IF(OR(C15=0,B11=""),0,IF(F21>=C15*100,IF(B11="áno",F21-C15*100,G21-C15*100*1.2),0)) -> 0 | J21: =IF(OR(C15="",C15<=0,D12="",F12="",G12="",O11=""),0,H21-I21) -> 0 | L21: =IF(OR(B11="",C15="",C15<=0,D12="",F12="",G12="",O11=""),0,SUM(L17:L20)) -> 0 | M21: =IF(OR(B11="",C15="",C15<=0,D12="",F12="",G12="",O11=""),0,SUM(M17:M20)) -> 0 | N21: =IF(OR(B11="",C15="",C15<=0,D12="",F12="",G12="",O11=""),0,SUM(N17:N20)) -> 0
A22: =IF(C10*G10>=H21,"","Prekročenie referenčných hodnôt nebude bez akceptovaného zdôvodnenia schválené.") -> 
A23: Zdôvodnenie prekročenia referenčnej hodnoty pre obvodový plášť | B23: V prípade prekročenia stanovenej referenčnej hodnoty pre vybrané výdavky projektu je žiadateľ oprávnený toto prekročenie zdôvodniť. Žiadateľ v zdôvodnení uvedie výdavky, ktoré najvýznamnejšie vplývajú na prekročenie stanovenej referenčnej hodnoty a zdôvodní ich nevyhnutnosť. V prípade, že zdôvodnenie prekročenia stanovenej referenčnej hodnoty nebude predložené, resp. dostatočné alebo akceptované zo strany odborného hodnotiteľa ako odôvodniteľné, žiadané výdavky budú krátené na výšku stanovených referenčných hodnôt. Bližšie informácie týkajúce sa referenčných hodnôt a ich prekročenia sú uvedené v Prílohe č. 4 Výzvy - Osobitné podmienky oprávnenosti výdavkov.
A25: Zateplenie strešného plášťa
A26: Cieľová hodnota zateplenej plochy strešného plášťa v m2 | D26: m2
A27: Názov výdavku | B27: Skupina výdavkov | C27: Merná jednotka | D27: Počet jednotiek | E27: Jednotková cena bez DPH [EUR] | F27: Cena celkom bez DPH [EUR] | G27: Cena celkom s DPH [EUR] | H27: Celkový výdavok | I27: Výdavok nad referenčnú hodnotu | J27: Výdavok pri neakceptovaní prekročenia ref. hodnôt | K27: Schválenie / neschválenie prekročenia ref. hodnôt | L27: Výdavok po odčítaní vecne neoprávne. a/alebo neúčelných výdavkov | M27: Výdavok po odčítaní nehospodárnych výdavkov | N27: Výdavok po posúdení prekročenia referenčných hodnôt | O27: Vecný opis výdavku
A28: Položka č. 1 | B28: 021 Stavby | F28: =ROUND(D28*E28,2) -> 0 | G28: =ROUND(F28*1.2,2) -> 0 | H28: =IF($B$11="áno",F28,G28) -> 0 | L28: =H28 -> 0 | M28: =L28 -> 0 | N28: =IFERROR(ROUND(IF($K$32="nie",IF($M$32<=($C$26*80),M28,M28*$J$32/$M$32),M28),2),0) -> 0
A29: Položka č. 2 | B29: 021 Stavby | F29: =ROUND(D29*E29,2) -> 0 | G29: =ROUND(F29*1.2,2) -> 0 | H29: =IF($B$11="áno",F29,G29) -> 0 | L29: =H29 -> 0 | M29: =L29 -> 0 | N29: =IFERROR(ROUND(IF($K$32="nie",IF($M$32<=($C$26*80),M29,M29*$J$32/$M$32),M29),2),0) -> 0
A30: Položka č. 3 | B30: 021 Stavby | F30: =ROUND(D30*E30,2) -> 0 | G30: =ROUND(F30*1.2,2) -> 0 | H30: =IF($B$11="áno",F30,G30) -> 0 | L30: =H30 -> 0 | M30: =L30 -> 0 | N30: 0
A31: Položka č. n | B31: 021 Stavby | F31: =ROUND(D31*E31,2) -> 0 | G31: =ROUND(F31*1.2,2) -> 0 | H31: =IF($B$11="áno",F31,G31) -> 0 | L31: =H31 -> 0 | M31: =L31 -> 0 | N31: 0
A32: Spolu výdavky zateplenia strešného plášťa | F32: =SUM(F28:F31) -> 0 | G32: =SUM(G28:G31) -> 0 | H32: =IF(OR(B11="",C26="",C26<=0,D12="",F12="",G12="",O11=""),0,SUM(H28:H31)) -> 0 | I32: =IF(OR(C26=0,B11=""),0,IF(F32>=C26*80,IF(B11="áno",F32-C26*80,G32-C26*80*1.2),0)) -> 0 | J32: =IF(OR(C26="",C26<=0,D12="",F12="",G12="",O11=""),0,H32-I32) -> 0 | L32: =IF(OR(B11="",C26="",C26<=0,D12="",F12="",G12="",O11=""),0,SUM(L28:L31)) -> 0 | M32: =IF(OR(B11="",C26="",C26<=0,D12="",F12="",G12="",O11=""),0,SUM(M28:M31)) -> 0 | N32: =IF(OR(B11="",C26="",C26<=0,D12="",F12="",G12="",O11=""),0,SUM(N28:N31)) -> 0
A33: =IF(C21*G21>=H32,"","Prekročenie referenčných hodnôt nebude bez akceptovaného zdôvodnenia schválené.") -> 
A34: Zdôvodnenie prekročenia referenčnej hodnoty pre strešný plášť | B34: V prípade prekročenia stanovenej referenčnej hodnoty pre vybrané výdavky projektu je žiadateľ oprávnený toto prekročenie zdôvodniť. Žiadateľ v zdôvodnení uvedie výdavky, ktoré najvýznamnejšie vplývajú na prekročenie stanovenej referenčnej hodnoty a zdôvodní ich nevyhnutnosť. V prípade, že zdôvodnenie prekročenia stanovenej referenčnej hodnoty nebude predložené, resp. dostatočné alebo akceptované zo strany odborného hodnotiteľa ako odôvodniteľné, žiadané výdavky budú krátené na výšku stanovených referenčných hodnôt. Bližšie informácie týkajúce sa referenčných hodnôt a ich prekročenia sú uvedené v Prílohe č. 4 Výzvy - Osobitné podmienky oprávnenosti výdavkov.
A36: Výmena otvorových konštrukcií
A37: Cieľová hodnota výmeny otvorových konštrukcií v m2 | D37: m2
A38: Názov výdavku | B38: Skupina výdavkov | C38: Merná jednotka | D38: Počet jednotiek | E38: Jednotková cena bez DPH [EUR] | F38: Cena celkom bez DPH [EUR] | G38: Cena celkom s DPH [EUR] | H38: Celkový výdavok | I38: Výdavok nad referenčnú hodnotu | J38: Výdavok pri neakceptovaní prekročenia ref. hodnôt | K38: Schválenie / neschválenie prekročenia ref. hodnôt | L38: Výdavok po odčítaní vecne neoprávne. a/alebo neúčelných výdavkov | M38: Výdavok po odčítaní nehospodárnych výdavkov | N38: Výdavok po posúdení prekročenia referenčných hodnôt | O38: Vecný opis výdavku
A39: Položka č. 1 | B39: 021 Stavby | F39: =ROUND(D39*E39,2) -> 0 | G39: =ROUND(F39*1.2,2) -> 0 | H39: =IF($B$11="áno",F39,G39) -> 0 | L39: =H39 -> 0 | M39: =L39 -> 0 | N39: =IFERROR(ROUND(IF($K$43="nie",IF($M$43<=($C$37*400),M39,M39*$J$43/$M$43),M39),2),0) -> 0
A40: Položka č. 2 | B40: 021 Stavby | F40: =ROUND(D40*E40,2) -> 0 | G40: =ROUND(F40*1.2,2) -> 0 | H40: =IF($B$11="áno",F40,G40) -> 0 | L40: =H40 -> 0 | M40: =L40 -> 0 | N40: =IFERROR(ROUND(IF($K$43="nie",IF($M$43<=($C$37*400),M40,M40*$J$43/$M$43),M40),2),0) -> 0
A41: Položka č. 3 | B41: 021 Stavby | F41: =ROUND(D41*E41,2) -> 0 | G41: =ROUND(F41*1.2,2) -> 0 | H41: =IF($B$11="áno",F41,G41) -> 0 | L41: =H41 -> 0 | M41: =L41 -> 0 | N41: 0
A42: Položka č. n | B42: 021 Stavby | F42: =ROUND(D42*E42,2) -> 0 | G42: =ROUND(F42*1.2,2) -> 0 | H42: =IF($B$11="áno",F42,G42) -> 0 | L42: =H42 -> 0 | M42: =L42 -> 0 | N42: 0
A43: Spolu výdavky výmeny otvorových konštrukcií | F43: =SUM(F39:F42) -> 0 | G43: =SUM(G39:G42) -> 0 | H43: =IF(OR(B11="",C37="",C37<=0,D12="",F12="",G12="",O11=""),0,SUM(H39:H42)) -> 0 | I43: =IF(OR(C37=0,B11=""),0,IF(F43>=C37*400,IF(B11="áno",F43-C37*400,G43-C37*400*1.2),0)) -> 0 | J43: =IF(OR(C37="",C37<=0,D12="",F12="",G12="",O11=""),0,H43-I43) -> 0 | L43: =IF(OR(B11="",C37="",C37<=0,D12="",F12="",G12="",O11=""),0,SUM(L39:L42)) -> 0 | M43: =IF(OR(B11="",C37="",C37<=0,D12="",F12="",G12="",O11=""),0,SUM(M39:M42)) -> 0 | N43: =IF(OR(B11="",C37="",C37<=0,D12="",F12="",G12="",O11=""),0,SUM(N39:N42)) -> 0
A44: =IF(C32*G32>=H43,"","Prekročenie referenčných hodnôt nebude bez akceptovaného zdôvodnenia schválené.") -> 
A45: Zdôvodnenie prekročenia referenčnej hodnoty pre výmenu otvorových konštrukcií | B45: V prípade prekročenia stanovenej referenčnej hodnoty pre vybrané výdavky projektu je žiadateľ oprávnený toto prekročenie zdôvodniť. Žiadateľ v zdôvodnení uvedie výdavky, ktoré najvýznamnejšie vplývajú na prekročenie stanovenej referenčnej hodnoty a zdôvodní ich nevyhnutnosť. V prípade, že zdôvodnenie prekročenia stanovenej referenčnej hodnoty nebude predložené, resp. dostatočné alebo akceptované zo strany odborného hodnotiteľa ako odôvodniteľné, žiadané výdavky budú krátené na výšku stanovených referenčných hodnôt. Bližšie informácie týkajúce sa referenčných hodnôt a ich prekročenia sú uvedené v Prílohe č. 4 Výzvy - Osobitné podmienky oprávnenosti výdavkov.
A47: Ostatné
A48: Názov výdavku | B48: Skupina výdavkov | C48: Merná jednotka | D48: Počet jednotiek | E48: Jednotková cena bez DPH [EUR] | F48: Cena celkom bez DPH [EUR] | G48: Cena celkom s DPH [EUR] | H48: Celkový výdavok | I48: Výdavok nad referenčnú hodnotu | J48: Výdavok pri neakceptovaní prekročenia ref. hodnôt | K48: Stĺpec1 | L48: Výdavok po odčítaní vecne neoprávne. a/alebo neúčelných výdavkov | M48: Stĺpec2 | N48: Výdavok po odčítaní nehospodárnych výdavkov | O48: Vecný opis výdavku
A49: Položka č. 1 | B49: 021 Stavby | F49: =ROUND(D49*E49,2) -> 0 | G49: =ROUND(F49*1.2,2) -> 0 | H49: =IF($B$11="áno",F49,G49) -> 0 | L49: =H49 -> 0 | N49: =L49 -> 0
A50: Položka č. 2 | B50: 021 Stavby | F50: =ROUND(D50*E50,2) -> 0 | G50: =ROUND(F50*1.2,2) -> 0 | H50: =IF($B$11="áno",F50,G50) -> 0 | L50: =H50 -> 0 | N50: =L50 -> 0
A51: Položka č. 3 | B51: 021 Stavby | F51: =ROUND(D51*E51,2) -> 0 | G51: =ROUND(F51*1.2,2) -> 0 | H51: =IF($B$11="áno",F51,G51) -> 0 | L51: =H51 -> 0 | N51: =L51 -> 0
A52: Položka č. n | B52: 021 Stavby | F52: =ROUND(D52*E52,2) -> 0 | G52: =ROUND(F52*1.2,2) -> 0 | H52: =IF($B$11="áno",F52,G52) -> 0 | L52: =H52 -> 0 | N52: =L52 -> 0
A53: SPOLU výdavky ostatné | F53: =SUM(F49:F52) -> 0 | G53: =SUM(G49:G52) -> 0 | H53: =IF(OR(B11="",D12="",F12="",G12="",O11=""),0,SUM(H49:H52)) -> 0 | I53: RH sa pre skup. výdav. "Ostatné" neuplatňuje. | L53: =IF(OR(B11="",D12="",F12="",G12="",O11=""),0,SUM(L49:L52)) -> 0 | N53: =IF(OR(B11="",D12="",F12="",G12="",O11=""),0,SUM(N49:N52)) -> 0
A54: SPOLU Výdavky na budovu č. 2 | F54: =F21+F32+F43+F53 -> 0 | G54: =G21+G32+G43+G53 -> 0 | H54: =IF(OR('MU Budova 2'!O15=0,'MU Budova 2'!O16=0,'MU Budova 2'!O17=0,'MU Budova 2'!O18=0,'MU Budova 2'!O19=0,'MU Budova 2'!O13=0,'MU Budova 2'!O33=0,'MU Budova 2'!O34=0,'MU Budova 2'!O35=0,'MU Budova 2'!O36=0,'MU Budova 2'!O37=0,'MU Budova 2'!O38=0),0,H21+H32+H43+H53) -> 0 | I54: =REFa+REFb+REFc -> 0 | J54: =J21+J32+J43 -> 0 | L54: =IF(OR('MU Budova 2'!O15=0,'MU Budova 2'!O16=0,'MU Budova 2'!O17=0,'MU Budova 2'!O18=0,'MU Budova 2'!O19=0,'MU Budova 2'!O13=0,'MU Budova 2'!O33=0,'MU Budova 2'!O34=0,'MU Budova 2'!O35=0,'MU Budova 2'!O36=0,'MU Budova 2'!O37=0,'MU Budova 2'!O38=0),0,L21+L32+L43+L53) -> 0 | N54: =IF(OR('MU Budova 2'!O15=0,'MU Budova 2'!O16=0,'MU Budova 2'!O17=0,'MU Budova 2'!O18=0,'MU Budova 2'!O19=0,'MU Budova 2'!O13=0,'MU Budova 2'!O33=0,'MU Budova 2'!O34=0,'MU Budova 2'!O35=0,'MU Budova 2'!O36=0,'MU Budova 2'!O37=0,'MU Budova 2'!O38=0),0,N21+N32+N43+N53) -> 0
A55: SPOLU Výdavky na budovu č. 2 po prípadnom odpočítaní hospodárskej činnosti a nízkych úspor potreby energie na vykurovanie | H55: =IF(OR('MU Budova 2'!O15=0,'MU Budova 2'!O16=0,'MU Budova 2'!O17=0,'MU Budova 2'!O18=0,'MU Budova 2'!O19=0,'MU Budova 2'!O21=0,'MU Budova 2'!O22=0,'MU Budova 2'!O23=0,'MU Budova 2'!O13=0,'MU Budova 2'!O33=0,'MU Budova 2'!O34=0,'MU Budova 2'!O35=0,'MU Budova 2'!O36=0,'MU Budova 2'!O37=0,'MU Budova 2'!O38=0),0,IF(AND('MU Budova 2'!F26=0,'MU Budova 2'!K26=0),H21+H32+H43+H53,IF(H21+H32+H43+H53-(((H21+H32+H43+H53)/100)*('MU Budova 2'!F26+'MU Budova 2'!K26))<0,0,(H21+H32+H43+H53-((H21+H32+H43+H53)/100)*('MU Budova 2'!F26+'MU Budova 2'!K26))))) -> 0 | N55: =IF(OR('MU Budova 2'!O15=0,'MU Budova 2'!O16=0,'MU Budova 2'!O17=0,'MU Budova 2'!O18=0,'MU Budova 2'!O19=0,'MU Budova 2'!O21=0,'MU Budova 2'!O22=0,'MU Budova 2'!O23=0,'MU Budova 2'!O13=0,'MU Budova 2'!O33=0,'MU Budova 2'!O34=0,'MU Budova 2'!O35=0,'MU Budova 2'!O36=0,'MU Budova 2'!O37=0,'MU Budova 2'!O38=0),0,IF(AND('MU Budova 2'!F26=0,'MU Budova 2'!K26=0),N21+N32+N43+N53,IF(N21+N32+N43+N53-(((N21+N32+N43+N53)/100)*('MU Budova 2'!F26+'MU Budova 2'!K26))<0,0,(N21+N32+N43+N53-((N21+N32+N43+N53)/100)*('MU Budova 2'!F26+'MU Budova 2'!K26))))) -> 0 | Q55: =IF('Rozpočet B2'!$B$11=Číselníky!A2,'Rozpočet B2'!N55,'Rozpočet B2'!N55/1.2) -> 0
A58: Upozornenia
A59: Každá samostatná budova reprezentuje samostatnú hlavnú aktivitu uvedenú v ŽoNPF. Pre každú samostatnú budovu sa predkladá samostatný Energetický audit, samostatná Projektová dokumentácia vrátane Energetického hodnotenia, samostatný rozpočet a samostatný hárok MU.
A60: V prípade potreby doplnenia ďalších výdavkov vložte riadky a ak relevantné skopírujte vzorce.
A61: V časti "Vecný popis výdavkov" špecifikujte jednotlivé výdavky z hľadiska ich predmetu, resp. rozsahu, prípadne nevyhnutnosti. Teda, ak výdavok pozostáva z viacerých položiek, je potrebné tieto položky v rámci vecného popisu výdavku bližšie špecifikovať, t. j. uviesť z akých položiek pozostáva cena výdavku vrátane výšky týchto položiek.
A62: V časti rozpočtu "Ostatné" zadajte stavebné výdavky, ktoré nie je možné priradiť k predchádzajúcim častiam rozpočtu (zateplenie plášťa, strechy, výmena okenných konštrukcií). Napr. výdavky na systém prípravy teplej vody, osvetlenia vrátane potrebného merania a riadenia a modernizácie príslušných rozvodov energie, inštaláciu systémov merania a riadenia, inštaláciu zariadení na využívanie OZE pre spotrebu v budove a pod.
A63: Dbajte prosím na súlad údajov uvedených v Rozpočte s údajmi uvedenými vo formulári ŽoNFP, ako aj v ďalších prílohách ŽoNFP.

Sheet Rozpočet B3 (hidden)
A2: Príloha ŽoNFP č. 6 - Dokumentácia k oprávnenosti výdavkov
A7: Rozpočet - Budova č. 3 | G7: =IF(G12="",""," - súpis. č. "&G12) -> 
A9: Názov žiadateľa: | B9: =IF('Rozpočet B1 - Value for Money'!B9:O9="","",'Rozpočet B1 - Value for Money'!B9:O9) -> Obec Podhorany
A10: Názov projektu: | B10: =IF('Rozpočet B1 - Value for Money'!B10:O10="","",'Rozpočet B1 - Value for Money'!B10:O10) -> Stavebné úpravy ZŠ Podhorany Zníženie spotreby energie pri prevádzke
A11: Je žiadateľ platcom DPH v rozsahu aktivity? | D11: Katastrálne územie | F11: LV číslo | G11: Súpisné číslo | I11: Právny vzťah
A12: Počet samostatných budov v ŽoNFP? | B12: =IF('Rozpočet B1 - Value for Money'!B12="","",'Rozpočet B1 - Value for Money'!B12) -> 1 | I12: =IF(O11=[4]Číselníky!G13,"Predložte súhlas všetkých podielových spoluvlastníkov stavby",IF(O11=[4]Číselníky!G14,"Predložte doklad oprávnujúci k výkonu správy budovy","")) -> 
A14: Zateplenie obvodového plášťa
A15: Cieľová hodnota zateplenej plochy obvodového plášťa v m2 | D15: m2
A16: Názov výdavku | B16: Skupina výdavkov | C16: Merná jednotka | D16: Počet jednotiek | E16: Jednotková cena bez DPH [EUR] | F16: Cena celkom bez DPH [EUR] | G16: Cena celkom s DPH [EUR] | H16: Celkový výdavok | I16: Výdavok nad referenčnú hodnotu | J16: Výdavok pri neakceptovaní prekročenia ref. hodnôt | K16: Schválenie / neschválenie prekročenia ref. hodnôt | L16: Výdavok po odčítaní vecne neoprávne. a/alebo neúčelných výdavkov | M16: Výdavok po odčítaní nehospodárnych výdavkov | N16: Výdavok po posúdení prekročenia referenčných hodnôt | O16: Vecný opis výdavku
A17: Položka č. 1 | B17: 021 Stavby | F17: =ROUND(D17*E17,2) -> 0 | G17: =ROUND(F17*1.2,2) -> 0 | H17: =IF($B$11="áno",F17,G17) -> 0 | L17: =H17 -> 0 | M17: =L17 -> 0 | N17: =IFERROR(ROUND(IF($K$21="nie",IF($M$21<=($C$15*100),M17,M17*$J$21/$M$21),M17),2),0) -> 0
A18: Položka č. 2 | B18: 021 Stavby | F18: =ROUND(D18*E18,2) -> 0 | G18: =ROUND(F18*1.2,2) -> 0 | H18: =IF($B$11="áno",F18,G18) -> 0 | L18: =H18 -> 0 | M18: =L18 -> 0 | N18: =IFERROR(ROUND(IF($K$21="nie",IF($M$21<=($C$15*100),M18,M18*$J$21/$M$21),M18),2),0) -> 0
A19: Položka č. 3 | B19: 021 Stavby | F19: =ROUND(D19*E19,2) -> 0 | G19: =ROUND(F19*1.2,2) -> 0 | H19: =IF($B$11="áno",F19,G19) -> 0 | L19: =H19 -> 0 | M19: =L19 -> 0 | N19: 0
A20: Položka č. n | B20: 021 Stavby | F20: =ROUND(D20*E20,2) -> 0 | G20: =ROUND(F20*1.2,2) -> 0 | H20: =IF($B$11="áno",F20,G20) -> 0 | L20: =H20 -> 0 | M20: =L20 -> 0 | N20: 0
A21: Spolu výdavky zateplenia obvodového plášťa | F21: =SUM(F17:F20) -> 0 | G21: =SUM(G17:G20) -> 0 | H21: =IF(OR(B11="",C15="",C15<=0,D12="",F12="",G12="",O11=""),0,SUM(H17:H20)) -> 0 | I21: =IF(OR(C15=0,B11=""),0,IF(F21>=C15*100,IF(B11="áno",F21-C15*100,G21-C15*100*1.2),0)) -> 0 | J21: =IF(OR(C15="",C15<=0,D12="",F12="",G12="",O11=""),0,H21-I21) -> 0 | L21: =IF(OR(B11="",C15="",C15<=0,D12="",F12="",G12="",O11=""),0,SUM(L17:L20)) -> 0 | M21: =IF(OR(B11="",C15="",C15<=0,D12="",F12="",G12="",O11=""),0,SUM(M17:M20)) -> 0 | N21: =IF(OR(B11="",C15="",C15<=0,D12="",F12="",G12="",O11=""),0,SUM(N17:N20)) -> 0
A22: =IF(C10*G10>=H21,"","Prekročenie referenčných hodnôt nebude bez akceptovaného zdôvodnenia schválené.") -> 
A23: Zdôvodnenie prekročenia referenčnej hodnoty pre obvodový plášť | B23: V prípade prekročenia stanovenej referenčnej hodnoty pre vybrané výdavky projektu je žiadateľ oprávnený toto prekročenie zdôvodniť. Žiadateľ v zdôvodnení uvedie výdavky, ktoré najvýznamnejšie vplývajú na prekročenie stanovenej referenčnej hodnoty a zdôvodní ich nevyhnutnosť. V prípade, že zdôvodnenie prekročenia stanovenej referenčnej hodnoty nebude predložené, resp. dostatočné alebo akceptované zo strany odborného hodnotiteľa ako odôvodniteľné, žiadané výdavky budú krátené na výšku stanovených referenčných hodnôt. Bližšie informácie týkajúce sa referenčných hodnôt a ich prekročenia sú uvedené v Prílohe č. 4 Výzvy - Osobitné podmienky oprávnenosti výdavkov.
A25: Zateplenie strešného plášťa
A26: Cieľová hodnota zateplenej plochy strešného plášťa v m2 | D26: m2
A27: Názov výdavku | B27: Skupina výdavkov | C27: Merná jednotka | D27: Počet jednotiek | E27: Jednotková cena bez DPH [EUR] | F27: Cena celkom bez DPH [EUR] | G27: Cena celkom s DPH [EUR] | H27: Celkový výdavok | I27: Výdavok nad referenčnú hodnotu | J27: Výdavok pri neakceptovaní prekročenia ref. hodnôt | K27: Schválenie / neschválenie prekročenia ref. hodnôt | L27: Výdavok po odčítaní vecne neoprávne. a/alebo neúčelných výdavkov | M27: Výdavok po odčítaní nehospodárnych výdavkov | N27: Výdavok po posúdení prekročenia referenčných hodnôt | O27: Vecný opis výdavku
A28: Položka č. 1 | B28: 021 Stavby | F28: =ROUND(D28*E28,2) -> 0 | G28: =ROUND(F28*1.2,2) -> 0 | H28: =IF($B$11="áno",F28,G28) -> 0 | L28: =H28 -> 0 | M28: =L28 -> 0 | N28: =IFERROR(ROUND(IF($K$32="nie",IF($M$32<=($C$26*80),M28,M28*$J$32/$M$32),M28),2),0) -> 0
A29: Položka č. 2 | B29: 021 Stavby | F29: =ROUND(D29*E29,2) -> 0 | G29: =ROUND(F29*1.2,2) -> 0 | H29: =IF($B$11="áno",F29,G29) -> 0 | L29: =H29 -> 0 | M29: =L29 -> 0 | N29: =IFERROR(ROUND(IF($K$32="nie",IF($M$32<=($C$26*80),M29,M29*$J$32/$M$32),M29),2),0) -> 0
A30: Položka č. 3 | B30: 021 Stavby | F30: =ROUND(D30*E30,2) -> 0 | G30: =ROUND(F30*1.2,2) -> 0 | H30: =IF($B$11="áno",F30,G30) -> 0 | L30: =H30 -> 0 | M30: =L30 -> 0 | N30: 0
A31: Položka č. n | B31: 021 Stavby | F31: =ROUND(D31*E31,2) -> 0 | G31: =ROUND(F31*1.2,2) -> 0 | H31: =IF($B$11="áno",F31,G31) -> 0 | L31: =H31 -> 0 | M31: =L31 -> 0 | N31: 0
A32: Spolu výdavky zateplenia strešného plášťa | F32: =SUM(F28:F31) -> 0 | G32: =SUM(G28:G31) -> 0 | H32: =IF(OR(B11="",C26="",C26<=0,D12="",F12="",G12="",O11=""),0,SUM(H28:H31)) -> 0 | I32: =IF(OR(C26=0,B11=""),0,IF(F32>=C26*80,IF(B11="áno",F32-C26*80,G32-C26*80*1.2),0)) -> 0 | J32: =IF(OR(C26="",C26<=0,D12="",F12="",G12="",O11=""),0,H32-I32) -> 0 | L32: =IF(OR(B11="",C26="",C26<=0,D12="",F12="",G12="",O11=""),0,SUM(L28:L31)) -> 0 | M32: =IF(OR(B11="",C26="",C26<=0,D12="",F12="",G12="",O11=""),0,SUM(M28:M31)) -> 0 | N32: =IF(OR(B11="",C26="",C26<=0,D12="",F12="",G12="",O11=""),0,SUM(N28:N31)) -> 0
A33: =IF(C21*G21>=H32,"","Prekročenie referenčných hodnôt nebude bez akceptovaného zdôvodnenia schválené.") -> 
A34: Zdôvodnenie prekročenia referenčnej hodnoty pre strešný plášť | B34: V prípade prekročenia stanovenej referenčnej hodnoty pre vybrané výdavky projektu je žiadateľ oprávnený toto prekročenie zdôvodniť. Žiadateľ v zdôvodnení uvedie výdavky, ktoré najvýznamnejšie vplývajú na prekročenie stanovenej referenčnej hodnoty a zdôvodní ich nevyhnutnosť. V prípade, že zdôvodnenie prekročenia stanovenej referenčnej hodnoty nebude predložené, resp. dostatočné alebo akceptované zo strany odborného hodnotiteľa ako odôvodniteľné, žiadané výdavky budú krátené na výšku stanovených referenčných hodnôt. Bližšie informácie týkajúce sa referenčných hodnôt a ich prekročenia sú uvedené v Prílohe č. 4 Výzvy - Osobitné podmienky oprávnenosti výdavkov.
A36: Výmena otvorových konštrukcií
A37: Cieľová hodnota výmeny otvorových konštrukcií v m2 | D37: m2
A38: Názov výdavku | B38: Skupina výdavkov | C38: Merná jednotka | D38: Počet jednotiek | E38: Jednotková cena bez DPH [EUR] | F38: Cena celkom bez DPH [EUR] | G38: Cena celkom s DPH [EUR] | H38: Celkový výdavok | I38: Výdavok nad referenčnú hodnotu | J38: Výdavok pri neakceptovaní prekročenia ref. hodnôt | K38: Schválenie / neschválenie prekročenia ref. hodnôt | L38: Výdavok po odčítaní vecne neoprávne. a/alebo neúčelných výdavkov | M38: Výdavok po odčítaní nehospodárnych výdavkov | N38: Výdavok po posúdení prekročenia referenčných hodnôt | O38: Vecný opis výdavku
A39: Položka č. 1 | B39: 021 Stavby | F39: =ROUND(D39*E39,2) -> 0 | G39: =ROUND(F39*1.2,2) -> 0 | H39: =IF($B$11="áno",F39,G39) -> 0 | L39: =H39 -> 0 | M39: =L39 -> 0 | N39: =IFERROR(ROUND(IF($K$43="nie",IF($M$43<=($C$37*400),M39,M39*$J$43/$M$43),M39),2),0) -> 0
A40: Položka č. 2 | B40: 021 Stavby | F40: =ROUND(D40*E40,2) -> 0 | G40: =ROUND(F40*1.2,2) -> 0 | H40: =IF($B$11="áno",F40,G40) -> 0 | L40: =H40 -> 0 | M40: =L40 -> 0 | N40: =IFERROR(ROUND(IF($K$43="nie",IF($M$43<=($C$37*400),M40,M40*$J$43/$M$43),M40),2),0) -> 0
A41: Položka č. 3 | B41: 021 Stavby | F41: =ROUND(D41*E41,2) -> 0 | G41: =ROUND(F41*1.2,2) -> 0 | H41: =IF($B$11="áno",F41,G41) -> 0 | L41: =H41 -> 0 | M41: =L41 -> 0 | N41: 0
A42: Položka č. n | B42: 021 Stavby | F42: =ROUND(D42*E42,2) -> 0 | G42: =ROUND(F42*1.2,2) -> 0 | H42: =IF($B$11="áno",F42,G42) -> 0 | L42: =H42 -> 0 | M42: =L42 -> 0 | N42: 0
A43: Spolu výdavky výmeny otvorových konštrukcií | F43: =SUM(F39:F42) -> 0 | G43: =SUM(G39:G42) -> 0 | H43: =IF(OR(B11="",C37="",C37<=0,D12="",F12="",G12="",O11=""),0,SUM(H39:H42)) -> 0 | I43: =IF(OR(C37=0,B11=""),0,IF(F43>=C37*400,IF(B11="áno",F43-C37*400,G43-C37*400*1.2),0)) -> 0 | J43: =IF(OR(C37="",C37<=0,D12="",F12="",G12="",O11=""),0,H43-I43) -> 0 | L43: =IF(OR(B11="",C37="",C37<=0,D12="",F12="",G12="",O11=""),0,SUM(L39:L42)) -> 0 | M43: =IF(OR(B11="",C37="",C37<=0,D12="",F12="",G12="",O11=""),0,SUM(M39:M42)) -> 0 | N43: =IF(OR(B11="",C37="",C37<=0,D12="",F12="",G12="",O11=""),0,SUM(N39:N42)) -> 0
A44: =IF(C32*G32>=H43,"","Prekročenie referenčných hodnôt nebude bez akceptovaného zdôvodnenia schválené.") -> 
A45: Zdôvodnenie prekročenia referenčnej hodnoty pre výmenu otvorových konštrukcií | B45: V prípade prekročenia stanovenej referenčnej hodnoty pre vybrané výdavky projektu je žiadateľ oprávnený toto prekročenie zdôvodniť. Žiadateľ v zdôvodnení uvedie výdavky, ktoré najvýznamnejšie vplývajú na prekročenie stanovenej referenčnej hodnoty a zdôvodní ich nevyhnutnosť. V prípade, že zdôvodnenie prekročenia stanovenej referenčnej hodnoty nebude predložené, resp. dostatočné alebo akceptované zo strany odborného hodnotiteľa ako odôvodniteľné, žiadané výdavky budú krátené na výšku stanovených referenčných hodnôt. Bližšie informácie týkajúce sa referenčných hodnôt a ich prekročenia sú uvedené v Prílohe č. 4 Výzvy - Osobitné podmienky oprávnenosti výdavkov.
A47: Ostatné
A48: Názov výdavku | B48: Skupina výdavkov | C48: Merná jednotka | D48: Počet jednotiek | E48: Jednotková cena bez DPH [EUR] | F48: Cena celkom bez DPH [EUR] | G48: Cena celkom s DPH [EUR] | H48: Celkový výdavok | I48: Výdavok nad referenčnú hodnotu | J48: Výdavok pri neakceptovaní prekročenia ref. hodnôt | K48: Stĺpec1 | L48: Výdavok po odčítaní vecne neoprávne. a/alebo neúčelných výdavkov | M48: Stĺpec2 | N48: Výdavok po odčítaní nehospodárnych výdavkov | O48: Vecný opis výdavku
A49: Položka č. 1 | B49: 021 Stavby | F49: =ROUND(D49*E49,2) -> 0 | G49: =ROUND(F49*1.2,2) -> 0 | H49: =IF($B$11="áno",F49,G49) -> 0 | L49: =H49 -> 0 | N49: =L49 -> 0
A50: Položka č. 2 | B50: 021 Stavby | F50: =ROUND(D50*E50,2) -> 0 | G50: =ROUND(F50*1.2,2) -> 0 | H50: =IF($B$11="áno",F50,G50) -> 0 | L50: =H50 -> 0 | N50: =L50 -> 0
A51: Položka č. 3 | B51: 021 Stavby | F51: =ROUND(D51*E51,2) -> 0 | G51: =ROUND(F51*1.2,2) -> 0 | H51: =IF($B$11="áno",F51,G51) -> 0 | L51: =H51 -> 0 | N51: =L51 -> 0
A52: Položka č. n | B52: 021 Stavby | F52: =ROUND(D52*E52,2) -> 0 | G52: =ROUND(F52*1.2,2) -> 0 | H52: =IF($B$11="áno",F52,G52) -> 0 | L52: =H52 -> 0 | N52: =L52 -> 0
A53: SPOLU výdavky ostatné | F53: =SUM(F49:F52) -> 0 | G53: =SUM(G49:G52) -> 0 | H53: =IF(OR(B11="",D12="",F12="",G12="",O11=""),0,SUM(H49:H52)) -> 0 | I53: RH sa pre skup. výdav. "Ostatné" neuplatňuje. | L53: =IF(OR(B11="",D12="",F12="",G12="",O11=""),0,SUM(L49:L52)) -> 0 | N53: =IF(OR(B11="",D12="",F12="",G12="",O11=""),0,SUM(N49:N52)) -> 0
A54: SPOLU Výdavky na budovu č. 3 | F54: =F21+F32+F43+F53 -> 0 | G54: =G21+G32+G43+G53 -> 0 | H54: =IF(OR('MU Budova 3'!O15=0,'MU Budova 3'!O16=0,'MU Budova 3'!O17=0,'MU Budova 3'!O18=0,'MU Budova 3'!O19=0,'MU Budova 3'!O13=0,'MU Budova 3'!O33=0,'MU Budova 3'!O34=0,'MU Budova 3'!O35=0,'MU Budova 3'!O36=0,'MU Budova 3'!O37=0,'MU Budova 3'!O38=0),0,H21+H32+H43+H53) -> 0 | I54: =REFa+REFb+REFc -> 0 | J54: =J21+J32+J43 -> 0 | L54: =IF(OR('MU Budova 3'!O15=0,'MU Budova 3'!O16=0,'MU Budova 3'!O17=0,'MU Budova 3'!O18=0,'MU Budova 3'!O19=0,'MU Budova 3'!O13=0,'MU Budova 3'!O33=0,'MU Budova 3'!O34=0,'MU Budova 3'!O35=0,'MU Budova 3'!O36=0,'MU Budova 3'!O37=0,'MU Budova 3'!O38=0),0,L21+L32+L43+L53) -> 0 | N54: =IF(OR('MU Budova 3'!O15=0,'MU Budova 3'!O16=0,'MU Budova 3'!O17=0,'MU Budova 3'!O18=0,'MU Budova 3'!O19=0,'MU Budova 3'!O13=0,'MU Budova 3'!O33=0,'MU Budova 3'!O34=0,'MU Budova 3'!O35=0,'MU Budova 3'!O36=0,'MU Budova 3'!O37=0,'MU Budova 3'!O38=0),0,N21+N32+N43+N53) -> 0
A55: SPOLU Výdavky na budovu č. 3 po prípadnom odpočítaní hospodárskej činnosti a nízkych úspor potreby energie na vykurovanie | H55: =IF(OR('MU Budova 3'!O15=0,'MU Budova 3'!O16=0,'MU Budova 3'!O17=0,'MU Budova 3'!O18=0,'MU Budova 3'!O19=0,'MU Budova 3'!O21=0,'MU Budova 3'!O22=0,'MU Budova 3'!O23=0,'MU Budova 3'!O13=0,'MU Budova 3'!O33=0,'MU Budova 3'!O34=0,'MU Budova 3'!O35=0,'MU Budova 3'!O36=0,'MU Budova 3'!O37=0,'MU Budova 3'!O38=0),0,IF(AND('MU Budova 3'!F26=0,'MU Budova 3'!K26=0),H21+H32+H43+H53,IF(H21+H32+H43+H53-(((H21+H32+H43+H53)/100)*('MU Budova 3'!F26+'MU Budova 3'!K26))<0,0,(H21+H32+H43+H53-((H21+H32+H43+H53)/100)*('MU Budova 3'!F26+'MU Budova 3'!K26))))) -> 0 | N55: =IF(OR('MU Budova 3'!O15=0,'MU Budova 3'!O16=0,'MU Budova 3'!O17=0,'MU Budova 3'!O18=0,'MU Budova 3'!O19=0,'MU Budova 3'!O21=0,'MU Budova 3'!O22=0,'MU Budova 3'!O23=0,'MU Budova 3'!O13=0,'MU Budova 3'!O33=0,'MU Budova 3'!O34=0,'MU Budova 3'!O35=0,'MU Budova 3'!O36=0,'MU Budova 3'!O37=0,'MU Budova 3'!O38=0),0,IF(AND('MU Budova 3'!F26=0,'MU Budova 3'!K26=0),N21+N32+N43+N53,IF(N21+N32+N43+N53-(((N21+N32+N43+N53)/100)*('MU Budova 3'!F26+'MU Budova 3'!K26))<0,0,(N21+N32+N43+N53-((N21+N32+N43+N53)/100)*('MU Budova 3'!F26+'MU Budova 3'!K26))))) -> 0 | Q55: =IF('Rozpočet B3'!$B$11=Číselníky!A2,'Rozpočet B3'!N55,'Rozpočet B3'!N55/1.2) -> 0
A58: Upozornenia
A59: Každá samostatná budova reprezentuje samostatnú hlavnú aktivitu uvedenú v ŽoNPF. Pre každú samostatnú budovu sa predkladá samostatný Energetický audit, samostatná Projektová dokumentácia vrátane Energetického hodnotenia, samostatný rozpočet a samostatný hárok MU.
A60: V prípade potreby doplnenia ďalších výdavkov vložte riadky a ak relevantné skopírujte vzorce.
A61: V časti "Vecný popis výdavkov" špecifikujte jednotlivé výdavky z hľadiska ich predmetu, resp. rozsahu, prípadne nevyhnutnosti. Teda, ak výdavok pozostáva z viacerých položiek, je potrebné tieto položky v rámci vecného popisu výdavku bližšie špecifikovať, t. j. uviesť z akých položiek pozostáva cena výdavku vrátane výšky týchto položiek.
A62: V časti rozpočtu "Ostatné" zadajte stavebné výdavky, ktoré nie je možné priradiť k predchádzajúcim častiam rozpočtu (zateplenie plášťa, strechy, výmena okenných konštrukcií). Napr. výdavky na systém prípravy teplej vody, osvetlenia vrátane potrebného merania a riadenia a modernizácie príslušných rozvodov energie, inštaláciu systémov merania a riadenia, inštaláciu zariadení na využívanie OZE pre spotrebu v budove a pod.
A63: Dbajte prosím na súlad údajov uvedených v Rozpočte s údajmi uvedenými vo formulári ŽoNFP, ako aj v ďalších prílohách ŽoNFP.

Sheet Rozpočet B4 (hidden)
A2: Príloha ŽoNFP č. 6 - Dokumentácia k oprávnenosti výdavkov
A7: Rozpočet - Budova č. 4 | G7: =IF(G12="",""," - súpis. č. "&G12) -> 
A9: Názov žiadateľa: | B9: =IF('Rozpočet B1 - Value for Money'!B9:O9="","",'Rozpočet B1 - Value for Money'!B9:O9) -> Obec Podhorany
A10: Názov projektu: | B10: =IF('Rozpočet B1 - Value for Money'!B10:O10="","",'Rozpočet B1 - Value for Money'!B10:O10) -> Stavebné úpravy ZŠ Podhorany Zníženie spotreby energie pri prevádzke
A11: Je žiadateľ platcom DPH v rozsahu aktivity? | D11: Katastrálne územie | F11: LV číslo | G11: Súpisné číslo | I11: Právny vzťah
A12: Počet samostatných budov v ŽoNFP? | B12: =IF('Rozpočet B1 - Value for Money'!B12="","",'Rozpočet B1 - Value for Money'!B12) -> 1 | I12: =IF(O11=[4]Číselníky!G13,"Predložte súhlas všetkých podielových spoluvlastníkov stavby",IF(O11=[4]Číselníky!G14,"Predložte doklad oprávnujúci k výkonu správy budovy","")) -> 
A14: Zateplenie obvodového plášťa
A15: Cieľová hodnota zateplenej plochy obvodového plášťa v m2 | D15: m2
A16: Názov výdavku | B16: Skupina výdavkov | C16: Merná jednotka | D16: Počet jednotiek | E16: Jednotková cena bez DPH [EUR] | F16: Cena celkom bez DPH [EUR] | G16: Cena celkom s DPH [EUR] | H16: Celkový výdavok | I16: Výdavok nad referenčnú hodnotu | J16: Výdavok pri neakceptovaní prekročenia ref. hodnôt | K16: Schválenie / neschválenie prekročenia ref. hodnôt | L16: Výdavok po odčítaní vecne neoprávne. a/alebo neúčelných výdavkov | M16: Výdavok po odčítaní nehospodárnych výdavkov | N16: Výdavok po posúdení prekročenia referenčných hodnôt | O16: Vecný opis výdavku
A17: Položka č. 1 | B17: 021 Stavby | F17: =ROUND(D17*E17,2) -> 0 | G17: =ROUND(F17*1.2,2) -> 0 | H17: =IF($B$11="áno",F17,G17) -> 0 | L17: =H17 -> 0 | M17: =L17 -> 0 | N17: =IFERROR(ROUND(IF($K$21="nie",IF($M$21<=($C$15*100),M17,M17*$J$21/$M$21),M17),2),0) -> 0
A18: Položka č. 2 | B18: 021 Stavby | F18: =ROUND(D18*E18,2) -> 0 | G18: =ROUND(F18*1.2,2) -> 0 | H18: =IF($B$11="áno",F18,G18) -> 0 | L18: =H18 -> 0 | M18: =L18 -> 0 | N18: =IFERROR(ROUND(IF($K$21="nie",IF($M$21<=($C$15*100),M18,M18*$J$21/$M$21),M18),2),0) -> 0
A19: Položka č. 3 | B19: 021 Stavby | F19: =ROUND(D19*E19,2) -> 0 | G19: =ROUND(F19*1.2,2) -> 0 | H19: =IF($B$11="áno",F19,G19) -> 0 | L19: =H19 -> 0 | M19: =L19 -> 0 | N19: 0
A20: Položka č. n | B20: 021 Stavby | F20: =ROUND(D20*E20,2) -> 0 | G20: =ROUND(F20*1.2,2) -> 0 | H20: =IF($B$11="áno",F20,G20) -> 0 | L20: =H20 -> 0 | M20: =L20 -> 0 | N20: 0
A21: Spolu výdavky zateplenia obvodového plášťa | F21: =SUM(F17:F20) -> 0 | G21: =SUM(G17:G20) -> 0 | H21: =IF(OR(B11="",C15="",C15<=0,D12="",F12="",G12="",O11=""),0,SUM(H17:H20)) -> 0 | I21: =IF(OR(C15=0,B11=""),0,IF(F21>=C15*100,IF(B11="áno",F21-C15*100,G21-C15*100*1.2),0)) -> 0 | J21: =IF(OR(C15="",C15<=0,D12="",F12="",G12="",O11=""),0,H21-I21) -> 0 | L21: =IF(OR(B11="",C15="",C15<=0,D12="",F12="",G12="",O11=""),0,SUM(L17:L20)) -> 0 | M21: =IF(OR(B11="",C15="",C15<=0,D12="",F12="",G12="",O11=""),0,SUM(M17:M20)) -> 0 | N21: =IF(OR(B11="",C15="",C15<=0,D12="",F12="",G12="",O11=""),0,SUM(N17:N20)) -> 0
A22: =IF(C10*G10>=H21,"","Prekročenie referenčných hodnôt nebude bez akceptovaného zdôvodnenia schválené.") -> 
A23: Zdôvodnenie prekročenia referenčnej hodnoty pre obvodový plášť | B23: V prípade prekročenia stanovenej referenčnej hodnoty pre vybrané výdavky projektu je žiadateľ oprávnený toto prekročenie zdôvodniť. Žiadateľ v zdôvodnení uvedie výdavky, ktoré najvýznamnejšie vplývajú na prekročenie stanovenej referenčnej hodnoty a zdôvodní ich nevyhnutnosť. V prípade, že zdôvodnenie prekročenia stanovenej referenčnej hodnoty nebude predložené, resp. dostatočné alebo akceptované zo strany odborného hodnotiteľa ako odôvodniteľné, žiadané výdavky budú krátené na výšku stanovených referenčných hodnôt. Bližšie informácie týkajúce sa referenčných hodnôt a ich prekročenia sú uvedené v Prílohe č. 4 Výzvy - Osobitné podmienky oprávnenosti výdavkov.
A25: Zateplenie strešného plášťa
A26: Cieľová hodnota zateplenej plochy strešného plášťa v m2 | D26: m2
A27: Názov výdavku | B27: Skupina výdavkov | C27: Merná jednotka | D27: Počet jednotiek | E27: Jednotková cena bez DPH [EUR] | F27: Cena celkom bez DPH [EUR] | G27: Cena celkom s DPH [EUR] | H27: Celkový výdavok | I27: Výdavok nad referenčnú hodnotu | J27: Výdavok pri neakceptovaní prekročenia ref. hodnôt | K27: Schválenie / neschválenie prekročenia ref. hodnôt | L27: Výdavok po odčítaní vecne neoprávne. a/alebo neúčelných výdavkov | M27: Výdavok po odčítaní nehospodárnych výdavkov | N27: Výdavok po posúdení prekročenia referenčných hodnôt | O27: Vecný opis výdavku
A28: Položka č. 1 | B28: 021 Stavby | F28: =ROUND(D28*E28,2) -> 0 | G28: =ROUND(F28*1.2,2) -> 0 | H28: =IF($B$11="áno",F28,G28) -> 0 | L28: =H28 -> 0 | M28: =L28 -> 0 | N28: =IFERROR(ROUND(IF($K$32="nie",IF($M$32<=($C$26*80),M28,M28*$J$32/$M$32),M28),2),0) -> 0
A29: Položka č. 2 | B29: 021 Stavby | F29: =ROUND(D29*E29,2) -> 0 | G29: =ROUND(F29*1.2,2) -> 0 | H29: =IF($B$11="áno",F29,G29) -> 0 | L29: =H29 -> 0 | M29: =L29 -> 0 | N29: =IFERROR(ROUND(IF($K$32="nie",IF($M$32<=($C$26*80),M29,M29*$J$32/$M$32),M29),2),0) -> 0
A30: Položka č. 3 | B30: 021 Stavby | F30: =ROUND(D30*E30,2) -> 0 | G30: =ROUND(F30*1.2,2) -> 0 | H30: =IF($B$11="áno",F30,G30) -> 0 | L30: =H30 -> 0 | M30: =L30 -> 0 | N30: 0
A31: Položka č. n | B31: 021 Stavby | F31: =ROUND(D31*E31,2) -> 0 | G31: =ROUND(F31*1.2,2) -> 0 | H31: =IF($B$11="áno",F31,G31) -> 0 | L31: =H31 -> 0 | M31: =L31 -> 0 | N31: 0
A32: Spolu výdavky zateplenia strešného plášťa | F32: =SUM(F28:F31) -> 0 | G32: =SUM(G28:G31) -> 0 | H32: =IF(OR(B11="",C26="",C26<=0,D12="",F12="",G12="",O11=""),0,SUM(H28:H31)) -> 0 | I32: =IF(OR(C26=0,B11=""),0,IF(F32>=C26*80,IF(B11="áno",F32-C26*80,G32-C26*80*1.2),0)) -> 0 | J32: =IF(OR(C26="",C26<=0,D12="",F12="",G12="",O11=""),0,H32-I32) -> 0 | L32: =IF(OR(B11="",C26="",C26<=0,D12="",F12="",G12="",O11=""),0,SUM(L28:L31)) -> 0 | M32: =IF(OR(B11="",C26="",C26<=0,D12="",F12="",G12="",O11=""),0,SUM(M28:M31)) -> 0 | N32: =IF(OR(B11="",C26="",C26<=0,D12="",F12="",G12="",O11=""),0,SUM(N28:N31)) -> 0
A33: =IF(C21*G21>=H32,"","Prekročenie referenčných hodnôt nebude bez akceptovaného zdôvodnenia schválené.") -> 
A34: Zdôvodnenie prekročenia referenčnej hodnoty pre strešný plášť | B34: V prípade prekročenia stanovenej referenčnej hodnoty pre vybrané výdavky projektu je žiadateľ oprávnený toto prekročenie zdôvodniť. Žiadateľ v zdôvodnení uvedie výdavky, ktoré najvýznamnejšie vplývajú na prekročenie stanovenej referenčnej hodnoty a zdôvodní ich nevyhnutnosť. V prípade, že zdôvodnenie prekročenia stanovenej referenčnej hodnoty nebude predložené, resp. dostatočné alebo akceptované zo strany odborného hodnotiteľa ako odôvodniteľné, žiadané výdavky budú krátené na výšku stanovených referenčných hodnôt. Bližšie informácie týkajúce sa referenčných hodnôt a ich prekročenia sú uvedené v Prílohe č. 4 Výzvy - Osobitné podmienky oprávnenosti výdavkov.
A36: Výmena otvorových konštrukcií
A37: Cieľová hodnota výmeny otvorových konštrukcií v m2 | D37: m2
A38: Názov výdavku | B38: Skupina výdavkov | C38: Merná jednotka | D38: Počet jednotiek | E38: Jednotková cena bez DPH [EUR] | F38: Cena celkom bez DPH [EUR] | G38: Cena celkom s DPH [EUR] | H38: Celkový výdavok | I38: Výdavok nad referenčnú hodnotu | J38: Výdavok pri neakceptovaní prekročenia ref. hodnôt | K38: Schválenie / neschválenie prekročenia ref. hodnôt | L38: Výdavok po odčítaní vecne neoprávne. a/alebo neúčelných výdavkov | M38: Výdavok po odčítaní nehospodárnych výdavkov | N38: Výdavok po posúdení prekročenia referenčných hodnôt | O38: Vecný opis výdavku
A39: Položka č. 1 | B39: 021 Stavby | F39: =ROUND(D39*E39,2) -> 0 | G39: =ROUND(F39*1.2,2) -> 0 | H39: =IF($B$11="áno",F39,G39) -> 0 | L39: =H39 -> 0 | M39: =L39 -> 0 | N39: =IFERROR(ROUND(IF($K$43="nie",IF($M$43<=($C$37*400),M39,M39*$J$43/$M$43),M39),2),0) -> 0
A40: Položka č. 2 | B40: 021 Stavby | F40: =ROUND(D40*E40,2) -> 0 | G40: =ROUND(F40*1.2,2) -> 0 | H40: =IF($B$11="áno",F40,G40) -> 0 | L40: =H40 -> 0 | M40: =L40 -> 0 | N40: =IFERROR(ROUND(IF($K$43="nie",IF($M$43<=($C$37*400),M40,M40*$J$43/$M$43),M40),2),0) -> 0
A41: Položka č. 3 | B41: 021 Stavby | F41: =ROUND(D41*E41,2) -> 0 | G41: =ROUND(F41*1.2,2) -> 0 | H41: =IF($B$11="áno",F41,G41) -> 0 | L41: =H41 -> 0 | M41: =L41 -> 0 | N41: 0
A42: Položka č. n | B42: 021 Stavby | F42: =ROUND(D42*E42,2) -> 0 | G42: =ROUND(F42*1.2,2) -> 0 | H42: =IF($B$11="áno",F42,G42) -> 0 | L42: =H42 -> 0 | M42: =L42 -> 0 | N42: 0
A43: Spolu výdavky výmeny otvorových konštrukcií | F43: =SUM(F39:F42) -> 0 | G43: =SUM(G39:G42) -> 0 | H43: =IF(OR(B11="",C37="",C37<=0,D12="",F12="",G12="",O11=""),0,SUM(H39:H42)) -> 0 | I43: =IF(OR(C37=0,B11=""),0,IF(F43>=C37*400,IF(B11="áno",F43-C37*400,G43-C37*400*1.2),0)) -> 0 | J43: =IF(OR(C37="",C37<=0,D12="",F12="",G12="",O11=""),0,H43-I43) -> 0 | L43: =IF(OR(B11="",C37="",C37<=0,D12="",F12="",G12="",O11=""),0,SUM(L39:L42)) -> 0 | M43: =IF(OR(B11="",C37="",C37<=0,D12="",F12="",G12="",O11=""),0,SUM(M39:M42)) -> 0 | N43: =IF(OR(B11="",C37="",C37<=0,D12="",F12="",G12="",O11=""),0,SUM(N39:N42)) -> 0
A44: =IF(C32*G32>=H43,"","Prekročenie referenčných hodnôt nebude bez akceptovaného zdôvodnenia schválené.") -> 
A45: Zdôvodnenie prekročenia referenčnej hodnoty pre výmenu otvorových konštrukcií | B45: V prípade prekročenia stanovenej referenčnej hodnoty pre vybrané výdavky projektu je žiadateľ oprávnený toto prekročenie zdôvodniť. Žiadateľ v zdôvodnení uvedie výdavky, ktoré najvýznamnejšie vplývajú na prekročenie stanovenej referenčnej hodnoty a zdôvodní ich nevyhnutnosť. V prípade, že zdôvodnenie prekročenia stanovenej referenčnej hodnoty nebude predložené, resp. dostatočné alebo akceptované zo strany odborného hodnotiteľa ako odôvodniteľné, žiadané výdavky budú krátené na výšku stanovených referenčných hodnôt. Bližšie informácie týkajúce sa referenčných hodnôt a ich prekročenia sú uvedené v Prílohe č. 4 Výzvy - Osobitné podmienky oprávnenosti výdavkov.
A47: Ostatné
A48: Názov výdavku | B48: Skupina výdavkov | C48: Merná jednotka | D48: Počet jednotiek | E48: Jednotková cena bez DPH [EUR] | F48: Cena celkom bez DPH [EUR] | G48: Cena celkom s DPH [EUR] | H48: Celkový výdavok | I48: Výdavok nad referenčnú hodnotu | J48: Výdavok pri neakceptovaní prekročenia ref. hodnôt | K48: Stĺpec1 | L48: Výdavok po odčítaní vecne neoprávne. a/alebo neúčelných výdavkov | M48: Stĺpec2 | N48: Výdavok po odčítaní nehospodárnych výdavkov | O48: Vecný opis výdavku
A49: Položka č. 1 | B49: 021 Stavby | F49: =ROUND(D49*E49,2) -> 0 | G49: =ROUND(F49*1.2,2) -> 0 | H49: =IF($B$11="áno",F49,G49) -> 0 | L49: =H49 -> 0 | N49: =L49 -> 0
A50: Položka č. 2 | B50: 021 Stavby | F50: =ROUND(D50*E50,2) -> 0 | G50: =ROUND(F50*1.2,2) -> 0 | H50: =IF($B$11="áno",F50,G50) -> 0 | L50: =H50 -> 0 | N50: =L50 -> 0
A51: Položka č. 3 | B51: 021 Stavby | F51: =ROUND(D51*E51,2) -> 0 | G51: =ROUND(F51*1.2,2) -> 0 | H51: =IF($B$11="áno",F51,G51) -> 0 | L51: =H51 -> 0 | N51: =L51 -> 0
A52: Položka č. n | B52: 021 Stavby | F52: =ROUND(D52*E52,2) -> 0 | G52: =ROUND(F52*1.2,2) -> 0 | H52: =IF($B$11="áno",F52,G52) -> 0 | L52: =H52 -> 0 | N52: =L52 -> 0
A53: SPOLU výdavky ostatné | F53: =SUM(F49:F52) -> 0 | G53: =SUM(G49:G52) -> 0 | H53: =IF(OR(B11="",D12="",F12="",G12="",O11=""),0,SUM(H49:H52)) -> 0 | I53: RH sa pre skup. výdav. "Ostatné" neuplatňuje. | L53: =IF(OR(B11="",D12="",F12="",G12="",O11=""),0,SUM(L49:L52)) -> 0 | N53: =IF(OR(B11="",D12="",F12="",G12="",O11=""),0,SUM(N49:N52)) -> 0
A54: SPOLU Výdavky na budovu č. 4 | F54: =F21+F32+F43+F53 -> 0 | G54: =G21+G32+G43+G53 -> 0 | H54: =IF(OR('MU Budova 4'!O15=0,'MU Budova 4'!O16=0,'MU Budova 4'!O17=0,'MU Budova 4'!O18=0,'MU Budova 4'!O19=0,'MU Budova 4'!O13=0,'MU Budova 4'!O33=0,'MU Budova 4'!O34=0,'MU Budova 4'!O35=0,'MU Budova 4'!O36=0,'MU Budova 4'!O37=0,'MU Budova 4'!O38=0),0,H21+H32+H43+H53) -> 0 | I54: =REFa+REFb+REFc -> 0 | J54: =J21+J32+J43 -> 0 | L54: =IF(OR('MU Budova 4'!O15=0,'MU Budova 4'!O16=0,'MU Budova 4'!O17=0,'MU Budova 4'!O18=0,'MU Budova 4'!O19=0,'MU Budova 4'!O13=0,'MU Budova 4'!O33=0,'MU Budova 4'!O34=0,'MU Budova 4'!O35=0,'MU Budova 4'!O36=0,'MU Budova 4'!O37=0,'MU Budova 4'!O38=0),0,L21+L32+L43+L53) -> 0 | N54: =IF(OR('MU Budova 4'!O15=0,'MU Budova 4'!O16=0,'MU Budova 4'!O17=0,'MU Budova 4'!O18=0,'MU Budova 4'!O19=0,'MU Budova 4'!O13=0,'MU Budova 4'!O33=0,'MU Budova 4'!O34=0,'MU Budova 4'!O35=0,'MU Budova 4'!O36=0,'MU Budova 4'!O37=0,'MU Budova 4'!O38=0),0,N21+N32+N43+N53) -> 0
A55: SPOLU Výdavky na budovu č. 4 po prípadnom odpočítaní hospodárskej činnosti a nízkych úspor potreby energie na vykurovanie | H55: =IF(OR('MU Budova 4'!O15=0,'MU Budova 4'!O16=0,'MU Budova 4'!O17=0,'MU Budova 4'!O18=0,'MU Budova 4'!O19=0,'MU Budova 4'!O21=0,'MU Budova 4'!O22=0,'MU Budova 4'!O23=0,'MU Budova 4'!O13=0,'MU Budova 4'!O33=0,'MU Budova 4'!O34=0,'MU Budova 4'!O35=0,'MU Budova 4'!O36=0,'MU Budova 4'!O37=0,'MU Budova 4'!O38=0),0,IF(AND('MU Budova 4'!F26=0,'MU Budova 4'!K26=0),H21+H32+H43+H53,IF(H21+H32+H43+H53-(((H21+H32+H43+H53)/100)*('MU Budova 4'!F26+'MU Budova 4'!K26))<0,0,(H21+H32+H43+H53-((H21+H32+H43+H53)/100)*('MU Budova 4'!F26+'MU Budova 4'!K26))))) -> 0 | N55: =IF(OR('MU Budova 4'!O15=0,'MU Budova 4'!O16=0,'MU Budova 4'!O17=0,'MU Budova 4'!O18=0,'MU Budova 4'!O19=0,'MU Budova 4'!O21=0,'MU Budova 4'!O22=0,'MU Budova 4'!O23=0,'MU Budova 4'!O13=0,'MU Budova 4'!O33=0,'MU Budova 4'!O34=0,'MU Budova 4'!O35=0,'MU Budova 4'!O36=0,'MU Budova 4'!O37=0,'MU Budova 4'!O38=0),0,IF(AND('MU Budova 4'!F26=0,'MU Budova 4'!K26=0),N21+N32+N43+N53,IF(N21+N32+N43+N53-(((N21+N32+N43+N53)/100)*('MU Budova 4'!F26+'MU Budova 4'!K26))<0,0,(N21+N32+N43+N53-((N21+N32+N43+N53)/100)*('MU Budova 4'!F26+'MU Budova 4'!K26))))) -> 0 | Q55: =IF('Rozpočet B4'!$B$11=Číselníky!A2,'Rozpočet B4'!N55,'Rozpočet B4'!N55/1.2) -> 0
A58: Upozornenia
A59: Každá samostatná budova reprezentuje samostatnú hlavnú aktivitu uvedenú v ŽoNPF. Pre každú samostatnú budovu sa predkladá samostatný Energetický audit, samostatná Projektová dokumentácia vrátane Energetického hodnotenia, samostatný rozpočet a samostatný hárok MU.
A60: V prípade potreby doplnenia ďalších výdavkov vložte riadky a ak relevantné skopírujte vzorce.
A61: V časti "Vecný popis výdavkov" špecifikujte jednotlivé výdavky z hľadiska ich predmetu, resp. rozsahu, prípadne nevyhnutnosti. Teda, ak výdavok pozostáva z viacerých položiek, je potrebné tieto položky v rámci vecného popisu výdavku bližšie špecifikovať, t. j. uviesť z akých položiek pozostáva cena výdavku vrátane výšky týchto položiek.
A62: V časti rozpočtu "Ostatné" zadajte stavebné výdavky, ktoré nie je možné priradiť k predchádzajúcim častiam rozpočtu (zateplenie plášťa, strechy, výmena okenných konštrukcií). Napr. výdavky na systém prípravy teplej vody, osvetlenia vrátane potrebného merania a riadenia a modernizácie príslušných rozvodov energie, inštaláciu systémov merania a riadenia, inštaláciu zariadení na využívanie OZE pre spotrebu v budove a pod.
A63: Dbajte prosím na súlad údajov uvedených v Rozpočte s údajmi uvedenými vo formulári ŽoNFP, ako aj v ďalších prílohách ŽoNFP.

Sheet Rozpočet B5 (hidden)
A2: Príloha ŽoNFP č. 6 - Dokumentácia k oprávnenosti výdavkov
A7: Rozpočet - Budova č. 5 | G7: =IF(G12="",""," - súpis. č. "&G12) -> 
A9: Názov žiadateľa: | B9: =IF('Rozpočet B1 - Value for Money'!B9:O9="","",'Rozpočet B1 - Value for Money'!B9:O9) -> Obec Podhorany
A10: Názov projektu: | B10: =IF('Rozpočet B1 - Value for Money'!B10:O10="","",'Rozpočet B1 - Value for Money'!B10:O10) -> Stavebné úpravy ZŠ Podhorany Zníženie spotreby energie pri prevádzke
A11: Je žiadateľ platcom DPH v rozsahu aktivity? | D11: Katastrálne územie | F11: LV číslo | G11: Súpisné číslo | I11: Právny vzťah
A12: Počet samostatných budov v ŽoNFP? | B12: =IF('Rozpočet B1 - Value for Money'!B12="","",'Rozpočet B1 - Value for Money'!B12) -> 1 | I12: =IF(O11=[4]Číselníky!G13,"Predložte súhlas všetkých podielových spoluvlastníkov stavby",IF(O11=[4]Číselníky!G14,"Predložte doklad oprávnujúci k výkonu správy budovy","")) -> 
A14: Zateplenie obvodového plášťa
A15: Cieľová hodnota zateplenej plochy obvodového plášťa v m2 | D15: m2
A16: Názov výdavku | B16: Skupina výdavkov | C16: Merná jednotka | D16: Počet jednotiek | E16: Jednotková cena bez DPH [EUR] | F16: Cena celkom bez DPH [EUR] | G16: Cena celkom s DPH [EUR] | H16: Celkový výdavok | I16: Výdavok nad referenčnú hodnotu | J16: Výdavok pri neakceptovaní prekročenia ref. hodnôt | K16: Schválenie / neschválenie prekročenia ref. hodnôt | L16: Výdavok po odčítaní vecne neoprávne. a/alebo neúčelných výdavkov | M16: Výdavok po odčítaní nehospodárnych výdavkov | N16: Výdavok po posúdení prekročenia referenčných hodnôt | O16: Vecný opis výdavku
A17: Položka č. 1 | B17: 021 Stavby | F17: =ROUND(D17*E17,2) -> 0 | G17: =ROUND(F17*1.2,2) -> 0 | H17: =IF($B$11="áno",F17,G17) -> 0 | L17: =H17 -> 0 | M17: =L17 -> 0 | N17: =IFERROR(ROUND(IF($K$21="nie",IF($M$21<=($C$15*100),M17,M17*$J$21/$M$21),M17),2),0) -> 0
A18: Položka č. 2 | B18: 021 Stavby | F18: =ROUND(D18*E18,2) -> 0 | G18: =ROUND(F18*1.2,2) -> 0 | H18: =IF($B$11="áno",F18,G18) -> 0 | L18: =H18 -> 0 | M18: =L18 -> 0 | N18: =IFERROR(ROUND(IF($K$21="nie",IF($M$21<=($C$15*100),M18,M18*$J$21/$M$21),M18),2),0) -> 0
A19: Položka č. 3 | B19: 021 Stavby | F19: =ROUND(D19*E19,2) -> 0 | G19: =ROUND(F19*1.2,2) -> 0 | H19: =IF($B$11="áno",F19,G19) -> 0 | L19: =H19 -> 0 | M19: =L19 -> 0 | N19: 0
A20: Položka č. n | B20: 021 Stavby | F20: =ROUND(D20*E20,2) -> 0 | G20: =ROUND(F20*1.2,2) -> 0 | H20: =IF($B$11="áno",F20,G20) -> 0 | L20: =H20 -> 0 | M20: =L20 -> 0 | N20: 0
A21: Spolu výdavky zateplenia obvodového plášťa | F21: =SUM(F17:F20) -> 0 | G21: =SUM(G17:G20) -> 0 | H21: =IF(OR(B11="",C15="",C15<=0,D12="",F12="",G12="",O11=""),0,SUM(H17:H20)) -> 0 | I21: =IF(OR(C15=0,B11=""),0,IF(F21>=C15*100,IF(B11="áno",F21-C15*100,G21-C15*100*1.2),0)) -> 0 | J21: =IF(OR(C15="",C15<=0,D12="",F12="",G12="",O11=""),0,H21-I21) -> 0 | L21: =IF(OR(B11="",C15="",C15<=0,D12="",F12="",G12="",O11=""),0,SUM(L17:L20)) -> 0 | M21: =IF(OR(B11="",C15="",C15<=0,D12="",F12="",G12="",O11=""),0,SUM(M17:M20)) -> 0 | N21: =IF(OR(B11="",C15="",C15<=0,D12="",F12="",G12="",O11=""),0,SUM(N17:N20)) -> 0
A22: =IF(C10*G10>=H21,"","Prekročenie referenčných hodnôt nebude bez akceptovaného zdôvodnenia schválené.") -> 
A23: Zdôvodnenie prekročenia referenčnej hodnoty pre obvodový plášť | B23: V prípade prekročenia stanovenej referenčnej hodnoty pre vybrané výdavky projektu je žiadateľ oprávnený toto prekročenie zdôvodniť. Žiadateľ v zdôvodnení uvedie výdavky, ktoré najvýznamnejšie vplývajú na prekročenie stanovenej referenčnej hodnoty a zdôvodní ich nevyhnutnosť. V prípade, že zdôvodnenie prekročenia stanovenej referenčnej hodnoty nebude predložené, resp. dostatočné alebo akceptované zo strany odborného hodnotiteľa ako odôvodniteľné, žiadané výdavky budú krátené na výšku stanovených referenčných hodnôt. Bližšie informácie týkajúce sa referenčných hodnôt a ich prekročenia sú uvedené v Prílohe č. 4 Výzvy - Osobitné podmienky oprávnenosti výdavkov.
A25: Zateplenie strešného plášťa
A26: Cieľová hodnota zateplenej plochy strešného plášťa v m2 | D26: m2
A27: Názov výdavku | B27: Skupina výdavkov | C27: Merná jednotka | D27: Počet jednotiek | E27: Jednotková cena bez DPH [EUR] | F27: Cena celkom bez DPH [EUR] | G27: Cena celkom s DPH [EUR] | H27: Celkový výdavok | I27: Výdavok nad referenčnú hodnotu | J27: Výdavok pri neakceptovaní prekročenia ref. hodnôt | K27: Schválenie / neschválenie prekročenia ref. hodnôt | L27: Výdavok po odčítaní vecne neoprávne. a/alebo neúčelných výdavkov | M27: Výdavok po odčítaní nehospodárnych výdavkov | N27: Výdavok po posúdení prekročenia referenčných hodnôt | O27: Vecný opis výdavku
A28: Položka č. 1 | B28: 021 Stavby | F28: =ROUND(D28*E28,2) -> 0 | G28: =ROUND(F28*1.2,2) -> 0 | H28: =IF($B$11="áno",F28,G28) -> 0 | L28: =H28 -> 0 | M28: =L28 -> 0 | N28: =IFERROR(ROUND(IF($K$32="nie",IF($M$32<=($C$26*80),M28,M28*$J$32/$M$32),M28),2),0) -> 0
A29: Položka č. 2 | B29: 021 Stavby | F29: =ROUND(D29*E29,2) -> 0 | G29: =ROUND(F29*1.2,2) -> 0 | H29: =IF($B$11="áno",F29,G29) -> 0 | L29: =H29 -> 0 | M29: =L29 -> 0 | N29: =IFERROR(ROUND(IF($K$32="nie",IF($M$32<=($C$26*80),M29,M29*$J$32/$M$32),M29),2),0) -> 0
A30: Položka č. 3 | B30: 021 Stavby | F30: =ROUND(D30*E30,2) -> 0 | G30: =ROUND(F30*1.2,2) -> 0 | H30: =IF($B$11="áno",F30,G30) -> 0 | L30: =H30 -> 0 | M30: =L30 -> 0 | N30: 0
A31: Položka č. n | B31: 021 Stavby | F31: =ROUND(D31*E31,2) -> 0 | G31: =ROUND(F31*1.2,2) -> 0 | H31: =IF($B$11="áno",F31,G31) -> 0 | L31: =H31 -> 0 | M31: =L31 -> 0 | N31: 0
A32: Spolu výdavky zateplenia strešného plášťa | F32: =SUM(F28:F31) -> 0 | G32: =SUM(G28:G31) -> 0 | H32: =IF(OR(B11="",C26="",C26<=0,D12="",F12="",G12="",O11=""),0,SUM(H28:H31)) -> 0 | I32: =IF(OR(C26=0,B11=""),0,IF(F32>=C26*80,IF(B11="áno",F32-C26*80,G32-C26*80*1.2),0)) -> 0 | J32: =IF(OR(C26="",C26<=0,D12="",F12="",G12="",O11=""),0,H32-I32) -> 0 | L32: =IF(OR(B11="",C26="",C26<=0,D12="",F12="",G12="",O11=""),0,SUM(L28:L31)) -> 0 | M32: =IF(OR(B11="",C26="",C26<=0,D12="",F12="",G12="",O11=""),0,SUM(M28:M31)) -> 0 | N32: =IF(OR(B11="",C26="",C26<=0,D12="",F12="",G12="",O11=""),0,SUM(N28:N31)) -> 0
A33: =IF(C21*G21>=H32,"","Prekročenie referenčných hodnôt nebude bez akceptovaného zdôvodnenia schválené.") -> 
A34: Zdôvodnenie prekročenia referenčnej hodnoty pre strešný plášť | B34: V prípade prekročenia stanovenej referenčnej hodnoty pre vybrané výdavky projektu je žiadateľ oprávnený toto prekročenie zdôvodniť. Žiadateľ v zdôvodnení uvedie výdavky, ktoré najvýznamnejšie vplývajú na prekročenie stanovenej referenčnej hodnoty a zdôvodní ich nevyhnutnosť. V prípade, že zdôvodnenie prekročenia stanovenej referenčnej hodnoty nebude predložené, resp. dostatočné alebo akceptované zo strany odborného hodnotiteľa ako odôvodniteľné, žiadané výdavky budú krátené na výšku stanovených referenčných hodnôt. Bližšie informácie týkajúce sa referenčných hodnôt a ich prekročenia sú uvedené v Prílohe č. 4 Výzvy - Osobitné podmienky oprávnenosti výdavkov.
A36: Výmena otvorových konštrukcií
A37: Cieľová hodnota výmeny otvorových konštrukcií v m2 | D37: m2
A38: Názov výdavku | B38: Skupina výdavkov | C38: Merná jednotka | D38: Počet jednotiek | E38: Jednotková cena bez DPH [EUR] | F38: Cena celkom bez DPH [EUR] | G38: Cena celkom s DPH [EUR] | H38: Celkový výdavok | I38: Výdavok nad referenčnú hodnotu | J38: Výdavok pri neakceptovaní prekročenia ref. hodnôt | K38: Schválenie / neschválenie prekročenia ref. hodnôt | L38: Výdavok po odčítaní vecne neoprávne. a/alebo neúčelných výdavkov | M38: Výdavok po odčítaní nehospodárnych výdavkov | N38: Výdavok po posúdení prekročenia referenčných hodnôt | O38: Vecný opis výdavku
A39: Položka č. 1 | B39: 021 Stavby | F39: =ROUND(D39*E39,2) -> 0 | G39: =ROUND(F39*1.2,2) -> 0 | H39: =IF($B$11="áno",F39,G39) -> 0 | L39: =H39 -> 0 | M39: =L39 -> 0 | N39: =IFERROR(ROUND(IF($K$43="nie",IF($M$43<=($C$37*400),M39,M39*$J$43/$M$43),M39),2),0) -> 0
A40: Položka č. 2 | B40: 021 Stavby | F40: =ROUND(D40*E40,2) -> 0 | G40: =ROUND(F40*1.2,2) -> 0 | H40: =IF($B$11="áno",F40,G40) -> 0 | L40: =H40 -> 0 | M40: =L40 -> 0 | N40: =IFERROR(ROUND(IF($K$43="nie",IF($M$43<=($C$37*400),M40,M40*$J$43/$M$43),M40),2),0) -> 0
A41: Položka č. 3 | B41: 021 Stavby | F41: =ROUND(D41*E41,2) -> 0 | G41: =ROUND(F41*1.2,2) -> 0 | H41: =IF($B$11="áno",F41,G41) -> 0 | L41: =H41 -> 0 | M41: =L41 -> 0 | N41: 0
A42: Položka č. n | B42: 021 Stavby | F42: =ROUND(D42*E42,2) -> 0 | G42: =ROUND(F42*1.2,2) -> 0 | H42: =IF($B$11="áno",F42,G42) -> 0 | L42: =H42 -> 0 | M42: =L42 -> 0 | N42: 0
A43: Spolu výdavky výmeny otvorových konštrukcií | F43: =SUM(F39:F42) -> 0 | G43: =SUM(G39:G42) -> 0 | H43: =IF(OR(B11="",C37="",C37<=0,D12="",F12="",G12="",O11=""),0,SUM(H39:H42)) -> 0 | I43: =IF(OR(C37=0,B11=""),0,IF(F43>=C37*400,IF(B11="áno",F43-C37*400,G43-C37*400*1.2),0)) -> 0 | J43: =IF(OR(C37="",C37<=0,D12="",F12="",G12="",O11=""),0,H43-I43) -> 0 | L43: =IF(OR(B11="",C37="",C37<=0,D12="",F12="",G12="",O11=""),0,SUM(L39:L42)) -> 0 | M43: =IF(OR(B11="",C37="",C37<=0,D12="",F12="",G12="",O11=""),0,SUM(M39:M42)) -> 0 | N43: =IF(OR(B11="",C37="",C37<=0,D12="",F12="",G12="",O11=""),0,SUM(N39:N42)) -> 0
A44: =IF(C32*G32>=H43,"","Prekročenie referenčných hodnôt nebude bez akceptovaného zdôvodnenia schválené.") -> 
A45: Zdôvodnenie prekročenia referenčnej hodnoty pre výmenu otvorových konštrukcií | B45: V prípade prekročenia stanovenej referenčnej hodnoty pre vybrané výdavky projektu je žiadateľ oprávnený toto prekročenie zdôvodniť. Žiadateľ v zdôvodnení uvedie výdavky, ktoré najvýznamnejšie vplývajú na prekročenie stanovenej referenčnej hodnoty a zdôvodní ich nevyhnutnosť. V prípade, že zdôvodnenie prekročenia stanovenej referenčnej hodnoty nebude predložené, resp. dostatočné alebo akceptované zo strany odborného hodnotiteľa ako odôvodniteľné, žiadané výdavky budú krátené na výšku stanovených referenčných hodnôt. Bližšie informácie týkajúce sa referenčných hodnôt a ich prekročenia sú uvedené v Prílohe č. 4 Výzvy - Osobitné podmienky oprávnenosti výdavkov.
A47: Ostatné
A48: Názov výdavku | B48: Skupina výdavkov | C48: Merná jednotka | D48: Počet jednotiek | E48: Jednotková cena bez DPH [EUR] | F48: Cena celkom bez DPH [EUR] | G48: Cena celkom s DPH [EUR] | H48: Celkový výdavok | I48: Výdavok nad referenčnú hodnotu | J48: Výdavok pri neakceptovaní prekročenia ref. hodnôt | K48: Stĺpec1 | L48: Výdavok po odčítaní vecne neoprávne. a/alebo neúčelných výdavkov | M48: Stĺpec2 | N48: Výdavok po odčítaní nehospodárnych výdavkov | O48: Vecný opis výdavku
A49: Položka č. 1 | B49: 021 Stavby | F49: =ROUND(D49*E49,2) -> 0 | G49: =ROUND(F49*1.2,2) -> 0 | H49: =IF($B$11="áno",F49,G49) -> 0 | L49: =H49 -> 0 | N49: =L49 -> 0
A50: Položka č. 2 | B50: 021 Stavby | F50: =ROUND(D50*E50,2) -> 0 | G50: =ROUND(F50*1.2,2) -> 0 | H50: =IF($B$11="áno",F50,G50) -> 0 | L50: =H50 -> 0 | N50: =L50 -> 0
A51: Položka č. 3 | B51: 021 Stavby | F51: =ROUND(D51*E51,2) -> 0 | G51: =ROUND(F51*1.2,2) -> 0 | H51: =IF($B$11="áno",F51,G51) -> 0 | L51: =H51 -> 0 | N51: =L51 -> 0
A52: Položka č. n | B52: 021 Stavby | F52: =ROUND(D52*E52,2) -> 0 | G52: =ROUND(F52*1.2,2) -> 0 | H52: =IF($B$11="áno",F52,G52) -> 0 | L52: =H52 -> 0 | N52: =L52 -> 0
A53: SPOLU výdavky ostatné | F53: =SUM(F49:F52) -> 0 | G53: =SUM(G49:G52) -> 0 | H53: =IF(OR(B11="",D12="",F12="",G12="",O11=""),0,SUM(H49:H52)) -> 0 | I53: RH sa pre skup. výdav. "Ostatné" neuplatňuje. | L53: =IF(OR(B11="",D12="",F12="",G12="",O11=""),0,SUM(L49:L52)) -> 0 | N53: =IF(OR(B11="",D12="",F12="",G12="",O11=""),0,SUM(N49:N52)) -> 0
A54: SPOLU Výdavky na budovu č. 5 | F54: =F21+F32+F43+F53 -> 0 | G54: =G21+G32+G43+G53 -> 0 | H54: =IF(OR('MU Budova 5'!O15=0,'MU Budova 5'!O16=0,'MU Budova 5'!O17=0,'MU Budova 5'!O18=0,'MU Budova 5'!O19=0,'MU Budova 5'!O13=0,'MU Budova 5'!O33=0,'MU Budova 5'!O34=0,'MU Budova 5'!O35=0,'MU Budova 5'!O36=0,'MU Budova 5'!O37=0,'MU Budova 5'!O38=0),0,H21+H32+H43+H53) -> 0 | I54: =REFa+REFb+REFc -> 0 | J54: =J21+J32+J43 -> 0 | L54: =IF(OR('MU Budova 5'!O15=0,'MU Budova 5'!O16=0,'MU Budova 5'!O17=0,'MU Budova 5'!O18=0,'MU Budova 5'!O19=0,'MU Budova 5'!O13=0,'MU Budova 5'!O33=0,'MU Budova 5'!O34=0,'MU Budova 5'!O35=0,'MU Budova 5'!O36=0,'MU Budova 5'!O37=0,'MU Budova 5'!O38=0),0,L21+L32+L43+L53) -> 0 | N54: =IF(OR('MU Budova 5'!O15=0,'MU Budova 5'!O16=0,'MU Budova 5'!O17=0,'MU Budova 5'!O18=0,'MU Budova 5'!O19=0,'MU Budova 5'!O13=0,'MU Budova 5'!O33=0,'MU Budova 5'!O34=0,'MU Budova 5'!O35=0,'MU Budova 5'!O36=0,'MU Budova 5'!O37=0,'MU Budova 5'!O38=0),0,N21+N32+N43+N53) -> 0
A55: SPOLU Výdavky na budovu č. 5 po prípadnom odpočítaní hospodárskej činnosti a nízkych úspor potreby energie na vykurovanie | H55: =IF(OR('MU Budova 5'!O15=0,'MU Budova 5'!O16=0,'MU Budova 5'!O17=0,'MU Budova 5'!O18=0,'MU Budova 5'!O19=0,'MU Budova 5'!O21=0,'MU Budova 5'!O22=0,'MU Budova 5'!O23=0,'MU Budova 5'!O13=0,'MU Budova 5'!O33=0,'MU Budova 5'!O34=0,'MU Budova 5'!O35=0,'MU Budova 5'!O36=0,'MU Budova 5'!O37=0,'MU Budova 5'!O38=0),0,IF(AND('MU Budova 5'!F26=0,'MU Budova 5'!K26=0),H21+H32+H43+H53,IF(H21+H32+H43+H53-(((H21+H32+H43+H53)/100)*('MU Budova 5'!F26+'MU Budova 5'!K26))<0,0,(H21+H32+H43+H53-((H21+H32+H43+H53)/100)*('MU Budova 5'!F26+'MU Budova 5'!K26))))) -> 0 | N55: =IF(OR('MU Budova 5'!O15=0,'MU Budova 5'!O16=0,'MU Budova 5'!O17=0,'MU Budova 5'!O18=0,'MU Budova 5'!O19=0,'MU Budova 5'!O21=0,'MU Budova 5'!O22=0,'MU Budova 5'!O23=0,'MU Budova 5'!O13=0,'MU Budova 5'!O33=0,'MU Budova 5'!O34=0,'MU Budova 5'!O35=0,'MU Budova 5'!O36=0,'MU Budova 5'!O37=0,'MU Budova 5'!O38=0),0,IF(AND('MU Budova 5'!F26=0,'MU Budova 5'!K26=0),N21+N32+N43+N53,IF(N21+N32+N43+N53-(((N21+N32+N43+N53)/100)*('MU Budova 5'!F26+'MU Budova 5'!K26))<0,0,(N21+N32+N43+N53-((N21+N32+N43+N53)/100)*('MU Budova 5'!F26+'MU Budova 5'!K26))))) -> 0 | Q55: =IF('Rozpočet B5'!$B$11=Číselníky!A2,'Rozpočet B5'!N55,'Rozpočet B5'!N55/1.2) -> 0
A58: Upozornenia
A59: Každá samostatná budova reprezentuje samostatnú hlavnú aktivitu uvedenú v ŽoNPF. Pre každú samostatnú budovu sa predkladá samostatný Energetický audit, samostatná Projektová dokumentácia vrátane Energetického hodnotenia, samostatný rozpočet a samostatný hárok MU.
A60: V prípade potreby doplnenia ďalších výdavkov vložte riadky a ak relevantné skopírujte vzorce.
A61: V časti "Vecný popis výdavkov" špecifikujte jednotlivé výdavky z hľadiska ich predmetu, resp. rozsahu, prípadne nevyhnutnosti. Teda, ak výdavok pozostáva z viacerých položiek, je potrebné tieto položky v rámci vecného popisu výdavku bližšie špecifikovať, t. j. uviesť z akých položiek pozostáva cena výdavku vrátane výšky týchto položiek.
A62: V časti rozpočtu "Ostatné" zadajte stavebné výdavky, ktoré nie je možné priradiť k predchádzajúcim častiam rozpočtu (zateplenie plášťa, strechy, výmena okenných konštrukcií). Napr. výdavky na systém prípravy teplej vody, osvetlenia vrátane potrebného merania a riadenia a modernizácie príslušných rozvodov energie, inštaláciu systémov merania a riadenia, inštaláciu zariadení na využívanie OZE pre spotrebu v budove a pod.
A63: Dbajte prosím na súlad údajov uvedených v Rozpočte s údajmi uvedenými vo formulári ŽoNFP, ako aj v ďalších prílohách ŽoNFP.

Sheet Rozpočet B6 (hidden)
A2: Príloha ŽoNFP č. 6 - Dokumentácia k oprávnenosti výdavkov
A7: Rozpočet - Budova č. 6 | G7: =IF(G12="",""," - súpis. č. "&G12) -> 
A9: Názov žiadateľa: | B9: =IF('Rozpočet B1 - Value for Money'!B9:O9="","",'Rozpočet B1 - Value for Money'!B9:O9) -> Obec Podhorany
A10: Názov projektu: | B10: =IF('Rozpočet B1 - Value for Money'!B10:O10="","",'Rozpočet B1 - Value for Money'!B10:O10) -> Stavebné úpravy ZŠ Podhorany Zníženie spotreby energie pri prevádzke
A11: Je žiadateľ platcom DPH v rozsahu aktivity? | D11: Katastrálne územie | F11: LV číslo | G11: Súpisné číslo | I11: Právny vzťah
A12: Počet samostatných budov v ŽoNFP? | B12: =IF('Rozpočet B1 - Value for Money'!B12="","",'Rozpočet B1 - Value for Money'!B12) -> 1 | I12: =IF(O11=[4]Číselníky!G13,"Predložte súhlas všetkých podielových spoluvlastníkov stavby",IF(O11=[4]Číselníky!G14,"Predložte doklad oprávnujúci k výkonu správy budovy","")) -> 
A14: Zateplenie obvodového plášťa
A15: Cieľová hodnota zateplenej plochy obvodového plášťa v m2 | D15: m2
A16: Názov výdavku | B16: Skupina výdavkov | C16: Merná jednotka | D16: Počet jednotiek | E16: Jednotková cena bez DPH [EUR] | F16: Cena celkom bez DPH [EUR] | G16: Cena celkom s DPH [EUR] | H16: Celkový výdavok | I16: Výdavok nad referenčnú hodnotu | J16: Výdavok pri neakceptovaní prekročenia ref. hodnôt | K16: Schválenie / neschválenie prekročenia ref. hodnôt | L16: Výdavok po odčítaní vecne neoprávne. a/alebo neúčelných výdavkov | M16: Výdavok po odčítaní nehospodárnych výdavkov | N16: Výdavok po posúdení prekročenia referenčných hodnôt | O16: Vecný opis výdavku
A17: Položka č. 1 | B17: 021 Stavby | F17: =ROUND(D17*E17,2) -> 0 | G17: =ROUND(F17*1.2,2) -> 0 | H17: =IF($B$11="áno",F17,G17) -> 0 | L17: =H17 -> 0 | M17: =L17 -> 0 | N17: =IFERROR(ROUND(IF($K$21="nie",IF($M$21<=($C$15*100),M17,M17*$J$21/$M$21),M17),2),0) -> 0
A18: Položka č. 2 | B18: 021 Stavby | F18: =ROUND(D18*E18,2) -> 0 | G18: =ROUND(F18*1.2,2) -> 0 | H18: =IF($B$11="áno",F18,G18) -> 0 | L18: =H18 -> 0 | M18: =L18 -> 0 | N18: =IFERROR(ROUND(IF($K$21="nie",IF($M$21<=($C$15*100),M18,M18*$J$21/$M$21),M18),2),0) -> 0
A19: Položka č. 3 | B19: 021 Stavby | F19: =ROUND(D19*E19,2) -> 0 | G19: =ROUND(F19*1.2,2) -> 0 | H19: =IF($B$11="áno",F19,G19) -> 0 | L19: =H19 -> 0 | M19: =L19 -> 0 | N19: 0
A20: Položka č. n | B20: 021 Stavby | F20: =ROUND(D20*E20,2) -> 0 | G20: =ROUND(F20*1.2,2) -> 0 | H20: =IF($B$11="áno",F20,G20) -> 0 | L20: =H20 -> 0 | M20: =L20 -> 0 | N20: 0
A21: Spolu výdavky zateplenia obvodového plášťa | F21: =SUM(F17:F20) -> 0 | G21: =SUM(G17:G20) -> 0 | H21: =IF(OR(B11="",C15="",C15<=0,D12="",F12="",G12="",O11=""),0,SUM(H17:H20)) -> 0 | I21: =IF(OR(C15=0,B11=""),0,IF(F21>=C15*100,IF(B11="áno",F21-C15*100,G21-C15*100*1.2),0)) -> 0 | J21: =IF(OR(C15="",C15<=0,D12="",F12="",G12="",O11=""),0,H21-I21) -> 0 | L21: =IF(OR(B11="",C15="",C15<=0,D12="",F12="",G12="",O11=""),0,SUM(L17:L20)) -> 0 | M21: =IF(OR(B11="",C15="",C15<=0,D12="",F12="",G12="",O11=""),0,SUM(M17:M20)) -> 0 | N21: =IF(OR(B11="",C15="",C15<=0,D12="",F12="",G12="",O11=""),0,SUM(N17:N20)) -> 0
A22: =IF(C10*G10>=H21,"","Prekročenie referenčných hodnôt nebude bez akceptovaného zdôvodnenia schválené.") -> 
A23: Zdôvodnenie prekročenia referenčnej hodnoty pre obvodový plášť | B23: V prípade prekročenia stanovenej referenčnej hodnoty pre vybrané výdavky projektu je žiadateľ oprávnený toto prekročenie zdôvodniť. Žiadateľ v zdôvodnení uvedie výdavky, ktoré najvýznamnejšie vplývajú na prekročenie stanovenej referenčnej hodnoty a zdôvodní ich nevyhnutnosť. V prípade, že zdôvodnenie prekročenia stanovenej referenčnej hodnoty nebude predložené, resp. dostatočné alebo akceptované zo strany odborného hodnotiteľa ako odôvodniteľné, žiadané výdavky budú krátené na výšku stanovených referenčných hodnôt. Bližšie informácie týkajúce sa referenčných hodnôt a ich prekročenia sú uvedené v Prílohe č. 4 Výzvy - Osobitné podmienky oprávnenosti výdavkov.
A25: Zateplenie strešného plášťa
A26: Cieľová hodnota zateplenej plochy strešného plášťa v m2 | D26: m2
A27: Názov výdavku | B27: Skupina výdavkov | C27: Merná jednotka | D27: Počet jednotiek | E27: Jednotková cena bez DPH [EUR] | F27: Cena celkom bez DPH [EUR] | G27: Cena celkom s DPH [EUR] | H27: Celkový výdavok | I27: Výdavok nad referenčnú hodnotu | J27: Výdavok pri neakceptovaní prekročenia ref. hodnôt | K27: Schválenie / neschválenie prekročenia ref. hodnôt | L27: Výdavok po odčítaní vecne neoprávne. a/alebo neúčelných výdavkov | M27: Výdavok po odčítaní nehospodárnych výdavkov | N27: Výdavok po posúdení prekročenia referenčných hodnôt | O27: Vecný opis výdavku
A28: Položka č. 1 | B28: 021 Stavby | F28: =ROUND(D28*E28,2) -> 0 | G28: =ROUND(F28*1.2,2) -> 0 | H28: =IF($B$11="áno",F28,G28) -> 0 | L28: =H28 -> 0 | M28: =L28 -> 0 | N28: =IFERROR(ROUND(IF($K$32="nie",IF($M$32<=($C$26*80),M28,M28*$J$32/$M$32),M28),2),0) -> 0
A29: Položka č. 2 | B29: 021 Stavby | F29: =ROUND(D29*E29,2) -> 0 | G29: =ROUND(F29*1.2,2) -> 0 | H29: =IF($B$11="áno",F29,G29) -> 0 | L29: =H29 -> 0 | M29: =L29 -> 0 | N29: =IFERROR(ROUND(IF($K$32="nie",IF($M$32<=($C$26*80),M29,M29*$J$32/$M$32),M29),2),0) -> 0
A30: Položka č. 3 | B30: 021 Stavby | F30: =ROUND(D30*E30,2) -> 0 | G30: =ROUND(F30*1.2,2) -> 0 | H30: =IF($B$11="áno",F30,G30) -> 0 | L30: =H30 -> 0 | M30: =L30 -> 0 | N30: 0
A31: Položka č. n | B31: 021 Stavby | F31: =ROUND(D31*E31,2) -> 0 | G31: =ROUND(F31*1.2,2) -> 0 | H31: =IF($B$11="áno",F31,G31) -> 0 | L31: =H31 -> 0 | M31: =L31 -> 0 | N31: 0
A32: Spolu výdavky zateplenia strešného plášťa | F32: =SUM(F28:F31) -> 0 | G32: =SUM(G28:G31) -> 0 | H32: =IF(OR(B11="",C26="",C26<=0,D12="",F12="",G12="",O11=""),0,SUM(H28:H31)) -> 0 | I32: =IF(OR(C26=0,B11=""),0,IF(F32>=C26*80,IF(B11="áno",F32-C26*80,G32-C26*80*1.2),0)) -> 0 | J32: =IF(OR(C26="",C26<=0,D12="",F12="",G12="",O11=""),0,H32-I32) -> 0 | L32: =IF(OR(B11="",C26="",C26<=0,D12="",F12="",G12="",O11=""),0,SUM(L28:L31)) -> 0 | M32: =IF(OR(B11="",C26="",C26<=0,D12="",F12="",G12="",O11=""),0,SUM(M28:M31)) -> 0 | N32: =IF(OR(B11="",C26="",C26<=0,D12="",F12="",G12="",O11=""),0,SUM(N28:N31)) -> 0
A33: =IF(C21*G21>=H32,"","Prekročenie referenčných hodnôt nebude bez akceptovaného zdôvodnenia schválené.") -> 
A34: Zdôvodnenie prekročenia referenčnej hodnoty pre strešný plášť | B34: V prípade prekročenia stanovenej referenčnej hodnoty pre vybrané výdavky projektu je žiadateľ oprávnený toto prekročenie zdôvodniť. Žiadateľ v zdôvodnení uvedie výdavky, ktoré najvýznamnejšie vplývajú na prekročenie stanovenej referenčnej hodnoty a zdôvodní ich nevyhnutnosť. V prípade, že zdôvodnenie prekročenia stanovenej referenčnej hodnoty nebude predložené, resp. dostatočné alebo akceptované zo strany odborného hodnotiteľa ako odôvodniteľné, žiadané výdavky budú krátené na výšku stanovených referenčných hodnôt. Bližšie informácie týkajúce sa referenčných hodnôt a ich prekročenia sú uvedené v Prílohe č. 4 Výzvy - Osobitné podmienky oprávnenosti výdavkov.
A36: Výmena otvorových konštrukcií
A37: Cieľová hodnota výmeny otvorových konštrukcií v m2 | D37: m2
A38: Názov výdavku | B38: Skupina výdavkov | C38: Merná jednotka | D38: Počet jednotiek | E38: Jednotková cena bez DPH [EUR] | F38: Cena celkom bez DPH [EUR] | G38: Cena celkom s DPH [EUR] | H38: Celkový výdavok | I38: Výdavok nad referenčnú hodnotu | J38: Výdavok pri neakceptovaní prekročenia ref. hodnôt | K38: Schválenie / neschválenie prekročenia ref. hodnôt | L38: Výdavok po odčítaní vecne neoprávne. a/alebo neúčelných výdavkov | M38: Výdavok po odčítaní nehospodárnych výdavkov | N38: Výdavok po posúdení prekročenia referenčných hodnôt | O38: Vecný opis výdavku
A39: Položka č. 1 | B39: 021 Stavby | F39: =ROUND(D39*E39,2) -> 0 | G39: =ROUND(F39*1.2,2) -> 0 | H39: =IF($B$11="áno",F39,G39) -> 0 | L39: =H39 -> 0 | M39: =L39 -> 0 | N39: =IFERROR(ROUND(IF($K$43="nie",IF($M$43<=($C$37*400),M39,M39*$J$43/$M$43),M39),2),0) -> 0
A40: Položka č. 2 | B40: 021 Stavby | F40: =ROUND(D40*E40,2) -> 0 | G40: =ROUND(F40*1.2,2) -> 0 | H40: =IF($B$11="áno",F40,G40) -> 0 | L40: =H40 -> 0 | M40: =L40 -> 0 | N40: =IFERROR(ROUND(IF($K$43="nie",IF($M$43<=($C$37*400),M40,M40*$J$43/$M$43),M40),2),0) -> 0
A41: Položka č. 3 | B41: 021 Stavby | F41: =ROUND(D41*E41,2) -> 0 | G41: =ROUND(F41*1.2,2) -> 0 | H41: =IF($B$11="áno",F41,G41) -> 0 | L41: =H41 -> 0 | M41: =L41 -> 0 | N41: 0
A42: Položka č. n | B42: 021 Stavby | F42: =ROUND(D42*E42,2) -> 0 | G42: =ROUND(F42*1.2,2) -> 0 | H42: =IF($B$11="áno",F42,G42) -> 0 | L42: =H42 -> 0 | M42: =L42 -> 0 | N42: 0
A43: Spolu výdavky výmeny otvorových konštrukcií | F43: =SUM(F39:F42) -> 0 | G43: =SUM(G39:G42) -> 0 | H43: =IF(OR(B11="",C37="",C37<=0,D12="",F12="",G12="",O11=""),0,SUM(H39:H42)) -> 0 | I43: =IF(OR(C37=0,B11=""),0,IF(F43>=C37*400,IF(B11="áno",F43-C37*400,G43-C37*400*1.2),0)) -> 0 | J43: =IF(OR(C37="",C37<=0,D12="",F12="",G12="",O11=""),0,H43-I43) -> 0 | L43: =IF(OR(B11="",C37="",C37<=0,D12="",F12="",G12="",O11=""),0,SUM(L39:L42)) -> 0 | M43: =IF(OR(B11="",C37="",C37<=0,D12="",F12="",G12="",O11=""),0,SUM(M39:M42)) -> 0 | N43: =IF(OR(B11="",C37="",C37<=0,D12="",F12="",G12="",O11=""),0,SUM(N39:N42)) -> 0
A44: =IF(C32*G32>=H43,"","Prekročenie referenčných hodnôt nebude bez akceptovaného zdôvodnenia schválené.") -> 
A45: Zdôvodnenie prekročenia referenčnej hodnoty pre výmenu otvorových konštrukcií | B45: V prípade prekročenia stanovenej referenčnej hodnoty pre vybrané výdavky projektu je žiadateľ oprávnený toto prekročenie zdôvodniť. Žiadateľ v zdôvodnení uvedie výdavky, ktoré najvýznamnejšie vplývajú na prekročenie stanovenej referenčnej hodnoty a zdôvodní ich nevyhnutnosť. V prípade, že zdôvodnenie prekročenia stanovenej referenčnej hodnoty nebude predložené, resp. dostatočné alebo akceptované zo strany odborného hodnotiteľa ako odôvodniteľné, žiadané výdavky budú krátené na výšku stanovených referenčných hodnôt. Bližšie informácie týkajúce sa referenčných hodnôt a ich prekročenia sú uvedené v Prílohe č. 4 Výzvy - Osobitné podmienky oprávnenosti výdavkov.
A47: Ostatné
A48: Názov výdavku | B48: Skupina výdavkov | C48: Merná jednotka | D48: Počet jednotiek | E48: Jednotková cena bez DPH [EUR] | F48: Cena celkom bez DPH [EUR] | G48: Cena celkom s DPH [EUR] | H48: Celkový výdavok | I48: Výdavok nad referenčnú hodnotu | J48: Výdavok pri neakceptovaní prekročenia ref. hodnôt | K48: Stĺpec1 | L48: Výdavok po odčítaní vecne neoprávne. a/alebo neúčelných výdavkov | M48: Stĺpec2 | N48: Výdavok po odčítaní nehospodárnych výdavkov | O48: Vecný opis výdavku
A49: Položka č. 1 | B49: 021 Stavby | F49: =ROUND(D49*E49,2) -> 0 | G49: =ROUND(F49*1.2,2) -> 0 | H49: =IF($B$11="áno",F49,G49) -> 0 | L49: =H49 -> 0 | N49: =L49 -> 0
A50: Položka č. 2 | B50: 021 Stavby | F50: =ROUND(D50*E50,2) -> 0 | G50: =ROUND(F50*1.2,2) -> 0 | H50: =IF($B$11="áno",F50,G50) -> 0 | L50: =H50 -> 0 | N50: =L50 -> 0
A51: Položka č. 3 | B51: 021 Stavby | F51: =ROUND(D51*E51,2) -> 0 | G51: =ROUND(F51*1.2,2) -> 0 | H51: =IF($B$11="áno",F51,G51) -> 0 | L51: =H51 -> 0 | N51: =L51 -> 0
A52: Položka č. n | B52: 021 Stavby | F52: =ROUND(D52*E52,2) -> 0 | G52: =ROUND(F52*1.2,2) -> 0 | H52: =IF($B$11="áno",F52,G52) -> 0 | L52: =H52 -> 0 | N52: =L52 -> 0
A53: SPOLU výdavky ostatné | F53: =SUM(F49:F52) -> 0 | G53: =SUM(G49:G52) -> 0 | H53: =IF(OR(B11="",D12="",F12="",G12="",O11=""),0,SUM(H49:H52)) -> 0 | I53: RH sa pre skup. výdav. "Ostatné" neuplatňuje. | L53: =IF(OR(B11="",D12="",F12="",G12="",O11=""),0,SUM(L49:L52)) -> 0 | N53: =IF(OR(B11="",D12="",F12="",G12="",O11=""),0,SUM(N49:N52)) -> 0
A54: SPOLU Výdavky na budovu č. 6 | F54: =F21+F32+F43+F53 -> 0 | G54: =G21+G32+G43+G53 -> 0 | H54: =IF(OR('MU Budova 6'!O15=0,'MU Budova 6'!O16=0,'MU Budova 6'!O17=0,'MU Budova 6'!O18=0,'MU Budova 6'!O19=0,'MU Budova 6'!O13=0,'MU Budova 6'!O33=0,'MU Budova 6'!O34=0,'MU Budova 6'!O35=0,'MU Budova 6'!O36=0,'MU Budova 6'!O37=0,'MU Budova 6'!O38=0),0,H21+H32+H43+H53) -> 0 | I54: =REFa+REFb+REFc -> 0 | J54: =J21+J32+J43 -> 0 | L54: =IF(OR('MU Budova 6'!O15=0,'MU Budova 6'!O16=0,'MU Budova 6'!O17=0,'MU Budova 6'!O18=0,'MU Budova 6'!O19=0,'MU Budova 6'!O13=0,'MU Budova 6'!O33=0,'MU Budova 6'!O34=0,'MU Budova 6'!O35=0,'MU Budova 6'!O36=0,'MU Budova 6'!O37=0,'MU Budova 6'!O38=0),0,L21+L32+L43+L53) -> 0 | N54: =IF(OR('MU Budova 6'!O15=0,'MU Budova 6'!O16=0,'MU Budova 6'!O17=0,'MU Budova 6'!O18=0,'MU Budova 6'!O19=0,'MU Budova 6'!O13=0,'MU Budova 6'!O33=0,'MU Budova 6'!O34=0,'MU Budova 6'!O35=0,'MU Budova 6'!O36=0,'MU Budova 6'!O37=0,'MU Budova 6'!O38=0),0,N21+N32+N43+N53) -> 0
A55: SPOLU Výdavky na budovu č. 6 po prípadnom odpočítaní hospodárskej činnosti a nízkych úspor potreby energie na vykurovanie | H55: =IF(OR('MU Budova 6'!O15=0,'MU Budova 6'!O16=0,'MU Budova 6'!O17=0,'MU Budova 6'!O18=0,'MU Budova 6'!O19=0,'MU Budova 6'!O21=0,'MU Budova 6'!O22=0,'MU Budova 6'!O23=0,'MU Budova 6'!O13=0,'MU Budova 6'!O33=0,'MU Budova 6'!O34=0,'MU Budova 6'!O35=0,'MU Budova 6'!O36=0,'MU Budova 6'!O37=0,'MU Budova 6'!O38=0),0,IF(AND('MU Budova 6'!F26=0,'MU Budova 6'!K26=0),H21+H32+H43+H53,IF(H21+H32+H43+H53-(((H21+H32+H43+H53)/100)*('MU Budova 6'!F26+'MU Budova 6'!K26))<0,0,(H21+H32+H43+H53-((H21+H32+H43+H53)/100)*('MU Budova 6'!F26+'MU Budova 6'!K26))))) -> 0 | N55: =IF(OR('MU Budova 6'!O15=0,'MU Budova 6'!O16=0,'MU Budova 6'!O17=0,'MU Budova 6'!O18=0,'MU Budova 6'!O19=0,'MU Budova 6'!O21=0,'MU Budova 6'!O22=0,'MU Budova 6'!O23=0,'MU Budova 6'!O13=0,'MU Budova 6'!O33=0,'MU Budova 6'!O34=0,'MU Budova 6'!O35=0,'MU Budova 6'!O36=0,'MU Budova 6'!O37=0,'MU Budova 6'!O38=0),0,IF(AND('MU Budova 6'!F26=0,'MU Budova 6'!K26=0),N21+N32+N43+N53,IF(N21+N32+N43+N53-(((N21+N32+N43+N53)/100)*('MU Budova 6'!F26+'MU Budova 6'!K26))<0,0,(N21+N32+N43+N53-((N21+N32+N43+N53)/100)*('MU Budova 6'!F26+'MU Budova 6'!K26))))) -> 0 | Q55: =IF('Rozpočet B6'!$B$11=Číselníky!A2,'Rozpočet B6'!N55,'Rozpočet B6'!N55/1.2) -> 0
A58: Upozornenia
A59: Každá samostatná budova reprezentuje samostatnú hlavnú aktivitu uvedenú v ŽoNPF. Pre každú samostatnú budovu sa predkladá samostatný Energetický audit, samostatná Projektová dokumentácia vrátane Energetického hodnotenia, samostatný rozpočet a samostatný hárok MU.
A60: V prípade potreby doplnenia ďalších výdavkov vložte riadky a ak relevantné skopírujte vzorce.
A61: V časti "Vecný popis výdavkov" špecifikujte jednotlivé výdavky z hľadiska ich predmetu, resp. rozsahu, prípadne nevyhnutnosti. Teda, ak výdavok pozostáva z viacerých položiek, je potrebné tieto položky v rámci vecného popisu výdavku bližšie špecifikovať, t. j. uviesť z akých položiek pozostáva cena výdavku vrátane výšky týchto položiek.
A62: V časti rozpočtu "Ostatné" zadajte stavebné výdavky, ktoré nie je možné priradiť k predchádzajúcim častiam rozpočtu (zateplenie plášťa, strechy, výmena okenných konštrukcií). Napr. výdavky na systém prípravy teplej vody, osvetlenia vrátane potrebného merania a riadenia a modernizácie príslušných rozvodov energie, inštaláciu systémov merania a riadenia, inštaláciu zariadení na využívanie OZE pre spotrebu v budove a pod.
A63: Dbajte prosím na súlad údajov uvedených v Rozpočte s údajmi uvedenými vo formulári ŽoNFP, ako aj v ďalších prílohách ŽoNFP.

Sheet Rozpočet B7 (hidden)
A2: Príloha ŽoNFP č. 6 - Dokumentácia k oprávnenosti výdavkov
A7: Rozpočet - Budova č. 7 | G7: =IF(G12="",""," - súpis. č. "&G12) -> 
A9: Názov žiadateľa: | B9: =IF('Rozpočet B1 - Value for Money'!B9:O9="","",'Rozpočet B1 - Value for Money'!B9:O9) -> Obec Podhorany
A10: Názov projektu: | B10: =IF('Rozpočet B1 - Value for Money'!B10:O10="","",'Rozpočet B1 - Value for Money'!B10:O10) -> Stavebné úpravy ZŠ Podhorany Zníženie spotreby energie pri prevádzke
A11: Je žiadateľ platcom DPH v rozsahu aktivity? | D11: Katastrálne územie | F11: LV číslo | G11: Súpisné číslo | I11: Právny vzťah
A12: Počet samostatných budov v ŽoNFP? | B12: =IF('Rozpočet B1 - Value for Money'!B12="","",'Rozpočet B1 - Value for Money'!B12) -> 1 | I12: =IF(O11=[4]Číselníky!G13,"Predložte súhlas všetkých podielových spoluvlastníkov stavby",IF(O11=[4]Číselníky!G14,"Predložte doklad oprávnujúci k výkonu správy budovy","")) -> 
A14: Zateplenie obvodového plášťa
A15: Cieľová hodnota zateplenej plochy obvodového plášťa v m2 | D15: m2
A16: Názov výdavku | B16: Skupina výdavkov | C16: Merná jednotka | D16: Počet jednotiek | E16: Jednotková cena bez DPH [EUR] | F16: Cena celkom bez DPH [EUR] | G16: Cena celkom s DPH [EUR] | H16: Celkový výdavok | I16: Výdavok nad referenčnú hodnotu | J16: Výdavok pri neakceptovaní prekročenia ref. hodnôt | K16: Schválenie / neschválenie prekročenia ref. hodnôt | L16: Výdavok po odčítaní vecne neoprávne. a/alebo neúčelných výdavkov | M16: Výdavok po odčítaní nehospodárnych výdavkov | N16: Výdavok po posúdení prekročenia referenčných hodnôt | O16: Vecný opis výdavku
A17: Položka č. 1 | B17: 021 Stavby | F17: =ROUND(D17*E17,2) -> 0 | G17: =ROUND(F17*1.2,2) -> 0 | H17: =IF($B$11="áno",F17,G17) -> 0 | L17: =H17 -> 0 | M17: =L17 -> 0 | N17: =IFERROR(ROUND(IF($K$21="nie",IF($M$21<=($C$15*100),M17,M17*$J$21/$M$21),M17),2),0) -> 0
A18: Položka č. 2 | B18: 021 Stavby | F18: =ROUND(D18*E18,2) -> 0 | G18: =ROUND(F18*1.2,2) -> 0 | H18: =IF($B$11="áno",F18,G18) -> 0 | L18: =H18 -> 0 | M18: =L18 -> 0 | N18: =IFERROR(ROUND(IF($K$21="nie",IF($M$21<=($C$15*100),M18,M18*$J$21/$M$21),M18),2),0) -> 0
A19: Položka č. 3 | B19: 021 Stavby | F19: =ROUND(D19*E19,2) -> 0 | G19: =ROUND(F19*1.2,2) -> 0 | H19: =IF($B$11="áno",F19,G19) -> 0 | L19: =H19 -> 0 | M19: =L19 -> 0 | N19: 0
A20: Položka č. n | B20: 021 Stavby | F20: =ROUND(D20*E20,2) -> 0 | G20: =ROUND(F20*1.2,2) -> 0 | H20: =IF($B$11="áno",F20,G20) -> 0 | L20: =H20 -> 0 | M20: =L20 -> 0 | N20: 0
A21: Spolu výdavky zateplenia obvodového plášťa | F21: =SUM(F17:F20) -> 0 | G21: =SUM(G17:G20) -> 0 | H21: =IF(OR(B11="",C15="",C15<=0,D12="",F12="",G12="",O11=""),0,SUM(H17:H20)) -> 0 | I21: =IF(OR(C15=0,B11=""),0,IF(F21>=C15*100,IF(B11="áno",F21-C15*100,G21-C15*100*1.2),0)) -> 0 | J21: =IF(OR(C15="",C15<=0,D12="",F12="",G12="",O11=""),0,H21-I21) -> 0 | L21: =IF(OR(B11="",C15="",C15<=0,D12="",F12="",G12="",O11=""),0,SUM(L17:L20)) -> 0 | M21: =IF(OR(B11="",C15="",C15<=0,D12="",F12="",G12="",O11=""),0,SUM(M17:M20)) -> 0 | N21: =IF(OR(B11="",C15="",C15<=0,D12="",F12="",G12="",O11=""),0,SUM(N17:N20)) -> 0
A22: =IF(C10*G10>=H21,"","Prekročenie referenčných hodnôt nebude bez akceptovaného zdôvodnenia schválené.") -> 
A23: Zdôvodnenie prekročenia referenčnej hodnoty pre obvodový plášť | B23: V prípade prekročenia stanovenej referenčnej hodnoty pre vybrané výdavky projektu je žiadateľ oprávnený toto prekročenie zdôvodniť. Žiadateľ v zdôvodnení uvedie výdavky, ktoré najvýznamnejšie vplývajú na prekročenie stanovenej referenčnej hodnoty a zdôvodní ich nevyhnutnosť. V prípade, že zdôvodnenie prekročenia stanovenej referenčnej hodnoty nebude predložené, resp. dostatočné alebo akceptované zo strany odborného hodnotiteľa ako odôvodniteľné, žiadané výdavky budú krátené na výšku stanovených referenčných hodnôt. Bližšie informácie týkajúce sa referenčných hodnôt a ich prekročenia sú uvedené v Prílohe č. 4 Výzvy - Osobitné podmienky oprávnenosti výdavkov.
A25: Zateplenie strešného plášťa
A26: Cieľová hodnota zateplenej plochy strešného plášťa v m2 | D26: m2
A27: Názov výdavku | B27: Skupina výdavkov | C27: Merná jednotka | D27: Počet jednotiek | E27: Jednotková cena bez DPH [EUR] | F27: Cena celkom bez DPH [EUR] | G27: Cena celkom s DPH [EUR] | H27: Celkový výdavok | I27: Výdavok nad referenčnú hodnotu | J27: Výdavok pri neakceptovaní prekročenia ref. hodnôt | K27: Schválenie / neschválenie prekročenia ref. hodnôt | L27: Výdavok po odčítaní vecne neoprávne. a/alebo neúčelných výdavkov | M27: Výdavok po odčítaní nehospodárnych výdavkov | N27: Výdavok po posúdení prekročenia referenčných hodnôt | O27: Vecný opis výdavku
A28: Položka č. 1 | B28: 021 Stavby | F28: =ROUND(D28*E28,2) -> 0 | G28: =ROUND(F28*1.2,2) -> 0 | H28: =IF($B$11="áno",F28,G28) -> 0 | L28: =H28 -> 0 | M28: =L28 -> 0 | N28: =IFERROR(ROUND(IF($K$32="nie",IF($M$32<=($C$26*80),M28,M28*$J$32/$M$32),M28),2),0) -> 0
A29: Položka č. 2 | B29: 021 Stavby | F29: =ROUND(D29*E29,2) -> 0 | G29: =ROUND(F29*1.2,2) -> 0 | H29: =IF($B$11="áno",F29,G29) -> 0 | L29: =H29 -> 0 | M29: =L29 -> 0 | N29: =IFERROR(ROUND(IF($K$32="nie",IF($M$32<=($C$26*80),M29,M29*$J$32/$M$32),M29),2),0) -> 0
A30: Položka č. 3 | B30: 021 Stavby | F30: =ROUND(D30*E30,2) -> 0 | G30: =ROUND(F30*1.2,2) -> 0 | H30: =IF($B$11="áno",F30,G30) -> 0 | L30: =H30 -> 0 | M30: =L30 -> 0 | N30: 0
A31: Položka č. n | B31: 021 Stavby | F31: =ROUND(D31*E31,2) -> 0 | G31: =ROUND(F31*1.2,2) -> 0 | H31: =IF($B$11="áno",F31,G31) -> 0 | L31: =H31 -> 0 | M31: =L31 -> 0 | N31: 0
A32: Spolu výdavky zateplenia strešného plášťa | F32: =SUM(F28:F31) -> 0 | G32: =SUM(G28:G31) -> 0 | H32: =IF(OR(B11="",C26="",C26<=0,D12="",F12="",G12="",O11=""),0,SUM(H28:H31)) -> 0 | I32: =IF(OR(C26=0,B11=""),0,IF(F32>=C26*80,IF(B11="áno",F32-C26*80,G32-C26*80*1.2),0)) -> 0 | J32: =IF(OR(C26="",C26<=0,D12="",F12="",G12="",O11=""),0,H32-I32) -> 0 | L32: =IF(OR(B11="",C26="",C26<=0,D12="",F12="",G12="",O11=""),0,SUM(L28:L31)) -> 0 | M32: =IF(OR(B11="",C26="",C26<=0,D12="",F12="",G12="",O11=""),0,SUM(M28:M31)) -> 0 | N32: =IF(OR(B11="",C26="",C26<=0,D12="",F12="",G12="",O11=""),0,SUM(N28:N31)) -> 0
A33: =IF(C21*G21>=H32,"","Prekročenie referenčných hodnôt nebude bez akceptovaného zdôvodnenia schválené.") -> 
A34: Zdôvodnenie prekročenia referenčnej hodnoty pre strešný plášť | B34: V prípade prekročenia stanovenej referenčnej hodnoty pre vybrané výdavky projektu je žiadateľ oprávnený toto prekročenie zdôvodniť. Žiadateľ v zdôvodnení uvedie výdavky, ktoré najvýznamnejšie vplývajú na prekročenie stanovenej referenčnej hodnoty a zdôvodní ich nevyhnutnosť. V prípade, že zdôvodnenie prekročenia stanovenej referenčnej hodnoty nebude predložené, resp. dostatočné alebo akceptované zo strany odborného hodnotiteľa ako odôvodniteľné, žiadané výdavky budú krátené na výšku stanovených referenčných hodnôt. Bližšie informácie týkajúce sa referenčných hodnôt a ich prekročenia sú uvedené v Prílohe č. 4 Výzvy - Osobitné podmienky oprávnenosti výdavkov.
A36: Výmena otvorových konštrukcií
A37: Cieľová hodnota výmeny otvorových konštrukcií v m2 | D37: m2
A38: Názov výdavku | B38: Skupina výdavkov | C38: Merná jednotka | D38: Počet jednotiek | E38: Jednotková cena bez DPH [EUR] | F38: Cena celkom bez DPH [EUR] | G38: Cena celkom s DPH [EUR] | H38: Celkový výdavok | I38: Výdavok nad referenčnú hodnotu | J38: Výdavok pri neakceptovaní prekročenia ref. hodnôt | K38: Schválenie / neschválenie prekročenia ref. hodnôt | L38: Výdavok po odčítaní vecne neoprávne. a/alebo neúčelných výdavkov | M38: Výdavok po odčítaní nehospodárnych výdavkov | N38: Výdavok po posúdení prekročenia referenčných hodnôt | O38: Vecný opis výdavku
A39: Položka č. 1 | B39: 021 Stavby | F39: =ROUND(D39*E39,2) -> 0 | G39: =ROUND(F39*1.2,2) -> 0 | H39: =IF($B$11="áno",F39,G39) -> 0 | L39: =H39 -> 0 | M39: =L39 -> 0 | N39: =IFERROR(ROUND(IF($K$43="nie",IF($M$43<=($C$37*400),M39,M39*$J$43/$M$43),M39),2),0) -> 0
A40: Položka č. 2 | B40: 021 Stavby | F40: =ROUND(D40*E40,2) -> 0 | G40: =ROUND(F40*1.2,2) -> 0 | H40: =IF($B$11="áno",F40,G40) -> 0 | L40: =H40 -> 0 | M40: =L40 -> 0 | N40: =IFERROR(ROUND(IF($K$43="nie",IF($M$43<=($C$37*400),M40,M40*$J$43/$M$43),M40),2),0) -> 0
A41: Položka č. 3 | B41: 021 Stavby | F41: =ROUND(D41*E41,2) -> 0 | G41: =ROUND(F41*1.2,2) -> 0 | H41: =IF($B$11="áno",F41,G41) -> 0 | L41: =H41 -> 0 | M41: =L41 -> 0 | N41: 0
A42: Položka č. n | B42: 021 Stavby | F42: =ROUND(D42*E42,2) -> 0 | G42: =ROUND(F42*1.2,2) -> 0 | H42: =IF($B$11="áno",F42,G42) -> 0 | L42: =H42 -> 0 | M42: =L42 -> 0 | N42: 0
A43: Spolu výdavky výmeny otvorových konštrukcií | F43: =SUM(F39:F42) -> 0 | G43: =SUM(G39:G42) -> 0 | H43: =IF(OR(B11="",C37="",C37<=0,D12="",F12="",G12="",O11=""),0,SUM(H39:H42)) -> 0 | I43: =IF(OR(C37=0,B11=""),0,IF(F43>=C37*400,IF(B11="áno",F43-C37*400,G43-C37*400*1.2),0)) -> 0 | J43: =IF(OR(C37="",C37<=0,D12="",F12="",G12="",O11=""),0,H43-I43) -> 0 | L43: =IF(OR(B11="",C37="",C37<=0,D12="",F12="",G12="",O11=""),0,SUM(L39:L42)) -> 0 | M43: =IF(OR(B11="",C37="",C37<=0,D12="",F12="",G12="",O11=""),0,SUM(M39:M42)) -> 0 | N43: =IF(OR(B11="",C37="",C37<=0,D12="",F12="",G12="",O11=""),0,SUM(N39:N42)) -> 0
A44: =IF(C32*G32>=H43,"","Prekročenie referenčných hodnôt nebude bez akceptovaného zdôvodnenia schválené.") -> 
A45: Zdôvodnenie prekročenia referenčnej hodnoty pre výmenu otvorových konštrukcií | B45: V prípade prekročenia stanovenej referenčnej hodnoty pre vybrané výdavky projektu je žiadateľ oprávnený toto prekročenie zdôvodniť. Žiadateľ v zdôvodnení uvedie výdavky, ktoré najvýznamnejšie vplývajú na prekročenie stanovenej referenčnej hodnoty a zdôvodní ich nevyhnutnosť. V prípade, že zdôvodnenie prekročenia stanovenej referenčnej hodnoty nebude predložené, resp. dostatočné alebo akceptované zo strany odborného hodnotiteľa ako odôvodniteľné, žiadané výdavky budú krátené na výšku stanovených referenčných hodnôt. Bližšie informácie týkajúce sa referenčných hodnôt a ich prekročenia sú uvedené v Prílohe č. 4 Výzvy - Osobitné podmienky oprávnenosti výdavkov.
A47: Ostatné
A48: Názov výdavku | B48: Skupina výdavkov | C48: Merná jednotka | D48: Počet jednotiek | E48: Jednotková cena bez DPH [EUR] | F48: Cena celkom bez DPH [EUR] | G48: Cena celkom s DPH [EUR] | H48: Celkový výdavok | I48: Výdavok nad referenčnú hodnotu | J48: Výdavok pri neakceptovaní prekročenia ref. hodnôt | K48: Stĺpec1 | L48: Výdavok po odčítaní vecne neoprávne. a/alebo neúčelných výdavkov | M48: Stĺpec2 | N48: Výdavok po odčítaní nehospodárnych výdavkov | O48: Vecný opis výdavku
A49: Položka č. 1 | B49: 021 Stavby | F49: =ROUND(D49*E49,2) -> 0 | G49: =ROUND(F49*1.2,2) -> 0 | H49: =IF($B$11="áno",F49,G49) -> 0 | L49: =H49 -> 0 | N49: =L49 -> 0
A50: Položka č. 2 | B50: 021 Stavby | F50: =ROUND(D50*E50,2) -> 0 | G50: =ROUND(F50*1.2,2) -> 0 | H50: =IF($B$11="áno",F50,G50) -> 0 | L50: =H50 -> 0 | N50: =L50 -> 0
A51: Položka č. 3 | B51: 021 Stavby | F51: =ROUND(D51*E51,2) -> 0 | G51: =ROUND(F51*1.2,2) -> 0 | H51: =IF($B$11="áno",F51,G51) -> 0 | L51: =H51 -> 0 | N51: =L51 -> 0
A52: Položka č. n | B52: 021 Stavby | F52: =ROUND(D52*E52,2) -> 0 | G52: =ROUND(F52*1.2,2) -> 0 | H52: =IF($B$11="áno",F52,G52) -> 0 | L52: =H52 -> 0 | N52: =L52 -> 0
A53: SPOLU výdavky ostatné | F53: =SUM(F49:F52) -> 0 | G53: =SUM(G49:G52) -> 0 | H53: =IF(OR(B11="",D12="",F12="",G12="",O11=""),0,SUM(H49:H52)) -> 0 | I53: RH sa pre skup. výdav. "Ostatné" neuplatňuje. | L53: =IF(OR(B11="",D12="",F12="",G12="",O11=""),0,SUM(L49:L52)) -> 0 | N53: =IF(OR(B11="",D12="",F12="",G12="",O11=""),0,SUM(N49:N52)) -> 0
A54: SPOLU Výdavky na budovu č. 7 | F54: =F21+F32+F43+F53 -> 0 | G54: =G21+G32+G43+G53 -> 0 | H54: =IF(OR('MU Budova 7'!O15=0,'MU Budova 7'!O16=0,'MU Budova 7'!O17=0,'MU Budova 7'!O18=0,'MU Budova 7'!O19=0,'MU Budova 7'!O13=0,'MU Budova 7'!O33=0,'MU Budova 7'!O34=0,'MU Budova 7'!O35=0,'MU Budova 7'!O36=0,'MU Budova 7'!O37=0,'MU Budova 7'!O38=0),0,H21+H32+H43+H53) -> 0 | I54: =REFa+REFb+REFc -> 0 | J54: =J21+J32+J43 -> 0 | L54: =IF(OR('MU Budova 7'!O15=0,'MU Budova 7'!O16=0,'MU Budova 7'!O17=0,'MU Budova 7'!O18=0,'MU Budova 7'!O19=0,'MU Budova 7'!O13=0,'MU Budova 7'!O33=0,'MU Budova 7'!O34=0,'MU Budova 7'!O35=0,'MU Budova 7'!O36=0,'MU Budova 7'!O37=0,'MU Budova 7'!O38=0),0,L21+L32+L43+L53) -> 0 | N54: =IF(OR('MU Budova 7'!O15=0,'MU Budova 7'!O16=0,'MU Budova 7'!O17=0,'MU Budova 7'!O18=0,'MU Budova 7'!O19=0,'MU Budova 7'!O13=0,'MU Budova 7'!O33=0,'MU Budova 7'!O34=0,'MU Budova 7'!O35=0,'MU Budova 7'!O36=0,'MU Budova 7'!O37=0,'MU Budova 7'!O38=0),0,N21+N32+N43+N53) -> 0
A55: SPOLU Výdavky na budovu č. 7 po prípadnom odpočítaní hospodárskej činnosti a nízkych úspor potreby energie na vykurovanie | H55: =IF(OR('MU Budova 7'!O15=0,'MU Budova 7'!O16=0,'MU Budova 7'!O17=0,'MU Budova 7'!O18=0,'MU Budova 7'!O19=0,'MU Budova 7'!O21=0,'MU Budova 7'!O22=0,'MU Budova 7'!O23=0,'MU Budova 7'!O13=0,'MU Budova 7'!O33=0,'MU Budova 7'!O34=0,'MU Budova 7'!O35=0,'MU Budova 7'!O36=0,'MU Budova 7'!O37=0,'MU Budova 7'!O38=0),0,IF(AND('MU Budova 7'!F26=0,'MU Budova 7'!K26=0),H21+H32+H43+H53,IF(H21+H32+H43+H53-(((H21+H32+H43+H53)/100)*('MU Budova 7'!F26+'MU Budova 7'!K26))<0,0,(H21+H32+H43+H53-((H21+H32+H43+H53)/100)*('MU Budova 7'!F26+'MU Budova 7'!K26))))) -> 0 | N55: =IF(OR('MU Budova 7'!O15=0,'MU Budova 7'!O16=0,'MU Budova 7'!O17=0,'MU Budova 7'!O18=0,'MU Budova 7'!O19=0,'MU Budova 7'!O21=0,'MU Budova 7'!O22=0,'MU Budova 7'!O23=0,'MU Budova 7'!O13=0,'MU Budova 7'!O33=0,'MU Budova 7'!O34=0,'MU Budova 7'!O35=0,'MU Budova 7'!O36=0,'MU Budova 7'!O37=0,'MU Budova 7'!O38=0),0,IF(AND('MU Budova 7'!F26=0,'MU Budova 7'!K26=0),N21+N32+N43+N53,IF(N21+N32+N43+N53-(((N21+N32+N43+N53)/100)*('MU Budova 7'!F26+'MU Budova 7'!K26))<0,0,(N21+N32+N43+N53-((N21+N32+N43+N53)/100)*('MU Budova 7'!F26+'MU Budova 7'!K26))))) -> 0 | Q55: =IF('Rozpočet B7'!$B$11=Číselníky!A2,'Rozpočet B7'!N55,'Rozpočet B7'!N55/1.2) -> 0
A58: Upozornenia
A59: Každá samostatná budova reprezentuje samostatnú hlavnú aktivitu uvedenú v ŽoNPF. Pre každú samostatnú budovu sa predkladá samostatný Energetický audit, samostatná Projektová dokumentácia vrátane Energetického hodnotenia, samostatný rozpočet a samostatný hárok MU.
A60: V prípade potreby doplnenia ďalších výdavkov vložte riadky a ak relevantné skopírujte vzorce.
A61: V časti "Vecný popis výdavkov" špecifikujte jednotlivé výdavky z hľadiska ich predmetu, resp. rozsahu, prípadne nevyhnutnosti. Teda, ak výdavok pozostáva z viacerých položiek, je potrebné tieto položky v rámci vecného popisu výdavku bližšie špecifikovať, t. j. uviesť z akých položiek pozostáva cena výdavku vrátane výšky týchto položiek.
A62: V časti rozpočtu "Ostatné" zadajte stavebné výdavky, ktoré nie je možné priradiť k predchádzajúcim častiam rozpočtu (zateplenie plášťa, strechy, výmena okenných konštrukcií). Napr. výdavky na systém prípravy teplej vody, osvetlenia vrátane potrebného merania a riadenia a modernizácie príslušných rozvodov energie, inštaláciu systémov merania a riadenia, inštaláciu zariadení na využívanie OZE pre spotrebu v budove a pod.
A63: Dbajte prosím na súlad údajov uvedených v Rozpočte s údajmi uvedenými vo formulári ŽoNFP, ako aj v ďalších prílohách ŽoNFP.

Sheet Sumárny prehľad MU (hidden)
E1: Príloha ŽoNFP č. 6 - Dokumentácia k oprávnenosti výdavkov
A7: Sumár hodnôt merateľných ukazovateľov projektu
A9: Názov žiadateľa: | B9: =IF('Rozpočet B1 - Value for Money'!B9:O9="","",'Rozpočet B1 - Value for Money'!B9:O9) -> Obec Podhorany
A10: Názov projektu: | B10: =IF('Rozpočet B1 - Value for Money'!B10:O10="","",'Rozpočet B1 - Value for Money'!B10:O10) -> Stavebné úpravy ZŠ Podhorany Zníženie spotreby energie pri prevádzke
A12: Ukazovatele verejných budov
A13: Stručná charakteristika projektu
A14: Počet verejných budov, ktoré sú predmetom projektu | D14: =IF('Rozpočet B1 - Value for Money'!B12="","",'Rozpočet B1 - Value for Money'!B12) -> 1
A15: Počet hlavných aktivít uvedených v ŽoNFP
A16: Počet predložených Projektových dokumentácii vrátane Energetického hodnotenia
A17: Počet predložených Energetických auditov
A19: Upozornenie | B19: =IF(OR(D14="",D15="",D16="",D17=""),"Vyplňte všetky vyššie uvedené bunky.",IF(D14<>D15,"Počet aktivít musí byť totožný s počtom verejných budov, ktoré sú predmetom projektu.",IF(D16>D14,"Počet predložených Projektových dokumentácii musí byť totožný s počtom verejných budov, ktoré sú predmetom projektu.",IF(D16<D14,"Ku každej budove je potrebné predložiť samostatnú Projektovú dokumentáciu vrátane Energetického hodnotenia.",IF(D17>D14,"Počet predložených Energetickývh auditov musí byť totožný s počtom verejných budov, ktoré sú predmetom projektu.",IF(D17<>D14,"Ku každej budove je potrebné predložiť samostatný Energetický audit.",IF(D14>7,CONCATENATE("Limit Prílohy je prekročený. Hodnoty MU sú kumulatívne za 7 budov. Celkové hodnoty MU sa určia súčtom hodnôt jednotlivých MU v hárkoch „Sumárny prehľad MU“ všetkých predložených Príloh č. 6 ŽoNFP."),""))))))) -> Vyplňte všetky vyššie uvedené bunky.
A22: Merateľné ukazovatele projektu
A23: Názov MU | B23: Názov Merateľného ukazovatela | C23: Príznak rizika | D23: Merná jednotka | E23: Výsledná hodnota
A24: P0080 | B24: Množstvo elektrickej energie vyrobenej v zariadení OZE | C24: S príznakom | D24: MWh/rok | E24: =IF($D$14=1,'MU Budova 1'!H75,IF($D$14=2,'MU Budova 1'!H75+'MU Budova 2'!H75,IF($D$14=3,'MU Budova 1'!H75+'MU Budova 2'!H75+'MU Budova 3'!H75,IF($D$14=4,'MU Budova 1'!H75+'MU Budova 2'!H75+'MU Budova 3'!H75+'MU Budova 4'!H75,IF($D$14=5,'MU Budova 1'!H75+'MU Budova 2'!H75+'MU Budova 3'!H75+'MU Budova 4'!H75+'MU Budova 5'!H75,IF($D$14=6,'MU Budova 1'!H75+'MU Budova 2'!H75+'MU Budova 3'!H75+'MU Budova 4'!H75+'MU Budova 5'!H75+'MU Budova 6'!H75,IF($D$14>=7,'MU Budova 1'!H75+'MU Budova 2'!H75+'MU Budova 3'!H75+'MU Budova 4'!H75+'MU Budova 5'!H75+'MU Budova 6'!H75+'MU Budova 7'!H75))))))) -> 0
A25: P0084 | B25: Množstvo tepelnej energie vyrobenej v zariadení OZE | C25: S príznakom | D25: MWh/rok | E25: =IF($D$14=1,'MU Budova 1'!H76,IF($D$14=2,'MU Budova 1'!H76+'MU Budova 2'!H76,IF($D$14=3,'MU Budova 1'!H76+'MU Budova 2'!H76+'MU Budova 3'!H76,IF($D$14=4,'MU Budova 1'!H76+'MU Budova 2'!H76+'MU Budova 3'!H76+'MU Budova 4'!H76,IF($D$14=5,'MU Budova 1'!H76+'MU Budova 2'!H76+'MU Budova 3'!H76+'MU Budova 4'!H76+'MU Budova 5'!H76,IF($D$14=6,'MU Budova 1'!H76+'MU Budova 2'!H76+'MU Budova 3'!H76+'MU Budova 4'!H76+'MU Budova 5'!H76+'MU Budova 6'!H76,IF($D$14>=7,'MU Budova 1'!H76+'MU Budova 2'!H76+'MU Budova 3'!H76+'MU Budova 4'!H76+'MU Budova 5'!H76+'MU Budova 6'!H76+'MU Budova 7'!H76))))))) -> 0
A26: P0103 | B26: Odhadované ročné zníženie emisií skleníkových plynov | C26: S príznakom | D26: t ekviv. CO2/rok | E26: =IF($D$14=1,'MU Budova 1'!H77,IF($D$14=2,'MU Budova 1'!H77+'MU Budova 2'!H77,IF($D$14=3,'MU Budova 1'!H77+'MU Budova 2'!H77+'MU Budova 3'!H77,IF($D$14=4,'MU Budova 1'!H77+'MU Budova 2'!H77+'MU Budova 3'!H77+'MU Budova 4'!H77,IF($D$14=5,'MU Budova 1'!H77+'MU Budova 2'!H77+'MU Budova 3'!H77+'MU Budova 4'!H77+'MU Budova 5'!H77,IF($D$14=6,'MU Budova 1'!H77+'MU Budova 2'!H77+'MU Budova 3'!H77+'MU Budova 4'!H77+'MU Budova 5'!H77+'MU Budova 6'!H77,IF($D$14>=7,'MU Budova 1'!H77+'MU Budova 2'!H77+'MU Budova 3'!H77+'MU Budova 4'!H77+'MU Budova 5'!H77+'MU Budova 6'!H77+'MU Budova 7'!H77))))))) -> 30.58076
A27: P0250 | B27: Počet opatrení na zníženie spotreby energie realizovaných vo verejnej budove | C27: Bez príznaku | D27: počet | E27: =IF($D$14=1,'MU Budova 1'!H78,IF($D$14=2,'MU Budova 1'!H78+'MU Budova 2'!H78,IF($D$14=3,'MU Budova 1'!H78+'MU Budova 2'!H78+'MU Budova 3'!H78,IF($D$14=4,'MU Budova 1'!H78+'MU Budova 2'!H78+'MU Budova 3'!H78+'MU Budova 4'!H78,IF($D$14=5,'MU Budova 1'!H78+'MU Budova 2'!H78+'MU Budova 3'!H78+'MU Budova 4'!H78+'MU Budova 5'!H78,IF($D$14=6,'MU Budova 1'!H78+'MU Budova 2'!H78+'MU Budova 3'!H78+'MU Budova 4'!H78+'MU Budova 5'!H78+'MU Budova 6'!H78,IF($D$14>=7,'MU Budova 1'!H78+'MU Budova 2'!H78+'MU Budova 3'!H78+'MU Budova 4'!H78+'MU Budova 5'!H78+'MU Budova 6'!H78+'MU Budova 7'!H78))))))) -> 3
A28: P0470 | B28: Počet verejných budov na úrovni nízkoenerg. / ultranízkoenerg. alebo s takmer nul. potrebou energie | C28: Bez príznaku | D28: počet | E28: =IF($D$14=1,'MU Budova 1'!H79,IF($D$14=2,'MU Budova 1'!H79+'MU Budova 2'!H79,IF($D$14=3,'MU Budova 1'!H79+'MU Budova 2'!H79+'MU Budova 3'!H79,IF($D$14=4,'MU Budova 1'!H79+'MU Budova 2'!H79+'MU Budova 3'!H79+'MU Budova 4'!H79,IF($D$14=5,'MU Budova 1'!H79+'MU Budova 2'!H79+'MU Budova 3'!H79+'MU Budova 4'!H79+'MU Budova 5'!H79,IF($D$14=6,'MU Budova 1'!H79+'MU Budova 2'!H79+'MU Budova 3'!H79+'MU Budova 4'!H79+'MU Budova 5'!H79+'MU Budova 6'!H79,IF($D$14>=7,'MU Budova 1'!H79+'MU Budova 2'!H79+'MU Budova 3'!H79+'MU Budova 4'!H79+'MU Budova 5'!H79+'MU Budova 6'!H79+'MU Budova 7'!H79))))))) -> 1
A29: P0612 | B29: Podlahová plocha budov obnovených nad rámec minimálnych požiadaviek | C29: Bez príznaku | D29: m2 | E29: =IF($D$14=1,'MU Budova 1'!H80,IF($D$14=2,'MU Budova 1'!H80+'MU Budova 2'!H80,IF($D$14=3,'MU Budova 1'!H80+'MU Budova 2'!H80+'MU Budova 3'!H80,IF($D$14=4,'MU Budova 1'!H80+'MU Budova 2'!H80+'MU Budova 3'!H80+'MU Budova 4'!H80,IF($D$14=5,'MU Budova 1'!H80+'MU Budova 2'!H80+'MU Budova 3'!H80+'MU Budova 4'!H80+'MU Budova 5'!H80,IF($D$14=6,'MU Budova 1'!H80+'MU Budova 2'!H80+'MU Budova 3'!H80+'MU Budova 4'!H80+'MU Budova 5'!H80+'MU Budova 6'!H80,IF($D$14>=7,'MU Budova 1'!H80+'MU Budova 2'!H80+'MU Budova 3'!H80+'MU Budova 4'!H80+'MU Budova 5'!H80+'MU Budova 6'!H80+'MU Budova 7'!H80))))))) -> 839.54
A30: P0627 | B30: Spotreba energie v budove po realizácii opatrení energetickej efektívnosti | C30: S príznakom | D30: MWh/rok | E30: =IF($D$14=1,'MU Budova 1'!H81,IF($D$14=2,'MU Budova 1'!H81+'MU Budova 2'!H81,IF($D$14=3,'MU Budova 1'!H81+'MU Budova 2'!H81+'MU Budova 3'!H81,IF($D$14=4,'MU Budova 1'!H81+'MU Budova 2'!H81+'MU Budova 3'!H81+'MU Budova 4'!H81,IF($D$14=5,'MU Budova 1'!H81+'MU Budova 2'!H81+'MU Budova 3'!H81+'MU Budova 4'!H81+'MU Budova 5'!H81,IF($D$14=6,'MU Budova 1'!H81+'MU Budova 2'!H81+'MU Budova 3'!H81+'MU Budova 4'!H81+'MU Budova 5'!H81+'MU Budova 6'!H81,IF($D$14>=7,'MU Budova 1'!H81+'MU Budova 2'!H81+'MU Budova 3'!H81+'MU Budova 4'!H81+'MU Budova 5'!H81+'MU Budova 6'!H81+'MU Budova 7'!H81))))))) -> 94.71989763
A31: P0628 | B31: Spotreba energie v budove pred realizáciou opatrení energetickej efektívnosti | C31: S príznakom | D31: MWh/rok | E31: =IF($D$14=1,'MU Budova 1'!H82,IF($D$14=2,'MU Budova 1'!H82+'MU Budova 2'!H82,IF($D$14=3,'MU Budova 1'!H82+'MU Budova 2'!H82+'MU Budova 3'!H82,IF($D$14=4,'MU Budova 1'!H82+'MU Budova 2'!H82+'MU Budova 3'!H82+'MU Budova 4'!H82,IF($D$14=5,'MU Budova 1'!H82+'MU Budova 2'!H82+'MU Budova 3'!H82+'MU Budova 4'!H82+'MU Budova 5'!H82,IF($D$14=6,'MU Budova 1'!H82+'MU Budova 2'!H82+'MU Budova 3'!H82+'MU Budova 4'!H82+'MU Budova 5'!H82+'MU Budova 6'!H82,IF($D$14>=7,'MU Budova 1'!H82+'MU Budova 2'!H82+'MU Budova 3'!H82+'MU Budova 4'!H82+'MU Budova 5'!H82+'MU Budova 6'!H82+'MU Budova 7'!H82))))))) -> 242.8783333
A32: P0687 | B32: Zníženie konečnej spotreby energie vo verejných budovách | C32: S príznakom | D32: kWh/rok | E32: =IF($D$14=1,'MU Budova 1'!H83,IF($D$14=2,'MU Budova 1'!H83+'MU Budova 2'!H83,IF($D$14=3,'MU Budova 1'!H83+'MU Budova 2'!H83+'MU Budova 3'!H83,IF($D$14=4,'MU Budova 1'!H83+'MU Budova 2'!H83+'MU Budova 3'!H83+'MU Budova 4'!H83,IF($D$14=5,'MU Budova 1'!H83+'MU Budova 2'!H83+'MU Budova 3'!H83+'MU Budova 4'!H83+'MU Budova 5'!H83,IF($D$14=6,'MU Budova 1'!H83+'MU Budova 2'!H83+'MU Budova 3'!H83+'MU Budova 4'!H83+'MU Budova 5'!H83+'MU Budova 6'!H83,IF($D$14>=7,'MU Budova 1'!H83+'MU Budova 2'!H83+'MU Budova 3'!H83+'MU Budova 4'!H83+'MU Budova 5'!H83+'MU Budova 6'!H83+'MU Budova 7'!H83))))))) -> 148158.4357
A33: P0689 | B33: Zníženie potreby energie vo verejných budovách | C33: S príznakom | D33: kWh/rok | E33: =IF($D$14=1,'MU Budova 1'!H84,IF($D$14=2,'MU Budova 1'!H84+'MU Budova 2'!H84,IF($D$14=3,'MU Budova 1'!H84+'MU Budova 2'!H84+'MU Budova 3'!H84,IF($D$14=4,'MU Budova 1'!H84+'MU Budova 2'!H84+'MU Budova 3'!H84+'MU Budova 4'!H84,IF($D$14=5,'MU Budova 1'!H84+'MU Budova 2'!H84+'MU Budova 3'!H84+'MU Budova 4'!H84+'MU Budova 5'!H84,IF($D$14=6,'MU Budova 1'!H84+'MU Budova 2'!H84+'MU Budova 3'!H84+'MU Budova 4'!H84+'MU Budova 5'!H84+'MU Budova 6'!H84,IF($D$14>=7,'MU Budova 1'!H84+'MU Budova 2'!H84+'MU Budova 3'!H84+'MU Budova 4'!H84+'MU Budova 5'!H84+'MU Budova 6'!H84+'MU Budova 7'!H84))))))) -> 89572.4816
A34: P0691 | B34: Zníženie produkcie emisií NOx | C34: S príznakom | D34: kg/rok | E34: =IF($D$14=1,'MU Budova 1'!H85,IF($D$14=2,'MU Budova 1'!H85+'MU Budova 2'!H85,IF($D$14=3,'MU Budova 1'!H85+'MU Budova 2'!H85+'MU Budova 3'!H85,IF($D$14=4,'MU Budova 1'!H85+'MU Budova 2'!H85+'MU Budova 3'!H85+'MU Budova 4'!H85,IF($D$14=5,'MU Budova 1'!H85+'MU Budova 2'!H85+'MU Budova 3'!H85+'MU Budova 4'!H85+'MU Budova 5'!H85,IF($D$14=6,'MU Budova 1'!H85+'MU Budova 2'!H85+'MU Budova 3'!H85+'MU Budova 4'!H85+'MU Budova 5'!H85+'MU Budova 6'!H85,IF($D$14>=7,'MU Budova 1'!H85+'MU Budova 2'!H85+'MU Budova 3'!H85+'MU Budova 4'!H85+'MU Budova 5'!H85+'MU Budova 6'!H85+'MU Budova 7'!H85))))))) -> 25.76
A35: P0692 | B35: Zníženie produkcie emisií PM10 | C35: S príznakom | D35: kg/rok | E35: =IF($D$14=1,'MU Budova 1'!H86,IF($D$14=2,'MU Budova 1'!H86+'MU Budova 2'!H86,IF($D$14=3,'MU Budova 1'!H86+'MU Budova 2'!H86+'MU Budova 3'!H86,IF($D$14=4,'MU Budova 1'!H86+'MU Budova 2'!H86+'MU Budova 3'!H86+'MU Budova 4'!H86,IF($D$14=5,'MU Budova 1'!H86+'MU Budova 2'!H86+'MU Budova 3'!H86+'MU Budova 4'!H86+'MU Budova 5'!H86,IF($D$14=6,'MU Budova 1'!H86+'MU Budova 2'!H86+'MU Budova 3'!H86+'MU Budova 4'!H86+'MU Budova 5'!H86+'MU Budova 6'!H86,IF($D$14>=7,'MU Budova 1'!H86+'MU Budova 2'!H86+'MU Budova 3'!H86+'MU Budova 4'!H86+'MU Budova 5'!H86+'MU Budova 6'!H86+'MU Budova 7'!H86))))))) -> 1.79
A36: P0694 | B36: Zníženie produkcie emisií SO2 | C36: S príznakom | D36: kg/rok | E36: =IF($D$14=1,'MU Budova 1'!H87,IF($D$14=2,'MU Budova 1'!H87+'MU Budova 2'!H87,IF($D$14=3,'MU Budova 1'!H87+'MU Budova 2'!H87+'MU Budova 3'!H87,IF($D$14=4,'MU Budova 1'!H87+'MU Budova 2'!H87+'MU Budova 3'!H87+'MU Budova 4'!H87,IF($D$14=5,'MU Budova 1'!H87+'MU Budova 2'!H87+'MU Budova 3'!H87+'MU Budova 4'!H87+'MU Budova 5'!H87,IF($D$14=6,'MU Budova 1'!H87+'MU Budova 2'!H87+'MU Budova 3'!H87+'MU Budova 4'!H87+'MU Budova 5'!H87+'MU Budova 6'!H87,IF($D$14>=7,'MU Budova 1'!H87+'MU Budova 2'!H87+'MU Budova 3'!H87+'MU Budova 4'!H87+'MU Budova 5'!H87+'MU Budova 6'!H87+'MU Budova 7'!H87))))))) -> 3.41
A37: P0701 | B37: Zníženie ročnej spotreby primárnej energie vo verejných budovách | C37: S príznakom | D37: kWh/rok | E37: =IF($D$14=1,'MU Budova 1'!H88,IF($D$14=2,'MU Budova 1'!H88+'MU Budova 2'!H88,IF($D$14=3,'MU Budova 1'!H88+'MU Budova 2'!H88+'MU Budova 3'!H88,IF($D$14=4,'MU Budova 1'!H88+'MU Budova 2'!H88+'MU Budova 3'!H88+'MU Budova 4'!H88,IF($D$14=5,'MU Budova 1'!H88+'MU Budova 2'!H88+'MU Budova 3'!H88+'MU Budova 4'!H88+'MU Budova 5'!H88,IF($D$14=6,'MU Budova 1'!H88+'MU Budova 2'!H88+'MU Budova 3'!H88+'MU Budova 4'!H88+'MU Budova 5'!H88+'MU Budova 6'!H88,IF($D$14>=7,'MU Budova 1'!H88+'MU Budova 2'!H88+'MU Budova 3'!H88+'MU Budova 4'!H88+'MU Budova 5'!H88+'MU Budova 6'!H88+'MU Budova 7'!H88))))))) -> 160907.3018
A38: P0705 | B38: Zvýšená kapacita výroby elektriny z obnoviteľných zdrojov | C38: Bez príznaku | D38: MWe | E38: =IF($D$14=1,'MU Budova 1'!H89,IF($D$14=2,'MU Budova 1'!H89+'MU Budova 2'!H89,IF($D$14=3,'MU Budova 1'!H89+'MU Budova 2'!H89+'MU Budova 3'!H89,IF($D$14=4,'MU Budova 1'!H89+'MU Budova 2'!H89+'MU Budova 3'!H89+'MU Budova 4'!H89,IF($D$14=5,'MU Budova 1'!H89+'MU Budova 2'!H89+'MU Budova 3'!H89+'MU Budova 4'!H89+'MU Budova 5'!H89,IF($D$14=6,'MU Budova 1'!H89+'MU Budova 2'!H89+'MU Budova 3'!H89+'MU Budova 4'!H89+'MU Budova 5'!H89+'MU Budova 6'!H89,IF($D$14>=7,'MU Budova 1'!H89+'MU Budova 2'!H89+'MU Budova 3'!H89+'MU Budova 4'!H89+'MU Budova 5'!H89+'MU Budova 6'!H89+'MU Budova 7'!H89))))))) -> 0
A39: P0706 | B39: Zvýšená kapacita výroby energie z obnoviteľných zdrojov | C39: Bez príznaku | D39: MW | E39: =IF($D$14=1,'MU Budova 1'!H90,IF($D$14=2,'MU Budova 1'!H90+'MU Budova 2'!H90,IF($D$14=3,'MU Budova 1'!H90+'MU Budova 2'!H90+'MU Budova 3'!H90,IF($D$14=4,'MU Budova 1'!H90+'MU Budova 2'!H90+'MU Budova 3'!H90+'MU Budova 4'!H90,IF($D$14=5,'MU Budova 1'!H90+'MU Budova 2'!H90+'MU Budova 3'!H90+'MU Budova 4'!H90+'MU Budova 5'!H90,IF($D$14=6,'MU Budova 1'!H90+'MU Budova 2'!H90+'MU Budova 3'!H90+'MU Budova 4'!H90+'MU Budova 5'!H90+'MU Budova 6'!H90,IF($D$14>=7,'MU Budova 1'!H90+'MU Budova 2'!H90+'MU Budova 3'!H90+'MU Budova 4'!H90+'MU Budova 5'!H90+'MU Budova 6'!H90+'MU Budova 7'!H90))))))) -> 0
A40: P0707 | B40: Zvýšená kapacita výroby tepla z obnoviteľných zdrojov | C40: Bez príznaku | D40: MWt | E40: =IF($D$14=1,'MU Budova 1'!H91,IF($D$14=2,'MU Budova 1'!H91+'MU Budova 2'!H91,IF($D$14=3,'MU Budova 1'!H91+'MU Budova 2'!H91+'MU Budova 3'!H91,IF($D$14=4,'MU Budova 1'!H91+'MU Budova 2'!H91+'MU Budova 3'!H91+'MU Budova 4'!H91,IF($D$14=5,'MU Budova 1'!H91+'MU Budova 2'!H91+'MU Budova 3'!H91+'MU Budova 4'!H91+'MU Budova 5'!H91,IF($D$14=6,'MU Budova 1'!H91+'MU Budova 2'!H91+'MU Budova 3'!H91+'MU Budova 4'!H91+'MU Budova 5'!H91+'MU Budova 6'!H91,IF($D$14>=7,'MU Budova 1'!H91+'MU Budova 2'!H91+'MU Budova 3'!H91+'MU Budova 4'!H91+'MU Budova 5'!H91+'MU Budova 6'!H91+'MU Budova 7'!H91))))))) -> 0

Sheet MU Budova 2 (hidden)
A2: Príloha ŽoNFP č. 6 - Dokumentácia k oprávnenosti výdavkov
A8: Merateľné ukazovateľe - Budova č. 2 | H8: =IF('Rozpočet B2'!G12="",""," - súpis. č. "&'Rozpočet B2'!G12) -> 
A10: Názov žiadateľa: | B10: =IF('Rozpočet B2'!B9:O9="","",'Rozpočet B2'!B9:O9) -> Obec Podhorany
A11: Názov projektu: | B11: =IF('Rozpočet B2'!B10:O10="","",'Rozpočet B2'!B10:O10) -> Stavebné úpravy ZŠ Podhorany Zníženie spotreby energie pri prevádzke
A13: Využitie budovy | D13: =IFERROR(IF(H82/(E64)>=0.75,Číselníky!C20,Číselníky!C19),"") ->  | I13: =IF(OR(O15=0,O16=0,O17=0,O18=0,O19=0),"Minimálne jedna podmienka výzvy nie je splnená (riadky 15-18)",IF(K25<30,"Podmienka plánovanej úspory potreby energie na vykurovanie nie je splnená","")) ->  | O13: =IF(D13=Číselníky!C19,0,1) -> 1
A15: Bude budova preukázateľne dlhodobo využívaná verejným sektorom bez zmeny charakteru jej využitia v zmysle výzvy? | I15: Ak je budova pripojená k účinným (efektívnym) systémom centralizovaného zásobovania teplom, zostane pripojená aj po ukončení realizácie projektu v zmysle výzvy? | O15: =IF(G15=Číselníky!A3,0,1) -> 1
A16: Bude dosiahnutá plánovaná úspora potreby energie na vykurovanie vo výške min. 30% v zmysle výzvy? | G16: =IF($K$26="","",IF($K$26=100,Číselníky!$A$3,Číselníky!$A$2)) ->  | O16: =IF(G16=Číselníky!A3,0,1) -> 1
A17: Je hlavná aktivita v súlade so Stratégiou pre redukciu PM10 a programami na zlepšenie kvality ovzdušia v zmysle výzvy? | I17: Ak je súčastou aktivity energetické zariadenie využívajúce biomasu, je a bude využívané? | L17: Ku dňu predloženia ŽoNFP | M17: Po ukončení realizácie projektu | O17: =IF(G17=Číselníky!A3,0,1) -> 1
A18: Ak relevantné, je hlavná aktivita v súlade s Kritériami udržateľného využívania biomasy v zmysle výzvy? | O18: =IF(G18=Číselníky!A3,0,1) -> 1
O19: =IF(M15=Číselníky!A3,0,1) -> 1
A20: Využívanie verejnej budovy na hospodársku činnosť | C20: Merná jednotka | D20: Stav PRED realizáciou projektu | F20: Stav PO realizácii projektu
A21: Celková podlahová plocha verejnej budovy (v zmysle Príkladu) | C21: [ m2h ] | D21: Uveďte celkovú podlahovú plochu budovy (z vonjakších rozmerov budovy podľa STN 73 0540-2 Tepelná ochrana budov) ku dňu predloženia ŽoNFP a postupujte v zmysle Príkladu | F21: Uveďte celkovú podlahovú plochu budovy (z vonjakších rozmerov budovy podľa STN 73 0540-2 Tepelná ochrana budov) ku dňu predloženia ŽoNFP a postupujte v zmysle Príkladu | O21: =IF(ISNUMBER(F21),1,0) -> 0
A22: Podlahová plocha využívaná na sprievodnú hospodársku činnosť v rámci definície zmiešaného využitia budovy (v zmysle Príkladu) | C22: [ m2h ] | D22: Uveďte podlahovú plochu využívanú na hospodársku činnosť v rámci zmiešaného využitia budovy a to ku dňu predloženia ŽoNFP a postupujte v zmysle Príkladu | F22: Uveďte podlahovú plochu využívanú na hospodársku činnosť v rámci zmiešaného využitia budovy a to ku dňu predloženia ŽoNFP a postupujte v zmysle Príkladu | O22: =IF(ISNUMBER(F22),1,0) -> 0
A23: Podlahová plocha využívaná na hospodársku činnosť mimo definície zmiešaného využitia budovy | C23: [ m2h ] | D23: Uveďte podlahovú plochu využívanú na hospodársku činnosť mimo zmiešaného využitia budovy ku dňu predloženia ŽoNFP | F23: Uveďte podlahovú plochu využívanú na hospodársku činnosť mimo zmiešaného využitia budovy ku dňu predloženia ŽoNFP | O23: =IF(ISNUMBER(F23),1,0) -> 0
A24: Podiel podlahovej plochy zmiešaného využitia budovy | C24: [%] | D24: =IFERROR((D22/D21)*100,0) -> 0 | F24: =IFERROR((F22/F21)*100,0) -> 0
A25: Podiel podlahovej plochy hospodárskej činnosti budovy | C25: [%] | D25: =IFERROR((D23/D21)*100,0) -> 0 | F25: =IFERROR((F23/F21)*100,0) -> 0 | I25: Plánovaná úspora energie na vykurovanie [ % ] | K25: =IF(OR(E33="",F33=""),"",((E33-F33)/E33*100)) -> 
A26: Celkové percentuálne zníženie COV | C26: [%] | D26: 0 | F26: =IFERROR(IF(F24>20,SUM(F24:G25),F25),0) -> 0 | I26: Celkové zníženie OV [ % ] | K26: =IF(OR(E33="",F33=""),"",IF(K25<30,100,IF(AND(K25>=30,K25<=40),10,IF(AND(K25>=40,K25<=50),5,IF(K25>50,0))))) -> 
A28: Kategória budovy | I28: Dátum vydania stavebného povolenia
A29: Počet opatrení na zníženie SPOTREBY energie realizovaných v predmetnej budove
A31: Príloha č. 4 - Povolenie na realizáciu projektu Príloha č. 5 - Projektová dokumentácia - ENERGETICKÉ HODNOTENIE
A32: Podklady k stanoveniu úspory energie | E32: Stav PRED realizáciou projektu | F32: Stav PO realizácii projektu | G32: Energetická trieda po realizácii projektu
A33: Potreba energie na vykurovanie | D33: [kWh/m2.rok] | G33: =IF(E28="","Vyplňte kategóriu budovy",IF(OR(E28="Administratívna budova",E28="Budova škôl a školských zariadení"),IF(ROUND(F33,0)<=28,"A",IF(ROUND(F33,0)<=56,"B",IF(ROUND(F33,0)<=84,"C",IF(ROUND(F33,0)<=112,"D",IF(ROUND(F33,0)<=140,"E",IF(ROUND(F33,0)<=168,"F","G")))))),"neoprávnená kategória budovy")) -> Vyplňte kategóriu budovy | I33: =IF(OR(G33="C",G33="D",G33="E",G33="F",G33="G"),Číselníky!C19,"") ->  | O33: =IF(I33=Číselníky!C19,0,1) -> 1
A34: Potreba energie na prípravu teplej vody | D34: [kWh/m2.rok] | G34: =IF(E28="","Vyplňte kategóriu budovy",IF(E28="Administratívna budova",IF(ROUND(F34,0)<=4,"A",IF(ROUND(F34,0)<=8,"B",IF(ROUND(F34,0)<=12,"C",IF(ROUND(F34,0)<=16,"D",IF(ROUND(F34,0)<=20,"E",IF(ROUND(F34,0)<=24,"F","G")))))),IF(E28="Budova škôl a školských zariadení",IF(ROUND(F34,0)<=6,"A",IF(ROUND(F34,0)<=12,"B",IF(ROUND(F34,0)<=18,"C",IF(ROUND(F34,0)<=24,"D",IF(ROUND(F34,0)<=30,"E",IF(ROUND(F34,0)<=36,"F","G")))))),"neoprávnená kategória budovy"))) -> Vyplňte kategóriu budovy | I34: =IF(OR(G34="C",G34="D",G34="E",G34="F",G34="G"),Číselníky!C19,"") ->  | O34: =IF(I34=Číselníky!C19,0,1) -> 1
A35: Potreba energie na nútené vetranie/chladenie | D35: [kWh/m2.rok] | G35: =IF(E28="","Vyplňte kategóriu budovy",IF(E28="Administratívna budova",IF(ROUND(F35,0)<=16,"A",IF(ROUND(F35,0)<=31,"B",IF(ROUND(F35,0)<=45,"C",IF(ROUND(F35,0)<=59,"D",IF(ROUND(F35,0)<=75,"E",IF(ROUND(F35,0)<=90,"F","G")))))),IF(E28="Budova škôl a školských zariadení","nehodnotí sa","neoprávnená kategória budovy"))) -> Vyplňte kategóriu budovy | I35: =IF(OR(G35="C",G35="D",G35="E",G35="F",G35="G"),Číselníky!C19,"") ->  | O35: =IF(I35=Číselníky!C19,0,1) -> 1
A36: Potreba energie na osvetlenie | D36: [kWh/m2.rok] | G36: =IF(E28="","Vyplňte kategóriu budovy",IF(E28="Administratívna budova",IF(ROUND(F36,0)<=15,"A",IF(ROUND(F36,0)<=30,"B",IF(ROUND(F36,0)<=38,"C",IF(ROUND(F36,0)<=45,"D",IF(ROUND(F36,0)<=56,"E",IF(ROUND(F36,0)<=68,"F","G")))))),IF(E28="Budova škôl a školských zariadení",IF(ROUND(F36,0)<=9,"A",IF(ROUND(F36,0)<=18,"B",IF(ROUND(F36,0)<=23,"C",IF(ROUND(F36,0)<=27,"D",IF(ROUND(F36,0)<=34,"E",IF(ROUND(F36,0)<=41,"F","G")))))),"neoprávnená kategória budovy"))) -> Vyplňte kategóriu budovy | I36: =IF(OR(G36="C",G36="D",G36="E",G36="F",G36="G"),Číselníky!C19,"") ->  | O36: =IF(I36=Číselníky!C19,0,1) -> 1
A37: Celková potreba energie | D37: [kWh/m2.rok] | E37: =SUM(E33:E36) -> 0 | F37: =SUM(F33:F36) -> 0 | G37: =IF(E28="","Vyplňte kategóriu budovy",IF(E28="Administratívna budova",IF(ROUND(F37,0)<=63,"A",IF(ROUND(F37,0)<=125,"B",IF(ROUND(F37,0)<=179,"C",IF(ROUND(F37,0)<=232,"D",IF(ROUND(F37,0)<=291,"E",IF(ROUND(F37,0)<=350,"F","G")))))),IF(E28="Budova škôl a školských zariadení",IF(ROUND(F37,0)<=43,"A",IF(ROUND(F37,0)<=86,"B",IF(ROUND(F37,0)<=125,"C",IF(ROUND(F37,0)<=163,"D",IF(ROUND(F37,0)<=204,"E",IF(ROUND(F37,0)<=245,"F","G")))))),"neoprávnená kategória budovy"))) -> Vyplňte kategóriu budovy | I37: =IF(OR(G37="C",G37="D",G37="E",G37="F",G37="G"),Číselníky!C19,"") ->  | O37: =IF(I37=Číselníky!C19,0,1) -> 1
A38: Globálny ukazovateľ - Primárna energia | D38: [kWh/m2.rok] | G38: =IF(OR(E28="",K28=""),"Vyplňte kategóriu budovy / Dátum stav. pov",IF(E28="Administratívna budova",IF(ROUND(F38,0)<=61,"A0",IF(ROUND(F38,0)<=122,"A1",IF(ROUND(F38,0)<=255,"B",IF(ROUND(F38,0)<=383,"C",IF(ROUND(F38,0)<=511,"D",IF(ROUND(F38,0)<=639,"E",IF(ROUND(F38,0)<=766,"F","G"))))))),IF(E28="Budova škôl a školských zariadení",IF(ROUND(F38,0)<=34,"A0",IF(ROUND(F38,0)<=68,"A1",IF(ROUND(F38,0)<=136,"B",IF(ROUND(F38,0)<=204,"C",IF(ROUND(F38,0)<=272,"D",IF(ROUND(F38,0)<=340,"E",IF(ROUND(F38,0)<=408,"F","G"))))))),"neoprávnená kategória budovy"))) -> Vyplňte kategóriu budovy / Dátum stav. pov | I38: =IF(OR(G38="B",G38="C",G38="D",G38="E",G38="F",G38="G"),Číselníky!C19,IF((AND(G38="A1",K28>DATEVALUE("31.12.2018"))),"Projekt. dok. musí obsahovať zdôvodnenie nedosiahnutia hornej hranice energ. triedy A0","")) ->  | O38: =IF(I38=Číselníky!C19,0,1) -> 1
A39: Celková podlahová plocha | D39: [m2]
A41: Energetické zariadenia | E41: Počet kusov | F41: Plocha - Absorpčná [m2] | G41: Výkon [kW] | H41: Výkon na m2 [kWh/m2] | I41: Využitelnosť [h/rok] | J41: P0080 [MWh] | K41: P0084 [MWh] | L41: P0705 [MW] | M41: P0707 [MW]
A42: Tepelné čerpadlo - Elektrické | I42: 1290 | K42: =M42*I42 -> 0 | M42: =(E42*G42)/1000 -> 0
A43: Tepelné čerpadlo - Plynové | I43: 1050 | K43: =M43*I43 -> 0 | M43: =(E43*G43)/1000 -> 0
A44: KVET - Elektrina | I44: 1290 | J44: =L44*I44 -> 0 | L44: =(E44*G44)/1000 -> 0
A45: KVET - Teplo | I45: 1290 | K45: =M45*I45 -> 0 | M45: =(E45*G45)/1000 -> 0
A46: Solárny panel Termický plochý | H46: 525 | K46: =(E46*F46*H46)/1000 -> 0 | M46: =K46/1000 -> 0
A47: Solárny panel Vákouový | H47: 800 | K47: =(E47*F47*H47)/1000 -> 0 | M47: =K47/1000 -> 0
A48: Fotovoltaický panel | F48: 1 | I48: 1000 | J48: =L48*I48 -> 0 | L48: =(E48*F48*G48)/1000 -> 0
A50: Príloha č. 8 ŽoNFP - Energetický audit
A51: Prehľad o spotrebe energie pred realizáciou projektu | E51: Rok N-2 | F51: Rok N-1 | G51: Rok N | H51: Priemer | I51: Zníženie spotreby PE
A52: elektrina | D52: (MWh) | H52: =(E52+F52+G52)/3 -> 0 | I52: =$H$83*H52/$H$62/(0.93*0.99*0.4) -> 
A53: zemný plyn | D53: (MWh) | H53: =(E53+F53+G53)/3 -> 0 | I53: =$H$83*H53/$H$62/(0.99*0.985) -> 
A54: biomasa, uhlie | D54: (MWh) | H54: =(E54+F54+G54)/3 -> 0 | I54: =$H$83*H54/$H$62 -> 
A55: CZT | D55: (MWh) | H55: =(E55+F55+G55)/3 -> 0 | I55: =IF(OR(E56="",E57="",E58="",E59="",E60="",E61=""),"Vyplňte bunky E56 - 61",$H$83*H55/$H$62/(O56*O57*O58*O59*O60*O61)) -> Vyplňte bunky E56 - 61
B56: Účinnosť sekundárneho rozvodu - teplá voda | O56: =IF(E56="áno",0.94,1) -> 1
B57: Účinnosť OST | O57: =IF(E57="áno",0.985,1) -> 1
B58: Účinnosť účinnosť primárneho rozvodu - teplá voda | O58: =IF(E58="áno",0.925,1) -> 1
B59: Účinnosť OST - horúca - teplá voda | O59: =IF(E59="áno",0.985,1) -> 1
B60: Účinnosť primárneho rozvodu - horúca voda | O60: =IF(E60="áno",0.9,1) -> 1
B61: Účinnosť premeny energie | O61: =IF(E61="áno",0.88,1) -> 1
A62: Spotreba energie SPOLU | D62: (MWh) | E62: =SUM(E52:E55) -> 0 | F62: =SUM(F52:F55) -> 0 | G62: =SUM(G52:G55) -> 0 | H62: =SUM(H52:H55) -> 0 | I62: =SUM(I52:I55) -> 
A64: Celková potreba energie pred realizáciou projektu vypočítaná projektovým energetickým hodnotením | F64: MWh/rok
A66: Environmentálne hodnotenie | E66: Stav PRED realizáciou projektu | F66: Stav PO realizácii projektu
A67: CO2 | D67: ton
A68: NOx | D68: kg
A69: TZL/PM10 | D69: kg
A70: SO2 | D70: kg
A73: Merateľné ukazovatele Budova č. 2 | D73: =IF('Rozpočet B2'!G12="",""," - súpis. č. "&'Rozpočet B2'!G12) -> 
A74: Názov MU | B74: Názov Merateľného ukazovatela | F74: Príznak rizika | G74: Merná jednotka | H74: Výsledná hodnota
A75: P0080 | B75: Množstvo elektrickej energie vyrobenej v zariadení OZE | F75: S príznakom | G75: MWh/rok | H75: =J44+J48 -> 0
A76: P0084 | B76: Množstvo tepelnej energie vyrobenej v zariadení OZE | F76: S príznakom | G76: MWh/rok | H76: =K42+K43+K45+K46+K47 -> 0
A77: P0103 | B77: Odhadované ročné zníženie emisií skleníkových plynov | F77: S príznakom | G77: t ekviv. CO2/rok | H77: =E67-F67 -> 0
A78: P0250 | B78: Počet opatrení na zníženie spotreby energie realizovaných vo verejnej budove | F78: Bez príznaku | G78: počet | H78: =E29 -> 0
A79: P0470 | B79: Počet verej. budov na úrovni nízkoenerg. / ultranízkoenerg. alebo s takmer nul. potrebou energie | F79: Bez príznaku | G79: počet | H79: 1
A80: P0612 | B80: Podlahová plocha budov obnovených nad rámec minimálnych požiadaviek | F80: Bez príznaku | G80: m2 | H80: =F39 -> 0
A81: P0627 | B81: Spotreba energie v budove po realizácii opatrení energetickej efektívnosti | F81: S príznakom | G81: MWh/rok | H81: =H82*(F38*F39)/(E38*E39) -> 
A82: P0628 | B82: Spotreba energie v budove pred realizáciou opatrení energetickej efektívnosti | F82: S príznakom | G82: MWh/rok | H82: =H62 -> 0
A83: P0687 | B83: Zníženie konečnej spotreby energie vo verejných budovách | F83: S príznakom | G83: kWh/rok | H83: =(H82-H81)*1000 -> 
A84: P0689 | B84: Zníženie potreby energie vo verejných budovách | F84: S príznakom | G84: kWh/rok | H84: =(E38*E39)-(F38*F39) -> 0
A85: P0691 | B85: Zníženie produkcie emisií NOx | F85: S príznakom | G85: kg/rok | H85: =E68-F68 -> 0
A86: P0692 | B86: Zníženie produkcie emisií PM10 | F86: S príznakom | G86: kg/rok | H86: =E69-F69 -> 0
A87: P0694 | B87: Zníženie produkcie emisií SO2 | F87: S príznakom | G87: kg/rok | H87: =E70-F70 -> 0
A88: P0701 | B88: Zníženie ročnej spotreby primárnej energie vo verejných budovách | F88: S príznakom | G88: kWh/rok | H88: =I62 -> 
A89: P0705 | B89: Zvýšená kapacita výroby elektriny z obnoviteľných zdrojov | F89: Bez príznaku | G89: MWe | H89: =L44+L48 -> 0
A90: P0706 | B90: Zvýšená kapacita výroby energie z obnoviteľných zdrojov | F90: Bez príznaku | G90: MW | H90: =H89+H91 -> 0
A91: P0707 | B91: Zvýšená kapacita výroby tepla z obnoviteľných zdrojov | F91: Bez príznaku | G91: MWt | H91: =M42+M43+M45+M46+M47 -> 0

Sheet MU Budova 3 (hidden)
A2: Príloha ŽoNFP č. 6 - Dokumentácia k oprávnenosti výdavkov
A8: Merateľné ukazovateľe - Budova č. 3 | H8: =IF('Rozpočet B3'!G12="",""," - súpis. č. "&'Rozpočet B3'!G12) -> 
A10: Názov žiadateľa: | B10: =IF('Rozpočet B3'!B9:O9="","",'Rozpočet B3'!B9:O9) -> Obec Podhorany
A11: Názov projektu: | B11: =IF('Rozpočet B3'!B10:O10="","",'Rozpočet B3'!B10:O10) -> Stavebné úpravy ZŠ Podhorany Zníženie spotreby energie pri prevádzke
A13: Využitie budovy | D13: =IFERROR(IF(H82/(E64)>=0.75,Číselníky!C20,Číselníky!C19),"") ->  | I13: =IF(OR(O15=0,O16=0,O17=0,O18=0,O19=0),"Minimálne jedna podmienka výzvy nie je splnená (riadky 15-18)",IF(K25<30,"Podmienka plánovanej úspory potreby energie na vykurovanie nie je splnená","")) ->  | O13: =IF(D13=Číselníky!C19,0,1) -> 1
A15: Bude budova preukázateľne dlhodobo využívaná verejným sektorom bez zmeny charakteru jej využitia v zmysle výzvy? | I15: Ak je budova pripojená k účinným (efektívnym) systémom centralizovaného zásobovania teplom, zostane pripojená aj po ukončení realizácie projektu v zmysle výzvy? | O15: =IF(G15=Číselníky!A3,0,1) -> 1
A16: Bude dosiahnutá plánovaná úspora potreby energie na vykurovanie vo výške min. 30% v zmysle výzvy? | G16: =IF($K$26="","",IF($K$26=100,Číselníky!$A$3,Číselníky!$A$2)) ->  | O16: =IF(G16=Číselníky!A3,0,1) -> 1
A17: Je hlavná aktivita v súlade so Stratégiou pre redukciu PM10 a programami na zlepšenie kvality ovzdušia v zmysle výzvy? | I17: Ak je súčastou aktivity energetické zariadenie využívajúce biomasu, je a bude využívané? | L17: Ku dňu predloženia ŽoNFP | M17: Po ukončení realizácie projektu | O17: =IF(G17=Číselníky!A3,0,1) -> 1
A18: Ak relevantné, je hlavná aktivita v súlade s Kritériami udržateľného využívania biomasy v zmysle výzvy? | O18: =IF(G18=Číselníky!A3,0,1) -> 1
O19: =IF(M15=Číselníky!A3,0,1) -> 1
A20: Využívanie verejnej budovy na hospodársku činnosť | C20: Merná jednotka | D20: Stav PRED realizáciou projektu | F20: Stav PO realizácii projektu
A21: Celková podlahová plocha verejnej budovy (v zmysle Príkladu) | C21: [ m2h ] | D21: Uveďte celkovú podlahovú plochu budovy (z vonjakších rozmerov budovy podľa STN 73 0540-2 Tepelná ochrana budov) ku dňu predloženia ŽoNFP a postupujte v zmysle Príkladu | F21: Uveďte celkovú podlahovú plochu budovy (z vonjakších rozmerov budovy podľa STN 73 0540-2 Tepelná ochrana budov) ku dňu predloženia ŽoNFP a postupujte v zmysle Príkladu | O21: =IF(ISNUMBER(F21),1,0) -> 0
A22: Podlahová plocha využívaná na sprievodnú hospodársku činnosť v rámci definície zmiešaného využitia budovy (v zmysle Príkladu) | C22: [ m2h ] | D22: Uveďte podlahovú plochu využívanú na hospodársku činnosť v rámci zmiešaného využitia budovy a to ku dňu predloženia ŽoNFP a postupujte v zmysle Príkladu | F22: Uveďte podlahovú plochu využívanú na hospodársku činnosť v rámci zmiešaného využitia budovy a to ku dňu predloženia ŽoNFP a postupujte v zmysle Príkladu | O22: =IF(ISNUMBER(F22),1,0) -> 0
A23: Podlahová plocha využívaná na hospodársku činnosť mimo definície zmiešaného využitia budovy | C23: [ m2h ] | D23: Uveďte podlahovú plochu využívanú na hospodársku činnosť mimo zmiešaného využitia budovy ku dňu predloženia ŽoNFP | F23: Uveďte podlahovú plochu využívanú na hospodársku činnosť mimo zmiešaného využitia budovy ku dňu predloženia ŽoNFP | O23: =IF(ISNUMBER(F23),1,0) -> 0
A24: Podiel podlahovej plochy zmiešaného využitia budovy | C24: [%] | D24: =IFERROR((D22/D21)*100,0) -> 0 | F24: =IFERROR((F22/F21)*100,0) -> 0
A25: Podiel podlahovej plochy hospodárskej činnosti budovy | C25: [%] | D25: =IFERROR((D23/D21)*100,0) -> 0 | F25: =IFERROR((F23/F21)*100,0) -> 0 | I25: Plánovaná úspora energie na vykurovanie [ % ] | K25: =IF(OR(E33="",F33=""),"",((E33-F33)/E33*100)) -> 
A26: Celkové percentuálne zníženie COV | C26: [%] | D26: 0 | F26: =IFERROR(IF(F24>20,SUM(F24:G25),F25),0) -> 0 | I26: Celkové zníženie OV [ % ] | K26: =IF(OR(E33="",F33=""),"",IF(K25<30,100,IF(AND(K25>=30,K25<=40),10,IF(AND(K25>=40,K25<=50),5,IF(K25>50,0))))) -> 
A28: Kategória budovy | I28: Dátum vydania stavebného povolenia
A29: Počet opatrení na zníženie SPOTREBY energie realizovaných v predmetnej budove
A31: Príloha č. 4 - Povolenie na realizáciu projektu Príloha č. 5 - Projektová dokumentácia - ENERGETICKÉ HODNOTENIE
A32: Podklady k stanoveniu úspory energie | E32: Stav PRED realizáciou projektu | F32: Stav PO realizácii projektu | G32: Energetická trieda po realizácii projektu
A33: Potreba energie na vykurovanie | D33: [kWh/m2.rok] | G33: =IF(E28="","Vyplňte kategóriu budovy",IF(OR(E28="Administratívna budova",E28="Budova škôl a školských zariadení"),IF(ROUND(F33,0)<=28,"A",IF(ROUND(F33,0)<=56,"B",IF(ROUND(F33,0)<=84,"C",IF(ROUND(F33,0)<=112,"D",IF(ROUND(F33,0)<=140,"E",IF(ROUND(F33,0)<=168,"F","G")))))),"neoprávnená kategória budovy")) -> Vyplňte kategóriu budovy | I33: =IF(OR(G33="C",G33="D",G33="E",G33="F",G33="G"),Číselníky!C19,"") ->  | O33: =IF(I33=Číselníky!C19,0,1) -> 1
A34: Potreba energie na prípravu teplej vody | D34: [kWh/m2.rok] | G34: =IF(E28="","Vyplňte kategóriu budovy",IF(E28="Administratívna budova",IF(ROUND(F34,0)<=4,"A",IF(ROUND(F34,0)<=8,"B",IF(ROUND(F34,0)<=12,"C",IF(ROUND(F34,0)<=16,"D",IF(ROUND(F34,0)<=20,"E",IF(ROUND(F34,0)<=24,"F","G")))))),IF(E28="Budova škôl a školských zariadení",IF(ROUND(F34,0)<=6,"A",IF(ROUND(F34,0)<=12,"B",IF(ROUND(F34,0)<=18,"C",IF(ROUND(F34,0)<=24,"D",IF(ROUND(F34,0)<=30,"E",IF(ROUND(F34,0)<=36,"F","G")))))),"neoprávnená kategória budovy"))) -> Vyplňte kategóriu budovy | I34: =IF(OR(G34="C",G34="D",G34="E",G34="F",G34="G"),Číselníky!C19,"") ->  | O34: =IF(I34=Číselníky!C19,0,1) -> 1
A35: Potreba energie na nútené vetranie/chladenie | D35: [kWh/m2.rok] | G35: =IF(E28="","Vyplňte kategóriu budovy",IF(E28="Administratívna budova",IF(ROUND(F35,0)<=16,"A",IF(ROUND(F35,0)<=31,"B",IF(ROUND(F35,0)<=45,"C",IF(ROUND(F35,0)<=59,"D",IF(ROUND(F35,0)<=75,"E",IF(ROUND(F35,0)<=90,"F","G")))))),IF(E28="Budova škôl a školských zariadení","nehodnotí sa","neoprávnená kategória budovy"))) -> Vyplňte kategóriu budovy | I35: =IF(OR(G35="C",G35="D",G35="E",G35="F",G35="G"),Číselníky!C19,"") ->  | O35: =IF(I35=Číselníky!C19,0,1) -> 1
A36: Potreba energie na osvetlenie | D36: [kWh/m2.rok] | G36: =IF(E28="","Vyplňte kategóriu budovy",IF(E28="Administratívna budova",IF(ROUND(F36,0)<=15,"A",IF(ROUND(F36,0)<=30,"B",IF(ROUND(F36,0)<=38,"C",IF(ROUND(F36,0)<=45,"D",IF(ROUND(F36,0)<=56,"E",IF(ROUND(F36,0)<=68,"F","G")))))),IF(E28="Budova škôl a školských zariadení",IF(ROUND(F36,0)<=9,"A",IF(ROUND(F36,0)<=18,"B",IF(ROUND(F36,0)<=23,"C",IF(ROUND(F36,0)<=27,"D",IF(ROUND(F36,0)<=34,"E",IF(ROUND(F36,0)<=41,"F","G")))))),"neoprávnená kategória budovy"))) -> Vyplňte kategóriu budovy | I36: =IF(OR(G36="C",G36="D",G36="E",G36="F",G36="G"),Číselníky!C19,"") ->  | O36: =IF(I36=Číselníky!C19,0,1) -> 1
A37: Celková potreba energie | D37: [kWh/m2.rok] | E37: =SUM(E33:E36) -> 0 | F37: =SUM(F33:F36) -> 0 | G37: =IF(E28="","Vyplňte kategóriu budovy",IF(E28="Administratívna budova",IF(ROUND(F37,0)<=63,"A",IF(ROUND(F37,0)<=125,"B",IF(ROUND(F37,0)<=179,"C",IF(ROUND(F37,0)<=232,"D",IF(ROUND(F37,0)<=291,"E",IF(ROUND(F37,0)<=350,"F","G")))))),IF(E28="Budova škôl a školských zariadení",IF(ROUND(F37,0)<=43,"A",IF(ROUND(F37,0)<=86,"B",IF(ROUND(F37,0)<=125,"C",IF(ROUND(F37,0)<=163,"D",IF(ROUND(F37,0)<=204,"E",IF(ROUND(F37,0)<=245,"F","G")))))),"neoprávnená kategória budovy"))) -> Vyplňte kategóriu budovy | I37: =IF(OR(G37="C",G37="D",G37="E",G37="F",G37="G"),Číselníky!C19,"") ->  | O37: =IF(I37=Číselníky!C19,0,1) -> 1
A38: Globálny ukazovateľ - Primárna energia | D38: [kWh/m2.rok] | G38: =IF(OR(E28="",K28=""),"Vyplňte kategóriu budovy / Dátum stav. pov",IF(E28="Administratívna budova",IF(ROUND(F38,0)<=61,"A0",IF(ROUND(F38,0)<=122,"A1",IF(ROUND(F38,0)<=255,"B",IF(ROUND(F38,0)<=383,"C",IF(ROUND(F38,0)<=511,"D",IF(ROUND(F38,0)<=639,"E",IF(ROUND(F38,0)<=766,"F","G"))))))),IF(E28="Budova škôl a školských zariadení",IF(ROUND(F38,0)<=34,"A0",IF(ROUND(F38,0)<=68,"A1",IF(ROUND(F38,0)<=136,"B",IF(ROUND(F38,0)<=204,"C",IF(ROUND(F38,0)<=272,"D",IF(ROUND(F38,0)<=340,"E",IF(ROUND(F38,0)<=408,"F","G"))))))),"neoprávnená kategória budovy"))) -> Vyplňte kategóriu budovy / Dátum stav. pov | I38: =IF(OR(G38="B",G38="C",G38="D",G38="E",G38="F",G38="G"),Číselníky!C19,IF((AND(G38="A1",K28>DATEVALUE("31.12.2018"))),"Projekt. dok. musí obsahovať zdôvodnenie nedosiahnutia hornej hranice energ. triedy A0","")) ->  | O38: =IF(I38=Číselníky!C19,0,1) -> 1
A39: Celková podlahová plocha | D39: [m2]
A41: Energetické zariadenia | E41: Počet kusov | F41: Plocha - Absorpčná [m2] | G41: Výkon [kW] | H41: Výkon na m2 [kWh/m2] | I41: Využitelnosť [h/rok] | J41: P0080 [MWh] | K41: P0084 [MWh] | L41: P0705 [MW] | M41: P0707 [MW]
A42: Tepelné čerpadlo - Elektrické | I42: 1290 | K42: =M42*I42 -> 0 | M42: =(E42*G42)/1000 -> 0
A43: Tepelné čerpadlo - Plynové | I43: 1050 | K43: =M43*I43 -> 0 | M43: =(E43*G43)/1000 -> 0
A44: KVET - Elektrina | I44: 1290 | J44: =L44*I44 -> 0 | L44: =(E44*G44)/1000 -> 0
A45: KVET - Teplo | I45: 1290 | K45: =M45*I45 -> 0 | M45: =(E45*G45)/1000 -> 0
A46: Solárny panel Termický plochý | H46: 525 | K46: =(E46*F46*H46)/1000 -> 0 | M46: =K46/1000 -> 0
A47: Solárny panel Vákouový | H47: 800 | K47: =(E47*F47*H47)/1000 -> 0 | M47: =K47/1000 -> 0
A48: Fotovoltaický panel | F48: 1 | I48: 1000 | J48: =L48*I48 -> 0 | L48: =(E48*F48*G48)/1000 -> 0
A50: Príloha č. 8 ŽoNFP - Energetický audit
A51: Prehľad o spotrebe energie pred realizáciou projektu | E51: Rok N-2 | F51: Rok N-1 | G51: Rok N | H51: Priemer | I51: Zníženie spotreby PE
A52: elektrina | D52: (MWh) | H52: =(E52+F52+G52)/3 -> 0 | I52: =$H$83*H52/$H$62/(0.93*0.99*0.4) -> 
A53: zemný plyn | D53: (MWh) | H53: =(E53+F53+G53)/3 -> 0 | I53: =$H$83*H53/$H$62/(0.99*0.985) -> 
A54: biomasa, uhlie | D54: (MWh) | H54: =(E54+F54+G54)/3 -> 0 | I54: =$H$83*H54/$H$62 -> 
A55: CZT | D55: (MWh) | H55: =(E55+F55+G55)/3 -> 0 | I55: =IF(OR(E56="",E57="",E58="",E59="",E60="",E61=""),"Vyplňte bunky E56 - 61",$H$83*H55/$H$62/(O56*O57*O58*O59*O60*O61)) -> Vyplňte bunky E56 - 61
B56: Účinnosť sekundárneho rozvodu - teplá voda | O56: =IF(E56="áno",0.94,1) -> 1
B57: Účinnosť OST | O57: =IF(E57="áno",0.985,1) -> 1
B58: Účinnosť účinnosť primárneho rozvodu - teplá voda | O58: =IF(E58="áno",0.925,1) -> 1
B59: Účinnosť OST - horúca - teplá voda | O59: =IF(E59="áno",0.985,1) -> 1
B60: Účinnosť primárneho rozvodu - horúca voda | O60: =IF(E60="áno",0.9,1) -> 1
B61: Účinnosť premeny energie | O61: =IF(E61="áno",0.88,1) -> 1
A62: Spotreba energie SPOLU | D62: (MWh) | E62: =SUM(E52:E55) -> 0 | F62: =SUM(F52:F55) -> 0 | G62: =SUM(G52:G55) -> 0 | H62: =SUM(H52:H55) -> 0 | I62: =SUM(I52:I55) -> 
A64: Celková potreba energie pred realizáciou projektu vypočítaná projektovým energetickým hodnotením | F64: MWh/rok
A66: Environmentálne hodnotenie | E66: Stav PRED realizáciou projektu | F66: Stav PO realizácii projektu
A67: CO2 | D67: ton
A68: NOx | D68: kg
A69: TZL/PM10 | D69: kg
A70: SO2 | D70: kg
A73: Merateľné ukazovatele Budova č. 3 | D73: =IF('Rozpočet B3'!G12="",""," - súpis. č. "&'Rozpočet B3'!G12) -> 
A74: Názov MU | B74: Názov Merateľného ukazovatela | F74: Príznak rizika | G74: Merná jednotka | H74: Výsledná hodnota
A75: P0080 | B75: Množstvo elektrickej energie vyrobenej v zariadení OZE | F75: S príznakom | G75: MWh/rok | H75: =J44+J48 -> 0
A76: P0084 | B76: Množstvo tepelnej energie vyrobenej v zariadení OZE | F76: S príznakom | G76: MWh/rok | H76: =K42+K43+K45+K46+K47 -> 0
A77: P0103 | B77: Odhadované ročné zníženie emisií skleníkových plynov | F77: S príznakom | G77: t ekviv. CO2/rok | H77: =E67-F67 -> 0
A78: P0250 | B78: Počet opatrení na zníženie spotreby energie realizovaných vo verejnej budove | F78: Bez príznaku | G78: počet | H78: =E29 -> 0
A79: P0470 | B79: Počet verej. budov na úrovni nízkoenerg. / ultranízkoenerg. alebo s takmer nul. potrebou energie | F79: Bez príznaku | G79: počet | H79: 1
A80: P0612 | B80: Podlahová plocha budov obnovených nad rámec minimálnych požiadaviek | F80: Bez príznaku | G80: m2 | H80: =F39 -> 0
A81: P0627 | B81: Spotreba energie v budove po realizácii opatrení energetickej efektívnosti | F81: S príznakom | G81: MWh/rok | H81: =H82*(F38*F39)/(E38*E39) -> 
A82: P0628 | B82: Spotreba energie v budove pred realizáciou opatrení energetickej efektívnosti | F82: S príznakom | G82: MWh/rok | H82: =H62 -> 0
A83: P0687 | B83: Zníženie konečnej spotreby energie vo verejných budovách | F83: S príznakom | G83: kWh/rok | H83: =(H82-H81)*1000 -> 
A84: P0689 | B84: Zníženie potreby energie vo verejných budovách | F84: S príznakom | G84: kWh/rok | H84: =(E38*E39)-(F38*F39) -> 0
A85: P0691 | B85: Zníženie produkcie emisií NOx | F85: S príznakom | G85: kg/rok | H85: =E68-F68 -> 0
A86: P0692 | B86: Zníženie produkcie emisií PM10 | F86: S príznakom | G86: kg/rok | H86: =E69-F69 -> 0
A87: P0694 | B87: Zníženie produkcie emisií SO2 | F87: S príznakom | G87: kg/rok | H87: =E70-F70 -> 0
A88: P0701 | B88: Zníženie ročnej spotreby primárnej energie vo verejných budovách | F88: S príznakom | G88: kWh/rok | H88: =I62 -> 
A89: P0705 | B89: Zvýšená kapacita výroby elektriny z obnoviteľných zdrojov | F89: Bez príznaku | G89: MWe | H89: =L44+L48 -> 0
A90: P0706 | B90: Zvýšená kapacita výroby energie z obnoviteľných zdrojov | F90: Bez príznaku | G90: MW | H90: =H89+H91 -> 0
A91: P0707 | B91: Zvýšená kapacita výroby tepla z obnoviteľných zdrojov | F91: Bez príznaku | G91: MWt | H91: =M42+M43+M45+M46+M47 -> 0

Sheet MU Budova 4 (hidden)
A2: Príloha ŽoNFP č. 6 - Dokumentácia k oprávnenosti výdavkov
A8: Merateľné ukazovateľe - Budova č. 4 | H8: =IF('Rozpočet B4'!G12="",""," - súpis. č. "&'Rozpočet B4'!G12) -> 
A10: Názov žiadateľa: | B10: =IF('Rozpočet B4'!B9:O9="","",'Rozpočet B4'!B9:O9) -> Obec Podhorany
A11: Názov projektu: | B11: =IF('Rozpočet B4'!B10:O10="","",'Rozpočet B4'!B10:O10) -> Stavebné úpravy ZŠ Podhorany Zníženie spotreby energie pri prevádzke
A13: Využitie budovy | D13: =IFERROR(IF(H82/(E64)>=0.75,Číselníky!C20,Číselníky!C19),"") ->  | I13: =IF(OR(O15=0,O16=0,O17=0,O18=0,O19=0),"Minimálne jedna podmienka výzvy nie je splnená (riadky 15-18)",IF(K25<30,"Podmienka plánovanej úspory potreby energie na vykurovanie nie je splnená","")) ->  | O13: =IF(D13=Číselníky!C19,0,1) -> 1
A15: Bude budova preukázateľne dlhodobo využívaná verejným sektorom bez zmeny charakteru jej využitia v zmysle výzvy? | I15: Ak je budova pripojená k účinným (efektívnym) systémom centralizovaného zásobovania teplom, zostane pripojená aj po ukončení realizácie projektu v zmysle výzvy? | O15: =IF(G15=Číselníky!A3,0,1) -> 1
A16: Bude dosiahnutá plánovaná úspora potreby energie na vykurovanie vo výške min. 30% v zmysle výzvy? | G16: =IF($K$26="","",IF($K$26=100,Číselníky!$A$3,Číselníky!$A$2)) ->  | O16: =IF(G16=Číselníky!A3,0,1) -> 1
A17: Je hlavná aktivita v súlade so Stratégiou pre redukciu PM10 a programami na zlepšenie kvality ovzdušia v zmysle výzvy? | I17: Ak je súčastou aktivity energetické zariadenie využívajúce biomasu, je a bude využívané? | L17: Ku dňu predloženia ŽoNFP | M17: Po ukončení realizácie projektu | O17: =IF(G17=Číselníky!A3,0,1) -> 1
A18: Ak relevantné, je hlavná aktivita v súlade s Kritériami udržateľného využívania biomasy v zmysle výzvy? | O18: =IF(G18=Číselníky!A3,0,1) -> 1
O19: =IF(M15=Číselníky!A3,0,1) -> 1
A20: Využívanie verejnej budovy na hospodársku činnosť | C20: Merná jednotka | D20: Stav PRED realizáciou projektu | F20: Stav PO realizácii projektu
A21: Celková podlahová plocha verejnej budovy (v zmysle Príkladu) | C21: [ m2h ] | D21: Uveďte celkovú podlahovú plochu budovy (z vonjakších rozmerov budovy podľa STN 73 0540-2 Tepelná ochrana budov) ku dňu predloženia ŽoNFP a postupujte v zmysle Príkladu | F21: Uveďte celkovú podlahovú plochu budovy (z vonjakších rozmerov budovy podľa STN 73 0540-2 Tepelná ochrana budov) ku dňu predloženia ŽoNFP a postupujte v zmysle Príkladu | O21: =IF(ISNUMBER(F21),1,0) -> 0
A22: Podlahová plocha využívaná na sprievodnú hospodársku činnosť v rámci definície zmiešaného využitia budovy (v zmysle Príkladu) | C22: [ m2h ] | D22: Uveďte podlahovú plochu využívanú na hospodársku činnosť v rámci zmiešaného využitia budovy a to ku dňu predloženia ŽoNFP a postupujte v zmysle Príkladu | F22: Uveďte podlahovú plochu využívanú na hospodársku činnosť v rámci zmiešaného využitia budovy a to ku dňu predloženia ŽoNFP a postupujte v zmysle Príkladu | O22: =IF(ISNUMBER(F22),1,0) -> 0
A23: Podlahová plocha využívaná na hospodársku činnosť mimo definície zmiešaného využitia budovy | C23: [ m2h ] | D23: Uveďte podlahovú plochu využívanú na hospodársku činnosť mimo zmiešaného využitia budovy ku dňu predloženia ŽoNFP | F23: Uveďte podlahovú plochu využívanú na hospodársku činnosť mimo zmiešaného využitia budovy ku dňu predloženia ŽoNFP | O23: =IF(ISNUMBER(F23),1,0) -> 0
A24: Podiel podlahovej plochy zmiešaného využitia budovy | C24: [%] | D24: =IFERROR((D22/D21)*100,0) -> 0 | F24: =IFERROR((F22/F21)*100,0) -> 0
A25: Podiel podlahovej plochy hospodárskej činnosti budovy | C25: [%] | D25: =IFERROR((D23/D21)*100,0) -> 0 | F25: =IFERROR((F23/F21)*100,0) -> 0 | I25: Plánovaná úspora energie na vykurovanie [ % ] | K25: =IF(OR(E33="",F33=""),"",((E33-F33)/E33*100)) -> 
A26: Celkové percentuálne zníženie COV | C26: [%] | D26: 0 | F26: =IFERROR(IF(F24>20,SUM(F24:G25),F25),0) -> 0 | I26: Celkové zníženie OV [ % ] | K26: =IF(OR(E33="",F33=""),"",IF(K25<30,100,IF(AND(K25>=30,K25<=40),10,IF(AND(K25>=40,K25<=50),5,IF(K25>50,0))))) -> 
A28: Kategória budovy | I28: Dátum vydania stavebného povolenia
A29: Počet opatrení na zníženie SPOTREBY energie realizovaných v predmetnej budove
A31: Príloha č. 4 - Povolenie na realizáciu projektu Príloha č. 5 - Projektová dokumentácia - ENERGETICKÉ HODNOTENIE
A32: Podklady k stanoveniu úspory energie | E32: Stav PRED realizáciou projektu | F32: Stav PO realizácii projektu | G32: Energetická trieda po realizácii projektu
A33: Potreba energie na vykurovanie | D33: [kWh/m2.rok] | G33: =IF(E28="","Vyplňte kategóriu budovy",IF(OR(E28="Administratívna budova",E28="Budova škôl a školských zariadení"),IF(ROUND(F33,0)<=28,"A",IF(ROUND(F33,0)<=56,"B",IF(ROUND(F33,0)<=84,"C",IF(ROUND(F33,0)<=112,"D",IF(ROUND(F33,0)<=140,"E",IF(ROUND(F33,0)<=168,"F","G")))))),"neoprávnená kategória budovy")) -> Vyplňte kategóriu budovy | I33: =IF(OR(G33="C",G33="D",G33="E",G33="F",G33="G"),Číselníky!C19,"") ->  | O33: =IF(I33=Číselníky!C19,0,1) -> 1
A34: Potreba energie na prípravu teplej vody | D34: [kWh/m2.rok] | G34: =IF(E28="","Vyplňte kategóriu budovy",IF(E28="Administratívna budova",IF(ROUND(F34,0)<=4,"A",IF(ROUND(F34,0)<=8,"B",IF(ROUND(F34,0)<=12,"C",IF(ROUND(F34,0)<=16,"D",IF(ROUND(F34,0)<=20,"E",IF(ROUND(F34,0)<=24,"F","G")))))),IF(E28="Budova škôl a školských zariadení",IF(ROUND(F34,0)<=6,"A",IF(ROUND(F34,0)<=12,"B",IF(ROUND(F34,0)<=18,"C",IF(ROUND(F34,0)<=24,"D",IF(ROUND(F34,0)<=30,"E",IF(ROUND(F34,0)<=36,"F","G")))))),"neoprávnená kategória budovy"))) -> Vyplňte kategóriu budovy | I34: =IF(OR(G34="C",G34="D",G34="E",G34="F",G34="G"),Číselníky!C19,"") ->  | O34: =IF(I34=Číselníky!C19,0,1) -> 1
A35: Potreba energie na nútené vetranie/chladenie | D35: [kWh/m2.rok] | G35: =IF(E28="","Vyplňte kategóriu budovy",IF(E28="Administratívna budova",IF(ROUND(F35,0)<=16,"A",IF(ROUND(F35,0)<=31,"B",IF(ROUND(F35,0)<=45,"C",IF(ROUND(F35,0)<=59,"D",IF(ROUND(F35,0)<=75,"E",IF(ROUND(F35,0)<=90,"F","G")))))),IF(E28="Budova škôl a školských zariadení","nehodnotí sa","neoprávnená kategória budovy"))) -> Vyplňte kategóriu budovy | I35: =IF(OR(G35="C",G35="D",G35="E",G35="F",G35="G"),Číselníky!C19,"") ->  | O35: =IF(I35=Číselníky!C19,0,1) -> 1
A36: Potreba energie na osvetlenie | D36: [kWh/m2.rok] | G36: =IF(E28="","Vyplňte kategóriu budovy",IF(E28="Administratívna budova",IF(ROUND(F36,0)<=15,"A",IF(ROUND(F36,0)<=30,"B",IF(ROUND(F36,0)<=38,"C",IF(ROUND(F36,0)<=45,"D",IF(ROUND(F36,0)<=56,"E",IF(ROUND(F36,0)<=68,"F","G")))))),IF(E28="Budova škôl a školských zariadení",IF(ROUND(F36,0)<=9,"A",IF(ROUND(F36,0)<=18,"B",IF(ROUND(F36,0)<=23,"C",IF(ROUND(F36,0)<=27,"D",IF(ROUND(F36,0)<=34,"E",IF(ROUND(F36,0)<=41,"F","G")))))),"neoprávnená kategória budovy"))) -> Vyplňte kategóriu budovy | I36: =IF(OR(G36="C",G36="D",G36="E",G36="F",G36="G"),Číselníky!C19,"") ->  | O36: =IF(I36=Číselníky!C19,0,1) -> 1
A37: Celková potreba energie | D37: [kWh/m2.rok] | E37: =SUM(E33:E36) -> 0 | F37: =SUM(F33:F36) -> 0 | G37: =IF(E28="","Vyplňte kategóriu budovy",IF(E28="Administratívna budova",IF(ROUND(F37,0)<=63,"A",IF(ROUND(F37,0)<=125,"B",IF(ROUND(F37,0)<=179,"C",IF(ROUND(F37,0)<=232,"D",IF(ROUND(F37,0)<=291,"E",IF(ROUND(F37,0)<=350,"F","G")))))),IF(E28="Budova škôl a školských zariadení",IF(ROUND(F37,0)<=43,"A",IF(ROUND(F37,0)<=86,"B",IF(ROUND(F37,0)<=125,"C",IF(ROUND(F37,0)<=163,"D",IF(ROUND(F37,0)<=204,"E",IF(ROUND(F37,0)<=245,"F","G")))))),"neoprávnená kategória budovy"))) -> Vyplňte kategóriu budovy | I37: =IF(OR(G37="C",G37="D",G37="E",G37="F",G37="G"),Číselníky!C19,"") ->  | O37: =IF(I37=Číselníky!C19,0,1) -> 1
A38: Globálny ukazovateľ - Primárna energia | D38: [kWh/m2.rok] | G38: =IF(OR(E28="",K28=""),"Vyplňte kategóriu budovy / Dátum stav. pov",IF(E28="Administratívna budova",IF(ROUND(F38,0)<=61,"A0",IF(ROUND(F38,0)<=122,"A1",IF(ROUND(F38,0)<=255,"B",IF(ROUND(F38,0)<=383,"C",IF(ROUND(F38,0)<=511,"D",IF(ROUND(F38,0)<=639,"E",IF(ROUND(F38,0)<=766,"F","G"))))))),IF(E28="Budova škôl a školských zariadení",IF(ROUND(F38,0)<=34,"A0",IF(ROUND(F38,0)<=68,"A1",IF(ROUND(F38,0)<=136,"B",IF(ROUND(F38,0)<=204,"C",IF(ROUND(F38,0)<=272,"D",IF(ROUND(F38,0)<=340,"E",IF(ROUND(F38,0)<=408,"F","G"))))))),"neoprávnená kategória budovy"))) -> Vyplňte kategóriu budovy / Dátum stav. pov | I38: =IF(OR(G38="B",G38="C",G38="D",G38="E",G38="F",G38="G"),Číselníky!C19,IF((AND(G38="A1",K28>DATEVALUE("31.12.2018"))),"Projekt. dok. musí obsahovať zdôvodnenie nedosiahnutia hornej hranice energ. triedy A0","")) ->  | O38: =IF(I38=Číselníky!C19,0,1) -> 1
A39: Celková podlahová plocha | D39: [m2]
A41: Energetické zariadenia | E41: Počet kusov | F41: Plocha - Absorpčná [m2] | G41: Výkon [kW] | H41: Výkon na m2 [kWh/m2] | I41: Využitelnosť [h/rok] | J41: P0080 [MWh] | K41: P0084 [MWh] | L41: P0705 [MW] | M41: P0707 [MW]
A42: Tepelné čerpadlo - Elektrické | I42: 1290 | K42: =M42*I42 -> 0 | M42: =(E42*G42)/1000 -> 0
A43: Tepelné čerpadlo - Plynové | I43: 1050 | K43: =M43*I43 -> 0 | M43: =(E43*G43)/1000 -> 0
A44: KVET - Elektrina | I44: 1290 | J44: =L44*I44 -> 0 | L44: =(E44*G44)/1000 -> 0
A45: KVET - Teplo | I45: 1290 | K45: =M45*I45 -> 0 | M45: =(E45*G45)/1000 -> 0
A46: Solárny panel Termický plochý | H46: 525 | K46: =(E46*F46*H46)/1000 -> 0 | M46: =K46/1000 -> 0
A47: Solárny panel Vákouový | H47: 800 | K47: =(E47*F47*H47)/1000 -> 0 | M47: =K47/1000 -> 0
A48: Fotovoltaický panel | F48: 1 | I48: 1000 | J48: =L48*I48 -> 0 | L48: =(E48*F48*G48)/1000 -> 0
A50: Príloha č. 8 ŽoNFP - Energetický audit
A51: Prehľad o spotrebe energie pred realizáciou projektu | E51: Rok N-2 | F51: Rok N-1 | G51: Rok N | H51: Priemer | I51: Zníženie spotreby PE
A52: elektrina | D52: (MWh) | H52: =(E52+F52+G52)/3 -> 0 | I52: =$H$83*H52/$H$62/(0.93*0.99*0.4) -> 
A53: zemný plyn | D53: (MWh) | H53: =(E53+F53+G53)/3 -> 0 | I53: =$H$83*H53/$H$62/(0.99*0.985) -> 
A54: biomasa, uhlie | D54: (MWh) | H54: =(E54+F54+G54)/3 -> 0 | I54: =$H$83*H54/$H$62 -> 
A55: CZT | D55: (MWh) | H55: =(E55+F55+G55)/3 -> 0 | I55: =IF(OR(E56="",E57="",E58="",E59="",E60="",E61=""),"Vyplňte bunky E56 - 61",$H$83*H55/$H$62/(O56*O57*O58*O59*O60*O61)) -> Vyplňte bunky E56 - 61
B56: Účinnosť sekundárneho rozvodu - teplá voda | O56: =IF(E56="áno",0.94,1) -> 1
B57: Účinnosť OST | O57: =IF(E57="áno",0.985,1) -> 1
B58: Účinnosť účinnosť primárneho rozvodu - teplá voda | O58: =IF(E58="áno",0.925,1) -> 1
B59: Účinnosť OST - horúca - teplá voda | O59: =IF(E59="áno",0.985,1) -> 1
B60: Účinnosť primárneho rozvodu - horúca voda | O60: =IF(E60="áno",0.9,1) -> 1
B61: Účinnosť premeny energie | O61: =IF(E61="áno",0.88,1) -> 1
A62: Spotreba energie SPOLU | D62: (MWh) | E62: =SUM(E52:E55) -> 0 | F62: =SUM(F52:F55) -> 0 | G62: =SUM(G52:G55) -> 0 | H62: =SUM(H52:H55) -> 0 | I62: =SUM(I52:I55) -> 
A64: Celková potreba energie pred realizáciou projektu vypočítaná projektovým energetickým hodnotením | F64: MWh/rok
A66: Environmentálne hodnotenie | E66: Stav PRED realizáciou projektu | F66: Stav PO realizácii projektu
A67: CO2 | D67: ton
A68: NOx | D68: kg
A69: TZL/PM10 | D69: kg
A70: SO2 | D70: kg
A73: Merateľné ukazovatele Budova č. 4 | D73: =IF('Rozpočet B4'!G12="",""," - súpis. č. "&'Rozpočet B4'!G12) -> 
A74: Názov MU | B74: Názov Merateľného ukazovatela | F74: Príznak rizika | G74: Merná jednotka | H74: Výsledná hodnota
A75: P0080 | B75: Množstvo elektrickej energie vyrobenej v zariadení OZE | F75: S príznakom | G75: MWh/rok | H75: =J44+J48 -> 0
A76: P0084 | B76: Množstvo tepelnej energie vyrobenej v zariadení OZE | F76: S príznakom | G76: MWh/rok | H76: =K42+K43+K45+K46+K47 -> 0
A77: P0103 | B77: Odhadované ročné zníženie emisií skleníkových plynov | F77: S príznakom | G77: t ekviv. CO2/rok | H77: =E67-F67 -> 0
A78: P0250 | B78: Počet opatrení na zníženie spotreby energie realizovaných vo verejnej budove | F78: Bez príznaku | G78: počet | H78: =E29 -> 0
A79: P0470 | B79: Počet verej. budov na úrovni nízkoenerg. / ultranízkoenerg. alebo s takmer nul. potrebou energie | F79: Bez príznaku | G79: počet | H79: 1
A80: P0612 | B80: Podlahová plocha budov obnovených nad rámec minimálnych požiadaviek | F80: Bez príznaku | G80: m2 | H80: =F39 -> 0
A81: P0627 | B81: Spotreba energie v budove po realizácii opatrení energetickej efektívnosti | F81: S príznakom | G81: MWh/rok | H81: =H82*(F38*F39)/(E38*E39) -> 
A82: P0628 | B82: Spotreba energie v budove pred realizáciou opatrení energetickej efektívnosti | F82: S príznakom | G82: MWh/rok | H82: =H62 -> 0
A83: P0687 | B83: Zníženie konečnej spotreby energie vo verejných budovách | F83: S príznakom | G83: kWh/rok | H83: =(H82-H81)*1000 -> 
A84: P0689 | B84: Zníženie potreby energie vo verejných budovách | F84: S príznakom | G84: kWh/rok | H84: =(E38*E39)-(F38*F39) -> 0
A85: P0691 | B85: Zníženie produkcie emisií NOx | F85: S príznakom | G85: kg/rok | H85: =E68-F68 -> 0
A86: P0692 | B86: Zníženie produkcie emisií PM10 | F86: S príznakom | G86: kg/rok | H86: =E69-F69 -> 0
A87: P0694 | B87: Zníženie produkcie emisií SO2 | F87: S príznakom | G87: kg/rok | H87: =E70-F70 -> 0
A88: P0701 | B88: Zníženie ročnej spotreby primárnej energie vo verejných budovách | F88: S príznakom | G88: kWh/rok | H88: =I62 -> 
A89: P0705 | B89: Zvýšená kapacita výroby elektriny z obnoviteľných zdrojov | F89: Bez príznaku | G89: MWe | H89: =L44+L48 -> 0
A90: P0706 | B90: Zvýšená kapacita výroby energie z obnoviteľných zdrojov | F90: Bez príznaku | G90: MW | H90: =H89+H91 -> 0
A91: P0707 | B91: Zvýšená kapacita výroby tepla z obnoviteľných zdrojov | F91: Bez príznaku | G91: MWt | H91: =M42+M43+M45+M46+M47 -> 0

Sheet MU Budova 5 (hidden)
A2: Príloha ŽoNFP č. 6 - Dokumentácia k oprávnenosti výdavkov
A8: Merateľné ukazovateľe - Budova č. 5 | H8: =IF('Rozpočet B5'!G12="",""," - súpis. č. "&'Rozpočet B5'!G12) -> 
A10: Názov žiadateľa: | B10: =IF('Rozpočet B1 - Value for Money'!B9:O9="","",'Rozpočet B1 - Value for Money'!B9:O9) -> Obec Podhorany
A11: Názov projektu: | B11: =IF('Rozpočet B1 - Value for Money'!B10:O10="","",'Rozpočet B1 - Value for Money'!B10:O10) -> Stavebné úpravy ZŠ Podhorany Zníženie spotreby energie pri prevádzke
A13: Využitie budovy | D13: =IFERROR(IF(H82/(E64)>=0.75,Číselníky!C20,Číselníky!C19),"") ->  | I13: =IF(OR(O15=0,O16=0,O17=0,O18=0,O19=0),"Minimálne jedna podmienka výzvy nie je splnená (riadky 15-18)",IF(K25<30,"Podmienka plánovanej úspory potreby energie na vykurovanie nie je splnená","")) ->  | O13: =IF(D13=Číselníky!C19,0,1) -> 1
A15: Bude budova preukázateľne dlhodobo využívaná verejným sektorom bez zmeny charakteru jej využitia v zmysle výzvy? | I15: Ak je budova pripojená k účinným (efektívnym) systémom centralizovaného zásobovania teplom, zostane pripojená aj po ukončení realizácie projektu v zmysle výzvy? | O15: =IF(G15=Číselníky!A3,0,1) -> 1
A16: Bude dosiahnutá plánovaná úspora potreby energie na vykurovanie vo výške min. 30% v zmysle výzvy? | G16: =IF($K$26="","",IF($K$26=100,Číselníky!$A$3,Číselníky!$A$2)) ->  | O16: =IF(G16=Číselníky!A3,0,1) -> 1
A17: Je hlavná aktivita v súlade so Stratégiou pre redukciu PM10 a programami na zlepšenie kvality ovzdušia v zmysle výzvy? | I17: Ak je súčastou aktivity energetické zariadenie využívajúce biomasu, je a bude využívané? | L17: Ku dňu predloženia ŽoNFP | M17: Po ukončení realizácie projektu | O17: =IF(G17=Číselníky!A3,0,1) -> 1
A18: Ak relevantné, je hlavná aktivita v súlade s Kritériami udržateľného využívania biomasy v zmysle výzvy? | O18: =IF(G18=Číselníky!A3,0,1) -> 1
O19: =IF(M15=Číselníky!A3,0,1) -> 1
A20: Využívanie verejnej budovy na hospodársku činnosť | C20: Merná jednotka | D20: Stav PRED realizáciou projektu | F20: Stav PO realizácii projektu
A21: Celková podlahová plocha verejnej budovy (v zmysle Príkladu) | C21: [ m2h ] | D21: Uveďte celkovú podlahovú plochu budovy (z vonjakších rozmerov budovy podľa STN 73 0540-2 Tepelná ochrana budov) ku dňu predloženia ŽoNFP a postupujte v zmysle Príkladu | F21: Uveďte celkovú podlahovú plochu budovy (z vonjakších rozmerov budovy podľa STN 73 0540-2 Tepelná ochrana budov) ku dňu predloženia ŽoNFP a postupujte v zmysle Príkladu | O21: =IF(ISNUMBER(F21),1,0) -> 0
A22: Podlahová plocha využívaná na sprievodnú hospodársku činnosť v rámci definície zmiešaného využitia budovy (v zmysle Príkladu) | C22: [ m2h ] | D22: Uveďte podlahovú plochu využívanú na hospodársku činnosť v rámci zmiešaného využitia budovy a to ku dňu predloženia ŽoNFP a postupujte v zmysle Príkladu | F22: Uveďte podlahovú plochu využívanú na hospodársku činnosť v rámci zmiešaného využitia budovy a to ku dňu predloženia ŽoNFP a postupujte v zmysle Príkladu | O22: =IF(ISNUMBER(F22),1,0) -> 0
A23: Podlahová plocha využívaná na hospodársku činnosť mimo definície zmiešaného využitia budovy | C23: [ m2h ] | D23: Uveďte podlahovú plochu využívanú na hospodársku činnosť mimo zmiešaného využitia budovy ku dňu predloženia ŽoNFP | F23: Uveďte podlahovú plochu využívanú na hospodársku činnosť mimo zmiešaného využitia budovy ku dňu predloženia ŽoNFP | O23: =IF(ISNUMBER(F23),1,0) -> 0
A24: Podiel podlahovej plochy zmiešaného využitia budovy | C24: [%] | D24: =IFERROR((D22/D21)*100,0) -> 0 | F24: =IFERROR((F22/F21)*100,0) -> 0
A25: Podiel podlahovej plochy hospodárskej činnosti budovy | C25: [%] | D25: =IFERROR((D23/D21)*100,0) -> 0 | F25: =IFERROR((F23/F21)*100,0) -> 0 | I25: Plánovaná úspora energie na vykurovanie [ % ] | K25: =IF(OR(E33="",F33=""),"",((E33-F33)/E33*100)) -> 
A26: Celkové percentuálne zníženie COV | C26: [%] | D26: 0 | F26: =IFERROR(IF(F24>20,SUM(F24:G25),F25),0) -> 0 | I26: Celkové zníženie OV [ % ] | K26: =IF(OR(E33="",F33=""),"",IF(K25<30,100,IF(AND(K25>=30,K25<=40),10,IF(AND(K25>=40,K25<=50),5,IF(K25>50,0))))) -> 
A28: Kategória budovy | I28: Dátum vydania stavebného povolenia
A29: Počet opatrení na zníženie SPOTREBY energie realizovaných v predmetnej budove
A31: Príloha č. 4 - Povolenie na realizáciu projektu Príloha č. 5 - Projektová dokumentácia - ENERGETICKÉ HODNOTENIE
A32: Podklady k stanoveniu úspory energie | E32: Stav PRED realizáciou projektu | F32: Stav PO realizácii projektu | G32: Energetická trieda po realizácii projektu
A33: Potreba energie na vykurovanie | D33: [kWh/m2.rok] | G33: =IF(E28="","Vyplňte kategóriu budovy",IF(OR(E28="Administratívna budova",E28="Budova škôl a školských zariadení"),IF(ROUND(F33,0)<=28,"A",IF(ROUND(F33,0)<=56,"B",IF(ROUND(F33,0)<=84,"C",IF(ROUND(F33,0)<=112,"D",IF(ROUND(F33,0)<=140,"E",IF(ROUND(F33,0)<=168,"F","G")))))),"neoprávnená kategória budovy")) -> Vyplňte kategóriu budovy | I33: =IF(OR(G33="C",G33="D",G33="E",G33="F",G33="G"),Číselníky!C19,"") ->  | O33: =IF(I33=Číselníky!C19,0,1) -> 1
A34: Potreba energie na prípravu teplej vody | D34: [kWh/m2.rok] | G34: =IF(E28="","Vyplňte kategóriu budovy",IF(E28="Administratívna budova",IF(ROUND(F34,0)<=4,"A",IF(ROUND(F34,0)<=8,"B",IF(ROUND(F34,0)<=12,"C",IF(ROUND(F34,0)<=16,"D",IF(ROUND(F34,0)<=20,"E",IF(ROUND(F34,0)<=24,"F","G")))))),IF(E28="Budova škôl a školských zariadení",IF(ROUND(F34,0)<=6,"A",IF(ROUND(F34,0)<=12,"B",IF(ROUND(F34,0)<=18,"C",IF(ROUND(F34,0)<=24,"D",IF(ROUND(F34,0)<=30,"E",IF(ROUND(F34,0)<=36,"F","G")))))),"neoprávnená kategória budovy"))) -> Vyplňte kategóriu budovy | I34: =IF(OR(G34="C",G34="D",G34="E",G34="F",G34="G"),Číselníky!C19,"") ->  | O34: =IF(I34=Číselníky!C19,0,1) -> 1
A35: Potreba energie na nútené vetranie/chladenie | D35: [kWh/m2.rok] | G35: =IF(E28="","Vyplňte kategóriu budovy",IF(E28="Administratívna budova",IF(ROUND(F35,0)<=16,"A",IF(ROUND(F35,0)<=31,"B",IF(ROUND(F35,0)<=45,"C",IF(ROUND(F35,0)<=59,"D",IF(ROUND(F35,0)<=75,"E",IF(ROUND(F35,0)<=90,"F","G")))))),IF(E28="Budova škôl a školských zariadení","nehodnotí sa","neoprávnená kategória budovy"))) -> Vyplňte kategóriu budovy | I35: =IF(OR(G35="C",G35="D",G35="E",G35="F",G35="G"),Číselníky!C19,"") ->  | O35: =IF(I35=Číselníky!C19,0,1) -> 1
A36: Potreba energie na osvetlenie | D36: [kWh/m2.rok] | G36: =IF(E28="","Vyplňte kategóriu budovy",IF(E28="Administratívna budova",IF(ROUND(F36,0)<=15,"A",IF(ROUND(F36,0)<=30,"B",IF(ROUND(F36,0)<=38,"C",IF(ROUND(F36,0)<=45,"D",IF(ROUND(F36,0)<=56,"E",IF(ROUND(F36,0)<=68,"F","G")))))),IF(E28="Budova škôl a školských zariadení",IF(ROUND(F36,0)<=9,"A",IF(ROUND(F36,0)<=18,"B",IF(ROUND(F36,0)<=23,"C",IF(ROUND(F36,0)<=27,"D",IF(ROUND(F36,0)<=34,"E",IF(ROUND(F36,0)<=41,"F","G")))))),"neoprávnená kategória budovy"))) -> Vyplňte kategóriu budovy | I36: =IF(OR(G36="C",G36="D",G36="E",G36="F",G36="G"),Číselníky!C19,"") ->  | O36: =IF(I36=Číselníky!C19,0,1) -> 1
A37: Celková potreba energie | D37: [kWh/m2.rok] | E37: =SUM(E33:E36) -> 0 | F37: =SUM(F33:F36) -> 0 | G37: =IF(E28="","Vyplňte kategóriu budovy",IF(E28="Administratívna budova",IF(ROUND(F37,0)<=63,"A",IF(ROUND(F37,0)<=125,"B",IF(ROUND(F37,0)<=179,"C",IF(ROUND(F37,0)<=232,"D",IF(ROUND(F37,0)<=291,"E",IF(ROUND(F37,0)<=350,"F","G")))))),IF(E28="Budova škôl a školských zariadení",IF(ROUND(F37,0)<=43,"A",IF(ROUND(F37,0)<=86,"B",IF(ROUND(F37,0)<=125,"C",IF(ROUND(F37,0)<=163,"D",IF(ROUND(F37,0)<=204,"E",IF(ROUND(F37,0)<=245,"F","G")))))),"neoprávnená kategória budovy"))) -> Vyplňte kategóriu budovy | I37: =IF(OR(G37="C",G37="D",G37="E",G37="F",G37="G"),Číselníky!C19,"") ->  | O37: =IF(I37=Číselníky!C19,0,1) -> 1
A38: Globálny ukazovateľ - Primárna energia | D38: [kWh/m2.rok] | G38: =IF(OR(E28="",K28=""),"Vyplňte kategóriu budovy / Dátum stav. pov",IF(E28="Administratívna budova",IF(ROUND(F38,0)<=61,"A0",IF(ROUND(F38,0)<=122,"A1",IF(ROUND(F38,0)<=255,"B",IF(ROUND(F38,0)<=383,"C",IF(ROUND(F38,0)<=511,"D",IF(ROUND(F38,0)<=639,"E",IF(ROUND(F38,0)<=766,"F","G"))))))),IF(E28="Budova škôl a školských zariadení",IF(ROUND(F38,0)<=34,"A0",IF(ROUND(F38,0)<=68,"A1",IF(ROUND(F38,0)<=136,"B",IF(ROUND(F38,0)<=204,"C",IF(ROUND(F38,0)<=272,"D",IF(ROUND(F38,0)<=340,"E",IF(ROUND(F38,0)<=408,"F","G"))))))),"neoprávnená kategória budovy"))) -> Vyplňte kategóriu budovy / Dátum stav. pov | I38: =IF(OR(G38="B",G38="C",G38="D",G38="E",G38="F",G38="G"),Číselníky!C19,IF((AND(G38="A1",K28>DATEVALUE("31.12.2018"))),"Projekt. dok. musí obsahovať zdôvodnenie nedosiahnutia hornej hranice energ. triedy A0","")) ->  | O38: =IF(I38=Číselníky!C19,0,1) -> 1
A39: Celková podlahová plocha | D39: [m2]
A41: Energetické zariadenia | E41: Počet kusov | F41: Plocha - Absorpčná [m2] | G41: Výkon [kW] | H41: Výkon na m2 [kWh/m2] | I41: Využitelnosť [h/rok] | J41: P0080 [MWh] | K41: P0084 [MWh] | L41: P0705 [MW] | M41: P0707 [MW]
A42: Tepelné čerpadlo - Elektrické | I42: 1290 | K42: =M42*I42 -> 0 | M42: =(E42*G42)/1000 -> 0
A43: Tepelné čerpadlo - Plynové | I43: 1050 | K43: =M43*I43 -> 0 | M43: =(E43*G43)/1000 -> 0
A44: KVET - Elektrina | I44: 1290 | J44: =L44*I44 -> 0 | L44: =(E44*G44)/1000 -> 0
A45: KVET - Teplo | I45: 1290 | K45: =M45*I45 -> 0 | M45: =(E45*G45)/1000 -> 0
A46: Solárny panel Termický plochý | H46: 525 | K46: =(E46*F46*H46)/1000 -> 0 | M46: =K46/1000 -> 0
A47: Solárny panel Vákouový | H47: 800 | K47: =(E47*F47*H47)/1000 -> 0 | M47: =K47/1000 -> 0
A48: Fotovoltaický panel | F48: 1 | I48: 1000 | J48: =L48*I48 -> 0 | L48: =(E48*F48*G48)/1000 -> 0
A50: Príloha č. 8 ŽoNFP - Energetický audit
A51: Prehľad o spotrebe energie pred realizáciou projektu | E51: Rok N-2 | F51: Rok N-1 | G51: Rok N | H51: Priemer | I51: Zníženie spotreby PE
A52: elektrina | D52: (MWh) | H52: =(E52+F52+G52)/3 -> 0 | I52: =$H$83*H52/$H$62/(0.93*0.99*0.4) -> 
A53: zemný plyn | D53: (MWh) | H53: =(E53+F53+G53)/3 -> 0 | I53: =$H$83*H53/$H$62/(0.99*0.985) -> 
A54: biomasa, uhlie | D54: (MWh) | H54: =(E54+F54+G54)/3 -> 0 | I54: =$H$83*H54/$H$62 -> 
A55: CZT | D55: (MWh) | H55: =(E55+F55+G55)/3 -> 0 | I55: =IF(OR(E56="",E57="",E58="",E59="",E60="",E61=""),"Vyplňte bunky E56 - 61",$H$83*H55/$H$62/(O56*O57*O58*O59*O60*O61)) -> Vyplňte bunky E56 - 61
B56: Účinnosť sekundárneho rozvodu - teplá voda | O56: =IF(E56="áno",0.94,1) -> 1
B57: Účinnosť OST | O57: =IF(E57="áno",0.985,1) -> 1
B58: Účinnosť účinnosť primárneho rozvodu - teplá voda | O58: =IF(E58="áno",0.925,1) -> 1
B59: Účinnosť OST - horúca - teplá voda | O59: =IF(E59="áno",0.985,1) -> 1
B60: Účinnosť primárneho rozvodu - horúca voda | O60: =IF(E60="áno",0.9,1) -> 1
B61: Účinnosť premeny energie | O61: =IF(E61="áno",0.88,1) -> 1
A62: Spotreba energie SPOLU | D62: (MWh) | E62: =SUM(E52:E55) -> 0 | F62: =SUM(F52:F55) -> 0 | G62: =SUM(G52:G55) -> 0 | H62: =SUM(H52:H55) -> 0 | I62: =SUM(I52:I55) -> 
A64: Celková potreba energie pred realizáciou projektu vypočítaná projektovým energetickým hodnotením | F64: MWh/rok
A66: Environmentálne hodnotenie | E66: Stav PRED realizáciou projektu | F66: Stav PO realizácii projektu
A67: CO2 | D67: ton
A68: NOx | D68: kg
A69: TZL/PM10 | D69: kg
A70: SO2 | D70: kg
A73: Merateľné ukazovatele Budova č. 5 | D73: =IF('Rozpočet B5'!G12="",""," - súpis. č. "&'Rozpočet B5'!G12) -> 
A74: Názov MU | B74: Názov Merateľného ukazovatela | F74: Príznak rizika | G74: Merná jednotka | H74: Výsledná hodnota
A75: P0080 | B75: Množstvo elektrickej energie vyrobenej v zariadení OZE | F75: S príznakom | G75: MWh/rok | H75: =J44+J48 -> 0
A76: P0084 | B76: Množstvo tepelnej energie vyrobenej v zariadení OZE | F76: S príznakom | G76: MWh/rok | H76: =K42+K43+K45+K46+K47 -> 0
A77: P0103 | B77: Odhadované ročné zníženie emisií skleníkových plynov | F77: S príznakom | G77: t ekviv. CO2/rok | H77: =E67-F67 -> 0
A78: P0250 | B78: Počet opatrení na zníženie spotreby energie realizovaných vo verejnej budove | F78: Bez príznaku | G78: počet | H78: =E29 -> 0
A79: P0470 | B79: Počet verej. budov na úrovni nízkoenerg. / ultranízkoenerg. alebo s takmer nul. potrebou energie | F79: Bez príznaku | G79: počet | H79: 1
A80: P0612 | B80: Podlahová plocha budov obnovených nad rámec minimálnych požiadaviek | F80: Bez príznaku | G80: m2 | H80: =F39 -> 0
A81: P0627 | B81: Spotreba energie v budove po realizácii opatrení energetickej efektívnosti | F81: S príznakom | G81: MWh/rok | H81: =H82*(F38*F39)/(E38*E39) -> 
A82: P0628 | B82: Spotreba energie v budove pred realizáciou opatrení energetickej efektívnosti | F82: S príznakom | G82: MWh/rok | H82: =H62 -> 0
A83: P0687 | B83: Zníženie konečnej spotreby energie vo verejných budovách | F83: S príznakom | G83: kWh/rok | H83: =(H82-H81)*1000 -> 
A84: P0689 | B84: Zníženie potreby energie vo verejných budovách | F84: S príznakom | G84: kWh/rok | H84: =(E38*E39)-(F38*F39) -> 0
A85: P0691 | B85: Zníženie produkcie emisií NOx | F85: S príznakom | G85: kg/rok | H85: =E68-F68 -> 0
A86: P0692 | B86: Zníženie produkcie emisií PM10 | F86: S príznakom | G86: kg/rok | H86: =E69-F69 -> 0
A87: P0694 | B87: Zníženie produkcie emisií SO2 | F87: S príznakom | G87: kg/rok | H87: =E70-F70 -> 0
A88: P0701 | B88: Zníženie ročnej spotreby primárnej energie vo verejných budovách | F88: S príznakom | G88: kWh/rok | H88: =I62 -> 
A89: P0705 | B89: Zvýšená kapacita výroby elektriny z obnoviteľných zdrojov | F89: Bez príznaku | G89: MWe | H89: =L44+L48 -> 0
A90: P0706 | B90: Zvýšená kapacita výroby energie z obnoviteľných zdrojov | F90: Bez príznaku | G90: MW | H90: =H89+H91 -> 0
A91: P0707 | B91: Zvýšená kapacita výroby tepla z obnoviteľných zdrojov | F91: Bez príznaku | G91: MWt | H91: =M42+M43+M45+M46+M47 -> 0

Sheet MU Budova 6 (hidden)
A2: Príloha ŽoNFP č. 6 - Dokumentácia k oprávnenosti výdavkov
A8: Merateľné ukazovateľe - Budova č. 6 | H8: =IF('Rozpočet B6'!G12="",""," - súpis. č. "&'Rozpočet B6'!G12) -> 
A10: Názov žiadateľa: | B10: =IF('Rozpočet B1 - Value for Money'!B9:O9="","",'Rozpočet B1 - Value for Money'!B9:O9) -> Obec Podhorany
A11: Názov projektu: | B11: =IF('Rozpočet B1 - Value for Money'!B10:O10="","",'Rozpočet B1 - Value for Money'!B10:O10) -> Stavebné úpravy ZŠ Podhorany Zníženie spotreby energie pri prevádzke
A13: Využitie budovy | D13: =IFERROR(IF(H82/(E64)>=0.75,Číselníky!C20,Číselníky!C19),"") ->  | I13: =IF(OR(O15=0,O16=0,O17=0,O18=0,O19=0),"Minimálne jedna podmienka výzvy nie je splnená (riadky 15-18)",IF(K25<30,"Podmienka plánovanej úspory potreby energie na vykurovanie nie je splnená","")) ->  | O13: =IF(D13=Číselníky!C19,0,1) -> 1
A15: Bude budova preukázateľne dlhodobo využívaná verejným sektorom bez zmeny charakteru jej využitia v zmysle výzvy? | I15: Ak je budova pripojená k účinným (efektívnym) systémom centralizovaného zásobovania teplom, zostane pripojená aj po ukončení realizácie projektu v zmysle výzvy? | O15: =IF(G15=Číselníky!A3,0,1) -> 1
A16: Bude dosiahnutá plánovaná úspora potreby energie na vykurovanie vo výške min. 30% v zmysle výzvy? | G16: =IF($K$26="","",IF($K$26=100,Číselníky!$A$3,Číselníky!$A$2)) ->  | O16: =IF(G16=Číselníky!A3,0,1) -> 1
A17: Je hlavná aktivita v súlade so Stratégiou pre redukciu PM10 a programami na zlepšenie kvality ovzdušia v zmysle výzvy? | I17: Ak je súčastou aktivity energetické zariadenie využívajúce biomasu, je a bude využívané? | L17: Ku dňu predloženia ŽoNFP | M17: Po ukončení realizácie projektu | O17: =IF(G17=Číselníky!A3,0,1) -> 1
A18: Ak relevantné, je hlavná aktivita v súlade s Kritériami udržateľného využívania biomasy v zmysle výzvy? | O18: =IF(G18=Číselníky!A3,0,1) -> 1
O19: =IF(M15=Číselníky!A3,0,1) -> 1
A20: Využívanie verejnej budovy na hospodársku činnosť | C20: Merná jednotka | D20: Stav PRED realizáciou projektu | F20: Stav PO realizácii projektu
A21: Celková podlahová plocha verejnej budovy (v zmysle Príkladu) | C21: [ m2h ] | D21: Uveďte celkovú podlahovú plochu budovy (z vonjakších rozmerov budovy podľa STN 73 0540-2 Tepelná ochrana budov) ku dňu predloženia ŽoNFP a postupujte v zmysle Príkladu | F21: Uveďte celkovú podlahovú plochu budovy (z vonjakších rozmerov budovy podľa STN 73 0540-2 Tepelná ochrana budov) ku dňu predloženia ŽoNFP a postupujte v zmysle Príkladu | O21: =IF(ISNUMBER(F21),1,0) -> 0
A22: Podlahová plocha využívaná na sprievodnú hospodársku činnosť v rámci definície zmiešaného využitia budovy (v zmysle Príkladu) | C22: [ m2h ] | D22: Uveďte podlahovú plochu využívanú na hospodársku činnosť v rámci zmiešaného využitia budovy a to ku dňu predloženia ŽoNFP a postupujte v zmysle Príkladu | F22: Uveďte podlahovú plochu využívanú na hospodársku činnosť v rámci zmiešaného využitia budovy a to ku dňu predloženia ŽoNFP a postupujte v zmysle Príkladu | O22: =IF(ISNUMBER(F22),1,0) -> 0
A23: Podlahová plocha využívaná na hospodársku činnosť mimo definície zmiešaného využitia budovy | C23: [ m2h ] | D23: Uveďte podlahovú plochu využívanú na hospodársku činnosť mimo zmiešaného využitia budovy ku dňu predloženia ŽoNFP | F23: Uveďte podlahovú plochu využívanú na hospodársku činnosť mimo zmiešaného využitia budovy ku dňu predloženia ŽoNFP | O23: =IF(ISNUMBER(F23),1,0) -> 0
A24: Podiel podlahovej plochy zmiešaného využitia budovy | C24: [%] | D24: =IFERROR((D22/D21)*100,0) -> 0 | F24: =IFERROR((F22/F21)*100,0) -> 0
A25: Podiel podlahovej plochy hospodárskej činnosti budovy | C25: [%] | D25: =IFERROR((D23/D21)*100,0) -> 0 | F25: =IFERROR((F23/F21)*100,0) -> 0 | I25: Plánovaná úspora energie na vykurovanie [ % ] | K25: =IF(OR(E33="",F33=""),"",((E33-F33)/E33*100)) -> 
A26: Celkové percentuálne zníženie COV | C26: [%] | D26: 0 | F26: =IFERROR(IF(F24>20,SUM(F24:G25),F25),0) -> 0 | I26: Celkové zníženie OV [ % ] | K26: =IF(OR(E33="",F33=""),"",IF(K25<30,100,IF(AND(K25>=30,K25<=40),10,IF(AND(K25>=40,K25<=50),5,IF(K25>50,0))))) -> 
A28: Kategória budovy | I28: Dátum vydania stavebného povolenia
A29: Počet opatrení na zníženie SPOTREBY energie realizovaných v predmetnej budove
A31: Príloha č. 4 - Povolenie na realizáciu projektu Príloha č. 5 - Projektová dokumentácia - ENERGETICKÉ HODNOTENIE
A32: Podklady k stanoveniu úspory energie | E32: Stav PRED realizáciou projektu | F32: Stav PO realizácii projektu | G32: Energetická trieda po realizácii projektu
A33: Potreba energie na vykurovanie | D33: [kWh/m2.rok] | G33: =IF(E28="","Vyplňte kategóriu budovy",IF(OR(E28="Administratívna budova",E28="Budova škôl a školských zariadení"),IF(ROUND(F33,0)<=28,"A",IF(ROUND(F33,0)<=56,"B",IF(ROUND(F33,0)<=84,"C",IF(ROUND(F33,0)<=112,"D",IF(ROUND(F33,0)<=140,"E",IF(ROUND(F33,0)<=168,"F","G")))))),"neoprávnená kategória budovy")) -> Vyplňte kategóriu budovy | I33: =IF(OR(G33="C",G33="D",G33="E",G33="F",G33="G"),Číselníky!C19,"") ->  | O33: =IF(I33=Číselníky!C19,0,1) -> 1
A34: Potreba energie na prípravu teplej vody | D34: [kWh/m2.rok] | G34: =IF(E28="","Vyplňte kategóriu budovy",IF(E28="Administratívna budova",IF(ROUND(F34,0)<=4,"A",IF(ROUND(F34,0)<=8,"B",IF(ROUND(F34,0)<=12,"C",IF(ROUND(F34,0)<=16,"D",IF(ROUND(F34,0)<=20,"E",IF(ROUND(F34,0)<=24,"F","G")))))),IF(E28="Budova škôl a školských zariadení",IF(ROUND(F34,0)<=6,"A",IF(ROUND(F34,0)<=12,"B",IF(ROUND(F34,0)<=18,"C",IF(ROUND(F34,0)<=24,"D",IF(ROUND(F34,0)<=30,"E",IF(ROUND(F34,0)<=36,"F","G")))))),"neoprávnená kategória budovy"))) -> Vyplňte kategóriu budovy | I34: =IF(OR(G34="C",G34="D",G34="E",G34="F",G34="G"),Číselníky!C19,"") ->  | O34: =IF(I34=Číselníky!C19,0,1) -> 1
A35: Potreba energie na nútené vetranie/chladenie | D35: [kWh/m2.rok] | G35: =IF(E28="","Vyplňte kategóriu budovy",IF(E28="Administratívna budova",IF(ROUND(F35,0)<=16,"A",IF(ROUND(F35,0)<=31,"B",IF(ROUND(F35,0)<=45,"C",IF(ROUND(F35,0)<=59,"D",IF(ROUND(F35,0)<=75,"E",IF(ROUND(F35,0)<=90,"F","G")))))),IF(E28="Budova škôl a školských zariadení","nehodnotí sa","neoprávnená kategória budovy"))) -> Vyplňte kategóriu budovy | I35: =IF(OR(G35="C",G35="D",G35="E",G35="F",G35="G"),Číselníky!C19,"") ->  | O35: =IF(I35=Číselníky!C19,0,1) -> 1
A36: Potreba energie na osvetlenie | D36: [kWh/m2.rok] | G36: =IF(E28="","Vyplňte kategóriu budovy",IF(E28="Administratívna budova",IF(ROUND(F36,0)<=15,"A",IF(ROUND(F36,0)<=30,"B",IF(ROUND(F36,0)<=38,"C",IF(ROUND(F36,0)<=45,"D",IF(ROUND(F36,0)<=56,"E",IF(ROUND(F36,0)<=68,"F","G")))))),IF(E28="Budova škôl a školských zariadení",IF(ROUND(F36,0)<=9,"A",IF(ROUND(F36,0)<=18,"B",IF(ROUND(F36,0)<=23,"C",IF(ROUND(F36,0)<=27,"D",IF(ROUND(F36,0)<=34,"E",IF(ROUND(F36,0)<=41,"F","G")))))),"neoprávnená kategória budovy"))) -> Vyplňte kategóriu budovy | I36: =IF(OR(G36="C",G36="D",G36="E",G36="F",G36="G"),Číselníky!C19,"") ->  | O36: =IF(I36=Číselníky!C19,0,1) -> 1
A37: Celková potreba energie | D37: [kWh/m2.rok] | E37: =SUM(E33:E36) -> 0 | F37: =SUM(F33:F36) -> 0 | G37: =IF(E28="","Vyplňte kategóriu budovy",IF(E28="Administratívna budova",IF(ROUND(F37,0)<=63,"A",IF(ROUND(F37,0)<=125,"B",IF(ROUND(F37,0)<=179,"C",IF(ROUND(F37,0)<=232,"D",IF(ROUND(F37,0)<=291,"E",IF(ROUND(F37,0)<=350,"F","G")))))),IF(E28="Budova škôl a školských zariadení",IF(ROUND(F37,0)<=43,"A",IF(ROUND(F37,0)<=86,"B",IF(ROUND(F37,0)<=125,"C",IF(ROUND(F37,0)<=163,"D",IF(ROUND(F37,0)<=204,"E",IF(ROUND(F37,0)<=245,"F","G")))))),"neoprávnená kategória budovy"))) -> Vyplňte kategóriu budovy | I37: =IF(OR(G37="C",G37="D",G37="E",G37="F",G37="G"),Číselníky!C19,"") ->  | O37: =IF(I37=Číselníky!C19,0,1) -> 1
A38: Globálny ukazovateľ - Primárna energia | D38: [kWh/m2.rok] | G38: =IF(OR(E28="",K28=""),"Vyplňte kategóriu budovy / Dátum stav. pov",IF(E28="Administratívna budova",IF(ROUND(F38,0)<=61,"A0",IF(ROUND(F38,0)<=122,"A1",IF(ROUND(F38,0)<=255,"B",IF(ROUND(F38,0)<=383,"C",IF(ROUND(F38,0)<=511,"D",IF(ROUND(F38,0)<=639,"E",IF(ROUND(F38,0)<=766,"F","G"))))))),IF(E28="Budova škôl a školských zariadení",IF(ROUND(F38,0)<=34,"A0",IF(ROUND(F38,0)<=68,"A1",IF(ROUND(F38,0)<=136,"B",IF(ROUND(F38,0)<=204,"C",IF(ROUND(F38,0)<=272,"D",IF(ROUND(F38,0)<=340,"E",IF(ROUND(F38,0)<=408,"F","G"))))))),"neoprávnená kategória budovy"))) -> Vyplňte kategóriu budovy / Dátum stav. pov | I38: =IF(OR(G38="B",G38="C",G38="D",G38="E",G38="F",G38="G"),Číselníky!C19,IF((AND(G38="A1",K28>DATEVALUE("31.12.2018"))),"Projekt. dok. musí obsahovať zdôvodnenie nedosiahnutia hornej hranice energ. triedy A0","")) ->  | O38: =IF(I38=Číselníky!C19,0,1) -> 1
A39: Celková podlahová plocha | D39: [m2]
A41: Energetické zariadenia | E41: Počet kusov | F41: Plocha - Absorpčná [m2] | G41: Výkon [kW] | H41: Výkon na m2 [kWh/m2] | I41: Využitelnosť [h/rok] | J41: P0080 [MWh] | K41: P0084 [MWh] | L41: P0705 [MW] | M41: P0707 [MW]
A42: Tepelné čerpadlo - Elektrické | I42: 1290 | K42: =M42*I42 -> 0 | M42: =(E42*G42)/1000 -> 0
A43: Tepelné čerpadlo - Plynové | I43: 1050 | K43: =M43*I43 -> 0 | M43: =(E43*G43)/1000 -> 0
A44: KVET - Elektrina | I44: 1290 | J44: =L44*I44 -> 0 | L44: =(E44*G44)/1000 -> 0
A45: KVET - Teplo | I45: 1290 | K45: =M45*I45 -> 0 | M45: =(E45*G45)/1000 -> 0
A46: Solárny panel Termický plochý | H46: 525 | K46: =(E46*F46*H46)/1000 -> 0 | M46: =K46/1000 -> 0
A47: Solárny panel Vákouový | H47: 800 | K47: =(E47*F47*H47)/1000 -> 0 | M47: =K47/1000 -> 0
A48: Fotovoltaický panel | F48: 1 | I48: 1000 | J48: =L48*I48 -> 0 | L48: =(E48*F48*G48)/1000 -> 0
A50: Príloha č. 8 ŽoNFP - Energetický audit
A51: Prehľad o spotrebe energie pred realizáciou projektu | E51: Rok N-2 | F51: Rok N-1 | G51: Rok N | H51: Priemer | I51: Zníženie spotreby PE
A52: elektrina | D52: (MWh) | H52: =(E52+F52+G52)/3 -> 0 | I52: =$H$83*H52/$H$62/(0.93*0.99*0.4) -> 
A53: zemný plyn | D53: (MWh) | H53: =(E53+F53+G53)/3 -> 0 | I53: =$H$83*H53/$H$62/(0.99*0.985) -> 
A54: biomasa, uhlie | D54: (MWh) | H54: =(E54+F54+G54)/3 -> 0 | I54: =$H$83*H54/$H$62 -> 
A55: CZT | D55: (MWh) | H55: =(E55+F55+G55)/3 -> 0 | I55: =IF(OR(E56="",E57="",E58="",E59="",E60="",E61=""),"Vyplňte bunky E56 - 61",$H$83*H55/$H$62/(O56*O57*O58*O59*O60*O61)) -> Vyplňte bunky E56 - 61
B56: Účinnosť sekundárneho rozvodu - teplá voda | O56: =IF(E56="áno",0.94,1) -> 1
B57: Účinnosť OST | O57: =IF(E57="áno",0.985,1) -> 1
B58: Účinnosť účinnosť primárneho rozvodu - teplá voda | O58: =IF(E58="áno",0.925,1) -> 1
B59: Účinnosť OST - horúca - teplá voda | O59: =IF(E59="áno",0.985,1) -> 1
B60: Účinnosť primárneho rozvodu - horúca voda | O60: =IF(E60="áno",0.9,1) -> 1
B61: Účinnosť premeny energie | O61: =IF(E61="áno",0.88,1) -> 1
A62: Spotreba energie SPOLU | D62: (MWh) | E62: =SUM(E52:E55) -> 0 | F62: =SUM(F52:F55) -> 0 | G62: =SUM(G52:G55) -> 0 | H62: =SUM(H52:H55) -> 0 | I62: =SUM(I52:I55) -> 
A64: Celková potreba energie pred realizáciou projektu vypočítaná projektovým energetickým hodnotením | F64: MWh/rok
A66: Environmentálne hodnotenie | E66: Stav PRED realizáciou projektu | F66: Stav PO realizácii projektu
A67: CO2 | D67: ton
A68: NOx | D68: kg
A69: TZL/PM10 | D69: kg
A70: SO2 | D70: kg
A73: Merateľné ukazovatele Budova č. 6 | D73: =IF('Rozpočet B6'!G12="",""," - súpis. č. "&'Rozpočet B6'!G12) -> 
A74: Názov MU | B74: Názov Merateľného ukazovatela | F74: Príznak rizika | G74: Merná jednotka | H74: Výsledná hodnota
A75: P0080 | B75: Množstvo elektrickej energie vyrobenej v zariadení OZE | F75: S príznakom | G75: MWh/rok | H75: =J44+J48 -> 0
A76: P0084 | B76: Množstvo tepelnej energie vyrobenej v zariadení OZE | F76: S príznakom | G76: MWh/rok | H76: =K42+K43+K45+K46+K47 -> 0
A77: P0103 | B77: Odhadované ročné zníženie emisií skleníkových plynov | F77: S príznakom | G77: t ekviv. CO2/rok | H77: =E67-F67 -> 0
A78: P0250 | B78: Počet opatrení na zníženie spotreby energie realizovaných vo verejnej budove | F78: Bez príznaku | G78: počet | H78: =E29 -> 0
A79: P0470 | B79: Počet verej. budov na úrovni nízkoenerg. / ultranízkoenerg. alebo s takmer nul. potrebou energie | F79: Bez príznaku | G79: počet | H79: 1
A80: P0612 | B80: Podlahová plocha budov obnovených nad rámec minimálnych požiadaviek | F80: Bez príznaku | G80: m2 | H80: =F39 -> 0
A81: P0627 | B81: Spotreba energie v budove po realizácii opatrení energetickej efektívnosti | F81: S príznakom | G81: MWh/rok | H81: =H82*(F38*F39)/(E38*E39) -> 
A82: P0628 | B82: Spotreba energie v budove pred realizáciou opatrení energetickej efektívnosti | F82: S príznakom | G82: MWh/rok | H82: =H62 -> 0
A83: P0687 | B83: Zníženie konečnej spotreby energie vo verejných budovách | F83: S príznakom | G83: kWh/rok | H83: =(H82-H81)*1000 -> 
A84: P0689 | B84: Zníženie potreby energie vo verejných budovách | F84: S príznakom | G84: kWh/rok | H84: =(E38*E39)-(F38*F39) -> 0
A85: P0691 | B85: Zníženie produkcie emisií NOx | F85: S príznakom | G85: kg/rok | H85: =E68-F68 -> 0
A86: P0692 | B86: Zníženie produkcie emisií PM10 | F86: S príznakom | G86: kg/rok | H86: =E69-F69 -> 0
A87: P0694 | B87: Zníženie produkcie emisií SO2 | F87: S príznakom | G87: kg/rok | H87: =E70-F70 -> 0
A88: P0701 | B88: Zníženie ročnej spotreby primárnej energie vo verejných budovách | F88: S príznakom | G88: kWh/rok | H88: =I62 -> 
A89: P0705 | B89: Zvýšená kapacita výroby elektriny z obnoviteľných zdrojov | F89: Bez príznaku | G89: MWe | H89: =L44+L48 -> 0
A90: P0706 | B90: Zvýšená kapacita výroby energie z obnoviteľných zdrojov | F90: Bez príznaku | G90: MW | H90: =H89+H91 -> 0
A91: P0707 | B91: Zvýšená kapacita výroby tepla z obnoviteľných zdrojov | F91: Bez príznaku | G91: MWt | H91: =M42+M43+M45+M46+M47 -> 0

Sheet MU Budova 7 (hidden)
A2: Príloha ŽoNFP č. 6 - Dokumentácia k oprávnenosti výdavkov
A8: Merateľné ukazovateľe - Budova č. 7 | H8: =IF('Rozpočet B7'!G12="",""," - súpis. č. "&'Rozpočet B7'!G12) -> 
A10: Názov žiadateľa: | B10: =IF('Rozpočet B1 - Value for Money'!B9:O9="","",'Rozpočet B1 - Value for Money'!B9:O9) -> Obec Podhorany
A11: Názov projektu: | B11: =IF('Rozpočet B1 - Value for Money'!B10:O10="","",'Rozpočet B1 - Value for Money'!B10:O10) -> Stavebné úpravy ZŠ Podhorany Zníženie spotreby energie pri prevádzke
A13: Využitie budovy | D13: =IFERROR(IF(H82/(E64)>=0.75,Číselníky!C20,Číselníky!C19),"") ->  | I13: =IF(OR(O15=0,O16=0,O17=0,O18=0,O19=0),"Minimálne jedna podmienka výzvy nie je splnená (riadky 15-18)",IF(K25<30,"Podmienka plánovanej úspory potreby energie na vykurovanie nie je splnená","")) ->  | O13: =IF(D13=Číselníky!C19,0,1) -> 1
A15: Bude budova preukázateľne dlhodobo využívaná verejným sektorom bez zmeny charakteru jej využitia v zmysle výzvy? | I15: Ak je budova pripojená k účinným (efektívnym) systémom centralizovaného zásobovania teplom, zostane pripojená aj po ukončení realizácie projektu v zmysle výzvy? | O15: =IF(G15=Číselníky!A3,0,1) -> 1
A16: Bude dosiahnutá plánovaná úspora potreby energie na vykurovanie vo výške min. 30% v zmysle výzvy? | G16: =IF($K$26="","",IF($K$26=100,Číselníky!$A$3,Číselníky!$A$2)) ->  | O16: =IF(G16=Číselníky!A3,0,1) -> 1
A17: Je hlavná aktivita v súlade so Stratégiou pre redukciu PM10 a programami na zlepšenie kvality ovzdušia v zmysle výzvy? | I17: Ak je súčastou aktivity energetické zariadenie využívajúce biomasu, je a bude využívané? | L17: Ku dňu predloženia ŽoNFP | M17: Po ukončení realizácie projektu | O17: =IF(G17=Číselníky!A3,0,1) -> 1
A18: Ak relevantné, je hlavná aktivita v súlade s Kritériami udržateľného využívania biomasy v zmysle výzvy? | O18: =IF(G18=Číselníky!A3,0,1) -> 1
O19: =IF(M15=Číselníky!A3,0,1) -> 1
A20: Využívanie verejnej budovy na hospodársku činnosť | C20: Merná jednotka | D20: Stav PRED realizáciou projektu | F20: Stav PO realizácii projektu
A21: Celková podlahová plocha verejnej budovy (v zmysle Príkladu) | C21: [ m2h ] | D21: Uveďte celkovú podlahovú plochu budovy (z vonjakších rozmerov budovy podľa STN 73 0540-2 Tepelná ochrana budov) ku dňu predloženia ŽoNFP a postupujte v zmysle Príkladu | F21: Uveďte celkovú podlahovú plochu budovy (z vonjakších rozmerov budovy podľa STN 73 0540-2 Tepelná ochrana budov) ku dňu predloženia ŽoNFP a postupujte v zmysle Príkladu | O21: =IF(ISNUMBER(F21),1,0) -> 0
A22: Podlahová plocha využívaná na sprievodnú hospodársku činnosť v rámci definície zmiešaného využitia budovy (v zmysle Príkladu) | C22: [ m2h ] | D22: Uveďte podlahovú plochu využívanú na hospodársku činnosť v rámci zmiešaného využitia budovy a to ku dňu predloženia ŽoNFP a postupujte v zmysle Príkladu | F22: Uveďte podlahovú plochu využívanú na hospodársku činnosť v rámci zmiešaného využitia budovy a to ku dňu predloženia ŽoNFP a postupujte v zmysle Príkladu | O22: =IF(ISNUMBER(F22),1,0) -> 0
A23: Podlahová plocha využívaná na hospodársku činnosť mimo definície zmiešaného využitia budovy | C23: [ m2h ] | D23: Uveďte podlahovú plochu využívanú na hospodársku činnosť mimo zmiešaného využitia budovy ku dňu predloženia ŽoNFP | F23: Uveďte podlahovú plochu využívanú na hospodársku činnosť mimo zmiešaného využitia budovy ku dňu predloženia ŽoNFP | O23: =IF(ISNUMBER(F23),1,0) -> 0
A24: Podiel podlahovej plochy zmiešaného využitia budovy | C24: [%] | D24: =IFERROR((D22/D21)*100,0) -> 0 | F24: =IFERROR((F22/F21)*100,0) -> 0
A25: Podiel podlahovej plochy hospodárskej činnosti budovy | C25: [%] | D25: =IFERROR((D23/D21)*100,0) -> 0 | F25: =IFERROR((F23/F21)*100,0) -> 0 | I25: Plánovaná úspora energie na vykurovanie [ % ] | K25: =IF(OR(E33="",F33=""),"",((E33-F33)/E33*100)) -> 
A26: Celkové percentuálne zníženie COV | C26: [%] | D26: 0 | F26: =IFERROR(IF(F24>20,SUM(F24:G25),F25),0) -> 0 | I26: Celkové zníženie OV [ % ] | K26: =IF(OR(E33="",F33=""),"",IF(K25<30,100,IF(AND(K25>=30,K25<=40),10,IF(AND(K25>=40,K25<=50),5,IF(K25>50,0))))) -> 
A28: Kategória budovy | I28: Dátum vydania stavebného povolenia
A29: Počet opatrení na zníženie SPOTREBY energie realizovaných v predmetnej budove
A31: Príloha č. 4 - Povolenie na realizáciu projektu Príloha č. 5 - Projektová dokumentácia - ENERGETICKÉ HODNOTENIE
A32: Podklady k stanoveniu úspory energie | E32: Stav PRED realizáciou projektu | F32: Stav PO realizácii projektu | G32: Energetická trieda po realizácii projektu
A33: Potreba energie na vykurovanie | D33: [kWh/m2.rok] | G33: =IF(E28="","Vyplňte kategóriu budovy",IF(OR(E28="Administratívna budova",E28="Budova škôl a školských zariadení"),IF(ROUND(F33,0)<=28,"A",IF(ROUND(F33,0)<=56,"B",IF(ROUND(F33,0)<=84,"C",IF(ROUND(F33,0)<=112,"D",IF(ROUND(F33,0)<=140,"E",IF(ROUND(F33,0)<=168,"F","G")))))),"neoprávnená kategória budovy")) -> Vyplňte kategóriu budovy | I33: =IF(OR(G33="C",G33="D",G33="E",G33="F",G33="G"),Číselníky!C19,"") ->  | O33: =IF(I33=Číselníky!C19,0,1) -> 1
A34: Potreba energie na prípravu teplej vody | D34: [kWh/m2.rok] | G34: =IF(E28="","Vyplňte kategóriu budovy",IF(E28="Administratívna budova",IF(ROUND(F34,0)<=4,"A",IF(ROUND(F34,0)<=8,"B",IF(ROUND(F34,0)<=12,"C",IF(ROUND(F34,0)<=16,"D",IF(ROUND(F34,0)<=20,"E",IF(ROUND(F34,0)<=24,"F","G")))))),IF(E28="Budova škôl a školských zariadení",IF(ROUND(F34,0)<=6,"A",IF(ROUND(F34,0)<=12,"B",IF(ROUND(F34,0)<=18,"C",IF(ROUND(F34,0)<=24,"D",IF(ROUND(F34,0)<=30,"E",IF(ROUND(F34,0)<=36,"F","G")))))),"neoprávnená kategória budovy"))) -> Vyplňte kategóriu budovy | I34: =IF(OR(G34="C",G34="D",G34="E",G34="F",G34="G"),Číselníky!C19,"") ->  | O34: =IF(I34=Číselníky!C19,0,1) -> 1
A35: Potreba energie na nútené vetranie/chladenie | D35: [kWh/m2.rok] | G35: =IF(E28="","Vyplňte kategóriu budovy",IF(E28="Administratívna budova",IF(ROUND(F35,0)<=16,"A",IF(ROUND(F35,0)<=31,"B",IF(ROUND(F35,0)<=45,"C",IF(ROUND(F35,0)<=59,"D",IF(ROUND(F35,0)<=75,"E",IF(ROUND(F35,0)<=90,"F","G")))))),IF(E28="Budova škôl a školských zariadení","nehodnotí sa","neoprávnená kategória budovy"))) -> Vyplňte kategóriu budovy | I35: =IF(OR(G35="C",G35="D",G35="E",G35="F",G35="G"),Číselníky!C19,"") ->  | O35: =IF(I35=Číselníky!C19,0,1) -> 1
A36: Potreba energie na osvetlenie | D36: [kWh/m2.rok] | G36: =IF(E28="","Vyplňte kategóriu budovy",IF(E28="Administratívna budova",IF(ROUND(F36,0)<=15,"A",IF(ROUND(F36,0)<=30,"B",IF(ROUND(F36,0)<=38,"C",IF(ROUND(F36,0)<=45,"D",IF(ROUND(F36,0)<=56,"E",IF(ROUND(F36,0)<=68,"F","G")))))),IF(E28="Budova škôl a školských zariadení",IF(ROUND(F36,0)<=9,"A",IF(ROUND(F36,0)<=18,"B",IF(ROUND(F36,0)<=23,"C",IF(ROUND(F36,0)<=27,"D",IF(ROUND(F36,0)<=34,"E",IF(ROUND(F36,0)<=41,"F","G")))))),"neoprávnená kategória budovy"))) -> Vyplňte kategóriu budovy | I36: =IF(OR(G36="C",G36="D",G36="E",G36="F",G36="G"),Číselníky!C19,"") ->  | O36: =IF(I36=Číselníky!C19,0,1) -> 1
A37: Celková potreba energie | D37: [kWh/m2.rok] | E37: =SUM(E33:E36) -> 0 | F37: =SUM(F33:F36) -> 0 | G37: =IF(E28="","Vyplňte kategóriu budovy",IF(E28="Administratívna budova",IF(ROUND(F37,0)<=63,"A",IF(ROUND(F37,0)<=125,"B",IF(ROUND(F37,0)<=179,"C",IF(ROUND(F37,0)<=232,"D",IF(ROUND(F37,0)<=291,"E",IF(ROUND(F37,0)<=350,"F","G")))))),IF(E28="Budova škôl a školských zariadení",IF(ROUND(F37,0)<=43,"A",IF(ROUND(F37,0)<=86,"B",IF(ROUND(F37,0)<=125,"C",IF(ROUND(F37,0)<=163,"D",IF(ROUND(F37,0)<=204,"E",IF(ROUND(F37,0)<=245,"F","G")))))),"neoprávnená kategória budovy"))) -> Vyplňte kategóriu budovy | I37: =IF(OR(G37="C",G37="D",G37="E",G37="F",G37="G"),Číselníky!C19,"") ->  | O37: =IF(I37=Číselníky!C19,0,1) -> 1
A38: Globálny ukazovateľ - Primárna energia | D38: [kWh/m2.rok] | G38: =IF(OR(E28="",K28=""),"Vyplňte kategóriu budovy / Dátum stav. pov",IF(E28="Administratívna budova",IF(ROUND(F38,0)<=61,"A0",IF(ROUND(F38,0)<=122,"A1",IF(ROUND(F38,0)<=255,"B",IF(ROUND(F38,0)<=383,"C",IF(ROUND(F38,0)<=511,"D",IF(ROUND(F38,0)<=639,"E",IF(ROUND(F38,0)<=766,"F","G"))))))),IF(E28="Budova škôl a školských zariadení",IF(ROUND(F38,0)<=34,"A0",IF(ROUND(F38,0)<=68,"A1",IF(ROUND(F38,0)<=136,"B",IF(ROUND(F38,0)<=204,"C",IF(ROUND(F38,0)<=272,"D",IF(ROUND(F38,0)<=340,"E",IF(ROUND(F38,0)<=408,"F","G"))))))),"neoprávnená kategória budovy"))) -> Vyplňte kategóriu budovy / Dátum stav. pov | I38: =IF(OR(G38="B",G38="C",G38="D",G38="E",G38="F",G38="G"),Číselníky!C19,IF((AND(G38="A1",K28>DATEVALUE("31.12.2018"))),"Projekt. dok. musí obsahovať zdôvodnenie nedosiahnutia hornej hranice energ. triedy A0","")) ->  | O38: =IF(I38=Číselníky!C19,0,1) -> 1
A39: Celková podlahová plocha | D39: [m2]
A41: Energetické zariadenia | E41: Počet kusov | F41: Plocha - Absorpčná [m2] | G41: Výkon [kW] | H41: Výkon na m2 [kWh/m2] | I41: Využitelnosť [h/rok] | J41: P0080 [MWh] | K41: P0084 [MWh] | L41: P0705 [MW] | M41: P0707 [MW]
A42: Tepelné čerpadlo - Elektrické | I42: 1290 | K42: =M42*I42 -> 0 | M42: =(E42*G42)/1000 -> 0
A43: Tepelné čerpadlo - Plynové | I43: 1050 | K43: =M43*I43 -> 0 | M43: =(E43*G43)/1000 -> 0
A44: KVET - Elektrina | I44: 1290 | J44: =L44*I44 -> 0 | L44: =(E44*G44)/1000 -> 0
A45: KVET - Teplo | I45: 1290 | K45: =M45*I45 -> 0 | M45: =(E45*G45)/1000 -> 0
A46: Solárny panel Termický plochý | H46: 525 | K46: =(E46*F46*H46)/1000 -> 0 | M46: =K46/1000 -> 0
A47: Solárny panel Vákouový | H47: 800 | K47: =(E47*F47*H47)/1000 -> 0 | M47: =K47/1000 -> 0
A48: Fotovoltaický panel | F48: 1 | I48: 1000 | J48: =L48*I48 -> 0 | L48: =(E48*F48*G48)/1000 -> 0
A50: Príloha č. 8 ŽoNFP - Energetický audit
A51: Prehľad o spotrebe energie pred realizáciou projektu | E51: Rok N-2 | F51: Rok N-1 | G51: Rok N | H51: Priemer | I51: Zníženie spotreby PE
A52: elektrina | D52: (MWh) | H52: =(E52+F52+G52)/3 -> 0 | I52: =$H$83*H52/$H$62/(0.93*0.99*0.4) -> 
A53: zemný plyn | D53: (MWh) | H53: =(E53+F53+G53)/3 -> 0 | I53: =$H$83*H53/$H$62/(0.99*0.985) -> 
A54: biomasa, uhlie | D54: (MWh) | H54: =(E54+F54+G54)/3 -> 0 | I54: =$H$83*H54/$H$62 -> 
A55: CZT | D55: (MWh) | H55: =(E55+F55+G55)/3 -> 0 | I55: =IF(OR(E56="",E57="",E58="",E59="",E60="",E61=""),"Vyplňte bunky E56 - 61",$H$83*H55/$H$62/(O56*O57*O58*O59*O60*O61)) -> Vyplňte bunky E56 - 61
B56: Účinnosť sekundárneho rozvodu - teplá voda | O56: =IF(E56="áno",0.94,1) -> 1
B57: Účinnosť OST | O57: =IF(E57="áno",0.985,1) -> 1
B58: Účinnosť účinnosť primárneho rozvodu - teplá voda | O58: =IF(E58="áno",0.925,1) -> 1
B59: Účinnosť OST - horúca - teplá voda | O59: =IF(E59="áno",0.985,1) -> 1
B60: Účinnosť primárneho rozvodu - horúca voda | O60: =IF(E60="áno",0.9,1) -> 1
B61: Účinnosť premeny energie | O61: =IF(E61="áno",0.88,1) -> 1
A62: Spotreba energie SPOLU | D62: (MWh) | E62: =SUM(E52:E55) -> 0 | F62: =SUM(F52:F55) -> 0 | G62: =SUM(G52:G55) -> 0 | H62: =SUM(H52:H55) -> 0 | I62: =SUM(I52:I55) -> 
A64: Celková potreba energie pred realizáciou projektu vypočítaná projektovým energetickým hodnotením | F64: MWh/rok
A66: Environmentálne hodnotenie | E66: Stav PRED realizáciou projektu | F66: Stav PO realizácii projektu
A67: CO2 | D67: ton
A68: NOx | D68: kg
A69: TZL/PM10 | D69: kg
A70: SO2 | D70: kg
A73: Merateľné ukazovatele Budova č. 7 | D73: =IF('Rozpočet B7'!G12="",""," - súpis. č. "&'Rozpočet B7'!G12) -> 
A74: Názov MU | B74: Názov Merateľného ukazovatela | F74: Príznak rizika | G74: Merná jednotka | H74: Výsledná hodnota
A75: P0080 | B75: Množstvo elektrickej energie vyrobenej v zariadení OZE | F75: S príznakom | G75: MWh/rok | H75: =J44+J48 -> 0
A76: P0084 | B76: Množstvo tepelnej energie vyrobenej v zariadení OZE | F76: S príznakom | G76: MWh/rok | H76: =K42+K43+K45+K46+K47 -> 0
A77: P0103 | B77: Odhadované ročné zníženie emisií skleníkových plynov | F77: S príznakom | G77: t ekviv. CO2/rok | H77: =E67-F67 -> 0
A78: P0250 | B78: Počet opatrení na zníženie spotreby energie realizovaných vo verejnej budove | F78: Bez príznaku | G78: počet | H78: =E29 -> 0
A79: P0470 | B79: Počet verej. budov na úrovni nízkoenerg. / ultranízkoenerg. alebo s takmer nul. potrebou energie | F79: Bez príznaku | G79: počet | H79: 1
A80: P0612 | B80: Podlahová plocha budov obnovených nad rámec minimálnych požiadaviek | F80: Bez príznaku | G80: m2 | H80: =F39 -> 0
A81: P0627 | B81: Spotreba energie v budove po realizácii opatrení energetickej efektívnosti | F81: S príznakom | G81: MWh/rok | H81: =H82*(F38*F39)/(E38*E39) -> 
A82: P0628 | B82: Spotreba energie v budove pred realizáciou opatrení energetickej efektívnosti | F82: S príznakom | G82: MWh/rok | H82: =H62 -> 0
A83: P0687 | B83: Zníženie konečnej spotreby energie vo verejných budovách | F83: S príznakom | G83: kWh/rok | H83: =(H82-H81)*1000 -> 
A84: P0689 | B84: Zníženie potreby energie vo verejných budovách | F84: S príznakom | G84: kWh/rok | H84: =(E38*E39)-(F38*F39) -> 0
A85: P0691 | B85: Zníženie produkcie emisií NOx | F85: S príznakom | G85: kg/rok | H85: =E68-F68 -> 0
A86: P0692 | B86: Zníženie produkcie emisií PM10 | F86: S príznakom | G86: kg/rok | H86: =E69-F69 -> 0
A87: P0694 | B87: Zníženie produkcie emisií SO2 | F87: S príznakom | G87: kg/rok | H87: =E70-F70 -> 0
A88: P0701 | B88: Zníženie ročnej spotreby primárnej energie vo verejných budovách | F88: S príznakom | G88: kWh/rok | H88: =I62 -> 
A89: P0705 | B89: Zvýšená kapacita výroby elektriny z obnoviteľných zdrojov | F89: Bez príznaku | G89: MWe | H89: =L44+L48 -> 0
A90: P0706 | B90: Zvýšená kapacita výroby energie z obnoviteľných zdrojov | F90: Bez príznaku | G90: MW | H90: =H89+H91 -> 0
A91: P0707 | B91: Zvýšená kapacita výroby tepla z obnoviteľných zdrojov | F91: Bez príznaku | G91: MWt | H91: =M42+M43+M45+M46+M47 -> 0

Sheet Inštrukcia prepočtu PM10 (hidden)

Sheet Číselníky (2) (hidden)
A2: áno | C2: Elektrina - Faktory | G2: Kategória budovy
A3: nie | C3: Účinnosť distribúcie | D3: 0.93 | G3: administratívna budova
A4: irelevantné | C4: Účinnosti prenosu | D4: 0.99 | G4: budova škôl a školských zariadení
C5: Účinnosť premeny (transformácie) | D5: 0.4 | G5: budova nemocníc
G6: budova hotelov a reštaurácií
A7: 1. organizácia štátnej správy | C7: Zemný plyn - Faktory | G7: športové haly a iné budovy určené na šport
A8: 2. subjekt územnej samosprávy | C8: Účinnosť distribúcie | D8: 0.99 | G8: budova pre veľkoobchodné a maloobchodné služby
A9: 3. subjekt verejnej správy | C9: Účinnosť prepravy plynu | D9: 0.985 | G9: budova so zmiešaným účelom využitia
C11: CZT - Faktory
A12: 0 | C12: Účinnosť distribúcie sekundárnych rozvodov tepla | D12: 0.94
A13: 2 | C13: Účinnosť distribúcie prim. rozvodov tepla s teplonosným médiom teplá voda | D13: 0.925
A14: 3 | C14: Účinnosť distribúcie prim. rozvodov tepla s teplonosným médiom horúca voda | D14: 0.9
C15: Účiinosť odovzdávacích staníc tepla | D15: 0.985
C16: Účinnosť premeny energie | D16: 0.88
A17: 0
A18: 1
A19: 3
A22: 0
A23: 4
A26: 0
A27: 3
A30: kritériá odborného hodnotenia splnené
A31: kritériá odborného hodnotenia nesplnené
A33: vo finančnej operácií je možné pokračovať.
A34: vo finančnej operácií nie je možné pokračovať.
A35: finančnú operáciu je potrebné zastaviť.

Sheet Číselníky (hidden)
A2: áno | C2: Elektrina - Faktory | G2: Kategória budovy
A3: nie | C3: Účinnosť distribúcie | D3: 0.93 | G3: administratívna budova
A4: irelevantné | C4: Účinnosti prenosu | D4: 0.99 | G4: budova škôl a školských zariadení
C5: Účinnosť premeny (transformácie) | D5: 0.4 | G5: budova nemocníc
G6: budova hotelov a reštaurácií
A7: áno | C7: Zemný plyn - Faktory | G7: športové haly a iné budovy určené na šport
A8: nie | C8: Účinnosť distribúcie | D8: 0.99 | G8: budova pre veľkoobchodné a maloobchodné služby
A9: RH neprekročená | C9: Účinnosť prepravy plynu | D9: 0.985 | G9: budova so zmiešaným účelom využitia
C11: CZT - Faktory | G11: Majetkovo-právny vzťah
C12: Účinnosť distribúcie sekundárnych rozvodov tepla | D12: 0.94 | E12: 1 | G12: výlučné vlastníctvo budovy žiadateľom
C13: Účinnosť distribúcie prim. rozvodov tepla s teplonosným médiom teplá voda | D13: 0.925 | E13: 1 | G13: podielové spoluvlastníctvo budovy
C14: Účinnosť distribúcie prim. rozvodov tepla s teplonosným médiom horúca voda | D14: 0.9 | E14: 1 | G14: správa budovy žiadateľom
C15: Účiinosť odovzdávacích staníc tepla | D15: 0.985 | E15: 1
C16: Účinnosť premeny energie | D16: 0.88 | E16: 1
C18: Využitie budovy
C19: Budova nespĺňa podmienku oprávnenosti aktivít
C20: Podmienka je splnená
